Workbook

Sheet A- Front Page
A1: Florida CCOC Budget Submission | F1: ="" -> 
A2: Performance and Budget System (PABS) | F2: Alachua
A3: Section 28.36, Florida Statutes | F3: Baker
A4: County: | B4: Santa Rosa | F4: Bay
F5: Bradford
B6: Operational Budget Request for CFY 2016-17 | F6: Brevard
F7: Broward
A8: Warnings | F8: Calhoun
A9: Tab | B9: Warning | F9: Charlotte
A10: =IFERROR(INDEX(WarningList!$A$3:$C$1523,WarningList!$F3,COLUMNS($A$10:A10)),"") ->  | B10: =IFERROR(INDEX(WarningList!$A$3:$C$1523,WarningList!$F3,COLUMNS($A$10:B10)),"") ->  | F10: Citrus
A11: =IFERROR(INDEX(WarningList!$A$3:$C$1523,WarningList!$F4,COLUMNS($A$10:A11)),"") ->  | B11: =IFERROR(INDEX(WarningList!$A$3:$C$1523,WarningList!$F4,COLUMNS($A$10:B11)),"") ->  | F11: Clay
A12: =IFERROR(INDEX(WarningList!$A$3:$C$1523,WarningList!$F5,COLUMNS($A$10:A12)),"") ->  | B12: =IFERROR(INDEX(WarningList!$A$3:$C$1523,WarningList!$F5,COLUMNS($A$10:B12)),"") ->  | F12: Collier
A13: =IFERROR(INDEX(WarningList!$A$3:$C$1523,WarningList!$F6,COLUMNS($A$10:A13)),"") ->  | B13: =IFERROR(INDEX(WarningList!$A$3:$C$1523,WarningList!$F6,COLUMNS($A$10:B13)),"") ->  | F13: Columbia
A14: =IFERROR(INDEX(WarningList!$A$3:$C$1523,WarningList!$F7,COLUMNS($A$10:A14)),"") ->  | B14: =IFERROR(INDEX(WarningList!$A$3:$C$1523,WarningList!$F7,COLUMNS($A$10:B14)),"") ->  | F14: Dade
A15: =IFERROR(INDEX(WarningList!$A$3:$C$1523,WarningList!$F8,COLUMNS($A$10:A15)),"") ->  | B15: =IFERROR(INDEX(WarningList!$A$3:$C$1523,WarningList!$F8,COLUMNS($A$10:B15)),"") ->  | F15: Desoto
A16: =IFERROR(INDEX(WarningList!$A$3:$C$1523,WarningList!$F9,COLUMNS($A$10:A16)),"") ->  | B16: =IFERROR(INDEX(WarningList!$A$3:$C$1523,WarningList!$F9,COLUMNS($A$10:B16)),"") ->  | F16: Dixie
A17: =IFERROR(INDEX(WarningList!$A$3:$C$1523,WarningList!$F10,COLUMNS($A$10:A17)),"") ->  | B17: =IFERROR(INDEX(WarningList!$A$3:$C$1523,WarningList!$F10,COLUMNS($A$10:B17)),"") ->  | F17: Duval
A18: =IFERROR(INDEX(WarningList!$A$3:$C$1523,WarningList!$F11,COLUMNS($A$10:A18)),"") ->  | B18: =IFERROR(INDEX(WarningList!$A$3:$C$1523,WarningList!$F11,COLUMNS($A$10:B18)),"") ->  | F18: Escambia
A19: =IFERROR(INDEX(WarningList!$A$3:$C$1523,WarningList!$F12,COLUMNS($A$10:A19)),"") ->  | B19: =IFERROR(INDEX(WarningList!$A$3:$C$1523,WarningList!$F12,COLUMNS($A$10:B19)),"") ->  | F19: Flagler
A20: =IFERROR(INDEX(WarningList!$A$3:$C$1523,WarningList!$F13,COLUMNS($A$10:A20)),"") ->  | B20: =IFERROR(INDEX(WarningList!$A$3:$C$1523,WarningList!$F13,COLUMNS($A$10:B20)),"") ->  | F20: Franklin | ZZ20: PABS6.0
A21: =IFERROR(INDEX(WarningList!$A$3:$C$1523,WarningList!$F14,COLUMNS($A$10:A21)),"") ->  | B21: =IFERROR(INDEX(WarningList!$A$3:$C$1523,WarningList!$F14,COLUMNS($A$10:B21)),"") ->  | F21: Gadsden
A22: =IFERROR(INDEX(WarningList!$A$3:$C$1523,WarningList!$F15,COLUMNS($A$10:A22)),"") ->  | B22: =IFERROR(INDEX(WarningList!$A$3:$C$1523,WarningList!$F15,COLUMNS($A$10:B22)),"") ->  | F22: Gilchrist
A23: =IFERROR(INDEX(WarningList!$A$3:$C$1523,WarningList!$F16,COLUMNS($A$10:A23)),"") ->  | B23: =IFERROR(INDEX(WarningList!$A$3:$C$1523,WarningList!$F16,COLUMNS($A$10:B23)),"") ->  | F23: Glades
F24: Gulf
F25: Hamilton
F26: Hardee
F27: Hendry
F28: Hernando
F29: Highlands
F30: Hillsborough
F31: Holmes
F32: Indian River
F33: Jackson
F34: Jefferson
F35: Lafayette
F36: Lake
F37: Lee
F38: Leon
F39: Levy
F40: Liberty
F41: Madison
F42: Manatee
F43: Marion
F44: Martin
F45: Monroe
F46: Nassau
F47: Okaloosa
F48: Okeechobee
F49: Orange
F50: Osceola
F51: Palm Beach
F52: Pasco
F53: Pinellas
F54: Polk
F55: Putnam
F56: Santa Rosa
F57: Sarasota
F58: Seminole
F59: St. Johns
F60: St. Lucie
F61: Sumter
F62: Suwannee
F63: Taylor
F64: Union
F65: Volusia
F66: Wakulla
F67: Walton
F68: Washington

Sheet B- Revenues
A1: County | B1: =IF('A- Front Page'!B4="","",'A- Front Page'!B4) -> Santa Rosa
A3: REVENUES
B4: Projected Revenue: Sep 2016 to Aug 2017
A5: Fines | B5: ='b- Revenue Detail'!I39 -> 755646
A6: Fees | B6: ='b- Revenue Detail'!I40+'b- Revenue Detail'!I46 -> 672587
A7: Forfeitures | B7: ='b- Revenue Detail'!I41 -> 41027
A8: Service Charges | B8: ='b- Revenue Detail'!I42 -> 632491
A9: Court Costs | B9: ='b- Revenue Detail'!I43 -> 778947
A10: Interest Earned | B10: ='b- Revenue Detail'!I44 -> 0
A11: $80.00 Filing Fee per SB 1512 | B11: ='b- Revenue Detail'!I45 -> 135647
A12: Total Revenue Projections | B12: =SUM(B5:B11) -> 3016345
A14: Estimated Distribution from Trust Fund | B14: =IF('H- Net Budget Amt'!B45:C45-'B- Revenues'!B12<=0,0,'H- Net Budget Amt'!B45:C45-'B- Revenues'!B12) -> 0
A15: Total Estimated Revenues Available | B15: =B12+B14 -> 3016345
A17: Note: Revenue Projections are pulled from b- Revenue Detail

Sheet C- GrossFTEs
A1: =IF('A- Front Page'!B4="","",'A- Front Page'!B4) -> Santa Rosa
B3: Clerk Court Admin | C3: Jury Mgmt | D3: Circuit Criminal | E3: Circuit Criminal With Jury Mgmt Breakout | F3: Circuit Civil | G3: Circuit Civil With Jury Mgmt Breakout | H3: Family | I3: Juvenile | J3: Juvenile Delinquency Breakout | K3: Juvenile Dependency Breakout | L3: Probate | M3: Information Systems (IT) | N3: Optional Programs | O3: County Criminal | P3: County Criminal With Jury Mgmt Breakout | Q3: County Civil | R3: Traffic | S3: Criminal Traffic Breakout | T3: Civil Traffic Breakout | U3: Non-Court | V3: Non-Court | W3: Shared Indirect Overhead | X3: Court Side Shared Overhead | Y3: Non-Court Side Shared Overhead
A4: Note: FTE can be recorded to two decimal points. | E4: =IFERROR((1-G4)*(D81/(D81+O81)),(1-G4)) -> 0.283126096 | G4: 0.2338 | J4: 0.55 | K4: =1-J4 -> 0.45 | P4: =1-(E4+G4) -> 0.483073904 | S4: 0.45 | T4: =ROUND(1-S4,4) -> 0.55 | X4: =IFERROR(ROUND(SUM(B6:D80,F6:F80,H6:I80,L6:O80,Q6:R80)/SUM(B6:D80,F6:F80,H6:I80,L6:O80,Q6:R80,U6:V80),4),0.5) -> 0.6638 | Y4: =1-X4 -> 0.3362 | Z4: Court Side Court Type Totals | AA4: All FTEs
A5: Cost Centers / Departments | B5: 604 | C5: 608 | D5: 614 | F5: 634 | H5: 654 | I5: 674 | L5: 694 | M5: 713 | N5: 719 | O5: 724 | Q5: 744 | R5: 764 | U5: 513 | V5: 519 | Z5: Total | AA5: Total
A6: Title IV-D Child Support (Reimbursed) | H6: 1 | Z6: =H6 -> 1 | AA6: =SUM(H6,U6:V6) -> 1
A7: Title IV-D Child Support (Non-Reimbursed) | E7: =ROUND(D7+(C7*$E$4),2) -> 0 | G7: =ROUND(F7+(C7*$G$4),2) -> 0 | H7: 2 | J7: =ROUND(I7*$J$4,2) -> 0 | K7: =ROUND(I7-J7,2) -> 0 | P7: =O7+(C7-(ROUND(C7*$E$4,2)+ROUND(C7*$G$4,2))) -> 0 | S7: =ROUND(R7*$S$4,2) -> 0 | T7: =ROUND(R7-S7,2) -> 0 | Z7: =SUM(C7:D7,F7,H7:I7,L7:O7,Q7:R7) -> 2 | AA7: =SUM(C7:D7,F7,H7:I7,L7:O7,Q7:R7,U7:V7) -> 2
A8: Elected Clerk | B8: 0.5 | E8: =ROUND(D8+(C8*$E$4),2) -> 0 | G8: =ROUND(F8+(C8*$G$4),2) -> 0 | J8: =ROUND(I8*$J$4,2) -> 0 | K8: =ROUND(I8-J8,2) -> 0 | P8: 0 | S8: =ROUND(R8*$S$4,2) -> 0 | T8: =ROUND(R8-S8,2) -> 0 | V8: 0.5 | X8: =ROUND(W8*X$4,2) -> 0 | Y8: =ROUND(W8-X8,2) -> 0 | Z8: =SUM(B8:D8,F8,H8:I8,L8:O8,Q8:R8,X8) -> 0.5 | AA8: =SUM(B8:D8,F8,H8:I8,L8:O8,Q8:R8,U8:V8,W8) -> 1
A9: Human Resources | E9: 0 | G9: 0 | J9: 0 | K9: 0 | P9: 0 | S9: 0 | T9: 0 | X9: =ROUND(W9*X$4,2) -> 0 | Y9: =ROUND(W9-X9,2) -> 0 | Z9: =SUM(B9:D9,F9,H9:I9,L9:O9,Q9:R9,X9) -> 0 | AA9: =SUM(B9:D9,F9,H9:I9,L9:O9,Q9:R9,U9:V9,W9) -> 0
A10: Clerk Accounting | B10: 4 | E10: 0 | G10: 0 | J10: 0 | K10: 0 | P10: 0 | S10: 0 | T10: 0 | V10: 1 | X10: 0 | Y10: 0 | Z10: =SUM(B10:D10,F10,H10:I10,L10:O10,Q10:R10,X10) -> 4 | AA10: =SUM(B10:D10,F10,H10:I10,L10:O10,Q10:R10,U10:V10,W10) -> 5
A11: Executive Administration | B11: 1 | E11: 0 | G11: 0 | J11: 0 | K11: 0 | P11: 0 | S11: 0 | T11: 0 | V11: 1 | X11: 0 | Y11: 0 | Z11: =SUM(B11:D11,F11,H11:I11,L11:O11,Q11:R11,X11) -> 1 | AA11: =SUM(B11:D11,F11,H11:I11,L11:O11,Q11:R11,U11:V11,W11) -> 2
A12: Jury Management | C12: 2 | E12: 0.57 | G12: 0.47 | J12: 0 | K12: 0 | P12: 0.96 | S12: 0 | T12: 0 | X12: 0 | Y12: 0 | Z12: =SUM(C12:D12,F12,H12:I12,L12:O12,Q12:R12,X12) -> 2 | AA12: =SUM(C12:D12,F12,H12:I12,L12:O12,Q12:R12,U12:V12,W12) -> 2 | AB12: =IF(AND(AA12>0,A12=""),1,0) -> 0
A13: Archives | D13: 0.5 | E13: 0.5 | F13: 0.5 | G13: 0.5 | H13: 0.5 | I13: 0.5 | J13: 0.28 | K13: 0.22 | L13: 0.5 | O13: 0.5 | P13: 0.5 | Q13: 0.5 | R13: 0.5 | S13: 0.23 | T13: 0.27 | X13: 0 | Y13: 0 | Z13: =SUM(C13:D13,F13,H13:I13,L13:O13,Q13:R13,X13) -> 4 | AA13: =SUM(C13:D13,F13,H13:I13,L13:O13,Q13:R13,U13:V13,W13) -> 4 | AB13: =IF(AND(AA13>0,A13=""),1,0) -> 0
A14: Felony | D14: 6 | E14: 6 | G14: 0 | J14: 0 | K14: 0 | P14: 0 | S14: 0 | T14: 0 | X14: 0 | Y14: 0 | Z14: 6 | AA14: 6 | AB14: 0
A15: Circuit Civil | E15: 0 | F15: 5 | G15: 5 | J15: 0 | K15: 0 | P15: 0 | S15: 0 | T15: 0 | X15: 0 | Y15: 0 | Z15: 5 | AA15: 5 | AB15: 0
A16: Family Law | E16: 0 | G16: 0 | H16: 5 | J16: 0 | K16: 0 | P16: 0 | S16: 0 | T16: 0 | X16: 0 | Y16: 0 | Z16: 5 | AA16: 5 | AB16: 0
A17: Juvenile | E17: 0 | G17: 0 | I17: 5 | J17: 2.75 | K17: 2.25 | P17: 0 | S17: 0 | T17: 0 | X17: 0 | Y17: 0 | Z17: 5 | AA17: 5 | AB17: 0
A18: Probate | E18: 0 | G18: 0 | J18: 0 | K18: 0 | L18: 3 | P18: 0 | S18: =ROUND(R18*$S$4,2) -> 0 | T18: =ROUND(R18-S18,2) -> 0 | X18: 0 | Y18: 0 | Z18: 3 | AA18: 3 | AB18: 0
A19: Misdemeanor | E19: 0 | G19: 0 | J19: 0 | K19: 0 | O19: 11 | P19: 11 | S19: =ROUND(R19*$S$4,2) -> 0 | T19: =ROUND(R19-S19,2) -> 0 | X19: 0 | Y19: 0 | Z19: =SUM(C19:D19,F19,H19:I19,L19:O19,Q19:R19,X19) -> 11 | AA19: =SUM(C19:D19,F19,H19:I19,L19:O19,Q19:R19,U19:V19,W19) -> 11 | AB19: 0
A20: County Civil | E20: 0 | G20: 0 | J20: 0 | K20: 0 | P20: 0 | Q20: 2 | S20: 0 | T20: 0 | X20: 0 | Y20: 0 | Z20: 2 | AA20: 2 | AB20: 0
A21: Traffic | E21: 0 | G21: 0 | J21: 0 | K21: 0 | P21: 0 | R21: 7 | S21: 3.15 | T21: 3.85 | X21: 0 | Y21: 0 | Z21: 7 | AA21: 7 | AB21: 0
A22: Information Technology | E22: 0 | G22: 0 | J22: 0 | K22: 0 | M22: 1.75 | P22: 0 | S22: 0 | T22: 0 | V22: 3 | X22: 0 | Y22: 0 | Z22: 1.75 | AA22: 4.75 | AB22: 0
A23: Collections | D23: 0.25 | E23: 0.25 | F23: 0.25 | G23: 0.25 | H23: 0.25 | I23: 0.25 | J23: 0.14 | K23: 0.11 | L23: 0.25 | O23: 0.25 | P23: 0.25 | Q23: 0.25 | R23: 0.25 | S23: 0.11 | T23: 0.14 | X23: 0 | Y23: 0 | Z23: 2 | AA23: 2 | AB23: 0
E24: 0 | G24: 0 | J24: 0 | K24: 0 | P24: 0 | S24: 0 | T24: 0 | X24: 0 | Y24: 0 | Z24: 0 | AA24: 0 | AB24: 0
A25: Southend | D25: 0.33 | E25: 0.33 | F25: 0.33 | G25: 0.33 | H25: 0.33 | I25: 0.33 | J25: 0.18 | K25: 0.15 | L25: 0.33 | O25: 0.33 | P25: 0.33 | Q25: 0.33 | R25: 0.33 | S25: 0.15 | T25: 0.18 | V25: 0.36 | X25: 0 | Y25: 0 | Z25: 2.64 | AA25: 3 | AB25: 0
A26: Board Finance | E26: 0 | G26: 0 | J26: 0 | K26: 0 | P26: 0 | S26: 0 | T26: 0 | V26: 13 | X26: 0 | Y26: 0 | Z26: 0 | AA26: 13 | AB26: 0
A27: Board Support | E27: 0 | G27: 0 | J27: 0 | K27: 0 | P27: 0 | S27: 0 | T27: 0 | V27: 3 | X27: 0 | Y27: 0 | Z27: 0 | AA27: 3 | AB27: 0
A28: Internal Audit | E28: 0 | G28: 0 | J28: 0 | K28: 0 | P28: 0 | S28: 0 | T28: 0 | V28: 1 | X28: 0 | Y28: 0 | Z28: 0 | AA28: 1 | AB28: 0
A29: Recording | E29: 0 | G29: 0 | J29: 0 | K29: 0 | P29: 0 | S29: 0 | T29: 0 | V29: 9 | X29: 0 | Y29: 0 | Z29: 0 | AA29: 9 | AB29: 0
A30: Courier | E30: 0 | G30: 0 | J30: 0 | K30: 0 | P30: 0 | S30: 0 | T30: 0 | V30: 1 | X30: 0 | Y30: 0 | Z30: 0 | AA30: 1 | AB30: 0
E31: 0 | G31: 0 | J31: 0 | K31: 0 | P31: 0 | S31: 0 | T31: 0 | X31: 0 | Y31: 0 | Z31: 0 | AA31: 0 | AB31: 0
E32: 0 | G32: 0 | J32: 0 | K32: 0 | P32: 0 | S32: 0 | T32: 0 | X32: 0 | Y32: 0 | Z32: 0 | AA32: 0 | AB32: 0
E33: 0 | G33: 0 | J33: 0 | K33: 0 | P33: 0 | S33: 0 | T33: 0 | X33: 0 | Y33: 0 | Z33: 0 | AA33: 0 | AB33: 0
E34: 0 | G34: 0 | J34: 0 | K34: 0 | P34: 0 | S34: 0 | T34: 0 | X34: 0 | Y34: 0 | Z34: 0 | AA34: 0 | AB34: 0
E35: 0 | G35: 0 | J35: 0 | K35: 0 | P35: 0 | S35: 0 | T35: 0 | X35: 0 | Y35: 0 | Z35: 0 | AA35: 0 | AB35: 0
E36: 0 | G36: 0 | J36: 0 | K36: 0 | P36: 0 | S36: 0 | T36: 0 | X36: 0 | Y36: 0 | Z36: 0 | AA36: 0 | AB36: 0
E37: 0 | G37: 0 | J37: 0 | K37: 0 | P37: 0 | S37: 0 | T37: 0 | X37: 0 | Y37: 0 | Z37: 0 | AA37: 0 | AB37: 0
E38: 0 | G38: 0 | J38: 0 | K38: 0 | P38: 0 | S38: 0 | T38: 0 | X38: 0 | Y38: 0 | Z38: 0 | AA38: 0 | AB38: 0
E39: 0 | G39: 0 | J39: 0 | K39: 0 | P39: 0 | S39: 0 | T39: 0 | X39: 0 | Y39: 0 | Z39: 0 | AA39: 0 | AB39: 0
E40: 0 | G40: 0 | J40: 0 | K40: 0 | P40: 0 | S40: 0 | T40: 0 | X40: 0 | Y40: 0 | Z40: 0 | AA40: 0 | AB40: 0
E41: 0 | G41: 0 | J41: 0 | K41: 0 | P41: 0 | S41: 0 | T41: 0 | X41: 0 | Y41: 0 | Z41: 0 | AA41: 0 | AB41: 0
E42: 0 | G42: 0 | J42: 0 | K42: 0 | P42: 0 | S42: 0 | T42: 0 | X42: 0 | Y42: 0 | Z42: 0 | AA42: 0 | AB42: 0
E43: 0 | G43: 0 | J43: 0 | K43: 0 | P43: 0 | S43: 0 | T43: 0 | X43: 0 | Y43: 0 | Z43: 0 | AA43: 0 | AB43: 0
E44: 0 | G44: 0 | J44: 0 | K44: 0 | P44: 0 | S44: 0 | T44: 0 | X44: 0 | Y44: 0 | Z44: 0 | AA44: 0 | AB44: 0
E45: 0 | G45: 0 | J45: 0 | K45: 0 | P45: 0 | S45: 0 | T45: 0 | X45: 0 | Y45: 0 | Z45: 0 | AA45: 0 | AB45: 0
E46: 0 | G46: 0 | J46: 0 | K46: 0 | P46: 0 | S46: 0 | T46: 0 | X46: 0 | Y46: 0 | Z46: 0 | AA46: 0 | AB46: 0
E47: 0 | G47: 0 | J47: 0 | K47: 0 | P47: 0 | S47: 0 | T47: 0 | X47: 0 | Y47: 0 | Z47: 0 | AA47: 0 | AB47: 0
E48: 0 | G48: 0 | J48: 0 | K48: 0 | P48: 0 | S48: 0 | T48: 0 | X48: 0 | Y48: 0 | Z48: 0 | AA48: 0 | AB48: 0
E49: 0 | G49: 0 | J49: 0 | K49: 0 | P49: 0 | S49: 0 | T49: 0 | X49: 0 | Y49: 0 | Z49: 0 | AA49: 0 | AB49: 0
E50: 0 | G50: 0 | J50: 0 | K50: 0 | P50: 0 | S50: 0 | T50: 0 | X50: 0 | Y50: 0 | Z50: 0 | AA50: 0 | AB50: 0
E51: 0 | G51: 0 | J51: 0 | K51: 0 | P51: 0 | S51: 0 | T51: 0 | X51: 0 | Y51: 0 | Z51: 0 | AA51: 0 | AB51: 0
E52: 0 | G52: 0 | J52: 0 | K52: 0 | P52: 0 | S52: 0 | T52: 0 | X52: 0 | Y52: 0 | Z52: 0 | AA52: 0 | AB52: 0
E53: 0 | G53: 0 | J53: 0 | K53: 0 | P53: 0 | S53: 0 | T53: 0 | X53: 0 | Y53: 0 | Z53: 0 | AA53: 0 | AB53: 0
E54: 0 | G54: 0 | J54: 0 | K54: 0 | P54: 0 | S54: 0 | T54: 0 | X54: 0 | Y54: 0 | Z54: 0 | AA54: 0 | AB54: 0
E55: 0 | G55: 0 | J55: 0 | K55: 0 | P55: 0 | S55: 0 | T55: 0 | X55: 0 | Y55: 0 | Z55: 0 | AA55: 0 | AB55: 0
E56: 0 | G56: 0 | J56: 0 | K56: 0 | P56: 0 | S56: 0 | T56: 0 | X56: 0 | Y56: 0 | Z56: 0 | AA56: 0 | AB56: 0
E57: 0 | G57: 0 | J57: 0 | K57: 0 | P57: 0 | S57: 0 | T57: 0 | X57: 0 | Y57: 0 | Z57: 0 | AA57: 0 | AB57: 0
E58: 0 | G58: 0 | J58: 0 | K58: 0 | P58: 0 | S58: 0 | T58: 0 | X58: 0 | Y58: 0 | Z58: 0 | AA58: 0 | AB58: 0
E59: 0 | G59: 0 | J59: 0 | K59: 0 | P59: 0 | S59: 0 | T59: 0 | X59: 0 | Y59: 0 | Z59: 0 | AA59: 0 | AB59: 0
E60: 0 | G60: 0 | J60: 0 | K60: 0 | P60: 0 | S60: 0 | T60: 0 | X60: 0 | Y60: 0 | Z60: 0 | AA60: 0 | AB60: 0
E61: 0 | G61: 0 | J61: 0 | K61: 0 | P61: 0 | S61: 0 | T61: 0 | X61: 0 | Y61: 0 | Z61: 0 | AA61: 0 | AB61: 0
E62: 0 | G62: 0 | J62: 0 | K62: 0 | P62: 0 | S62: 0 | T62: 0 | X62: 0 | Y62: 0 | Z62: 0 | AA62: 0 | AB62: 0
E63: 0 | G63: 0 | J63: 0 | K63: 0 | P63: 0 | S63: 0 | T63: 0 | X63: 0 | Y63: 0 | Z63: 0 | AA63: 0 | AB63: 0
E64: 0 | G64: 0 | J64: 0 | K64: 0 | P64: 0 | S64: 0 | T64: 0 | X64: 0 | Y64: 0 | Z64: 0 | AA64: 0 | AB64: 0
E65: 0 | G65: 0 | J65: 0 | K65: 0 | P65: =O65+(C65-(ROUND(C65*$E$4,2)+ROUND(C65*$G$4,2))) -> 0 | S65: 0 | T65: 0 | X65: 0 | Y65: 0 | Z65: 0 | AA65: 0 | AB65: 0
E66: 0 | G66: 0 | J66: 0 | K66: 0 | P66: =O66+(C66-(ROUND(C66*$E$4,2)+ROUND(C66*$G$4,2))) -> 0 | S66: 0 | T66: 0 | X66: 0 | Y66: 0 | Z66: 0 | AA66: 0 | AB66: 0
E67: 0 | G67: 0 | J67: 0 | K67: 0 | P67: 0 | S67: 0 | T67: 0 | X67: 0 | Y67: 0 | Z67: 0 | AA67: 0 | AB67: 0
E68: 0 | G68: 0 | J68: 0 | K68: 0 | P68: 0 | S68: 0 | T68: 0 | X68: 0 | Y68: 0 | Z68: 0 | AA68: 0 | AB68: 0
E69: 0 | G69: 0 | J69: 0 | K69: 0 | P69: 0 | S69: 0 | T69: 0 | X69: 0 | Y69: 0 | Z69: 0 | AA69: 0 | AB69: 0
E70: 0 | G70: 0 | J70: 0 | K70: 0 | P70: 0 | S70: 0 | T70: 0 | X70: 0 | Y70: 0 | Z70: 0 | AA70: 0 | AB70: 0
E71: 0 | G71: 0 | J71: 0 | K71: 0 | P71: 0 | S71: 0 | T71: 0 | X71: 0 | Y71: 0 | Z71: 0 | AA71: 0 | AB71: 0
E72: =ROUND(D72+(C72*$E$4),2) -> 0 | G72: =ROUND(F72+(C72*$G$4),2) -> 0 | J72: =ROUND(I72*$J$4,2) -> 0 | K72: =ROUND(I72-J72,2) -> 0 | P72: 0 | S72: =ROUND(R72*$S$4,2) -> 0 | T72: =ROUND(R72-S72,2) -> 0 | X72: 0 | Y72: 0 | Z72: 0 | AA72: 0 | AB72: 0
E73: 0 | G73: 0 | J73: 0 | K73: 0 | P73: 0 | S73: 0 | T73: 0 | X73: =ROUND(W73*X$4,2) -> 0 | Y73: =ROUND(W73-X73,2) -> 0 | Z73: 0 | AA73: 0 | AB73: 0
E74: 0 | G74: 0 | J74: 0 | K74: 0 | P74: 0 | S74: 0 | T74: 0 | X74: 0 | Y74: 0 | Z74: 0 | AA74: 0 | AB74: 0
E75: 0 | G75: 0 | J75: 0 | K75: 0 | P75: 0 | S75: 0 | T75: 0 | X75: 0 | Y75: 0 | Z75: 0 | AA75: 0 | AB75: 0
E76: 0 | G76: 0 | J76: 0 | K76: 0 | P76: 0 | S76: 0 | T76: 0 | X76: 0 | Y76: 0 | Z76: 0 | AA76: 0 | AB76: 0
E77: 0 | G77: 0 | J77: 0 | K77: 0 | P77: 0 | S77: 0 | T77: 0 | X77: 0 | Y77: 0 | Z77: =SUM(C77:D77,F77,H77:I77,L77:O77,Q77:R77,X77) -> 0 | AA77: =SUM(C77:D77,F77,H77:I77,L77:O77,Q77:R77,U77:V77,W77) -> 0 | AB77: =IF(AND(AA77>0,A77=""),1,0) -> 0
E78: 0 | G78: 0 | J78: 0 | K78: 0 | P78: 0 | S78: 0 | T78: 0 | X78: 0 | Y78: 0 | Z78: =SUM(C78:D78,F78,H78:I78,L78:O78,Q78:R78,X78) -> 0 | AA78: =SUM(C78:D78,F78,H78:I78,L78:O78,Q78:R78,U78:V78,W78) -> 0 | AB78: 0
E79: 0 | G79: 0 | J79: 0 | K79: 0 | P79: 0 | S79: 0 | T79: 0 | X79: 0 | Y79: 0 | Z79: =SUM(C79:D79,F79,H79:I79,L79:O79,Q79:R79,X79) -> 0 | AA79: =SUM(C79:D79,F79,H79:I79,L79:O79,Q79:R79,U79:V79,W79) -> 0 | AB79: 0
E80: 0 | G80: 0 | J80: 0 | K80: 0 | P80: 0 | S80: 0 | T80: 0 | X80: 0 | Y80: 0 | Z80: =SUM(C80:D80,F80,H80:I80,L80:O80,Q80:R80,X80) -> 0 | AA80: =SUM(C80:D80,F80,H80:I80,L80:O80,Q80:R80,U80:V80,W80) -> 0 | AB80: 0
A81: Totals | B81: =SUM(B6:B80) -> 5.5 | C81: 2 | D81: 7.08 | E81: 7.65 | F81: 6.08 | G81: 6.55 | H81: 9.08 | I81: 6.08 | J81: 3.35 | K81: 2.73 | L81: 4.08 | M81: 1.75 | N81: 0 | O81: 12.08 | P81: 13.04 | Q81: 3.08 | R81: 8.08 | S81: 3.64 | T81: 4.44 | U81: 0 | V81: 32.86 | W81: 0 | X81: 0 | Y81: 0 | Z81: 64.89 | AA81: 97.75 | AB81: =SUM(AB12:AB80) -> 0

Sheet ErrorCheckingC (hidden)
A1: Tab C | H1: =COUNTIF(G3:G1263,">0") -> 0
A2: FieldName | B2: Cell | C2: Verification | D2: Error | E2: TabCFH1 | F2: TabCFH2 | G2: TabCFH3
A3: CostCenter Name Duplicated | B3: A13 | C3: =IF(COUNTIF('C- GrossFTEs'!$A$6:$A$80,'C- GrossFTEs'!$A13)>1,"Cost Centers with Duplicate Name","OKAY") -> OKAY | D3: =IF(C3="OKAY","","Cell "&B3&" has a duplicate Cost Center Name") ->  | E3: =ROW(C3)-2 -> 1 | F3: =IF(D3="","",E3) ->  | G3: =IFERROR(SMALL($F$3:$F$1263,E3),"") -> 
A4: CostCenter Name Duplicated | B4: A14 | C4: =IF(COUNTIF('C- GrossFTEs'!$A$6:$A$80,'C- GrossFTEs'!$A14)>1,"Cost Centers with Duplicate Name","OKAY") -> OKAY | D4: =IF(C4="OKAY","","Cell "&B4&" has a duplicate Cost Center Name") ->  | E4: =ROW(C4)-2 -> 2 | F4: =IF(D4="","",E4) ->  | G4: =IFERROR(SMALL($F$3:$F$1263,E4),"") -> 
A5: CostCenter Name Duplicated | B5: A15 | C5: =IF(COUNTIF('C- GrossFTEs'!$A$6:$A$80,'C- GrossFTEs'!$A15)>1,"Cost Centers with Duplicate Name","OKAY") -> OKAY | E5: 3
A6: CostCenter Name Duplicated | B6: A16 | C6: =IF(COUNTIF('C- GrossFTEs'!$A$6:$A$80,'C- GrossFTEs'!$A16)>1,"Cost Centers with Duplicate Name","OKAY") -> OKAY | E6: 4
A7: CostCenter Name Duplicated | B7: A17 | C7: =IF(COUNTIF('C- GrossFTEs'!$A$6:$A$80,'C- GrossFTEs'!$A17)>1,"Cost Centers with Duplicate Name","OKAY") -> OKAY | E7: 5
A8: CostCenter Name Duplicated | B8: A18 | C8: =IF(COUNTIF('C- GrossFTEs'!$A$6:$A$80,'C- GrossFTEs'!$A18)>1,"Cost Centers with Duplicate Name","OKAY") -> OKAY | E8: 6
A9: CostCenter Name Duplicated | B9: A19 | C9: =IF(COUNTIF('C- GrossFTEs'!$A$6:$A$80,'C- GrossFTEs'!$A19)>1,"Cost Centers with Duplicate Name","OKAY") -> OKAY | E9: 7
A10: CostCenter Name Duplicated | B10: A20 | C10: =IF(COUNTIF('C- GrossFTEs'!$A$6:$A$80,'C- GrossFTEs'!$A20)>1,"Cost Centers with Duplicate Name","OKAY") -> OKAY | E10: 8
A11: CostCenter Name Duplicated | B11: A21 | C11: =IF(COUNTIF('C- GrossFTEs'!$A$6:$A$80,'C- GrossFTEs'!$A21)>1,"Cost Centers with Duplicate Name","OKAY") -> OKAY | E11: 9
A12: CostCenter Name Duplicated | B12: A22 | C12: =IF(COUNTIF('C- GrossFTEs'!$A$6:$A$80,'C- GrossFTEs'!$A22)>1,"Cost Centers with Duplicate Name","OKAY") -> OKAY | E12: 10
A13: CostCenter Name Duplicated | B13: A23 | C13: =IF(COUNTIF('C- GrossFTEs'!$A$6:$A$80,'C- GrossFTEs'!$A23)>1,"Cost Centers with Duplicate Name","OKAY") -> OKAY | E13: 11
A14: CostCenter Name Duplicated | B14: A24 | C14: =IF(COUNTIF('C- GrossFTEs'!$A$6:$A$80,'C- GrossFTEs'!$A24)>1,"Cost Centers with Duplicate Name","OKAY") -> OKAY | E14: 12
A15: CostCenter Name Duplicated | B15: A25 | C15: =IF(COUNTIF('C- GrossFTEs'!$A$6:$A$80,'C- GrossFTEs'!$A25)>1,"Cost Centers with Duplicate Name","OKAY") -> OKAY | E15: 13
A16: CostCenter Name Duplicated | B16: A26 | C16: =IF(COUNTIF('C- GrossFTEs'!$A$6:$A$80,'C- GrossFTEs'!$A26)>1,"Cost Centers with Duplicate Name","OKAY") -> OKAY | E16: 14
A17: CostCenter Name Duplicated | B17: A27 | C17: =IF(COUNTIF('C- GrossFTEs'!$A$6:$A$80,'C- GrossFTEs'!$A27)>1,"Cost Centers with Duplicate Name","OKAY") -> OKAY | E17: 15
A18: CostCenter Name Duplicated | B18: A28 | C18: =IF(COUNTIF('C- GrossFTEs'!$A$6:$A$80,'C- GrossFTEs'!$A28)>1,"Cost Centers with Duplicate Name","OKAY") -> OKAY | E18: 16
A19: CostCenter Name Duplicated | B19: A29 | C19: =IF(COUNTIF('C- GrossFTEs'!$A$6:$A$80,'C- GrossFTEs'!$A29)>1,"Cost Centers with Duplicate Name","OKAY") -> OKAY | E19: 17
A20: CostCenter Name Duplicated | B20: A30 | C20: =IF(COUNTIF('C- GrossFTEs'!$A$6:$A$80,'C- GrossFTEs'!$A30)>1,"Cost Centers with Duplicate Name","OKAY") -> OKAY | E20: 18
A21: CostCenter Name Duplicated | B21: A31 | C21: =IF(COUNTIF('C- GrossFTEs'!$A$6:$A$80,'C- GrossFTEs'!$A31)>1,"Cost Centers with Duplicate Name","OKAY") -> OKAY | E21: 19
A22: CostCenter Name Duplicated | B22: A32 | C22: =IF(COUNTIF('C- GrossFTEs'!$A$6:$A$80,'C- GrossFTEs'!$A32)>1,"Cost Centers with Duplicate Name","OKAY") -> OKAY | E22: 20
A23: CostCenter Name Duplicated | B23: A33 | C23: =IF(COUNTIF('C- GrossFTEs'!$A$6:$A$80,'C- GrossFTEs'!$A33)>1,"Cost Centers with Duplicate Name","OKAY") -> OKAY | E23: 21
A24: CostCenter Name Duplicated | B24: A34 | C24: =IF(COUNTIF('C- GrossFTEs'!$A$6:$A$80,'C- GrossFTEs'!$A34)>1,"Cost Centers with Duplicate Name","OKAY") -> OKAY | E24: 22
A25: CostCenter Name Duplicated | B25: A35 | C25: =IF(COUNTIF('C- GrossFTEs'!$A$6:$A$80,'C- GrossFTEs'!$A35)>1,"Cost Centers with Duplicate Name","OKAY") -> OKAY | E25: 23
A26: CostCenter Name Duplicated | B26: A36 | C26: =IF(COUNTIF('C- GrossFTEs'!$A$6:$A$80,'C- GrossFTEs'!$A36)>1,"Cost Centers with Duplicate Name","OKAY") -> OKAY | E26: 24
A27: CostCenter Name Duplicated | B27: A37 | C27: =IF(COUNTIF('C- GrossFTEs'!$A$6:$A$80,'C- GrossFTEs'!$A37)>1,"Cost Centers with Duplicate Name","OKAY") -> OKAY | E27: 25
A28: CostCenter Name Duplicated | B28: A38 | C28: =IF(COUNTIF('C- GrossFTEs'!$A$6:$A$80,'C- GrossFTEs'!$A38)>1,"Cost Centers with Duplicate Name","OKAY") -> OKAY | E28: 26
A29: CostCenter Name Duplicated | B29: A39 | C29: =IF(COUNTIF('C- GrossFTEs'!$A$6:$A$80,'C- GrossFTEs'!$A39)>1,"Cost Centers with Duplicate Name","OKAY") -> OKAY | E29: 27
A30: CostCenter Name Duplicated | B30: A40 | C30: =IF(COUNTIF('C- GrossFTEs'!$A$6:$A$80,'C- GrossFTEs'!$A40)>1,"Cost Centers with Duplicate Name","OKAY") -> OKAY | E30: 28
A31: CostCenter Name Duplicated | B31: A41 | C31: =IF(COUNTIF('C- GrossFTEs'!$A$6:$A$80,'C- GrossFTEs'!$A41)>1,"Cost Centers with Duplicate Name","OKAY") -> OKAY | E31: 29
A32: CostCenter Name Duplicated | B32: A42 | C32: =IF(COUNTIF('C- GrossFTEs'!$A$6:$A$80,'C- GrossFTEs'!$A42)>1,"Cost Centers with Duplicate Name","OKAY") -> OKAY | E32: 30
A33: CostCenter Name Duplicated | B33: A43 | C33: =IF(COUNTIF('C- GrossFTEs'!$A$6:$A$80,'C- GrossFTEs'!$A43)>1,"Cost Centers with Duplicate Name","OKAY") -> OKAY | E33: 31
A34: CostCenter Name Duplicated | B34: A44 | C34: =IF(COUNTIF('C- GrossFTEs'!$A$6:$A$80,'C- GrossFTEs'!$A44)>1,"Cost Centers with Duplicate Name","OKAY") -> OKAY | E34: 32
A35: CostCenter Name Duplicated | B35: A45 | C35: =IF(COUNTIF('C- GrossFTEs'!$A$6:$A$80,'C- GrossFTEs'!$A45)>1,"Cost Centers with Duplicate Name","OKAY") -> OKAY | E35: 33
A36: CostCenter Name Duplicated | B36: A46 | C36: =IF(COUNTIF('C- GrossFTEs'!$A$6:$A$80,'C- GrossFTEs'!$A46)>1,"Cost Centers with Duplicate Name","OKAY") -> OKAY | E36: 34
A37: CostCenter Name Duplicated | B37: A47 | C37: =IF(COUNTIF('C- GrossFTEs'!$A$6:$A$80,'C- GrossFTEs'!$A47)>1,"Cost Centers with Duplicate Name","OKAY") -> OKAY | E37: 35
A38: CostCenter Name Duplicated | B38: A48 | C38: =IF(COUNTIF('C- GrossFTEs'!$A$6:$A$80,'C- GrossFTEs'!$A48)>1,"Cost Centers with Duplicate Name","OKAY") -> OKAY | E38: 36
A39: CostCenter Name Duplicated | B39: A49 | C39: =IF(COUNTIF('C- GrossFTEs'!$A$6:$A$80,'C- GrossFTEs'!$A49)>1,"Cost Centers with Duplicate Name","OKAY") -> OKAY | E39: 37
A40: CostCenter Name Duplicated | B40: A50 | C40: =IF(COUNTIF('C- GrossFTEs'!$A$6:$A$80,'C- GrossFTEs'!$A50)>1,"Cost Centers with Duplicate Name","OKAY") -> OKAY | E40: 38
A41: CostCenter Name Duplicated | B41: A51 | C41: =IF(COUNTIF('C- GrossFTEs'!$A$6:$A$80,'C- GrossFTEs'!$A51)>1,"Cost Centers with Duplicate Name","OKAY") -> OKAY | E41: 39
A42: CostCenter Name Duplicated | B42: A52 | C42: =IF(COUNTIF('C- GrossFTEs'!$A$6:$A$80,'C- GrossFTEs'!$A52)>1,"Cost Centers with Duplicate Name","OKAY") -> OKAY | E42: 40
A43: CostCenter Name Duplicated | B43: A53 | C43: =IF(COUNTIF('C- GrossFTEs'!$A$6:$A$80,'C- GrossFTEs'!$A53)>1,"Cost Centers with Duplicate Name","OKAY") -> OKAY | E43: 41
A44: CostCenter Name Duplicated | B44: A54 | C44: =IF(COUNTIF('C- GrossFTEs'!$A$6:$A$80,'C- GrossFTEs'!$A54)>1,"Cost Centers with Duplicate Name","OKAY") -> OKAY | E44: 42
A45: CostCenter Name Duplicated | B45: A55 | C45: =IF(COUNTIF('C- GrossFTEs'!$A$6:$A$80,'C- GrossFTEs'!$A55)>1,"Cost Centers with Duplicate Name","OKAY") -> OKAY | E45: 43
A46: CostCenter Name Duplicated | B46: A56 | C46: =IF(COUNTIF('C- GrossFTEs'!$A$6:$A$80,'C- GrossFTEs'!$A56)>1,"Cost Centers with Duplicate Name","OKAY") -> OKAY | E46: 44
A47: CostCenter Name Duplicated | B47: A57 | C47: =IF(COUNTIF('C- GrossFTEs'!$A$6:$A$80,'C- GrossFTEs'!$A57)>1,"Cost Centers with Duplicate Name","OKAY") -> OKAY | E47: 45
A48: CostCenter Name Duplicated | B48: A58 | C48: =IF(COUNTIF('C- GrossFTEs'!$A$6:$A$80,'C- GrossFTEs'!$A58)>1,"Cost Centers with Duplicate Name","OKAY") -> OKAY | E48: 46
A49: CostCenter Name Duplicated | B49: A59 | C49: =IF(COUNTIF('C- GrossFTEs'!$A$6:$A$80,'C- GrossFTEs'!$A59)>1,"Cost Centers with Duplicate Name","OKAY") -> OKAY | E49: 47
A50: CostCenter Name Duplicated | B50: A60 | C50: =IF(COUNTIF('C- GrossFTEs'!$A$6:$A$80,'C- GrossFTEs'!$A60)>1,"Cost Centers with Duplicate Name","OKAY") -> OKAY | E50: 48
A51: CostCenter Name Duplicated | B51: A61 | C51: =IF(COUNTIF('C- GrossFTEs'!$A$6:$A$80,'C- GrossFTEs'!$A61)>1,"Cost Centers with Duplicate Name","OKAY") -> OKAY | E51: 49
A52: CostCenter Name Duplicated | B52: A62 | C52: =IF(COUNTIF('C- GrossFTEs'!$A$6:$A$80,'C- GrossFTEs'!$A62)>1,"Cost Centers with Duplicate Name","OKAY") -> OKAY | E52: 50
A53: CostCenter Name Duplicated | B53: A63 | C53: =IF(COUNTIF('C- GrossFTEs'!$A$6:$A$80,'C- GrossFTEs'!$A63)>1,"Cost Centers with Duplicate Name","OKAY") -> OKAY | E53: 51
A54: CostCenter Name Duplicated | B54: A64 | C54: =IF(COUNTIF('C- GrossFTEs'!$A$6:$A$80,'C- GrossFTEs'!$A64)>1,"Cost Centers with Duplicate Name","OKAY") -> OKAY | E54: 52
A55: CostCenter Name Duplicated | B55: A65 | C55: =IF(COUNTIF('C- GrossFTEs'!$A$6:$A$80,'C- GrossFTEs'!$A65)>1,"Cost Centers with Duplicate Name","OKAY") -> OKAY | E55: 53
A56: CostCenter Name Duplicated | B56: A66 | C56: =IF(COUNTIF('C- GrossFTEs'!$A$6:$A$80,'C- GrossFTEs'!$A66)>1,"Cost Centers with Duplicate Name","OKAY") -> OKAY | E56: 54
A57: CostCenter Name Duplicated | B57: A67 | C57: =IF(COUNTIF('C- GrossFTEs'!$A$6:$A$80,'C- GrossFTEs'!$A67)>1,"Cost Centers with Duplicate Name","OKAY") -> OKAY | E57: 55
A58: CostCenter Name Duplicated | B58: A68 | C58: =IF(COUNTIF('C- GrossFTEs'!$A$6:$A$80,'C- GrossFTEs'!$A68)>1,"Cost Centers with Duplicate Name","OKAY") -> OKAY | E58: 56
A59: CostCenter Name Duplicated | B59: A69 | C59: =IF(COUNTIF('C- GrossFTEs'!$A$6:$A$80,'C- GrossFTEs'!$A69)>1,"Cost Centers with Duplicate Name","OKAY") -> OKAY | E59: 57
A60: CostCenter Name Duplicated | B60: A70 | C60: =IF(COUNTIF('C- GrossFTEs'!$A$6:$A$80,'C- GrossFTEs'!$A70)>1,"Cost Centers with Duplicate Name","OKAY") -> OKAY | E60: 58
A61: CostCenter Name Duplicated | B61: A71 | C61: =IF(COUNTIF('C- GrossFTEs'!$A$6:$A$80,'C- GrossFTEs'!$A71)>1,"Cost Centers with Duplicate Name","OKAY") -> OKAY | E61: 59
A62: CostCenter Name Duplicated | B62: A72 | C62: =IF(COUNTIF('C- GrossFTEs'!$A$6:$A$80,'C- GrossFTEs'!$A72)>1,"Cost Centers with Duplicate Name","OKAY") -> OKAY | E62: 60
A63: CostCenter Name Duplicated | B63: A73 | C63: =IF(COUNTIF('C- GrossFTEs'!$A$6:$A$80,'C- GrossFTEs'!$A73)>1,"Cost Centers with Duplicate Name","OKAY") -> OKAY | E63: 61
A64: CostCenter Name Duplicated | B64: A74 | C64: =IF(COUNTIF('C- GrossFTEs'!$A$6:$A$80,'C- GrossFTEs'!$A74)>1,"Cost Centers with Duplicate Name","OKAY") -> OKAY | E64: 62
A65: CostCenter Name Duplicated | B65: A75 | C65: =IF(COUNTIF('C- GrossFTEs'!$A$6:$A$80,'C- GrossFTEs'!$A75)>1,"Cost Centers with Duplicate Name","OKAY") -> OKAY | E65: 63
A66: CostCenter Name Duplicated | B66: A76 | C66: =IF(COUNTIF('C- GrossFTEs'!$A$6:$A$80,'C- GrossFTEs'!$A76)>1,"Cost Centers with Duplicate Name","OKAY") -> OKAY | E66: 64
A67: CostCenter Name Duplicated | B67: A77 | C67: =IF(COUNTIF('C- GrossFTEs'!$A$6:$A$80,'C- GrossFTEs'!$A77)>1,"Cost Centers with Duplicate Name","OKAY") -> OKAY | E67: 65
A68: CostCenter Name Duplicated | B68: A78 | C68: =IF(COUNTIF('C- GrossFTEs'!$A$6:$A$80,'C- GrossFTEs'!$A78)>1,"Cost Centers with Duplicate Name","OKAY") -> OKAY | D68: =IF(C68="OKAY","","Cell "&B68&" has a duplicate Cost Center Name") ->  | E68: =ROW(C68)-2 -> 66 | F68: =IF(D68="","",E68) ->  | G68: =IFERROR(SMALL($F$3:$F$1263,E68),"") -> 
A69: CostCenter Name Duplicated | B69: A79 | C69: =IF(COUNTIF('C- GrossFTEs'!$A$6:$A$80,'C- GrossFTEs'!$A79)>1,"Cost Centers with Duplicate Name","OKAY") -> OKAY | E69: 67
A70: CostCenter Name Duplicated | B70: A80 | C70: =IF(COUNTIF('C- GrossFTEs'!$A$6:$A$80,'C- GrossFTEs'!$A80)>1,"Cost Centers with Duplicate Name","OKAY") -> OKAY | E70: 68
A71: CostCenter Name Has Extra Spaces | B71: A13 | C71: =IF(TRIM('C- GrossFTEs'!$A13)<>'C- GrossFTEs'!$A13,"Cost Centers with Extra Spaces","OKAY") -> OKAY | D71: =IF(C71="OKAY","","Cell "&B71&" has extra spaces before or after the text entered") ->  | E71: 69
A72: CostCenter Name Has Extra Spaces | B72: A14 | C72: =IF(TRIM('C- GrossFTEs'!$A14)<>'C- GrossFTEs'!$A14,"Cost Centers with Extra Spaces","OKAY") -> OKAY | D72: =IF(C72="OKAY","","Cell "&B72&" has extra spaces before or after the text entered") ->  | E72: 70
A73: CostCenter Name Has Extra Spaces | B73: A15 | C73: =IF(TRIM('C- GrossFTEs'!$A15)<>'C- GrossFTEs'!$A15,"Cost Centers with Extra Spaces","OKAY") -> OKAY | E73: 71
A74: CostCenter Name Has Extra Spaces | B74: A16 | C74: =IF(TRIM('C- GrossFTEs'!$A16)<>'C- GrossFTEs'!$A16,"Cost Centers with Extra Spaces","OKAY") -> OKAY | E74: 72
A75: CostCenter Name Has Extra Spaces | B75: A17 | C75: =IF(TRIM('C- GrossFTEs'!$A17)<>'C- GrossFTEs'!$A17,"Cost Centers with Extra Spaces","OKAY") -> OKAY | E75: 73
A76: CostCenter Name Has Extra Spaces | B76: A18 | C76: =IF(TRIM('C- GrossFTEs'!$A18)<>'C- GrossFTEs'!$A18,"Cost Centers with Extra Spaces","OKAY") -> OKAY | E76: 74
A77: CostCenter Name Has Extra Spaces | B77: A19 | C77: =IF(TRIM('C- GrossFTEs'!$A19)<>'C- GrossFTEs'!$A19,"Cost Centers with Extra Spaces","OKAY") -> OKAY | E77: 75
A78: CostCenter Name Has Extra Spaces | B78: A20 | C78: =IF(TRIM('C- GrossFTEs'!$A20)<>'C- GrossFTEs'!$A20,"Cost Centers with Extra Spaces","OKAY") -> OKAY | E78: 76
A79: CostCenter Name Has Extra Spaces | B79: A21 | C79: =IF(TRIM('C- GrossFTEs'!$A21)<>'C- GrossFTEs'!$A21,"Cost Centers with Extra Spaces","OKAY") -> OKAY | E79: 77
A80: CostCenter Name Has Extra Spaces | B80: A22 | C80: =IF(TRIM('C- GrossFTEs'!$A22)<>'C- GrossFTEs'!$A22,"Cost Centers with Extra Spaces","OKAY") -> OKAY | E80: 78
A81: CostCenter Name Has Extra Spaces | B81: A23 | C81: =IF(TRIM('C- GrossFTEs'!$A23)<>'C- GrossFTEs'!$A23,"Cost Centers with Extra Spaces","OKAY") -> OKAY | E81: 79
A82: CostCenter Name Has Extra Spaces | B82: A24 | C82: =IF(TRIM('C- GrossFTEs'!$A24)<>'C- GrossFTEs'!$A24,"Cost Centers with Extra Spaces","OKAY") -> OKAY | E82: 80
A83: CostCenter Name Has Extra Spaces | B83: A25 | C83: =IF(TRIM('C- GrossFTEs'!$A25)<>'C- GrossFTEs'!$A25,"Cost Centers with Extra Spaces","OKAY") -> OKAY | E83: 81
A84: CostCenter Name Has Extra Spaces | B84: A26 | C84: =IF(TRIM('C- GrossFTEs'!$A26)<>'C- GrossFTEs'!$A26,"Cost Centers with Extra Spaces","OKAY") -> OKAY | E84: 82
A85: CostCenter Name Has Extra Spaces | B85: A27 | C85: =IF(TRIM('C- GrossFTEs'!$A27)<>'C- GrossFTEs'!$A27,"Cost Centers with Extra Spaces","OKAY") -> OKAY | E85: 83
A86: CostCenter Name Has Extra Spaces | B86: A28 | C86: =IF(TRIM('C- GrossFTEs'!$A28)<>'C- GrossFTEs'!$A28,"Cost Centers with Extra Spaces","OKAY") -> OKAY | E86: 84
A87: CostCenter Name Has Extra Spaces | B87: A29 | C87: =IF(TRIM('C- GrossFTEs'!$A29)<>'C- GrossFTEs'!$A29,"Cost Centers with Extra Spaces","OKAY") -> OKAY | E87: 85
A88: CostCenter Name Has Extra Spaces | B88: A30 | C88: =IF(TRIM('C- GrossFTEs'!$A30)<>'C- GrossFTEs'!$A30,"Cost Centers with Extra Spaces","OKAY") -> OKAY | E88: 86
A89: CostCenter Name Has Extra Spaces | B89: A31 | C89: =IF(TRIM('C- GrossFTEs'!$A31)<>'C- GrossFTEs'!$A31,"Cost Centers with Extra Spaces","OKAY") -> OKAY | E89: 87
A90: CostCenter Name Has Extra Spaces | B90: A32 | C90: =IF(TRIM('C- GrossFTEs'!$A32)<>'C- GrossFTEs'!$A32,"Cost Centers with Extra Spaces","OKAY") -> OKAY | E90: 88
A91: CostCenter Name Has Extra Spaces | B91: A33 | C91: =IF(TRIM('C- GrossFTEs'!$A33)<>'C- GrossFTEs'!$A33,"Cost Centers with Extra Spaces","OKAY") -> OKAY | E91: 89
A92: CostCenter Name Has Extra Spaces | B92: A34 | C92: =IF(TRIM('C- GrossFTEs'!$A34)<>'C- GrossFTEs'!$A34,"Cost Centers with Extra Spaces","OKAY") -> OKAY | E92: 90
A93: CostCenter Name Has Extra Spaces | B93: A35 | C93: =IF(TRIM('C- GrossFTEs'!$A35)<>'C- GrossFTEs'!$A35,"Cost Centers with Extra Spaces","OKAY") -> OKAY | E93: 91
A94: CostCenter Name Has Extra Spaces | B94: A36 | C94: =IF(TRIM('C- GrossFTEs'!$A36)<>'C- GrossFTEs'!$A36,"Cost Centers with Extra Spaces","OKAY") -> OKAY | E94: 92
A95: CostCenter Name Has Extra Spaces | B95: A37 | C95: =IF(TRIM('C- GrossFTEs'!$A37)<>'C- GrossFTEs'!$A37,"Cost Centers with Extra Spaces","OKAY") -> OKAY | E95: 93
A96: CostCenter Name Has Extra Spaces | B96: A38 | C96: =IF(TRIM('C- GrossFTEs'!$A38)<>'C- GrossFTEs'!$A38,"Cost Centers with Extra Spaces","OKAY") -> OKAY | E96: 94
A97: CostCenter Name Has Extra Spaces | B97: A39 | C97: =IF(TRIM('C- GrossFTEs'!$A39)<>'C- GrossFTEs'!$A39,"Cost Centers with Extra Spaces","OKAY") -> OKAY | E97: 95
A98: CostCenter Name Has Extra Spaces | B98: A40 | C98: =IF(TRIM('C- GrossFTEs'!$A40)<>'C- GrossFTEs'!$A40,"Cost Centers with Extra Spaces","OKAY") -> OKAY | E98: 96
A99: CostCenter Name Has Extra Spaces | B99: A41 | C99: =IF(TRIM('C- GrossFTEs'!$A41)<>'C- GrossFTEs'!$A41,"Cost Centers with Extra Spaces","OKAY") -> OKAY | E99: 97
A100: CostCenter Name Has Extra Spaces | B100: A42 | C100: =IF(TRIM('C- GrossFTEs'!$A42)<>'C- GrossFTEs'!$A42,"Cost Centers with Extra Spaces","OKAY") -> OKAY | E100: 98
A101: CostCenter Name Has Extra Spaces | B101: A43 | C101: =IF(TRIM('C- GrossFTEs'!$A43)<>'C- GrossFTEs'!$A43,"Cost Centers with Extra Spaces","OKAY") -> OKAY | E101: 99
A102: CostCenter Name Has Extra Spaces | B102: A44 | C102: =IF(TRIM('C- GrossFTEs'!$A44)<>'C- GrossFTEs'!$A44,"Cost Centers with Extra Spaces","OKAY") -> OKAY | E102: 100
A103: CostCenter Name Has Extra Spaces | B103: A45 | C103: =IF(TRIM('C- GrossFTEs'!$A45)<>'C- GrossFTEs'!$A45,"Cost Centers with Extra Spaces","OKAY") -> OKAY | E103: 101
A104: CostCenter Name Has Extra Spaces | B104: A46 | C104: =IF(TRIM('C- GrossFTEs'!$A46)<>'C- GrossFTEs'!$A46,"Cost Centers with Extra Spaces","OKAY") -> OKAY | E104: 102
A105: CostCenter Name Has Extra Spaces | B105: A47 | C105: =IF(TRIM('C- GrossFTEs'!$A47)<>'C- GrossFTEs'!$A47,"Cost Centers with Extra Spaces","OKAY") -> OKAY | E105: 103
A106: CostCenter Name Has Extra Spaces | B106: A48 | C106: =IF(TRIM('C- GrossFTEs'!$A48)<>'C- GrossFTEs'!$A48,"Cost Centers with Extra Spaces","OKAY") -> OKAY | E106: 104
A107: CostCenter Name Has Extra Spaces | B107: A49 | C107: =IF(TRIM('C- GrossFTEs'!$A49)<>'C- GrossFTEs'!$A49,"Cost Centers with Extra Spaces","OKAY") -> OKAY | E107: 105
A108: CostCenter Name Has Extra Spaces | B108: A50 | C108: =IF(TRIM('C- GrossFTEs'!$A50)<>'C- GrossFTEs'!$A50,"Cost Centers with Extra Spaces","OKAY") -> OKAY | E108: 106
A109: CostCenter Name Has Extra Spaces | B109: A51 | C109: =IF(TRIM('C- GrossFTEs'!$A51)<>'C- GrossFTEs'!$A51,"Cost Centers with Extra Spaces","OKAY") -> OKAY | E109: 107
A110: CostCenter Name Has Extra Spaces | B110: A52 | C110: =IF(TRIM('C- GrossFTEs'!$A52)<>'C- GrossFTEs'!$A52,"Cost Centers with Extra Spaces","OKAY") -> OKAY | E110: 108
A111: CostCenter Name Has Extra Spaces | B111: A53 | C111: =IF(TRIM('C- GrossFTEs'!$A53)<>'C- GrossFTEs'!$A53,"Cost Centers with Extra Spaces","OKAY") -> OKAY | E111: 109
A112: CostCenter Name Has Extra Spaces | B112: A54 | C112: =IF(TRIM('C- GrossFTEs'!$A54)<>'C- GrossFTEs'!$A54,"Cost Centers with Extra Spaces","OKAY") -> OKAY | E112: 110
A113: CostCenter Name Has Extra Spaces | B113: A55 | C113: =IF(TRIM('C- GrossFTEs'!$A55)<>'C- GrossFTEs'!$A55,"Cost Centers with Extra Spaces","OKAY") -> OKAY | E113: 111
A114: CostCenter Name Has Extra Spaces | B114: A56 | C114: =IF(TRIM('C- GrossFTEs'!$A56)<>'C- GrossFTEs'!$A56,"Cost Centers with Extra Spaces","OKAY") -> OKAY | E114: 112
A115: CostCenter Name Has Extra Spaces | B115: A57 | C115: =IF(TRIM('C- GrossFTEs'!$A57)<>'C- GrossFTEs'!$A57,"Cost Centers with Extra Spaces","OKAY") -> OKAY | E115: 113
A116: CostCenter Name Has Extra Spaces | B116: A58 | C116: =IF(TRIM('C- GrossFTEs'!$A58)<>'C- GrossFTEs'!$A58,"Cost Centers with Extra Spaces","OKAY") -> OKAY | E116: 114
A117: CostCenter Name Has Extra Spaces | B117: A59 | C117: =IF(TRIM('C- GrossFTEs'!$A59)<>'C- GrossFTEs'!$A59,"Cost Centers with Extra Spaces","OKAY") -> OKAY | E117: 115
A118: CostCenter Name Has Extra Spaces | B118: A60 | C118: =IF(TRIM('C- GrossFTEs'!$A60)<>'C- GrossFTEs'!$A60,"Cost Centers with Extra Spaces","OKAY") -> OKAY | E118: 116
A119: CostCenter Name Has Extra Spaces | B119: A61 | C119: =IF(TRIM('C- GrossFTEs'!$A61)<>'C- GrossFTEs'!$A61,"Cost Centers with Extra Spaces","OKAY") -> OKAY | E119: 117
A120: CostCenter Name Has Extra Spaces | B120: A62 | C120: =IF(TRIM('C- GrossFTEs'!$A62)<>'C- GrossFTEs'!$A62,"Cost Centers with Extra Spaces","OKAY") -> OKAY | E120: 118
A121: CostCenter Name Has Extra Spaces | B121: A63 | C121: =IF(TRIM('C- GrossFTEs'!$A63)<>'C- GrossFTEs'!$A63,"Cost Centers with Extra Spaces","OKAY") -> OKAY | E121: 119
A122: CostCenter Name Has Extra Spaces | B122: A64 | C122: =IF(TRIM('C- GrossFTEs'!$A64)<>'C- GrossFTEs'!$A64,"Cost Centers with Extra Spaces","OKAY") -> OKAY | E122: 120
A123: CostCenter Name Has Extra Spaces | B123: A65 | C123: =IF(TRIM('C- GrossFTEs'!$A65)<>'C- GrossFTEs'!$A65,"Cost Centers with Extra Spaces","OKAY") -> OKAY | E123: 121
A124: CostCenter Name Has Extra Spaces | B124: A66 | C124: =IF(TRIM('C- GrossFTEs'!$A66)<>'C- GrossFTEs'!$A66,"Cost Centers with Extra Spaces","OKAY") -> OKAY | E124: 122
A125: CostCenter Name Has Extra Spaces | B125: A67 | C125: =IF(TRIM('C- GrossFTEs'!$A67)<>'C- GrossFTEs'!$A67,"Cost Centers with Extra Spaces","OKAY") -> OKAY | E125: 123
A126: CostCenter Name Has Extra Spaces | B126: A68 | C126: =IF(TRIM('C- GrossFTEs'!$A68)<>'C- GrossFTEs'!$A68,"Cost Centers with Extra Spaces","OKAY") -> OKAY | E126: 124
A127: CostCenter Name Has Extra Spaces | B127: A69 | C127: =IF(TRIM('C- GrossFTEs'!$A69)<>'C- GrossFTEs'!$A69,"Cost Centers with Extra Spaces","OKAY") -> OKAY | E127: 125
A128: CostCenter Name Has Extra Spaces | B128: A70 | C128: =IF(TRIM('C- GrossFTEs'!$A70)<>'C- GrossFTEs'!$A70,"Cost Centers with Extra Spaces","OKAY") -> OKAY | E128: 126
A129: CostCenter Name Has Extra Spaces | B129: A71 | C129: =IF(TRIM('C- GrossFTEs'!$A71)<>'C- GrossFTEs'!$A71,"Cost Centers with Extra Spaces","OKAY") -> OKAY | E129: 127
A130: CostCenter Name Has Extra Spaces | B130: A72 | C130: =IF(TRIM('C- GrossFTEs'!$A72)<>'C- GrossFTEs'!$A72,"Cost Centers with Extra Spaces","OKAY") -> OKAY | E130: 128
A131: CostCenter Name Has Extra Spaces | B131: A73 | C131: =IF(TRIM('C- GrossFTEs'!$A73)<>'C- GrossFTEs'!$A73,"Cost Centers with Extra Spaces","OKAY") -> OKAY | E131: 129
A132: CostCenter Name Has Extra Spaces | B132: A74 | C132: =IF(TRIM('C- GrossFTEs'!$A74)<>'C- GrossFTEs'!$A74,"Cost Centers with Extra Spaces","OKAY") -> OKAY | E132: =ROW(C132)-2 -> 130 | F132: =IF(D132="","",E132) ->  | G132: =IFERROR(SMALL($F$3:$F$1263,E132),"") -> 
A133: CostCenter Name Has Extra Spaces | B133: A75 | C133: =IF(TRIM('C- GrossFTEs'!$A75)<>'C- GrossFTEs'!$A75,"Cost Centers with Extra Spaces","OKAY") -> OKAY | E133: 131
A134: CostCenter Name Has Extra Spaces | B134: A76 | C134: =IF(TRIM('C- GrossFTEs'!$A76)<>'C- GrossFTEs'!$A76,"Cost Centers with Extra Spaces","OKAY") -> OKAY | E134: 132
A135: CostCenter Name Has Extra Spaces | B135: A77 | C135: =IF(TRIM('C- GrossFTEs'!$A77)<>'C- GrossFTEs'!$A77,"Cost Centers with Extra Spaces","OKAY") -> OKAY | E135: 133
A136: CostCenter Name Has Extra Spaces | B136: A78 | C136: =IF(TRIM('C- GrossFTEs'!$A78)<>'C- GrossFTEs'!$A78,"Cost Centers with Extra Spaces","OKAY") -> OKAY | D136: =IF(C136="OKAY","","Cell "&B136&" has extra spaces before or after the text entered") ->  | E136: 134
A137: CostCenter Name Has Extra Spaces | B137: A79 | C137: =IF(TRIM('C- GrossFTEs'!$A79)<>'C- GrossFTEs'!$A79,"Cost Centers with Extra Spaces","OKAY") -> OKAY | E137: 135
A138: CostCenter Name Has Extra Spaces | B138: A80 | C138: =IF(TRIM('C- GrossFTEs'!$A80)<>'C- GrossFTEs'!$A80,"Cost Centers with Extra Spaces","OKAY") -> OKAY | E138: 136
A139: FTE is negative or more than 2 decimal places | B139: B6 | C139: =IF(AND('C- GrossFTEs'!B6>=0,ROUND('C- GrossFTEs'!B6,2)='C- GrossFTEs'!B6),"OKAY","FTE Number is Negative or more than 2 Decimal places") -> OKAY | D139: =IF(C139="OKAY","","Cell "&B139&" is negative or more than 2 decimal places") ->  | E139: 137
A140: FTE is negative or more than 2 decimal places | B140: B7 | C140: =IF(AND('C- GrossFTEs'!B7>=0,ROUND('C- GrossFTEs'!B7,2)='C- GrossFTEs'!B7),"OKAY","FTE Number is Negative or more than 2 Decimal places") -> OKAY | D140: =IF(C140="OKAY","","Cell "&B140&" is negative or more than 2 decimal places") ->  | E140: 138
A141: FTE is negative or more than 2 decimal places | B141: B8 | C141: =IF(AND('C- GrossFTEs'!B8>=0,ROUND('C- GrossFTEs'!B8,2)='C- GrossFTEs'!B8),"OKAY","FTE Number is Negative or more than 2 Decimal places") -> OKAY | E141: 139
A142: FTE is negative or more than 2 decimal places | B142: B9 | C142: =IF(AND('C- GrossFTEs'!B9>=0,ROUND('C- GrossFTEs'!B9,2)='C- GrossFTEs'!B9),"OKAY","FTE Number is Negative or more than 2 Decimal places") -> OKAY | E142: 140
A143: FTE is negative or more than 2 decimal places | B143: B10 | C143: =IF(AND('C- GrossFTEs'!B10>=0,ROUND('C- GrossFTEs'!B10,2)='C- GrossFTEs'!B10),"OKAY","FTE Number is Negative or more than 2 Decimal places") -> OKAY | E143: 141
A144: FTE is negative or more than 2 decimal places | B144: B11 | C144: =IF(AND('C- GrossFTEs'!B11>=0,ROUND('C- GrossFTEs'!B11,2)='C- GrossFTEs'!B11),"OKAY","FTE Number is Negative or more than 2 Decimal places") -> OKAY | E144: 142
A145: FTE is negative or more than 2 decimal places | B145: B12 | C145: =IF(AND('C- GrossFTEs'!B12>=0,ROUND('C- GrossFTEs'!B12,2)='C- GrossFTEs'!B12),"OKAY","FTE Number is Negative or more than 2 Decimal places") -> OKAY | E145: 143
A146: FTE is negative or more than 2 decimal places | B146: B13 | C146: =IF(AND('C- GrossFTEs'!B13>=0,ROUND('C- GrossFTEs'!B13,2)='C- GrossFTEs'!B13),"OKAY","FTE Number is Negative or more than 2 Decimal places") -> OKAY | E146: 144
A147: FTE is negative or more than 2 decimal places | B147: B14 | C147: =IF(AND('C- GrossFTEs'!B14>=0,ROUND('C- GrossFTEs'!B14,2)='C- GrossFTEs'!B14),"OKAY","FTE Number is Negative or more than 2 Decimal places") -> OKAY | E147: 145
A148: FTE is negative or more than 2 decimal places | B148: B15 | C148: =IF(AND('C- GrossFTEs'!B15>=0,ROUND('C- GrossFTEs'!B15,2)='C- GrossFTEs'!B15),"OKAY","FTE Number is Negative or more than 2 Decimal places") -> OKAY | E148: 146
A149: FTE is negative or more than 2 decimal places | B149: B16 | C149: =IF(AND('C- GrossFTEs'!B16>=0,ROUND('C- GrossFTEs'!B16,2)='C- GrossFTEs'!B16),"OKAY","FTE Number is Negative or more than 2 Decimal places") -> OKAY | E149: 147
A150: FTE is negative or more than 2 decimal places | B150: B17 | C150: =IF(AND('C- GrossFTEs'!B17>=0,ROUND('C- GrossFTEs'!B17,2)='C- GrossFTEs'!B17),"OKAY","FTE Number is Negative or more than 2 Decimal places") -> OKAY | E150: 148
A151: FTE is negative or more than 2 decimal places | B151: B18 | C151: =IF(AND('C- GrossFTEs'!B18>=0,ROUND('C- GrossFTEs'!B18,2)='C- GrossFTEs'!B18),"OKAY","FTE Number is Negative or more than 2 Decimal places") -> OKAY | E151: 149
A152: FTE is negative or more than 2 decimal places | B152: B19 | C152: =IF(AND('C- GrossFTEs'!B19>=0,ROUND('C- GrossFTEs'!B19,2)='C- GrossFTEs'!B19),"OKAY","FTE Number is Negative or more than 2 Decimal places") -> OKAY | E152: 150
A153: FTE is negative or more than 2 decimal places | B153: B20 | C153: =IF(AND('C- GrossFTEs'!B20>=0,ROUND('C- GrossFTEs'!B20,2)='C- GrossFTEs'!B20),"OKAY","FTE Number is Negative or more than 2 Decimal places") -> OKAY | E153: 151
A154: FTE is negative or more than 2 decimal places | B154: B21 | C154: =IF(AND('C- GrossFTEs'!B21>=0,ROUND('C- GrossFTEs'!B21,2)='C- GrossFTEs'!B21),"OKAY","FTE Number is Negative or more than 2 Decimal places") -> OKAY | E154: 152
A155: FTE is negative or more than 2 decimal places | B155: B22 | C155: =IF(AND('C- GrossFTEs'!B22>=0,ROUND('C- GrossFTEs'!B22,2)='C- GrossFTEs'!B22),"OKAY","FTE Number is Negative or more than 2 Decimal places") -> OKAY | E155: 153
A156: FTE is negative or more than 2 decimal places | B156: B23 | C156: =IF(AND('C- GrossFTEs'!B23>=0,ROUND('C- GrossFTEs'!B23,2)='C- GrossFTEs'!B23),"OKAY","FTE Number is Negative or more than 2 Decimal places") -> OKAY | E156: 154
A157: FTE is negative or more than 2 decimal places | B157: B24 | C157: =IF(AND('C- GrossFTEs'!B24>=0,ROUND('C- GrossFTEs'!B24,2)='C- GrossFTEs'!B24),"OKAY","FTE Number is Negative or more than 2 Decimal places") -> OKAY | E157: 155
A158: FTE is negative or more than 2 decimal places | B158: B25 | C158: =IF(AND('C- GrossFTEs'!B25>=0,ROUND('C- GrossFTEs'!B25,2)='C- GrossFTEs'!B25),"OKAY","FTE Number is Negative or more than 2 Decimal places") -> OKAY | E158: 156
A159: FTE is negative or more than 2 decimal places | B159: B26 | C159: =IF(AND('C- GrossFTEs'!B26>=0,ROUND('C- GrossFTEs'!B26,2)='C- GrossFTEs'!B26),"OKAY","FTE Number is Negative or more than 2 Decimal places") -> OKAY | E159: 157
A160: FTE is negative or more than 2 decimal places | B160: B27 | C160: =IF(AND('C- GrossFTEs'!B27>=0,ROUND('C- GrossFTEs'!B27,2)='C- GrossFTEs'!B27),"OKAY","FTE Number is Negative or more than 2 Decimal places") -> OKAY | E160: 158
A161: FTE is negative or more than 2 decimal places | B161: B28 | C161: =IF(AND('C- GrossFTEs'!B28>=0,ROUND('C- GrossFTEs'!B28,2)='C- GrossFTEs'!B28),"OKAY","FTE Number is Negative or more than 2 Decimal places") -> OKAY | E161: 159
A162: FTE is negative or more than 2 decimal places | B162: B29 | C162: =IF(AND('C- GrossFTEs'!B29>=0,ROUND('C- GrossFTEs'!B29,2)='C- GrossFTEs'!B29),"OKAY","FTE Number is Negative or more than 2 Decimal places") -> OKAY | E162: 160
A163: FTE is negative or more than 2 decimal places | B163: B30 | C163: =IF(AND('C- GrossFTEs'!B30>=0,ROUND('C- GrossFTEs'!B30,2)='C- GrossFTEs'!B30),"OKAY","FTE Number is Negative or more than 2 Decimal places") -> OKAY | E163: 161
A164: FTE is negative or more than 2 decimal places | B164: B31 | C164: =IF(AND('C- GrossFTEs'!B31>=0,ROUND('C- GrossFTEs'!B31,2)='C- GrossFTEs'!B31),"OKAY","FTE Number is Negative or more than 2 Decimal places") -> OKAY | E164: 162
A165: FTE is negative or more than 2 decimal places | B165: B32 | C165: =IF(AND('C- GrossFTEs'!B32>=0,ROUND('C- GrossFTEs'!B32,2)='C- GrossFTEs'!B32),"OKAY","FTE Number is Negative or more than 2 Decimal places") -> OKAY | E165: 163
A166: FTE is negative or more than 2 decimal places | B166: B33 | C166: =IF(AND('C- GrossFTEs'!B33>=0,ROUND('C- GrossFTEs'!B33,2)='C- GrossFTEs'!B33),"OKAY","FTE Number is Negative or more than 2 Decimal places") -> OKAY | E166: 164
A167: FTE is negative or more than 2 decimal places | B167: B34 | C167: =IF(AND('C- GrossFTEs'!B34>=0,ROUND('C- GrossFTEs'!B34,2)='C- GrossFTEs'!B34),"OKAY","FTE Number is Negative or more than 2 Decimal places") -> OKAY | E167: 165
A168: FTE is negative or more than 2 decimal places | B168: B35 | C168: =IF(AND('C- GrossFTEs'!B35>=0,ROUND('C- GrossFTEs'!B35,2)='C- GrossFTEs'!B35),"OKAY","FTE Number is Negative or more than 2 Decimal places") -> OKAY | E168: 166
A169: FTE is negative or more than 2 decimal places | B169: B36 | C169: =IF(AND('C- GrossFTEs'!B36>=0,ROUND('C- GrossFTEs'!B36,2)='C- GrossFTEs'!B36),"OKAY","FTE Number is Negative or more than 2 Decimal places") -> OKAY | E169: 167
A170: FTE is negative or more than 2 decimal places | B170: B37 | C170: =IF(AND('C- GrossFTEs'!B37>=0,ROUND('C- GrossFTEs'!B37,2)='C- GrossFTEs'!B37),"OKAY","FTE Number is Negative or more than 2 Decimal places") -> OKAY | E170: 168
A171: FTE is negative or more than 2 decimal places | B171: B38 | C171: =IF(AND('C- GrossFTEs'!B38>=0,ROUND('C- GrossFTEs'!B38,2)='C- GrossFTEs'!B38),"OKAY","FTE Number is Negative or more than 2 Decimal places") -> OKAY | E171: 169
A172: FTE is negative or more than 2 decimal places | B172: B39 | C172: =IF(AND('C- GrossFTEs'!B39>=0,ROUND('C- GrossFTEs'!B39,2)='C- GrossFTEs'!B39),"OKAY","FTE Number is Negative or more than 2 Decimal places") -> OKAY | E172: 170
A173: FTE is negative or more than 2 decimal places | B173: B40 | C173: =IF(AND('C- GrossFTEs'!B40>=0,ROUND('C- GrossFTEs'!B40,2)='C- GrossFTEs'!B40),"OKAY","FTE Number is Negative or more than 2 Decimal places") -> OKAY | E173: 171
A174: FTE is negative or more than 2 decimal places | B174: B41 | C174: =IF(AND('C- GrossFTEs'!B41>=0,ROUND('C- GrossFTEs'!B41,2)='C- GrossFTEs'!B41),"OKAY","FTE Number is Negative or more than 2 Decimal places") -> OKAY | E174: 172
A175: FTE is negative or more than 2 decimal places | B175: B42 | C175: =IF(AND('C- GrossFTEs'!B42>=0,ROUND('C- GrossFTEs'!B42,2)='C- GrossFTEs'!B42),"OKAY","FTE Number is Negative or more than 2 Decimal places") -> OKAY | E175: 173
A176: FTE is negative or more than 2 decimal places | B176: B43 | C176: =IF(AND('C- GrossFTEs'!B43>=0,ROUND('C- GrossFTEs'!B43,2)='C- GrossFTEs'!B43),"OKAY","FTE Number is Negative or more than 2 Decimal places") -> OKAY | E176: 174
A177: FTE is negative or more than 2 decimal places | B177: B44 | C177: =IF(AND('C- GrossFTEs'!B44>=0,ROUND('C- GrossFTEs'!B44,2)='C- GrossFTEs'!B44),"OKAY","FTE Number is Negative or more than 2 Decimal places") -> OKAY | E177: 175
A178: FTE is negative or more than 2 decimal places | B178: B45 | C178: =IF(AND('C- GrossFTEs'!B45>=0,ROUND('C- GrossFTEs'!B45,2)='C- GrossFTEs'!B45),"OKAY","FTE Number is Negative or more than 2 Decimal places") -> OKAY | E178: 176
A179: FTE is negative or more than 2 decimal places | B179: B46 | C179: =IF(AND('C- GrossFTEs'!B46>=0,ROUND('C- GrossFTEs'!B46,2)='C- GrossFTEs'!B46),"OKAY","FTE Number is Negative or more than 2 Decimal places") -> OKAY | E179: 177
A180: FTE is negative or more than 2 decimal places | B180: B47 | C180: =IF(AND('C- GrossFTEs'!B47>=0,ROUND('C- GrossFTEs'!B47,2)='C- GrossFTEs'!B47),"OKAY","FTE Number is Negative or more than 2 Decimal places") -> OKAY | E180: 178
A181: FTE is negative or more than 2 decimal places | B181: B48 | C181: =IF(AND('C- GrossFTEs'!B48>=0,ROUND('C- GrossFTEs'!B48,2)='C- GrossFTEs'!B48),"OKAY","FTE Number is Negative or more than 2 Decimal places") -> OKAY | E181: 179
A182: FTE is negative or more than 2 decimal places | B182: B49 | C182: =IF(AND('C- GrossFTEs'!B49>=0,ROUND('C- GrossFTEs'!B49,2)='C- GrossFTEs'!B49),"OKAY","FTE Number is Negative or more than 2 Decimal places") -> OKAY | E182: 180
A183: FTE is negative or more than 2 decimal places | B183: B50 | C183: =IF(AND('C- GrossFTEs'!B50>=0,ROUND('C- GrossFTEs'!B50,2)='C- GrossFTEs'!B50),"OKAY","FTE Number is Negative or more than 2 Decimal places") -> OKAY | E183: 181
A184: FTE is negative or more than 2 decimal places | B184: B51 | C184: =IF(AND('C- GrossFTEs'!B51>=0,ROUND('C- GrossFTEs'!B51,2)='C- GrossFTEs'!B51),"OKAY","FTE Number is Negative or more than 2 Decimal places") -> OKAY | E184: 182
A185: FTE is negative or more than 2 decimal places | B185: B52 | C185: =IF(AND('C- GrossFTEs'!B52>=0,ROUND('C- GrossFTEs'!B52,2)='C- GrossFTEs'!B52),"OKAY","FTE Number is Negative or more than 2 Decimal places") -> OKAY | E185: 183
A186: FTE is negative or more than 2 decimal places | B186: B53 | C186: =IF(AND('C- GrossFTEs'!B53>=0,ROUND('C- GrossFTEs'!B53,2)='C- GrossFTEs'!B53),"OKAY","FTE Number is Negative or more than 2 Decimal places") -> OKAY | E186: 184
A187: FTE is negative or more than 2 decimal places | B187: B54 | C187: =IF(AND('C- GrossFTEs'!B54>=0,ROUND('C- GrossFTEs'!B54,2)='C- GrossFTEs'!B54),"OKAY","FTE Number is Negative or more than 2 Decimal places") -> OKAY | E187: 185
A188: FTE is negative or more than 2 decimal places | B188: B55 | C188: =IF(AND('C- GrossFTEs'!B55>=0,ROUND('C- GrossFTEs'!B55,2)='C- GrossFTEs'!B55),"OKAY","FTE Number is Negative or more than 2 Decimal places") -> OKAY | E188: 186
A189: FTE is negative or more than 2 decimal places | B189: B56 | C189: =IF(AND('C- GrossFTEs'!B56>=0,ROUND('C- GrossFTEs'!B56,2)='C- GrossFTEs'!B56),"OKAY","FTE Number is Negative or more than 2 Decimal places") -> OKAY | E189: 187
A190: FTE is negative or more than 2 decimal places | B190: B57 | C190: =IF(AND('C- GrossFTEs'!B57>=0,ROUND('C- GrossFTEs'!B57,2)='C- GrossFTEs'!B57),"OKAY","FTE Number is Negative or more than 2 Decimal places") -> OKAY | E190: 188
A191: FTE is negative or more than 2 decimal places | B191: B58 | C191: =IF(AND('C- GrossFTEs'!B58>=0,ROUND('C- GrossFTEs'!B58,2)='C- GrossFTEs'!B58),"OKAY","FTE Number is Negative or more than 2 Decimal places") -> OKAY | E191: 189
A192: FTE is negative or more than 2 decimal places | B192: B59 | C192: =IF(AND('C- GrossFTEs'!B59>=0,ROUND('C- GrossFTEs'!B59,2)='C- GrossFTEs'!B59),"OKAY","FTE Number is Negative or more than 2 Decimal places") -> OKAY | E192: 190
A193: FTE is negative or more than 2 decimal places | B193: B60 | C193: =IF(AND('C- GrossFTEs'!B60>=0,ROUND('C- GrossFTEs'!B60,2)='C- GrossFTEs'!B60),"OKAY","FTE Number is Negative or more than 2 Decimal places") -> OKAY | E193: 191
A194: FTE is negative or more than 2 decimal places | B194: B61 | C194: =IF(AND('C- GrossFTEs'!B61>=0,ROUND('C- GrossFTEs'!B61,2)='C- GrossFTEs'!B61),"OKAY","FTE Number is Negative or more than 2 Decimal places") -> OKAY | E194: 192
A195: FTE is negative or more than 2 decimal places | B195: B62 | C195: =IF(AND('C- GrossFTEs'!B62>=0,ROUND('C- GrossFTEs'!B62,2)='C- GrossFTEs'!B62),"OKAY","FTE Number is Negative or more than 2 Decimal places") -> OKAY | E195: 193
A196: FTE is negative or more than 2 decimal places | B196: B63 | C196: =IF(AND('C- GrossFTEs'!B63>=0,ROUND('C- GrossFTEs'!B63,2)='C- GrossFTEs'!B63),"OKAY","FTE Number is Negative or more than 2 Decimal places") -> OKAY | E196: =ROW(C196)-2 -> 194 | F196: =IF(D196="","",E196) ->  | G196: =IFERROR(SMALL($F$3:$F$1263,E196),"") -> 
A197: FTE is negative or more than 2 decimal places | B197: B64 | C197: =IF(AND('C- GrossFTEs'!B64>=0,ROUND('C- GrossFTEs'!B64,2)='C- GrossFTEs'!B64),"OKAY","FTE Number is Negative or more than 2 Decimal places") -> OKAY | E197: 195
A198: FTE is negative or more than 2 decimal places | B198: B65 | C198: =IF(AND('C- GrossFTEs'!B65>=0,ROUND('C- GrossFTEs'!B65,2)='C- GrossFTEs'!B65),"OKAY","FTE Number is Negative or more than 2 Decimal places") -> OKAY | E198: 196
A199: FTE is negative or more than 2 decimal places | B199: B66 | C199: =IF(AND('C- GrossFTEs'!B66>=0,ROUND('C- GrossFTEs'!B66,2)='C- GrossFTEs'!B66),"OKAY","FTE Number is Negative or more than 2 Decimal places") -> OKAY | E199: 197
A200: FTE is negative or more than 2 decimal places | B200: B67 | C200: =IF(AND('C- GrossFTEs'!B67>=0,ROUND('C- GrossFTEs'!B67,2)='C- GrossFTEs'!B67),"OKAY","FTE Number is Negative or more than 2 Decimal places") -> OKAY | E200: 198
... 1063 more rows

Sheet D- PersonnelCosts
A1: =IF('A- Front Page'!B4="","",'A- Front Page'!B4) -> Santa Rosa
D2: Personnel Costs
A4: Cost Centers / Departments | B4: 600s-700s | D4: Clerk Court Admin | E4: Circuit Criminal | F4: Circuit Civil | G4: Family | H4: Juvenile Delinquency | I4: Juvenile Dependency | J4: Probate | K4: Information Systems (IT) | L4: Optional Programs | M4: County Criminal | N4: County Civil | O4: Criminal Traffic | P4: Civil Traffic | Q4: Court Side Shared
A5: 1 | B5: 2
A6: =IF('C- GrossFTEs'!A6=0,"",'C- GrossFTEs'!A6) -> Title IV-D Child Support (Reimbursed) | B6: 48818 | G6: =ROUND(B6,0) -> 48818
A7: =IF('C- GrossFTEs'!A7=0,"",'C- GrossFTEs'!A7) -> Title IV-D Child Support (Non-Reimbursed) | B7: 101000 | E7: =IFERROR(ROUND($B7*('C- GrossFTEs'!E7/'C- GrossFTEs'!$Z7),0),0) -> 0 | F7: =IFERROR(ROUND($B7*('C- GrossFTEs'!G7/'C- GrossFTEs'!$Z7),0),0) -> 0 | G7: =IFERROR(ROUND($B7*('C- GrossFTEs'!H7/'C- GrossFTEs'!$Z7),0),0) -> 101000 | H7: =IFERROR(ROUND($B7*('C- GrossFTEs'!J7/'C- GrossFTEs'!$Z7),0),0) -> 0 | I7: =IFERROR(ROUND($B7*('C- GrossFTEs'!K7/'C- GrossFTEs'!$Z7),0),0) -> 0 | J7: =IFERROR(ROUND($B7*('C- GrossFTEs'!L7/'C- GrossFTEs'!$Z7),0),0) -> 0 | K7: =IFERROR(ROUND($B7*('C- GrossFTEs'!M7/'C- GrossFTEs'!$Z7),0),0) -> 0 | L7: =IFERROR(ROUND($B7*('C- GrossFTEs'!N7/'C- GrossFTEs'!$Z7),0),0) -> 0 | M7: =IFERROR(ROUND($B7*('C- GrossFTEs'!P7/'C- GrossFTEs'!$Z7),0),0) -> 0 | N7: =IFERROR(ROUND($B7*('C- GrossFTEs'!Q7/'C- GrossFTEs'!$Z7),0),0) -> 0 | O7: =IFERROR(ROUND($B7*('C- GrossFTEs'!S7/'C- GrossFTEs'!$Z7),0),0) -> 0 | P7: =ROUND(B7-SUM(D7:O7,Q7),0) -> 0
A8: =IF('C- GrossFTEs'!A8=0,"",'C- GrossFTEs'!A8) -> Elected Clerk | B8: 99858 | D8: =IFERROR(ROUND($B8*('C- GrossFTEs'!B8/'C- GrossFTEs'!$Z8),0),0) -> 99858 | E8: =IFERROR(ROUND($B8*('C- GrossFTEs'!E8/'C- GrossFTEs'!$Z8),0),0) -> 0 | F8: =IFERROR(ROUND($B8*('C- GrossFTEs'!G8/'C- GrossFTEs'!$Z8),0),0) -> 0 | G8: =IFERROR(ROUND($B8*('C- GrossFTEs'!H8/'C- GrossFTEs'!$Z8),0),0) -> 0 | H8: =IFERROR(ROUND($B8*('C- GrossFTEs'!J8/'C- GrossFTEs'!$Z8),0),0) -> 0 | I8: =IFERROR(ROUND($B8*('C- GrossFTEs'!K8/'C- GrossFTEs'!$Z8),0),0) -> 0 | J8: =IFERROR(ROUND($B8*('C- GrossFTEs'!L8/'C- GrossFTEs'!$Z8),0),0) -> 0 | K8: =IFERROR(ROUND($B8*('C- GrossFTEs'!M8/'C- GrossFTEs'!$Z8),0),0) -> 0 | L8: =IFERROR(ROUND($B8*('C- GrossFTEs'!N8/'C- GrossFTEs'!$Z8),0),0) -> 0 | M8: =IFERROR(ROUND($B8*('C- GrossFTEs'!P8/'C- GrossFTEs'!$Z8),0),0) -> 0 | N8: =IFERROR(ROUND($B8*('C- GrossFTEs'!Q8/'C- GrossFTEs'!$Z8),0),0) -> 0 | O8: =IFERROR(ROUND($B8*('C- GrossFTEs'!S8/'C- GrossFTEs'!$Z8),0),0) -> 0 | P8: =ROUND(B8-SUM(D8:O8,Q8),0) -> 0 | Q8: =IFERROR(ROUND($B8*('C- GrossFTEs'!X8/'C- GrossFTEs'!$Z8),0),0) -> 0
A9: =IF('C- GrossFTEs'!A9=0,"",'C- GrossFTEs'!A9) -> Human Resources | B9: 0 | D9: =IFERROR(ROUND($B9*('C- GrossFTEs'!B9/'C- GrossFTEs'!$Z9),0),0) -> 0 | E9: =IFERROR(ROUND($B9*('C- GrossFTEs'!E9/'C- GrossFTEs'!$Z9),0),0) -> 0 | F9: =IFERROR(ROUND($B9*('C- GrossFTEs'!G9/'C- GrossFTEs'!$Z9),0),0) -> 0 | G9: =IFERROR(ROUND($B9*('C- GrossFTEs'!H9/'C- GrossFTEs'!$Z9),0),0) -> 0 | H9: =IFERROR(ROUND($B9*('C- GrossFTEs'!J9/'C- GrossFTEs'!$Z9),0),0) -> 0 | I9: =IFERROR(ROUND($B9*('C- GrossFTEs'!K9/'C- GrossFTEs'!$Z9),0),0) -> 0 | J9: =IFERROR(ROUND($B9*('C- GrossFTEs'!L9/'C- GrossFTEs'!$Z9),0),0) -> 0 | K9: =IFERROR(ROUND($B9*('C- GrossFTEs'!M9/'C- GrossFTEs'!$Z9),0),0) -> 0 | L9: =IFERROR(ROUND($B9*('C- GrossFTEs'!N9/'C- GrossFTEs'!$Z9),0),0) -> 0 | M9: =IFERROR(ROUND($B9*('C- GrossFTEs'!P9/'C- GrossFTEs'!$Z9),0),0) -> 0 | N9: =IFERROR(ROUND($B9*('C- GrossFTEs'!Q9/'C- GrossFTEs'!$Z9),0),0) -> 0 | O9: =IFERROR(ROUND($B9*('C- GrossFTEs'!S9/'C- GrossFTEs'!$Z9),0),0) -> 0 | P9: 0 | Q9: =IFERROR(ROUND($B9*('C- GrossFTEs'!X9/'C- GrossFTEs'!$Z9),0),0) -> 0
A10: =IF('C- GrossFTEs'!A10=0,"",'C- GrossFTEs'!A10) -> Clerk Accounting | B10: 226088 | D10: =IFERROR(ROUND($B10*('C- GrossFTEs'!B10/'C- GrossFTEs'!$Z10),0),0) -> 226088 | E10: =IFERROR(ROUND($B10*('C- GrossFTEs'!E10/'C- GrossFTEs'!$Z10),0),0) -> 0 | F10: =IFERROR(ROUND($B10*('C- GrossFTEs'!G10/'C- GrossFTEs'!$Z10),0),0) -> 0 | G10: =IFERROR(ROUND($B10*('C- GrossFTEs'!H10/'C- GrossFTEs'!$Z10),0),0) -> 0 | H10: =IFERROR(ROUND($B10*('C- GrossFTEs'!J10/'C- GrossFTEs'!$Z10),0),0) -> 0 | I10: =IFERROR(ROUND($B10*('C- GrossFTEs'!K10/'C- GrossFTEs'!$Z10),0),0) -> 0 | J10: =IFERROR(ROUND($B10*('C- GrossFTEs'!L10/'C- GrossFTEs'!$Z10),0),0) -> 0 | K10: =IFERROR(ROUND($B10*('C- GrossFTEs'!M10/'C- GrossFTEs'!$Z10),0),0) -> 0 | L10: =IFERROR(ROUND($B10*('C- GrossFTEs'!N10/'C- GrossFTEs'!$Z10),0),0) -> 0 | M10: =IFERROR(ROUND($B10*('C- GrossFTEs'!P10/'C- GrossFTEs'!$Z10),0),0) -> 0 | N10: =IFERROR(ROUND($B10*('C- GrossFTEs'!Q10/'C- GrossFTEs'!$Z10),0),0) -> 0 | O10: =IFERROR(ROUND($B10*('C- GrossFTEs'!S10/'C- GrossFTEs'!$Z10),0),0) -> 0 | P10: 0 | Q10: =IFERROR(ROUND($B10*('C- GrossFTEs'!X10/'C- GrossFTEs'!$Z10),0),0) -> 0
A11: =IF('C- GrossFTEs'!A11=0,"",'C- GrossFTEs'!A11) -> Executive Administration | B11: 131892 | D11: =IFERROR(ROUND($B11*('C- GrossFTEs'!B11/'C- GrossFTEs'!$Z11),0),0) -> 131892 | E11: =IFERROR(ROUND($B11*('C- GrossFTEs'!E11/'C- GrossFTEs'!$Z11),0),0) -> 0 | F11: =IFERROR(ROUND($B11*('C- GrossFTEs'!G11/'C- GrossFTEs'!$Z11),0),0) -> 0 | G11: =IFERROR(ROUND($B11*('C- GrossFTEs'!H11/'C- GrossFTEs'!$Z11),0),0) -> 0 | H11: =IFERROR(ROUND($B11*('C- GrossFTEs'!J11/'C- GrossFTEs'!$Z11),0),0) -> 0 | I11: =IFERROR(ROUND($B11*('C- GrossFTEs'!K11/'C- GrossFTEs'!$Z11),0),0) -> 0 | J11: =IFERROR(ROUND($B11*('C- GrossFTEs'!L11/'C- GrossFTEs'!$Z11),0),0) -> 0 | K11: =IFERROR(ROUND($B11*('C- GrossFTEs'!M11/'C- GrossFTEs'!$Z11),0),0) -> 0 | L11: =IFERROR(ROUND($B11*('C- GrossFTEs'!N11/'C- GrossFTEs'!$Z11),0),0) -> 0 | M11: =IFERROR(ROUND($B11*('C- GrossFTEs'!P11/'C- GrossFTEs'!$Z11),0),0) -> 0 | N11: =IFERROR(ROUND($B11*('C- GrossFTEs'!Q11/'C- GrossFTEs'!$Z11),0),0) -> 0 | O11: =IFERROR(ROUND($B11*('C- GrossFTEs'!S11/'C- GrossFTEs'!$Z11),0),0) -> 0 | P11: 0 | Q11: =IFERROR(ROUND($B11*('C- GrossFTEs'!X11/'C- GrossFTEs'!$Z11),0),0) -> 0
A12: =IF('C- GrossFTEs'!A12=0,"",'C- GrossFTEs'!A12) -> Jury Management | B12: 104602 | E12: =IFERROR(ROUND($B12*('C- GrossFTEs'!E12/'C- GrossFTEs'!$Z12),0),0) -> 29812 | F12: =IFERROR(ROUND($B12*('C- GrossFTEs'!G12/'C- GrossFTEs'!$Z12),0),0) -> 24581 | G12: =IFERROR(ROUND($B12*('C- GrossFTEs'!H12/'C- GrossFTEs'!$Z12),0),0) -> 0 | H12: =IFERROR(ROUND($B12*('C- GrossFTEs'!J12/'C- GrossFTEs'!$Z12),0),0) -> 0 | I12: =IFERROR(ROUND($B12*('C- GrossFTEs'!K12/'C- GrossFTEs'!$Z12),0),0) -> 0 | J12: =IFERROR(ROUND($B12*('C- GrossFTEs'!L12/'C- GrossFTEs'!$Z12),0),0) -> 0 | K12: =IFERROR(ROUND($B12*('C- GrossFTEs'!M12/'C- GrossFTEs'!$Z12),0),0) -> 0 | L12: =IFERROR(ROUND($B12*('C- GrossFTEs'!N12/'C- GrossFTEs'!$Z12),0),0) -> 0 | M12: =IFERROR(ROUND($B12*('C- GrossFTEs'!P12/'C- GrossFTEs'!$Z12),0),0) -> 50209 | N12: =IFERROR(ROUND($B12*('C- GrossFTEs'!Q12/'C- GrossFTEs'!$Z12),0),0) -> 0 | O12: =IFERROR(ROUND($B12*('C- GrossFTEs'!S12/'C- GrossFTEs'!$Z12),0),0) -> 0 | P12: 0 | Q12: =IFERROR(ROUND($B12*('C- GrossFTEs'!X12/'C- GrossFTEs'!$Z12),0),0) -> 0
A13: =IF('C- GrossFTEs'!A13=0,"",'C- GrossFTEs'!A13) -> Archives | B13: 196060 | E13: =IFERROR(ROUND($B13*('C- GrossFTEs'!E13/'C- GrossFTEs'!$Z13),0),0) -> 24508 | F13: =IFERROR(ROUND($B13*('C- GrossFTEs'!G13/'C- GrossFTEs'!$Z13),0),0) -> 24508 | G13: =IFERROR(ROUND($B13*('C- GrossFTEs'!H13/'C- GrossFTEs'!$Z13),0),0) -> 24508 | H13: =IFERROR(ROUND($B13*('C- GrossFTEs'!J13/'C- GrossFTEs'!$Z13),0),0) -> 13724 | I13: =IFERROR(ROUND($B13*('C- GrossFTEs'!K13/'C- GrossFTEs'!$Z13),0),0) -> 10783 | J13: =IFERROR(ROUND($B13*('C- GrossFTEs'!L13/'C- GrossFTEs'!$Z13),0),0) -> 24508 | K13: =IFERROR(ROUND($B13*('C- GrossFTEs'!M13/'C- GrossFTEs'!$Z13),0),0) -> 0 | L13: =IFERROR(ROUND($B13*('C- GrossFTEs'!N13/'C- GrossFTEs'!$Z13),0),0) -> 0 | M13: =IFERROR(ROUND($B13*('C- GrossFTEs'!P13/'C- GrossFTEs'!$Z13),0),0) -> 24508 | N13: =IFERROR(ROUND($B13*('C- GrossFTEs'!Q13/'C- GrossFTEs'!$Z13),0),0) -> 24508 | O13: =IFERROR(ROUND($B13*('C- GrossFTEs'!S13/'C- GrossFTEs'!$Z13),0),0) -> 11273 | P13: 13232 | Q13: =IFERROR(ROUND($B13*('C- GrossFTEs'!X13/'C- GrossFTEs'!$Z13),0),0) -> 0
A14: =IF('C- GrossFTEs'!A14=0,"",'C- GrossFTEs'!A14) -> Felony | B14: 275084 | E14: =IFERROR(ROUND($B14*('C- GrossFTEs'!E14/'C- GrossFTEs'!$Z14),0),0) -> 275084 | F14: =IFERROR(ROUND($B14*('C- GrossFTEs'!G14/'C- GrossFTEs'!$Z14),0),0) -> 0 | G14: =IFERROR(ROUND($B14*('C- GrossFTEs'!H14/'C- GrossFTEs'!$Z14),0),0) -> 0 | H14: =IFERROR(ROUND($B14*('C- GrossFTEs'!J14/'C- GrossFTEs'!$Z14),0),0) -> 0 | I14: =IFERROR(ROUND($B14*('C- GrossFTEs'!K14/'C- GrossFTEs'!$Z14),0),0) -> 0 | J14: =IFERROR(ROUND($B14*('C- GrossFTEs'!L14/'C- GrossFTEs'!$Z14),0),0) -> 0 | K14: =IFERROR(ROUND($B14*('C- GrossFTEs'!M14/'C- GrossFTEs'!$Z14),0),0) -> 0 | L14: =IFERROR(ROUND($B14*('C- GrossFTEs'!N14/'C- GrossFTEs'!$Z14),0),0) -> 0 | M14: =IFERROR(ROUND($B14*('C- GrossFTEs'!P14/'C- GrossFTEs'!$Z14),0),0) -> 0 | N14: =IFERROR(ROUND($B14*('C- GrossFTEs'!Q14/'C- GrossFTEs'!$Z14),0),0) -> 0 | O14: =IFERROR(ROUND($B14*('C- GrossFTEs'!S14/'C- GrossFTEs'!$Z14),0),0) -> 0 | P14: 0 | Q14: =IFERROR(ROUND($B14*('C- GrossFTEs'!X14/'C- GrossFTEs'!$Z14),0),0) -> 0
A15: =IF('C- GrossFTEs'!A15=0,"",'C- GrossFTEs'!A15) -> Circuit Civil | B15: 208125 | E15: =IFERROR(ROUND($B15*('C- GrossFTEs'!E15/'C- GrossFTEs'!$Z15),0),0) -> 0 | F15: =IFERROR(ROUND($B15*('C- GrossFTEs'!G15/'C- GrossFTEs'!$Z15),0),0) -> 208125 | G15: =IFERROR(ROUND($B15*('C- GrossFTEs'!H15/'C- GrossFTEs'!$Z15),0),0) -> 0 | H15: =IFERROR(ROUND($B15*('C- GrossFTEs'!J15/'C- GrossFTEs'!$Z15),0),0) -> 0 | I15: =IFERROR(ROUND($B15*('C- GrossFTEs'!K15/'C- GrossFTEs'!$Z15),0),0) -> 0 | J15: =IFERROR(ROUND($B15*('C- GrossFTEs'!L15/'C- GrossFTEs'!$Z15),0),0) -> 0 | K15: =IFERROR(ROUND($B15*('C- GrossFTEs'!M15/'C- GrossFTEs'!$Z15),0),0) -> 0 | L15: =IFERROR(ROUND($B15*('C- GrossFTEs'!N15/'C- GrossFTEs'!$Z15),0),0) -> 0 | M15: =IFERROR(ROUND($B15*('C- GrossFTEs'!P15/'C- GrossFTEs'!$Z15),0),0) -> 0 | N15: =IFERROR(ROUND($B15*('C- GrossFTEs'!Q15/'C- GrossFTEs'!$Z15),0),0) -> 0 | O15: =IFERROR(ROUND($B15*('C- GrossFTEs'!S15/'C- GrossFTEs'!$Z15),0),0) -> 0 | P15: 0 | Q15: =IFERROR(ROUND($B15*('C- GrossFTEs'!X15/'C- GrossFTEs'!$Z15),0),0) -> 0
A16: =IF('C- GrossFTEs'!A16=0,"",'C- GrossFTEs'!A16) -> Family Law | B16: =325822-B6-B7 -> 176004 | E16: =IFERROR(ROUND($B16*('C- GrossFTEs'!E16/'C- GrossFTEs'!$Z16),0),0) -> 0 | F16: =IFERROR(ROUND($B16*('C- GrossFTEs'!G16/'C- GrossFTEs'!$Z16),0),0) -> 0 | G16: =IFERROR(ROUND($B16*('C- GrossFTEs'!H16/'C- GrossFTEs'!$Z16),0),0) -> 176004 | H16: =IFERROR(ROUND($B16*('C- GrossFTEs'!J16/'C- GrossFTEs'!$Z16),0),0) -> 0 | I16: =IFERROR(ROUND($B16*('C- GrossFTEs'!K16/'C- GrossFTEs'!$Z16),0),0) -> 0 | J16: =IFERROR(ROUND($B16*('C- GrossFTEs'!L16/'C- GrossFTEs'!$Z16),0),0) -> 0 | K16: =IFERROR(ROUND($B16*('C- GrossFTEs'!M16/'C- GrossFTEs'!$Z16),0),0) -> 0 | L16: =IFERROR(ROUND($B16*('C- GrossFTEs'!N16/'C- GrossFTEs'!$Z16),0),0) -> 0 | M16: =IFERROR(ROUND($B16*('C- GrossFTEs'!P16/'C- GrossFTEs'!$Z16),0),0) -> 0 | N16: =IFERROR(ROUND($B16*('C- GrossFTEs'!Q16/'C- GrossFTEs'!$Z16),0),0) -> 0 | O16: =IFERROR(ROUND($B16*('C- GrossFTEs'!S16/'C- GrossFTEs'!$Z16),0),0) -> 0 | P16: 0 | Q16: =IFERROR(ROUND($B16*('C- GrossFTEs'!X16/'C- GrossFTEs'!$Z16),0),0) -> 0
A17: =IF('C- GrossFTEs'!A17=0,"",'C- GrossFTEs'!A17) -> Juvenile | B17: 235590 | E17: =IFERROR(ROUND($B17*('C- GrossFTEs'!E17/'C- GrossFTEs'!$Z17),0),0) -> 0 | F17: =IFERROR(ROUND($B17*('C- GrossFTEs'!G17/'C- GrossFTEs'!$Z17),0),0) -> 0 | G17: =IFERROR(ROUND($B17*('C- GrossFTEs'!H17/'C- GrossFTEs'!$Z17),0),0) -> 0 | H17: =IFERROR(ROUND($B17*('C- GrossFTEs'!J17/'C- GrossFTEs'!$Z17),0),0) -> 129575 | I17: =IFERROR(ROUND($B17*('C- GrossFTEs'!K17/'C- GrossFTEs'!$Z17),0),0) -> 106016 | J17: =IFERROR(ROUND($B17*('C- GrossFTEs'!L17/'C- GrossFTEs'!$Z17),0),0) -> 0 | K17: =IFERROR(ROUND($B17*('C- GrossFTEs'!M17/'C- GrossFTEs'!$Z17),0),0) -> 0 | L17: =IFERROR(ROUND($B17*('C- GrossFTEs'!N17/'C- GrossFTEs'!$Z17),0),0) -> 0 | M17: =IFERROR(ROUND($B17*('C- GrossFTEs'!P17/'C- GrossFTEs'!$Z17),0),0) -> 0 | N17: =IFERROR(ROUND($B17*('C- GrossFTEs'!Q17/'C- GrossFTEs'!$Z17),0),0) -> 0 | O17: =IFERROR(ROUND($B17*('C- GrossFTEs'!S17/'C- GrossFTEs'!$Z17),0),0) -> 0 | P17: -1 | Q17: =IFERROR(ROUND($B17*('C- GrossFTEs'!X17/'C- GrossFTEs'!$Z17),0),0) -> 0
A18: =IF('C- GrossFTEs'!A18=0,"",'C- GrossFTEs'!A18) -> Probate | B18: 128007 | E18: =IFERROR(ROUND($B18*('C- GrossFTEs'!E18/'C- GrossFTEs'!$Z18),0),0) -> 0 | F18: =IFERROR(ROUND($B18*('C- GrossFTEs'!G18/'C- GrossFTEs'!$Z18),0),0) -> 0 | G18: =IFERROR(ROUND($B18*('C- GrossFTEs'!H18/'C- GrossFTEs'!$Z18),0),0) -> 0 | H18: =IFERROR(ROUND($B18*('C- GrossFTEs'!J18/'C- GrossFTEs'!$Z18),0),0) -> 0 | I18: =IFERROR(ROUND($B18*('C- GrossFTEs'!K18/'C- GrossFTEs'!$Z18),0),0) -> 0 | J18: =IFERROR(ROUND($B18*('C- GrossFTEs'!L18/'C- GrossFTEs'!$Z18),0),0) -> 128007 | K18: =IFERROR(ROUND($B18*('C- GrossFTEs'!M18/'C- GrossFTEs'!$Z18),0),0) -> 0 | L18: =IFERROR(ROUND($B18*('C- GrossFTEs'!N18/'C- GrossFTEs'!$Z18),0),0) -> 0 | M18: =IFERROR(ROUND($B18*('C- GrossFTEs'!P18/'C- GrossFTEs'!$Z18),0),0) -> 0 | N18: =IFERROR(ROUND($B18*('C- GrossFTEs'!Q18/'C- GrossFTEs'!$Z18),0),0) -> 0 | O18: =IFERROR(ROUND($B18*('C- GrossFTEs'!S18/'C- GrossFTEs'!$Z18),0),0) -> 0 | P18: 0 | Q18: =IFERROR(ROUND($B18*('C- GrossFTEs'!X18/'C- GrossFTEs'!$Z18),0),0) -> 0
A19: =IF('C- GrossFTEs'!A19=0,"",'C- GrossFTEs'!A19) -> Misdemeanor | B19: 497387 | E19: =IFERROR(ROUND($B19*('C- GrossFTEs'!E19/'C- GrossFTEs'!$Z19),0),0) -> 0 | F19: =IFERROR(ROUND($B19*('C- GrossFTEs'!G19/'C- GrossFTEs'!$Z19),0),0) -> 0 | G19: =IFERROR(ROUND($B19*('C- GrossFTEs'!H19/'C- GrossFTEs'!$Z19),0),0) -> 0 | H19: =IFERROR(ROUND($B19*('C- GrossFTEs'!J19/'C- GrossFTEs'!$Z19),0),0) -> 0 | I19: =IFERROR(ROUND($B19*('C- GrossFTEs'!K19/'C- GrossFTEs'!$Z19),0),0) -> 0 | J19: =IFERROR(ROUND($B19*('C- GrossFTEs'!L19/'C- GrossFTEs'!$Z19),0),0) -> 0 | K19: =IFERROR(ROUND($B19*('C- GrossFTEs'!M19/'C- GrossFTEs'!$Z19),0),0) -> 0 | L19: =IFERROR(ROUND($B19*('C- GrossFTEs'!N19/'C- GrossFTEs'!$Z19),0),0) -> 0 | M19: =IFERROR(ROUND($B19*('C- GrossFTEs'!P19/'C- GrossFTEs'!$Z19),0),0) -> 497387 | N19: =IFERROR(ROUND($B19*('C- GrossFTEs'!Q19/'C- GrossFTEs'!$Z19),0),0) -> 0 | O19: =IFERROR(ROUND($B19*('C- GrossFTEs'!S19/'C- GrossFTEs'!$Z19),0),0) -> 0 | P19: 0 | Q19: =IFERROR(ROUND($B19*('C- GrossFTEs'!X19/'C- GrossFTEs'!$Z19),0),0) -> 0
A20: =IF('C- GrossFTEs'!A20=0,"",'C- GrossFTEs'!A20) -> County Civil | B20: 86442 | E20: =IFERROR(ROUND($B20*('C- GrossFTEs'!E20/'C- GrossFTEs'!$Z20),0),0) -> 0 | F20: =IFERROR(ROUND($B20*('C- GrossFTEs'!G20/'C- GrossFTEs'!$Z20),0),0) -> 0 | G20: =IFERROR(ROUND($B20*('C- GrossFTEs'!H20/'C- GrossFTEs'!$Z20),0),0) -> 0 | H20: =IFERROR(ROUND($B20*('C- GrossFTEs'!J20/'C- GrossFTEs'!$Z20),0),0) -> 0 | I20: =IFERROR(ROUND($B20*('C- GrossFTEs'!K20/'C- GrossFTEs'!$Z20),0),0) -> 0 | J20: =IFERROR(ROUND($B20*('C- GrossFTEs'!L20/'C- GrossFTEs'!$Z20),0),0) -> 0 | K20: =IFERROR(ROUND($B20*('C- GrossFTEs'!M20/'C- GrossFTEs'!$Z20),0),0) -> 0 | L20: =IFERROR(ROUND($B20*('C- GrossFTEs'!N20/'C- GrossFTEs'!$Z20),0),0) -> 0 | M20: =IFERROR(ROUND($B20*('C- GrossFTEs'!P20/'C- GrossFTEs'!$Z20),0),0) -> 0 | N20: =IFERROR(ROUND($B20*('C- GrossFTEs'!Q20/'C- GrossFTEs'!$Z20),0),0) -> 86442 | O20: =IFERROR(ROUND($B20*('C- GrossFTEs'!S20/'C- GrossFTEs'!$Z20),0),0) -> 0 | P20: 0 | Q20: =IFERROR(ROUND($B20*('C- GrossFTEs'!X20/'C- GrossFTEs'!$Z20),0),0) -> 0
A21: =IF('C- GrossFTEs'!A21=0,"",'C- GrossFTEs'!A21) -> Traffic | B21: 347431 | E21: =IFERROR(ROUND($B21*('C- GrossFTEs'!E21/'C- GrossFTEs'!$Z21),0),0) -> 0 | F21: =IFERROR(ROUND($B21*('C- GrossFTEs'!G21/'C- GrossFTEs'!$Z21),0),0) -> 0 | G21: =IFERROR(ROUND($B21*('C- GrossFTEs'!H21/'C- GrossFTEs'!$Z21),0),0) -> 0 | H21: =IFERROR(ROUND($B21*('C- GrossFTEs'!J21/'C- GrossFTEs'!$Z21),0),0) -> 0 | I21: =IFERROR(ROUND($B21*('C- GrossFTEs'!K21/'C- GrossFTEs'!$Z21),0),0) -> 0 | J21: =IFERROR(ROUND($B21*('C- GrossFTEs'!L21/'C- GrossFTEs'!$Z21),0),0) -> 0 | K21: =IFERROR(ROUND($B21*('C- GrossFTEs'!M21/'C- GrossFTEs'!$Z21),0),0) -> 0 | L21: =IFERROR(ROUND($B21*('C- GrossFTEs'!N21/'C- GrossFTEs'!$Z21),0),0) -> 0 | M21: =IFERROR(ROUND($B21*('C- GrossFTEs'!P21/'C- GrossFTEs'!$Z21),0),0) -> 0 | N21: =IFERROR(ROUND($B21*('C- GrossFTEs'!Q21/'C- GrossFTEs'!$Z21),0),0) -> 0 | O21: =IFERROR(ROUND($B21*('C- GrossFTEs'!S21/'C- GrossFTEs'!$Z21),0),0) -> 156344 | P21: 191087 | Q21: =IFERROR(ROUND($B21*('C- GrossFTEs'!X21/'C- GrossFTEs'!$Z21),0),0) -> 0
A22: =IF('C- GrossFTEs'!A22=0,"",'C- GrossFTEs'!A22) -> Information Technology | B22: 173323 | E22: =IFERROR(ROUND($B22*('C- GrossFTEs'!E22/'C- GrossFTEs'!$Z22),0),0) -> 0 | F22: =IFERROR(ROUND($B22*('C- GrossFTEs'!G22/'C- GrossFTEs'!$Z22),0),0) -> 0 | G22: =IFERROR(ROUND($B22*('C- GrossFTEs'!H22/'C- GrossFTEs'!$Z22),0),0) -> 0 | H22: =IFERROR(ROUND($B22*('C- GrossFTEs'!J22/'C- GrossFTEs'!$Z22),0),0) -> 0 | I22: =IFERROR(ROUND($B22*('C- GrossFTEs'!K22/'C- GrossFTEs'!$Z22),0),0) -> 0 | J22: =IFERROR(ROUND($B22*('C- GrossFTEs'!L22/'C- GrossFTEs'!$Z22),0),0) -> 0 | K22: =IFERROR(ROUND($B22*('C- GrossFTEs'!M22/'C- GrossFTEs'!$Z22),0),0) -> 173323 | L22: =IFERROR(ROUND($B22*('C- GrossFTEs'!N22/'C- GrossFTEs'!$Z22),0),0) -> 0 | M22: =IFERROR(ROUND($B22*('C- GrossFTEs'!P22/'C- GrossFTEs'!$Z22),0),0) -> 0 | N22: =IFERROR(ROUND($B22*('C- GrossFTEs'!Q22/'C- GrossFTEs'!$Z22),0),0) -> 0 | O22: =IFERROR(ROUND($B22*('C- GrossFTEs'!S22/'C- GrossFTEs'!$Z22),0),0) -> 0 | P22: 0 | Q22: =IFERROR(ROUND($B22*('C- GrossFTEs'!X22/'C- GrossFTEs'!$Z22),0),0) -> 0
A23: =IF('C- GrossFTEs'!A23=0,"",'C- GrossFTEs'!A23) -> Collections | B23: 78340 | E23: =IFERROR(ROUND($B23*('C- GrossFTEs'!E23/'C- GrossFTEs'!$Z23),0),0) -> 9793 | F23: =IFERROR(ROUND($B23*('C- GrossFTEs'!G23/'C- GrossFTEs'!$Z23),0),0) -> 9793 | G23: =IFERROR(ROUND($B23*('C- GrossFTEs'!H23/'C- GrossFTEs'!$Z23),0),0) -> 9793 | H23: =IFERROR(ROUND($B23*('C- GrossFTEs'!J23/'C- GrossFTEs'!$Z23),0),0) -> 5484 | I23: =IFERROR(ROUND($B23*('C- GrossFTEs'!K23/'C- GrossFTEs'!$Z23),0),0) -> 4309 | J23: =IFERROR(ROUND($B23*('C- GrossFTEs'!L23/'C- GrossFTEs'!$Z23),0),0) -> 9793 | K23: =IFERROR(ROUND($B23*('C- GrossFTEs'!M23/'C- GrossFTEs'!$Z23),0),0) -> 0 | L23: =IFERROR(ROUND($B23*('C- GrossFTEs'!N23/'C- GrossFTEs'!$Z23),0),0) -> 0 | M23: =IFERROR(ROUND($B23*('C- GrossFTEs'!P23/'C- GrossFTEs'!$Z23),0),0) -> 9793 | N23: =IFERROR(ROUND($B23*('C- GrossFTEs'!Q23/'C- GrossFTEs'!$Z23),0),0) -> 9793 | O23: =IFERROR(ROUND($B23*('C- GrossFTEs'!S23/'C- GrossFTEs'!$Z23),0),0) -> 4309 | P23: 5480 | Q23: =IFERROR(ROUND($B23*('C- GrossFTEs'!X23/'C- GrossFTEs'!$Z23),0),0) -> 0
A24: =IF('C- GrossFTEs'!A24=0,"",'C- GrossFTEs'!A24) ->  | E24: =IFERROR(ROUND($B24*('C- GrossFTEs'!E24/'C- GrossFTEs'!$Z24),0),0) -> 0 | F24: =IFERROR(ROUND($B24*('C- GrossFTEs'!G24/'C- GrossFTEs'!$Z24),0),0) -> 0 | G24: =IFERROR(ROUND($B24*('C- GrossFTEs'!H24/'C- GrossFTEs'!$Z24),0),0) -> 0 | H24: =IFERROR(ROUND($B24*('C- GrossFTEs'!J24/'C- GrossFTEs'!$Z24),0),0) -> 0 | I24: =IFERROR(ROUND($B24*('C- GrossFTEs'!K24/'C- GrossFTEs'!$Z24),0),0) -> 0 | J24: =IFERROR(ROUND($B24*('C- GrossFTEs'!L24/'C- GrossFTEs'!$Z24),0),0) -> 0 | K24: =IFERROR(ROUND($B24*('C- GrossFTEs'!M24/'C- GrossFTEs'!$Z24),0),0) -> 0 | L24: =IFERROR(ROUND($B24*('C- GrossFTEs'!N24/'C- GrossFTEs'!$Z24),0),0) -> 0 | M24: =IFERROR(ROUND($B24*('C- GrossFTEs'!P24/'C- GrossFTEs'!$Z24),0),0) -> 0 | N24: =IFERROR(ROUND($B24*('C- GrossFTEs'!Q24/'C- GrossFTEs'!$Z24),0),0) -> 0 | O24: =IFERROR(ROUND($B24*('C- GrossFTEs'!S24/'C- GrossFTEs'!$Z24),0),0) -> 0 | P24: 0 | Q24: =IFERROR(ROUND($B24*('C- GrossFTEs'!X24/'C- GrossFTEs'!$Z24),0),0) -> 0
A25: =IF('C- GrossFTEs'!A25=0,"",'C- GrossFTEs'!A25) -> Southend | B25: 100788 | E25: =IFERROR(ROUND($B25*('C- GrossFTEs'!E25/'C- GrossFTEs'!$Z25),0),0) -> 12599 | F25: =IFERROR(ROUND($B25*('C- GrossFTEs'!G25/'C- GrossFTEs'!$Z25),0),0) -> 12599 | G25: =IFERROR(ROUND($B25*('C- GrossFTEs'!H25/'C- GrossFTEs'!$Z25),0),0) -> 12599 | H25: =IFERROR(ROUND($B25*('C- GrossFTEs'!J25/'C- GrossFTEs'!$Z25),0),0) -> 6872 | I25: =IFERROR(ROUND($B25*('C- GrossFTEs'!K25/'C- GrossFTEs'!$Z25),0),0) -> 5727 | J25: =IFERROR(ROUND($B25*('C- GrossFTEs'!L25/'C- GrossFTEs'!$Z25),0),0) -> 12599 | K25: =IFERROR(ROUND($B25*('C- GrossFTEs'!M25/'C- GrossFTEs'!$Z25),0),0) -> 0 | L25: =IFERROR(ROUND($B25*('C- GrossFTEs'!N25/'C- GrossFTEs'!$Z25),0),0) -> 0 | M25: =IFERROR(ROUND($B25*('C- GrossFTEs'!P25/'C- GrossFTEs'!$Z25),0),0) -> 12599 | N25: =IFERROR(ROUND($B25*('C- GrossFTEs'!Q25/'C- GrossFTEs'!$Z25),0),0) -> 12599 | O25: =IFERROR(ROUND($B25*('C- GrossFTEs'!S25/'C- GrossFTEs'!$Z25),0),0) -> 5727 | P25: 6868 | Q25: =IFERROR(ROUND($B25*('C- GrossFTEs'!X25/'C- GrossFTEs'!$Z25),0),0) -> 0
A26: =IF('C- GrossFTEs'!A26=0,"",'C- GrossFTEs'!A26) -> Board Finance | E26: =IFERROR(ROUND($B26*('C- GrossFTEs'!E26/'C- GrossFTEs'!$Z26),0),0) -> 0 | F26: =IFERROR(ROUND($B26*('C- GrossFTEs'!G26/'C- GrossFTEs'!$Z26),0),0) -> 0 | G26: =IFERROR(ROUND($B26*('C- GrossFTEs'!H26/'C- GrossFTEs'!$Z26),0),0) -> 0 | H26: =IFERROR(ROUND($B26*('C- GrossFTEs'!J26/'C- GrossFTEs'!$Z26),0),0) -> 0 | I26: =IFERROR(ROUND($B26*('C- GrossFTEs'!K26/'C- GrossFTEs'!$Z26),0),0) -> 0 | J26: =IFERROR(ROUND($B26*('C- GrossFTEs'!L26/'C- GrossFTEs'!$Z26),0),0) -> 0 | K26: =IFERROR(ROUND($B26*('C- GrossFTEs'!M26/'C- GrossFTEs'!$Z26),0),0) -> 0 | L26: =IFERROR(ROUND($B26*('C- GrossFTEs'!N26/'C- GrossFTEs'!$Z26),0),0) -> 0 | M26: =IFERROR(ROUND($B26*('C- GrossFTEs'!P26/'C- GrossFTEs'!$Z26),0),0) -> 0 | N26: =IFERROR(ROUND($B26*('C- GrossFTEs'!Q26/'C- GrossFTEs'!$Z26),0),0) -> 0 | O26: =IFERROR(ROUND($B26*('C- GrossFTEs'!S26/'C- GrossFTEs'!$Z26),0),0) -> 0 | P26: 0 | Q26: =IFERROR(ROUND($B26*('C- GrossFTEs'!X26/'C- GrossFTEs'!$Z26),0),0) -> 0
A27: =IF('C- GrossFTEs'!A27=0,"",'C- GrossFTEs'!A27) -> Board Support | E27: =IFERROR(ROUND($B27*('C- GrossFTEs'!E27/'C- GrossFTEs'!$Z27),0),0) -> 0 | F27: =IFERROR(ROUND($B27*('C- GrossFTEs'!G27/'C- GrossFTEs'!$Z27),0),0) -> 0 | G27: =IFERROR(ROUND($B27*('C- GrossFTEs'!H27/'C- GrossFTEs'!$Z27),0),0) -> 0 | H27: =IFERROR(ROUND($B27*('C- GrossFTEs'!J27/'C- GrossFTEs'!$Z27),0),0) -> 0 | I27: =IFERROR(ROUND($B27*('C- GrossFTEs'!K27/'C- GrossFTEs'!$Z27),0),0) -> 0 | J27: =IFERROR(ROUND($B27*('C- GrossFTEs'!L27/'C- GrossFTEs'!$Z27),0),0) -> 0 | K27: =IFERROR(ROUND($B27*('C- GrossFTEs'!M27/'C- GrossFTEs'!$Z27),0),0) -> 0 | L27: =IFERROR(ROUND($B27*('C- GrossFTEs'!N27/'C- GrossFTEs'!$Z27),0),0) -> 0 | M27: =IFERROR(ROUND($B27*('C- GrossFTEs'!P27/'C- GrossFTEs'!$Z27),0),0) -> 0 | N27: =IFERROR(ROUND($B27*('C- GrossFTEs'!Q27/'C- GrossFTEs'!$Z27),0),0) -> 0 | O27: =IFERROR(ROUND($B27*('C- GrossFTEs'!S27/'C- GrossFTEs'!$Z27),0),0) -> 0 | P27: 0 | Q27: =IFERROR(ROUND($B27*('C- GrossFTEs'!X27/'C- GrossFTEs'!$Z27),0),0) -> 0
A28: =IF('C- GrossFTEs'!A28=0,"",'C- GrossFTEs'!A28) -> Internal Audit | E28: =IFERROR(ROUND($B28*('C- GrossFTEs'!E28/'C- GrossFTEs'!$Z28),0),0) -> 0 | F28: =IFERROR(ROUND($B28*('C- GrossFTEs'!G28/'C- GrossFTEs'!$Z28),0),0) -> 0 | G28: =IFERROR(ROUND($B28*('C- GrossFTEs'!H28/'C- GrossFTEs'!$Z28),0),0) -> 0 | H28: =IFERROR(ROUND($B28*('C- GrossFTEs'!J28/'C- GrossFTEs'!$Z28),0),0) -> 0 | I28: =IFERROR(ROUND($B28*('C- GrossFTEs'!K28/'C- GrossFTEs'!$Z28),0),0) -> 0 | J28: =IFERROR(ROUND($B28*('C- GrossFTEs'!L28/'C- GrossFTEs'!$Z28),0),0) -> 0 | K28: =IFERROR(ROUND($B28*('C- GrossFTEs'!M28/'C- GrossFTEs'!$Z28),0),0) -> 0 | L28: =IFERROR(ROUND($B28*('C- GrossFTEs'!N28/'C- GrossFTEs'!$Z28),0),0) -> 0 | M28: =IFERROR(ROUND($B28*('C- GrossFTEs'!P28/'C- GrossFTEs'!$Z28),0),0) -> 0 | N28: =IFERROR(ROUND($B28*('C- GrossFTEs'!Q28/'C- GrossFTEs'!$Z28),0),0) -> 0 | O28: =IFERROR(ROUND($B28*('C- GrossFTEs'!S28/'C- GrossFTEs'!$Z28),0),0) -> 0 | P28: 0 | Q28: =IFERROR(ROUND($B28*('C- GrossFTEs'!X28/'C- GrossFTEs'!$Z28),0),0) -> 0
A29: =IF('C- GrossFTEs'!A29=0,"",'C- GrossFTEs'!A29) -> Recording | E29: =IFERROR(ROUND($B29*('C- GrossFTEs'!E29/'C- GrossFTEs'!$Z29),0),0) -> 0 | F29: =IFERROR(ROUND($B29*('C- GrossFTEs'!G29/'C- GrossFTEs'!$Z29),0),0) -> 0 | G29: =IFERROR(ROUND($B29*('C- GrossFTEs'!H29/'C- GrossFTEs'!$Z29),0),0) -> 0 | H29: =IFERROR(ROUND($B29*('C- GrossFTEs'!J29/'C- GrossFTEs'!$Z29),0),0) -> 0 | I29: =IFERROR(ROUND($B29*('C- GrossFTEs'!K29/'C- GrossFTEs'!$Z29),0),0) -> 0 | J29: =IFERROR(ROUND($B29*('C- GrossFTEs'!L29/'C- GrossFTEs'!$Z29),0),0) -> 0 | K29: =IFERROR(ROUND($B29*('C- GrossFTEs'!M29/'C- GrossFTEs'!$Z29),0),0) -> 0 | L29: =IFERROR(ROUND($B29*('C- GrossFTEs'!N29/'C- GrossFTEs'!$Z29),0),0) -> 0 | M29: =IFERROR(ROUND($B29*('C- GrossFTEs'!P29/'C- GrossFTEs'!$Z29),0),0) -> 0 | N29: =IFERROR(ROUND($B29*('C- GrossFTEs'!Q29/'C- GrossFTEs'!$Z29),0),0) -> 0 | O29: =IFERROR(ROUND($B29*('C- GrossFTEs'!S29/'C- GrossFTEs'!$Z29),0),0) -> 0 | P29: 0 | Q29: =IFERROR(ROUND($B29*('C- GrossFTEs'!X29/'C- GrossFTEs'!$Z29),0),0) -> 0
A30: =IF('C- GrossFTEs'!A30=0,"",'C- GrossFTEs'!A30) -> Courier | E30: =IFERROR(ROUND($B30*('C- GrossFTEs'!E30/'C- GrossFTEs'!$Z30),0),0) -> 0 | F30: =IFERROR(ROUND($B30*('C- GrossFTEs'!G30/'C- GrossFTEs'!$Z30),0),0) -> 0 | G30: =IFERROR(ROUND($B30*('C- GrossFTEs'!H30/'C- GrossFTEs'!$Z30),0),0) -> 0 | H30: =IFERROR(ROUND($B30*('C- GrossFTEs'!J30/'C- GrossFTEs'!$Z30),0),0) -> 0 | I30: =IFERROR(ROUND($B30*('C- GrossFTEs'!K30/'C- GrossFTEs'!$Z30),0),0) -> 0 | J30: =IFERROR(ROUND($B30*('C- GrossFTEs'!L30/'C- GrossFTEs'!$Z30),0),0) -> 0 | K30: =IFERROR(ROUND($B30*('C- GrossFTEs'!M30/'C- GrossFTEs'!$Z30),0),0) -> 0 | L30: =IFERROR(ROUND($B30*('C- GrossFTEs'!N30/'C- GrossFTEs'!$Z30),0),0) -> 0 | M30: =IFERROR(ROUND($B30*('C- GrossFTEs'!P30/'C- GrossFTEs'!$Z30),0),0) -> 0 | N30: =IFERROR(ROUND($B30*('C- GrossFTEs'!Q30/'C- GrossFTEs'!$Z30),0),0) -> 0 | O30: =IFERROR(ROUND($B30*('C- GrossFTEs'!S30/'C- GrossFTEs'!$Z30),0),0) -> 0 | P30: 0 | Q30: =IFERROR(ROUND($B30*('C- GrossFTEs'!X30/'C- GrossFTEs'!$Z30),0),0) -> 0
A31: =IF('C- GrossFTEs'!A31=0,"",'C- GrossFTEs'!A31) ->  | E31: =IFERROR(ROUND($B31*('C- GrossFTEs'!E31/'C- GrossFTEs'!$Z31),0),0) -> 0 | F31: =IFERROR(ROUND($B31*('C- GrossFTEs'!G31/'C- GrossFTEs'!$Z31),0),0) -> 0 | G31: =IFERROR(ROUND($B31*('C- GrossFTEs'!H31/'C- GrossFTEs'!$Z31),0),0) -> 0 | H31: =IFERROR(ROUND($B31*('C- GrossFTEs'!J31/'C- GrossFTEs'!$Z31),0),0) -> 0 | I31: =IFERROR(ROUND($B31*('C- GrossFTEs'!K31/'C- GrossFTEs'!$Z31),0),0) -> 0 | J31: =IFERROR(ROUND($B31*('C- GrossFTEs'!L31/'C- GrossFTEs'!$Z31),0),0) -> 0 | K31: =IFERROR(ROUND($B31*('C- GrossFTEs'!M31/'C- GrossFTEs'!$Z31),0),0) -> 0 | L31: =IFERROR(ROUND($B31*('C- GrossFTEs'!N31/'C- GrossFTEs'!$Z31),0),0) -> 0 | M31: =IFERROR(ROUND($B31*('C- GrossFTEs'!P31/'C- GrossFTEs'!$Z31),0),0) -> 0 | N31: =IFERROR(ROUND($B31*('C- GrossFTEs'!Q31/'C- GrossFTEs'!$Z31),0),0) -> 0 | O31: =IFERROR(ROUND($B31*('C- GrossFTEs'!S31/'C- GrossFTEs'!$Z31),0),0) -> 0 | P31: 0 | Q31: =IFERROR(ROUND($B31*('C- GrossFTEs'!X31/'C- GrossFTEs'!$Z31),0),0) -> 0
A32: =IF('C- GrossFTEs'!A32=0,"",'C- GrossFTEs'!A32) ->  | E32: =IFERROR(ROUND($B32*('C- GrossFTEs'!E32/'C- GrossFTEs'!$Z32),0),0) -> 0 | F32: =IFERROR(ROUND($B32*('C- GrossFTEs'!G32/'C- GrossFTEs'!$Z32),0),0) -> 0 | G32: =IFERROR(ROUND($B32*('C- GrossFTEs'!H32/'C- GrossFTEs'!$Z32),0),0) -> 0 | H32: =IFERROR(ROUND($B32*('C- GrossFTEs'!J32/'C- GrossFTEs'!$Z32),0),0) -> 0 | I32: =IFERROR(ROUND($B32*('C- GrossFTEs'!K32/'C- GrossFTEs'!$Z32),0),0) -> 0 | J32: =IFERROR(ROUND($B32*('C- GrossFTEs'!L32/'C- GrossFTEs'!$Z32),0),0) -> 0 | K32: =IFERROR(ROUND($B32*('C- GrossFTEs'!M32/'C- GrossFTEs'!$Z32),0),0) -> 0 | L32: =IFERROR(ROUND($B32*('C- GrossFTEs'!N32/'C- GrossFTEs'!$Z32),0),0) -> 0 | M32: =IFERROR(ROUND($B32*('C- GrossFTEs'!P32/'C- GrossFTEs'!$Z32),0),0) -> 0 | N32: =IFERROR(ROUND($B32*('C- GrossFTEs'!Q32/'C- GrossFTEs'!$Z32),0),0) -> 0 | O32: =IFERROR(ROUND($B32*('C- GrossFTEs'!S32/'C- GrossFTEs'!$Z32),0),0) -> 0 | P32: 0 | Q32: =IFERROR(ROUND($B32*('C- GrossFTEs'!X32/'C- GrossFTEs'!$Z32),0),0) -> 0
A33: =IF('C- GrossFTEs'!A33=0,"",'C- GrossFTEs'!A33) ->  | E33: =IFERROR(ROUND($B33*('C- GrossFTEs'!E33/'C- GrossFTEs'!$Z33),0),0) -> 0 | F33: =IFERROR(ROUND($B33*('C- GrossFTEs'!G33/'C- GrossFTEs'!$Z33),0),0) -> 0 | G33: =IFERROR(ROUND($B33*('C- GrossFTEs'!H33/'C- GrossFTEs'!$Z33),0),0) -> 0 | H33: =IFERROR(ROUND($B33*('C- GrossFTEs'!J33/'C- GrossFTEs'!$Z33),0),0) -> 0 | I33: =IFERROR(ROUND($B33*('C- GrossFTEs'!K33/'C- GrossFTEs'!$Z33),0),0) -> 0 | J33: =IFERROR(ROUND($B33*('C- GrossFTEs'!L33/'C- GrossFTEs'!$Z33),0),0) -> 0 | K33: =IFERROR(ROUND($B33*('C- GrossFTEs'!M33/'C- GrossFTEs'!$Z33),0),0) -> 0 | L33: =IFERROR(ROUND($B33*('C- GrossFTEs'!N33/'C- GrossFTEs'!$Z33),0),0) -> 0 | M33: =IFERROR(ROUND($B33*('C- GrossFTEs'!P33/'C- GrossFTEs'!$Z33),0),0) -> 0 | N33: =IFERROR(ROUND($B33*('C- GrossFTEs'!Q33/'C- GrossFTEs'!$Z33),0),0) -> 0 | O33: =IFERROR(ROUND($B33*('C- GrossFTEs'!S33/'C- GrossFTEs'!$Z33),0),0) -> 0 | P33: 0 | Q33: =IFERROR(ROUND($B33*('C- GrossFTEs'!X33/'C- GrossFTEs'!$Z33),0),0) -> 0
A34: =IF('C- GrossFTEs'!A34=0,"",'C- GrossFTEs'!A34) ->  | E34: =IFERROR(ROUND($B34*('C- GrossFTEs'!E34/'C- GrossFTEs'!$Z34),0),0) -> 0 | F34: =IFERROR(ROUND($B34*('C- GrossFTEs'!G34/'C- GrossFTEs'!$Z34),0),0) -> 0 | G34: =IFERROR(ROUND($B34*('C- GrossFTEs'!H34/'C- GrossFTEs'!$Z34),0),0) -> 0 | H34: =IFERROR(ROUND($B34*('C- GrossFTEs'!J34/'C- GrossFTEs'!$Z34),0),0) -> 0 | I34: =IFERROR(ROUND($B34*('C- GrossFTEs'!K34/'C- GrossFTEs'!$Z34),0),0) -> 0 | J34: =IFERROR(ROUND($B34*('C- GrossFTEs'!L34/'C- GrossFTEs'!$Z34),0),0) -> 0 | K34: =IFERROR(ROUND($B34*('C- GrossFTEs'!M34/'C- GrossFTEs'!$Z34),0),0) -> 0 | L34: =IFERROR(ROUND($B34*('C- GrossFTEs'!N34/'C- GrossFTEs'!$Z34),0),0) -> 0 | M34: =IFERROR(ROUND($B34*('C- GrossFTEs'!P34/'C- GrossFTEs'!$Z34),0),0) -> 0 | N34: =IFERROR(ROUND($B34*('C- GrossFTEs'!Q34/'C- GrossFTEs'!$Z34),0),0) -> 0 | O34: =IFERROR(ROUND($B34*('C- GrossFTEs'!S34/'C- GrossFTEs'!$Z34),0),0) -> 0 | P34: 0 | Q34: =IFERROR(ROUND($B34*('C- GrossFTEs'!X34/'C- GrossFTEs'!$Z34),0),0) -> 0
A35: =IF('C- GrossFTEs'!A35=0,"",'C- GrossFTEs'!A35) ->  | E35: =IFERROR(ROUND($B35*('C- GrossFTEs'!E35/'C- GrossFTEs'!$Z35),0),0) -> 0 | F35: =IFERROR(ROUND($B35*('C- GrossFTEs'!G35/'C- GrossFTEs'!$Z35),0),0) -> 0 | G35: =IFERROR(ROUND($B35*('C- GrossFTEs'!H35/'C- GrossFTEs'!$Z35),0),0) -> 0 | H35: =IFERROR(ROUND($B35*('C- GrossFTEs'!J35/'C- GrossFTEs'!$Z35),0),0) -> 0 | I35: =IFERROR(ROUND($B35*('C- GrossFTEs'!K35/'C- GrossFTEs'!$Z35),0),0) -> 0 | J35: =IFERROR(ROUND($B35*('C- GrossFTEs'!L35/'C- GrossFTEs'!$Z35),0),0) -> 0 | K35: =IFERROR(ROUND($B35*('C- GrossFTEs'!M35/'C- GrossFTEs'!$Z35),0),0) -> 0 | L35: =IFERROR(ROUND($B35*('C- GrossFTEs'!N35/'C- GrossFTEs'!$Z35),0),0) -> 0 | M35: =IFERROR(ROUND($B35*('C- GrossFTEs'!P35/'C- GrossFTEs'!$Z35),0),0) -> 0 | N35: =IFERROR(ROUND($B35*('C- GrossFTEs'!Q35/'C- GrossFTEs'!$Z35),0),0) -> 0 | O35: =IFERROR(ROUND($B35*('C- GrossFTEs'!S35/'C- GrossFTEs'!$Z35),0),0) -> 0 | P35: 0 | Q35: =IFERROR(ROUND($B35*('C- GrossFTEs'!X35/'C- GrossFTEs'!$Z35),0),0) -> 0
A36: =IF('C- GrossFTEs'!A36=0,"",'C- GrossFTEs'!A36) ->  | E36: =IFERROR(ROUND($B36*('C- GrossFTEs'!E36/'C- GrossFTEs'!$Z36),0),0) -> 0 | F36: =IFERROR(ROUND($B36*('C- GrossFTEs'!G36/'C- GrossFTEs'!$Z36),0),0) -> 0 | G36: =IFERROR(ROUND($B36*('C- GrossFTEs'!H36/'C- GrossFTEs'!$Z36),0),0) -> 0 | H36: =IFERROR(ROUND($B36*('C- GrossFTEs'!J36/'C- GrossFTEs'!$Z36),0),0) -> 0 | I36: =IFERROR(ROUND($B36*('C- GrossFTEs'!K36/'C- GrossFTEs'!$Z36),0),0) -> 0 | J36: =IFERROR(ROUND($B36*('C- GrossFTEs'!L36/'C- GrossFTEs'!$Z36),0),0) -> 0 | K36: =IFERROR(ROUND($B36*('C- GrossFTEs'!M36/'C- GrossFTEs'!$Z36),0),0) -> 0 | L36: =IFERROR(ROUND($B36*('C- GrossFTEs'!N36/'C- GrossFTEs'!$Z36),0),0) -> 0 | M36: =IFERROR(ROUND($B36*('C- GrossFTEs'!P36/'C- GrossFTEs'!$Z36),0),0) -> 0 | N36: =IFERROR(ROUND($B36*('C- GrossFTEs'!Q36/'C- GrossFTEs'!$Z36),0),0) -> 0 | O36: =IFERROR(ROUND($B36*('C- GrossFTEs'!S36/'C- GrossFTEs'!$Z36),0),0) -> 0 | P36: 0 | Q36: =IFERROR(ROUND($B36*('C- GrossFTEs'!X36/'C- GrossFTEs'!$Z36),0),0) -> 0
A37: =IF('C- GrossFTEs'!A37=0,"",'C- GrossFTEs'!A37) ->  | E37: =IFERROR(ROUND($B37*('C- GrossFTEs'!E37/'C- GrossFTEs'!$Z37),0),0) -> 0 | F37: =IFERROR(ROUND($B37*('C- GrossFTEs'!G37/'C- GrossFTEs'!$Z37),0),0) -> 0 | G37: =IFERROR(ROUND($B37*('C- GrossFTEs'!H37/'C- GrossFTEs'!$Z37),0),0) -> 0 | H37: =IFERROR(ROUND($B37*('C- GrossFTEs'!J37/'C- GrossFTEs'!$Z37),0),0) -> 0 | I37: =IFERROR(ROUND($B37*('C- GrossFTEs'!K37/'C- GrossFTEs'!$Z37),0),0) -> 0 | J37: =IFERROR(ROUND($B37*('C- GrossFTEs'!L37/'C- GrossFTEs'!$Z37),0),0) -> 0 | K37: =IFERROR(ROUND($B37*('C- GrossFTEs'!M37/'C- GrossFTEs'!$Z37),0),0) -> 0 | L37: =IFERROR(ROUND($B37*('C- GrossFTEs'!N37/'C- GrossFTEs'!$Z37),0),0) -> 0 | M37: =IFERROR(ROUND($B37*('C- GrossFTEs'!P37/'C- GrossFTEs'!$Z37),0),0) -> 0 | N37: =IFERROR(ROUND($B37*('C- GrossFTEs'!Q37/'C- GrossFTEs'!$Z37),0),0) -> 0 | O37: =IFERROR(ROUND($B37*('C- GrossFTEs'!S37/'C- GrossFTEs'!$Z37),0),0) -> 0 | P37: 0 | Q37: =IFERROR(ROUND($B37*('C- GrossFTEs'!X37/'C- GrossFTEs'!$Z37),0),0) -> 0
A38: =IF('C- GrossFTEs'!A38=0,"",'C- GrossFTEs'!A38) ->  | E38: =IFERROR(ROUND($B38*('C- GrossFTEs'!E38/'C- GrossFTEs'!$Z38),0),0) -> 0 | F38: =IFERROR(ROUND($B38*('C- GrossFTEs'!G38/'C- GrossFTEs'!$Z38),0),0) -> 0 | G38: =IFERROR(ROUND($B38*('C- GrossFTEs'!H38/'C- GrossFTEs'!$Z38),0),0) -> 0 | H38: =IFERROR(ROUND($B38*('C- GrossFTEs'!J38/'C- GrossFTEs'!$Z38),0),0) -> 0 | I38: =IFERROR(ROUND($B38*('C- GrossFTEs'!K38/'C- GrossFTEs'!$Z38),0),0) -> 0 | J38: =IFERROR(ROUND($B38*('C- GrossFTEs'!L38/'C- GrossFTEs'!$Z38),0),0) -> 0 | K38: =IFERROR(ROUND($B38*('C- GrossFTEs'!M38/'C- GrossFTEs'!$Z38),0),0) -> 0 | L38: =IFERROR(ROUND($B38*('C- GrossFTEs'!N38/'C- GrossFTEs'!$Z38),0),0) -> 0 | M38: =IFERROR(ROUND($B38*('C- GrossFTEs'!P38/'C- GrossFTEs'!$Z38),0),0) -> 0 | N38: =IFERROR(ROUND($B38*('C- GrossFTEs'!Q38/'C- GrossFTEs'!$Z38),0),0) -> 0 | O38: =IFERROR(ROUND($B38*('C- GrossFTEs'!S38/'C- GrossFTEs'!$Z38),0),0) -> 0 | P38: 0 | Q38: =IFERROR(ROUND($B38*('C- GrossFTEs'!X38/'C- GrossFTEs'!$Z38),0),0) -> 0
A39: =IF('C- GrossFTEs'!A39=0,"",'C- GrossFTEs'!A39) ->  | E39: =IFERROR(ROUND($B39*('C- GrossFTEs'!E39/'C- GrossFTEs'!$Z39),0),0) -> 0 | F39: =IFERROR(ROUND($B39*('C- GrossFTEs'!G39/'C- GrossFTEs'!$Z39),0),0) -> 0 | G39: =IFERROR(ROUND($B39*('C- GrossFTEs'!H39/'C- GrossFTEs'!$Z39),0),0) -> 0 | H39: =IFERROR(ROUND($B39*('C- GrossFTEs'!J39/'C- GrossFTEs'!$Z39),0),0) -> 0 | I39: =IFERROR(ROUND($B39*('C- GrossFTEs'!K39/'C- GrossFTEs'!$Z39),0),0) -> 0 | J39: =IFERROR(ROUND($B39*('C- GrossFTEs'!L39/'C- GrossFTEs'!$Z39),0),0) -> 0 | K39: =IFERROR(ROUND($B39*('C- GrossFTEs'!M39/'C- GrossFTEs'!$Z39),0),0) -> 0 | L39: =IFERROR(ROUND($B39*('C- GrossFTEs'!N39/'C- GrossFTEs'!$Z39),0),0) -> 0 | M39: =IFERROR(ROUND($B39*('C- GrossFTEs'!P39/'C- GrossFTEs'!$Z39),0),0) -> 0 | N39: =IFERROR(ROUND($B39*('C- GrossFTEs'!Q39/'C- GrossFTEs'!$Z39),0),0) -> 0 | O39: =IFERROR(ROUND($B39*('C- GrossFTEs'!S39/'C- GrossFTEs'!$Z39),0),0) -> 0 | P39: 0 | Q39: =IFERROR(ROUND($B39*('C- GrossFTEs'!X39/'C- GrossFTEs'!$Z39),0),0) -> 0
A40: =IF('C- GrossFTEs'!A40=0,"",'C- GrossFTEs'!A40) ->  | E40: =IFERROR(ROUND($B40*('C- GrossFTEs'!E40/'C- GrossFTEs'!$Z40),0),0) -> 0 | F40: =IFERROR(ROUND($B40*('C- GrossFTEs'!G40/'C- GrossFTEs'!$Z40),0),0) -> 0 | G40: =IFERROR(ROUND($B40*('C- GrossFTEs'!H40/'C- GrossFTEs'!$Z40),0),0) -> 0 | H40: =IFERROR(ROUND($B40*('C- GrossFTEs'!J40/'C- GrossFTEs'!$Z40),0),0) -> 0 | I40: =IFERROR(ROUND($B40*('C- GrossFTEs'!K40/'C- GrossFTEs'!$Z40),0),0) -> 0 | J40: =IFERROR(ROUND($B40*('C- GrossFTEs'!L40/'C- GrossFTEs'!$Z40),0),0) -> 0 | K40: =IFERROR(ROUND($B40*('C- GrossFTEs'!M40/'C- GrossFTEs'!$Z40),0),0) -> 0 | L40: =IFERROR(ROUND($B40*('C- GrossFTEs'!N40/'C- GrossFTEs'!$Z40),0),0) -> 0 | M40: =IFERROR(ROUND($B40*('C- GrossFTEs'!P40/'C- GrossFTEs'!$Z40),0),0) -> 0 | N40: =IFERROR(ROUND($B40*('C- GrossFTEs'!Q40/'C- GrossFTEs'!$Z40),0),0) -> 0 | O40: =IFERROR(ROUND($B40*('C- GrossFTEs'!S40/'C- GrossFTEs'!$Z40),0),0) -> 0 | P40: 0 | Q40: =IFERROR(ROUND($B40*('C- GrossFTEs'!X40/'C- GrossFTEs'!$Z40),0),0) -> 0
A41: =IF('C- GrossFTEs'!A41=0,"",'C- GrossFTEs'!A41) ->  | E41: =IFERROR(ROUND($B41*('C- GrossFTEs'!E41/'C- GrossFTEs'!$Z41),0),0) -> 0 | F41: =IFERROR(ROUND($B41*('C- GrossFTEs'!G41/'C- GrossFTEs'!$Z41),0),0) -> 0 | G41: =IFERROR(ROUND($B41*('C- GrossFTEs'!H41/'C- GrossFTEs'!$Z41),0),0) -> 0 | H41: =IFERROR(ROUND($B41*('C- GrossFTEs'!J41/'C- GrossFTEs'!$Z41),0),0) -> 0 | I41: =IFERROR(ROUND($B41*('C- GrossFTEs'!K41/'C- GrossFTEs'!$Z41),0),0) -> 0 | J41: =IFERROR(ROUND($B41*('C- GrossFTEs'!L41/'C- GrossFTEs'!$Z41),0),0) -> 0 | K41: =IFERROR(ROUND($B41*('C- GrossFTEs'!M41/'C- GrossFTEs'!$Z41),0),0) -> 0 | L41: =IFERROR(ROUND($B41*('C- GrossFTEs'!N41/'C- GrossFTEs'!$Z41),0),0) -> 0 | M41: =IFERROR(ROUND($B41*('C- GrossFTEs'!P41/'C- GrossFTEs'!$Z41),0),0) -> 0 | N41: =IFERROR(ROUND($B41*('C- GrossFTEs'!Q41/'C- GrossFTEs'!$Z41),0),0) -> 0 | O41: =IFERROR(ROUND($B41*('C- GrossFTEs'!S41/'C- GrossFTEs'!$Z41),0),0) -> 0 | P41: 0 | Q41: =IFERROR(ROUND($B41*('C- GrossFTEs'!X41/'C- GrossFTEs'!$Z41),0),0) -> 0
A42: =IF('C- GrossFTEs'!A42=0,"",'C- GrossFTEs'!A42) ->  | E42: =IFERROR(ROUND($B42*('C- GrossFTEs'!E42/'C- GrossFTEs'!$Z42),0),0) -> 0 | F42: =IFERROR(ROUND($B42*('C- GrossFTEs'!G42/'C- GrossFTEs'!$Z42),0),0) -> 0 | G42: =IFERROR(ROUND($B42*('C- GrossFTEs'!H42/'C- GrossFTEs'!$Z42),0),0) -> 0 | H42: =IFERROR(ROUND($B42*('C- GrossFTEs'!J42/'C- GrossFTEs'!$Z42),0),0) -> 0 | I42: =IFERROR(ROUND($B42*('C- GrossFTEs'!K42/'C- GrossFTEs'!$Z42),0),0) -> 0 | J42: =IFERROR(ROUND($B42*('C- GrossFTEs'!L42/'C- GrossFTEs'!$Z42),0),0) -> 0 | K42: =IFERROR(ROUND($B42*('C- GrossFTEs'!M42/'C- GrossFTEs'!$Z42),0),0) -> 0 | L42: =IFERROR(ROUND($B42*('C- GrossFTEs'!N42/'C- GrossFTEs'!$Z42),0),0) -> 0 | M42: =IFERROR(ROUND($B42*('C- GrossFTEs'!P42/'C- GrossFTEs'!$Z42),0),0) -> 0 | N42: =IFERROR(ROUND($B42*('C- GrossFTEs'!Q42/'C- GrossFTEs'!$Z42),0),0) -> 0 | O42: =IFERROR(ROUND($B42*('C- GrossFTEs'!S42/'C- GrossFTEs'!$Z42),0),0) -> 0 | P42: 0 | Q42: =IFERROR(ROUND($B42*('C- GrossFTEs'!X42/'C- GrossFTEs'!$Z42),0),0) -> 0
A43: =IF('C- GrossFTEs'!A43=0,"",'C- GrossFTEs'!A43) ->  | E43: =IFERROR(ROUND($B43*('C- GrossFTEs'!E43/'C- GrossFTEs'!$Z43),0),0) -> 0 | F43: =IFERROR(ROUND($B43*('C- GrossFTEs'!G43/'C- GrossFTEs'!$Z43),0),0) -> 0 | G43: =IFERROR(ROUND($B43*('C- GrossFTEs'!H43/'C- GrossFTEs'!$Z43),0),0) -> 0 | H43: =IFERROR(ROUND($B43*('C- GrossFTEs'!J43/'C- GrossFTEs'!$Z43),0),0) -> 0 | I43: =IFERROR(ROUND($B43*('C- GrossFTEs'!K43/'C- GrossFTEs'!$Z43),0),0) -> 0 | J43: =IFERROR(ROUND($B43*('C- GrossFTEs'!L43/'C- GrossFTEs'!$Z43),0),0) -> 0 | K43: =IFERROR(ROUND($B43*('C- GrossFTEs'!M43/'C- GrossFTEs'!$Z43),0),0) -> 0 | L43: =IFERROR(ROUND($B43*('C- GrossFTEs'!N43/'C- GrossFTEs'!$Z43),0),0) -> 0 | M43: =IFERROR(ROUND($B43*('C- GrossFTEs'!P43/'C- GrossFTEs'!$Z43),0),0) -> 0 | N43: =IFERROR(ROUND($B43*('C- GrossFTEs'!Q43/'C- GrossFTEs'!$Z43),0),0) -> 0 | O43: =IFERROR(ROUND($B43*('C- GrossFTEs'!S43/'C- GrossFTEs'!$Z43),0),0) -> 0 | P43: 0 | Q43: =IFERROR(ROUND($B43*('C- GrossFTEs'!X43/'C- GrossFTEs'!$Z43),0),0) -> 0
A44: =IF('C- GrossFTEs'!A44=0,"",'C- GrossFTEs'!A44) ->  | E44: =IFERROR(ROUND($B44*('C- GrossFTEs'!E44/'C- GrossFTEs'!$Z44),0),0) -> 0 | F44: =IFERROR(ROUND($B44*('C- GrossFTEs'!G44/'C- GrossFTEs'!$Z44),0),0) -> 0 | G44: =IFERROR(ROUND($B44*('C- GrossFTEs'!H44/'C- GrossFTEs'!$Z44),0),0) -> 0 | H44: =IFERROR(ROUND($B44*('C- GrossFTEs'!J44/'C- GrossFTEs'!$Z44),0),0) -> 0 | I44: =IFERROR(ROUND($B44*('C- GrossFTEs'!K44/'C- GrossFTEs'!$Z44),0),0) -> 0 | J44: =IFERROR(ROUND($B44*('C- GrossFTEs'!L44/'C- GrossFTEs'!$Z44),0),0) -> 0 | K44: =IFERROR(ROUND($B44*('C- GrossFTEs'!M44/'C- GrossFTEs'!$Z44),0),0) -> 0 | L44: =IFERROR(ROUND($B44*('C- GrossFTEs'!N44/'C- GrossFTEs'!$Z44),0),0) -> 0 | M44: =IFERROR(ROUND($B44*('C- GrossFTEs'!P44/'C- GrossFTEs'!$Z44),0),0) -> 0 | N44: =IFERROR(ROUND($B44*('C- GrossFTEs'!Q44/'C- GrossFTEs'!$Z44),0),0) -> 0 | O44: =IFERROR(ROUND($B44*('C- GrossFTEs'!S44/'C- GrossFTEs'!$Z44),0),0) -> 0 | P44: 0 | Q44: =IFERROR(ROUND($B44*('C- GrossFTEs'!X44/'C- GrossFTEs'!$Z44),0),0) -> 0
A45: =IF('C- GrossFTEs'!A45=0,"",'C- GrossFTEs'!A45) ->  | E45: =IFERROR(ROUND($B45*('C- GrossFTEs'!E45/'C- GrossFTEs'!$Z45),0),0) -> 0 | F45: =IFERROR(ROUND($B45*('C- GrossFTEs'!G45/'C- GrossFTEs'!$Z45),0),0) -> 0 | G45: =IFERROR(ROUND($B45*('C- GrossFTEs'!H45/'C- GrossFTEs'!$Z45),0),0) -> 0 | H45: =IFERROR(ROUND($B45*('C- GrossFTEs'!J45/'C- GrossFTEs'!$Z45),0),0) -> 0 | I45: =IFERROR(ROUND($B45*('C- GrossFTEs'!K45/'C- GrossFTEs'!$Z45),0),0) -> 0 | J45: =IFERROR(ROUND($B45*('C- GrossFTEs'!L45/'C- GrossFTEs'!$Z45),0),0) -> 0 | K45: =IFERROR(ROUND($B45*('C- GrossFTEs'!M45/'C- GrossFTEs'!$Z45),0),0) -> 0 | L45: =IFERROR(ROUND($B45*('C- GrossFTEs'!N45/'C- GrossFTEs'!$Z45),0),0) -> 0 | M45: =IFERROR(ROUND($B45*('C- GrossFTEs'!P45/'C- GrossFTEs'!$Z45),0),0) -> 0 | N45: =IFERROR(ROUND($B45*('C- GrossFTEs'!Q45/'C- GrossFTEs'!$Z45),0),0) -> 0 | O45: =IFERROR(ROUND($B45*('C- GrossFTEs'!S45/'C- GrossFTEs'!$Z45),0),0) -> 0 | P45: 0 | Q45: =IFERROR(ROUND($B45*('C- GrossFTEs'!X45/'C- GrossFTEs'!$Z45),0),0) -> 0
A46: =IF('C- GrossFTEs'!A46=0,"",'C- GrossFTEs'!A46) ->  | E46: =IFERROR(ROUND($B46*('C- GrossFTEs'!E46/'C- GrossFTEs'!$Z46),0),0) -> 0 | F46: =IFERROR(ROUND($B46*('C- GrossFTEs'!G46/'C- GrossFTEs'!$Z46),0),0) -> 0 | G46: =IFERROR(ROUND($B46*('C- GrossFTEs'!H46/'C- GrossFTEs'!$Z46),0),0) -> 0 | H46: =IFERROR(ROUND($B46*('C- GrossFTEs'!J46/'C- GrossFTEs'!$Z46),0),0) -> 0 | I46: =IFERROR(ROUND($B46*('C- GrossFTEs'!K46/'C- GrossFTEs'!$Z46),0),0) -> 0 | J46: =IFERROR(ROUND($B46*('C- GrossFTEs'!L46/'C- GrossFTEs'!$Z46),0),0) -> 0 | K46: =IFERROR(ROUND($B46*('C- GrossFTEs'!M46/'C- GrossFTEs'!$Z46),0),0) -> 0 | L46: =IFERROR(ROUND($B46*('C- GrossFTEs'!N46/'C- GrossFTEs'!$Z46),0),0) -> 0 | M46: =IFERROR(ROUND($B46*('C- GrossFTEs'!P46/'C- GrossFTEs'!$Z46),0),0) -> 0 | N46: =IFERROR(ROUND($B46*('C- GrossFTEs'!Q46/'C- GrossFTEs'!$Z46),0),0) -> 0 | O46: =IFERROR(ROUND($B46*('C- GrossFTEs'!S46/'C- GrossFTEs'!$Z46),0),0) -> 0 | P46: 0 | Q46: =IFERROR(ROUND($B46*('C- GrossFTEs'!X46/'C- GrossFTEs'!$Z46),0),0) -> 0
A47: =IF('C- GrossFTEs'!A47=0,"",'C- GrossFTEs'!A47) ->  | E47: =IFERROR(ROUND($B47*('C- GrossFTEs'!E47/'C- GrossFTEs'!$Z47),0),0) -> 0 | F47: =IFERROR(ROUND($B47*('C- GrossFTEs'!G47/'C- GrossFTEs'!$Z47),0),0) -> 0 | G47: =IFERROR(ROUND($B47*('C- GrossFTEs'!H47/'C- GrossFTEs'!$Z47),0),0) -> 0 | H47: =IFERROR(ROUND($B47*('C- GrossFTEs'!J47/'C- GrossFTEs'!$Z47),0),0) -> 0 | I47: =IFERROR(ROUND($B47*('C- GrossFTEs'!K47/'C- GrossFTEs'!$Z47),0),0) -> 0 | J47: =IFERROR(ROUND($B47*('C- GrossFTEs'!L47/'C- GrossFTEs'!$Z47),0),0) -> 0 | K47: =IFERROR(ROUND($B47*('C- GrossFTEs'!M47/'C- GrossFTEs'!$Z47),0),0) -> 0 | L47: =IFERROR(ROUND($B47*('C- GrossFTEs'!N47/'C- GrossFTEs'!$Z47),0),0) -> 0 | M47: =IFERROR(ROUND($B47*('C- GrossFTEs'!P47/'C- GrossFTEs'!$Z47),0),0) -> 0 | N47: =IFERROR(ROUND($B47*('C- GrossFTEs'!Q47/'C- GrossFTEs'!$Z47),0),0) -> 0 | O47: =IFERROR(ROUND($B47*('C- GrossFTEs'!S47/'C- GrossFTEs'!$Z47),0),0) -> 0 | P47: 0 | Q47: =IFERROR(ROUND($B47*('C- GrossFTEs'!X47/'C- GrossFTEs'!$Z47),0),0) -> 0
A48: =IF('C- GrossFTEs'!A48=0,"",'C- GrossFTEs'!A48) ->  | E48: =IFERROR(ROUND($B48*('C- GrossFTEs'!E48/'C- GrossFTEs'!$Z48),0),0) -> 0 | F48: =IFERROR(ROUND($B48*('C- GrossFTEs'!G48/'C- GrossFTEs'!$Z48),0),0) -> 0 | G48: =IFERROR(ROUND($B48*('C- GrossFTEs'!H48/'C- GrossFTEs'!$Z48),0),0) -> 0 | H48: =IFERROR(ROUND($B48*('C- GrossFTEs'!J48/'C- GrossFTEs'!$Z48),0),0) -> 0 | I48: =IFERROR(ROUND($B48*('C- GrossFTEs'!K48/'C- GrossFTEs'!$Z48),0),0) -> 0 | J48: =IFERROR(ROUND($B48*('C- GrossFTEs'!L48/'C- GrossFTEs'!$Z48),0),0) -> 0 | K48: =IFERROR(ROUND($B48*('C- GrossFTEs'!M48/'C- GrossFTEs'!$Z48),0),0) -> 0 | L48: =IFERROR(ROUND($B48*('C- GrossFTEs'!N48/'C- GrossFTEs'!$Z48),0),0) -> 0 | M48: =IFERROR(ROUND($B48*('C- GrossFTEs'!P48/'C- GrossFTEs'!$Z48),0),0) -> 0 | N48: =IFERROR(ROUND($B48*('C- GrossFTEs'!Q48/'C- GrossFTEs'!$Z48),0),0) -> 0 | O48: =IFERROR(ROUND($B48*('C- GrossFTEs'!S48/'C- GrossFTEs'!$Z48),0),0) -> 0 | P48: 0 | Q48: =IFERROR(ROUND($B48*('C- GrossFTEs'!X48/'C- GrossFTEs'!$Z48),0),0) -> 0
A49: =IF('C- GrossFTEs'!A49=0,"",'C- GrossFTEs'!A49) ->  | E49: =IFERROR(ROUND($B49*('C- GrossFTEs'!E49/'C- GrossFTEs'!$Z49),0),0) -> 0 | F49: =IFERROR(ROUND($B49*('C- GrossFTEs'!G49/'C- GrossFTEs'!$Z49),0),0) -> 0 | G49: =IFERROR(ROUND($B49*('C- GrossFTEs'!H49/'C- GrossFTEs'!$Z49),0),0) -> 0 | H49: =IFERROR(ROUND($B49*('C- GrossFTEs'!J49/'C- GrossFTEs'!$Z49),0),0) -> 0 | I49: =IFERROR(ROUND($B49*('C- GrossFTEs'!K49/'C- GrossFTEs'!$Z49),0),0) -> 0 | J49: =IFERROR(ROUND($B49*('C- GrossFTEs'!L49/'C- GrossFTEs'!$Z49),0),0) -> 0 | K49: =IFERROR(ROUND($B49*('C- GrossFTEs'!M49/'C- GrossFTEs'!$Z49),0),0) -> 0 | L49: =IFERROR(ROUND($B49*('C- GrossFTEs'!N49/'C- GrossFTEs'!$Z49),0),0) -> 0 | M49: =IFERROR(ROUND($B49*('C- GrossFTEs'!P49/'C- GrossFTEs'!$Z49),0),0) -> 0 | N49: =IFERROR(ROUND($B49*('C- GrossFTEs'!Q49/'C- GrossFTEs'!$Z49),0),0) -> 0 | O49: =IFERROR(ROUND($B49*('C- GrossFTEs'!S49/'C- GrossFTEs'!$Z49),0),0) -> 0 | P49: 0 | Q49: =IFERROR(ROUND($B49*('C- GrossFTEs'!X49/'C- GrossFTEs'!$Z49),0),0) -> 0
A50: =IF('C- GrossFTEs'!A50=0,"",'C- GrossFTEs'!A50) ->  | E50: =IFERROR(ROUND($B50*('C- GrossFTEs'!E50/'C- GrossFTEs'!$Z50),0),0) -> 0 | F50: =IFERROR(ROUND($B50*('C- GrossFTEs'!G50/'C- GrossFTEs'!$Z50),0),0) -> 0 | G50: =IFERROR(ROUND($B50*('C- GrossFTEs'!H50/'C- GrossFTEs'!$Z50),0),0) -> 0 | H50: =IFERROR(ROUND($B50*('C- GrossFTEs'!J50/'C- GrossFTEs'!$Z50),0),0) -> 0 | I50: =IFERROR(ROUND($B50*('C- GrossFTEs'!K50/'C- GrossFTEs'!$Z50),0),0) -> 0 | J50: =IFERROR(ROUND($B50*('C- GrossFTEs'!L50/'C- GrossFTEs'!$Z50),0),0) -> 0 | K50: =IFERROR(ROUND($B50*('C- GrossFTEs'!M50/'C- GrossFTEs'!$Z50),0),0) -> 0 | L50: =IFERROR(ROUND($B50*('C- GrossFTEs'!N50/'C- GrossFTEs'!$Z50),0),0) -> 0 | M50: =IFERROR(ROUND($B50*('C- GrossFTEs'!P50/'C- GrossFTEs'!$Z50),0),0) -> 0 | N50: =IFERROR(ROUND($B50*('C- GrossFTEs'!Q50/'C- GrossFTEs'!$Z50),0),0) -> 0 | O50: =IFERROR(ROUND($B50*('C- GrossFTEs'!S50/'C- GrossFTEs'!$Z50),0),0) -> 0 | P50: 0 | Q50: =IFERROR(ROUND($B50*('C- GrossFTEs'!X50/'C- GrossFTEs'!$Z50),0),0) -> 0
A51: =IF('C- GrossFTEs'!A51=0,"",'C- GrossFTEs'!A51) ->  | E51: =IFERROR(ROUND($B51*('C- GrossFTEs'!E51/'C- GrossFTEs'!$Z51),0),0) -> 0 | F51: =IFERROR(ROUND($B51*('C- GrossFTEs'!G51/'C- GrossFTEs'!$Z51),0),0) -> 0 | G51: =IFERROR(ROUND($B51*('C- GrossFTEs'!H51/'C- GrossFTEs'!$Z51),0),0) -> 0 | H51: =IFERROR(ROUND($B51*('C- GrossFTEs'!J51/'C- GrossFTEs'!$Z51),0),0) -> 0 | I51: =IFERROR(ROUND($B51*('C- GrossFTEs'!K51/'C- GrossFTEs'!$Z51),0),0) -> 0 | J51: =IFERROR(ROUND($B51*('C- GrossFTEs'!L51/'C- GrossFTEs'!$Z51),0),0) -> 0 | K51: =IFERROR(ROUND($B51*('C- GrossFTEs'!M51/'C- GrossFTEs'!$Z51),0),0) -> 0 | L51: =IFERROR(ROUND($B51*('C- GrossFTEs'!N51/'C- GrossFTEs'!$Z51),0),0) -> 0 | M51: =IFERROR(ROUND($B51*('C- GrossFTEs'!P51/'C- GrossFTEs'!$Z51),0),0) -> 0 | N51: =IFERROR(ROUND($B51*('C- GrossFTEs'!Q51/'C- GrossFTEs'!$Z51),0),0) -> 0 | O51: =IFERROR(ROUND($B51*('C- GrossFTEs'!S51/'C- GrossFTEs'!$Z51),0),0) -> 0 | P51: 0 | Q51: =IFERROR(ROUND($B51*('C- GrossFTEs'!X51/'C- GrossFTEs'!$Z51),0),0) -> 0
A52: =IF('C- GrossFTEs'!A52=0,"",'C- GrossFTEs'!A52) ->  | E52: =IFERROR(ROUND($B52*('C- GrossFTEs'!E52/'C- GrossFTEs'!$Z52),0),0) -> 0 | F52: =IFERROR(ROUND($B52*('C- GrossFTEs'!G52/'C- GrossFTEs'!$Z52),0),0) -> 0 | G52: =IFERROR(ROUND($B52*('C- GrossFTEs'!H52/'C- GrossFTEs'!$Z52),0),0) -> 0 | H52: =IFERROR(ROUND($B52*('C- GrossFTEs'!J52/'C- GrossFTEs'!$Z52),0),0) -> 0 | I52: =IFERROR(ROUND($B52*('C- GrossFTEs'!K52/'C- GrossFTEs'!$Z52),0),0) -> 0 | J52: =IFERROR(ROUND($B52*('C- GrossFTEs'!L52/'C- GrossFTEs'!$Z52),0),0) -> 0 | K52: =IFERROR(ROUND($B52*('C- GrossFTEs'!M52/'C- GrossFTEs'!$Z52),0),0) -> 0 | L52: =IFERROR(ROUND($B52*('C- GrossFTEs'!N52/'C- GrossFTEs'!$Z52),0),0) -> 0 | M52: =IFERROR(ROUND($B52*('C- GrossFTEs'!P52/'C- GrossFTEs'!$Z52),0),0) -> 0 | N52: =IFERROR(ROUND($B52*('C- GrossFTEs'!Q52/'C- GrossFTEs'!$Z52),0),0) -> 0 | O52: =IFERROR(ROUND($B52*('C- GrossFTEs'!S52/'C- GrossFTEs'!$Z52),0),0) -> 0 | P52: 0 | Q52: =IFERROR(ROUND($B52*('C- GrossFTEs'!X52/'C- GrossFTEs'!$Z52),0),0) -> 0
A53: =IF('C- GrossFTEs'!A53=0,"",'C- GrossFTEs'!A53) ->  | E53: =IFERROR(ROUND($B53*('C- GrossFTEs'!E53/'C- GrossFTEs'!$Z53),0),0) -> 0 | F53: =IFERROR(ROUND($B53*('C- GrossFTEs'!G53/'C- GrossFTEs'!$Z53),0),0) -> 0 | G53: =IFERROR(ROUND($B53*('C- GrossFTEs'!H53/'C- GrossFTEs'!$Z53),0),0) -> 0 | H53: =IFERROR(ROUND($B53*('C- GrossFTEs'!J53/'C- GrossFTEs'!$Z53),0),0) -> 0 | I53: =IFERROR(ROUND($B53*('C- GrossFTEs'!K53/'C- GrossFTEs'!$Z53),0),0) -> 0 | J53: =IFERROR(ROUND($B53*('C- GrossFTEs'!L53/'C- GrossFTEs'!$Z53),0),0) -> 0 | K53: =IFERROR(ROUND($B53*('C- GrossFTEs'!M53/'C- GrossFTEs'!$Z53),0),0) -> 0 | L53: =IFERROR(ROUND($B53*('C- GrossFTEs'!N53/'C- GrossFTEs'!$Z53),0),0) -> 0 | M53: =IFERROR(ROUND($B53*('C- GrossFTEs'!P53/'C- GrossFTEs'!$Z53),0),0) -> 0 | N53: =IFERROR(ROUND($B53*('C- GrossFTEs'!Q53/'C- GrossFTEs'!$Z53),0),0) -> 0 | O53: =IFERROR(ROUND($B53*('C- GrossFTEs'!S53/'C- GrossFTEs'!$Z53),0),0) -> 0 | P53: 0 | Q53: =IFERROR(ROUND($B53*('C- GrossFTEs'!X53/'C- GrossFTEs'!$Z53),0),0) -> 0
A54: =IF('C- GrossFTEs'!A54=0,"",'C- GrossFTEs'!A54) ->  | E54: =IFERROR(ROUND($B54*('C- GrossFTEs'!E54/'C- GrossFTEs'!$Z54),0),0) -> 0 | F54: =IFERROR(ROUND($B54*('C- GrossFTEs'!G54/'C- GrossFTEs'!$Z54),0),0) -> 0 | G54: =IFERROR(ROUND($B54*('C- GrossFTEs'!H54/'C- GrossFTEs'!$Z54),0),0) -> 0 | H54: =IFERROR(ROUND($B54*('C- GrossFTEs'!J54/'C- GrossFTEs'!$Z54),0),0) -> 0 | I54: =IFERROR(ROUND($B54*('C- GrossFTEs'!K54/'C- GrossFTEs'!$Z54),0),0) -> 0 | J54: =IFERROR(ROUND($B54*('C- GrossFTEs'!L54/'C- GrossFTEs'!$Z54),0),0) -> 0 | K54: =IFERROR(ROUND($B54*('C- GrossFTEs'!M54/'C- GrossFTEs'!$Z54),0),0) -> 0 | L54: =IFERROR(ROUND($B54*('C- GrossFTEs'!N54/'C- GrossFTEs'!$Z54),0),0) -> 0 | M54: =IFERROR(ROUND($B54*('C- GrossFTEs'!P54/'C- GrossFTEs'!$Z54),0),0) -> 0 | N54: =IFERROR(ROUND($B54*('C- GrossFTEs'!Q54/'C- GrossFTEs'!$Z54),0),0) -> 0 | O54: =IFERROR(ROUND($B54*('C- GrossFTEs'!S54/'C- GrossFTEs'!$Z54),0),0) -> 0 | P54: 0 | Q54: =IFERROR(ROUND($B54*('C- GrossFTEs'!X54/'C- GrossFTEs'!$Z54),0),0) -> 0
A55: =IF('C- GrossFTEs'!A55=0,"",'C- GrossFTEs'!A55) ->  | E55: =IFERROR(ROUND($B55*('C- GrossFTEs'!E55/'C- GrossFTEs'!$Z55),0),0) -> 0 | F55: =IFERROR(ROUND($B55*('C- GrossFTEs'!G55/'C- GrossFTEs'!$Z55),0),0) -> 0 | G55: =IFERROR(ROUND($B55*('C- GrossFTEs'!H55/'C- GrossFTEs'!$Z55),0),0) -> 0 | H55: =IFERROR(ROUND($B55*('C- GrossFTEs'!J55/'C- GrossFTEs'!$Z55),0),0) -> 0 | I55: =IFERROR(ROUND($B55*('C- GrossFTEs'!K55/'C- GrossFTEs'!$Z55),0),0) -> 0 | J55: =IFERROR(ROUND($B55*('C- GrossFTEs'!L55/'C- GrossFTEs'!$Z55),0),0) -> 0 | K55: =IFERROR(ROUND($B55*('C- GrossFTEs'!M55/'C- GrossFTEs'!$Z55),0),0) -> 0 | L55: =IFERROR(ROUND($B55*('C- GrossFTEs'!N55/'C- GrossFTEs'!$Z55),0),0) -> 0 | M55: =IFERROR(ROUND($B55*('C- GrossFTEs'!P55/'C- GrossFTEs'!$Z55),0),0) -> 0 | N55: =IFERROR(ROUND($B55*('C- GrossFTEs'!Q55/'C- GrossFTEs'!$Z55),0),0) -> 0 | O55: =IFERROR(ROUND($B55*('C- GrossFTEs'!S55/'C- GrossFTEs'!$Z55),0),0) -> 0 | P55: 0 | Q55: =IFERROR(ROUND($B55*('C- GrossFTEs'!X55/'C- GrossFTEs'!$Z55),0),0) -> 0
A56: =IF('C- GrossFTEs'!A56=0,"",'C- GrossFTEs'!A56) ->  | E56: =IFERROR(ROUND($B56*('C- GrossFTEs'!E56/'C- GrossFTEs'!$Z56),0),0) -> 0 | F56: =IFERROR(ROUND($B56*('C- GrossFTEs'!G56/'C- GrossFTEs'!$Z56),0),0) -> 0 | G56: =IFERROR(ROUND($B56*('C- GrossFTEs'!H56/'C- GrossFTEs'!$Z56),0),0) -> 0 | H56: =IFERROR(ROUND($B56*('C- GrossFTEs'!J56/'C- GrossFTEs'!$Z56),0),0) -> 0 | I56: =IFERROR(ROUND($B56*('C- GrossFTEs'!K56/'C- GrossFTEs'!$Z56),0),0) -> 0 | J56: =IFERROR(ROUND($B56*('C- GrossFTEs'!L56/'C- GrossFTEs'!$Z56),0),0) -> 0 | K56: =IFERROR(ROUND($B56*('C- GrossFTEs'!M56/'C- GrossFTEs'!$Z56),0),0) -> 0 | L56: =IFERROR(ROUND($B56*('C- GrossFTEs'!N56/'C- GrossFTEs'!$Z56),0),0) -> 0 | M56: =IFERROR(ROUND($B56*('C- GrossFTEs'!P56/'C- GrossFTEs'!$Z56),0),0) -> 0 | N56: =IFERROR(ROUND($B56*('C- GrossFTEs'!Q56/'C- GrossFTEs'!$Z56),0),0) -> 0 | O56: =IFERROR(ROUND($B56*('C- GrossFTEs'!S56/'C- GrossFTEs'!$Z56),0),0) -> 0 | P56: 0 | Q56: =IFERROR(ROUND($B56*('C- GrossFTEs'!X56/'C- GrossFTEs'!$Z56),0),0) -> 0
A57: =IF('C- GrossFTEs'!A57=0,"",'C- GrossFTEs'!A57) ->  | E57: =IFERROR(ROUND($B57*('C- GrossFTEs'!E57/'C- GrossFTEs'!$Z57),0),0) -> 0 | F57: =IFERROR(ROUND($B57*('C- GrossFTEs'!G57/'C- GrossFTEs'!$Z57),0),0) -> 0 | G57: =IFERROR(ROUND($B57*('C- GrossFTEs'!H57/'C- GrossFTEs'!$Z57),0),0) -> 0 | H57: =IFERROR(ROUND($B57*('C- GrossFTEs'!J57/'C- GrossFTEs'!$Z57),0),0) -> 0 | I57: =IFERROR(ROUND($B57*('C- GrossFTEs'!K57/'C- GrossFTEs'!$Z57),0),0) -> 0 | J57: =IFERROR(ROUND($B57*('C- GrossFTEs'!L57/'C- GrossFTEs'!$Z57),0),0) -> 0 | K57: =IFERROR(ROUND($B57*('C- GrossFTEs'!M57/'C- GrossFTEs'!$Z57),0),0) -> 0 | L57: =IFERROR(ROUND($B57*('C- GrossFTEs'!N57/'C- GrossFTEs'!$Z57),0),0) -> 0 | M57: =IFERROR(ROUND($B57*('C- GrossFTEs'!P57/'C- GrossFTEs'!$Z57),0),0) -> 0 | N57: =IFERROR(ROUND($B57*('C- GrossFTEs'!Q57/'C- GrossFTEs'!$Z57),0),0) -> 0 | O57: =IFERROR(ROUND($B57*('C- GrossFTEs'!S57/'C- GrossFTEs'!$Z57),0),0) -> 0 | P57: 0 | Q57: =IFERROR(ROUND($B57*('C- GrossFTEs'!X57/'C- GrossFTEs'!$Z57),0),0) -> 0
A58: =IF('C- GrossFTEs'!A58=0,"",'C- GrossFTEs'!A58) ->  | E58: =IFERROR(ROUND($B58*('C- GrossFTEs'!E58/'C- GrossFTEs'!$Z58),0),0) -> 0 | F58: =IFERROR(ROUND($B58*('C- GrossFTEs'!G58/'C- GrossFTEs'!$Z58),0),0) -> 0 | G58: =IFERROR(ROUND($B58*('C- GrossFTEs'!H58/'C- GrossFTEs'!$Z58),0),0) -> 0 | H58: =IFERROR(ROUND($B58*('C- GrossFTEs'!J58/'C- GrossFTEs'!$Z58),0),0) -> 0 | I58: =IFERROR(ROUND($B58*('C- GrossFTEs'!K58/'C- GrossFTEs'!$Z58),0),0) -> 0 | J58: =IFERROR(ROUND($B58*('C- GrossFTEs'!L58/'C- GrossFTEs'!$Z58),0),0) -> 0 | K58: =IFERROR(ROUND($B58*('C- GrossFTEs'!M58/'C- GrossFTEs'!$Z58),0),0) -> 0 | L58: =IFERROR(ROUND($B58*('C- GrossFTEs'!N58/'C- GrossFTEs'!$Z58),0),0) -> 0 | M58: =IFERROR(ROUND($B58*('C- GrossFTEs'!P58/'C- GrossFTEs'!$Z58),0),0) -> 0 | N58: =IFERROR(ROUND($B58*('C- GrossFTEs'!Q58/'C- GrossFTEs'!$Z58),0),0) -> 0 | O58: =IFERROR(ROUND($B58*('C- GrossFTEs'!S58/'C- GrossFTEs'!$Z58),0),0) -> 0 | P58: 0 | Q58: =IFERROR(ROUND($B58*('C- GrossFTEs'!X58/'C- GrossFTEs'!$Z58),0),0) -> 0
A59: =IF('C- GrossFTEs'!A59=0,"",'C- GrossFTEs'!A59) ->  | E59: =IFERROR(ROUND($B59*('C- GrossFTEs'!E59/'C- GrossFTEs'!$Z59),0),0) -> 0 | F59: =IFERROR(ROUND($B59*('C- GrossFTEs'!G59/'C- GrossFTEs'!$Z59),0),0) -> 0 | G59: =IFERROR(ROUND($B59*('C- GrossFTEs'!H59/'C- GrossFTEs'!$Z59),0),0) -> 0 | H59: =IFERROR(ROUND($B59*('C- GrossFTEs'!J59/'C- GrossFTEs'!$Z59),0),0) -> 0 | I59: =IFERROR(ROUND($B59*('C- GrossFTEs'!K59/'C- GrossFTEs'!$Z59),0),0) -> 0 | J59: =IFERROR(ROUND($B59*('C- GrossFTEs'!L59/'C- GrossFTEs'!$Z59),0),0) -> 0 | K59: =IFERROR(ROUND($B59*('C- GrossFTEs'!M59/'C- GrossFTEs'!$Z59),0),0) -> 0 | L59: =IFERROR(ROUND($B59*('C- GrossFTEs'!N59/'C- GrossFTEs'!$Z59),0),0) -> 0 | M59: =IFERROR(ROUND($B59*('C- GrossFTEs'!P59/'C- GrossFTEs'!$Z59),0),0) -> 0 | N59: =IFERROR(ROUND($B59*('C- GrossFTEs'!Q59/'C- GrossFTEs'!$Z59),0),0) -> 0 | O59: =IFERROR(ROUND($B59*('C- GrossFTEs'!S59/'C- GrossFTEs'!$Z59),0),0) -> 0 | P59: 0 | Q59: =IFERROR(ROUND($B59*('C- GrossFTEs'!X59/'C- GrossFTEs'!$Z59),0),0) -> 0
A60: =IF('C- GrossFTEs'!A60=0,"",'C- GrossFTEs'!A60) ->  | E60: =IFERROR(ROUND($B60*('C- GrossFTEs'!E60/'C- GrossFTEs'!$Z60),0),0) -> 0 | F60: =IFERROR(ROUND($B60*('C- GrossFTEs'!G60/'C- GrossFTEs'!$Z60),0),0) -> 0 | G60: =IFERROR(ROUND($B60*('C- GrossFTEs'!H60/'C- GrossFTEs'!$Z60),0),0) -> 0 | H60: =IFERROR(ROUND($B60*('C- GrossFTEs'!J60/'C- GrossFTEs'!$Z60),0),0) -> 0 | I60: =IFERROR(ROUND($B60*('C- GrossFTEs'!K60/'C- GrossFTEs'!$Z60),0),0) -> 0 | J60: =IFERROR(ROUND($B60*('C- GrossFTEs'!L60/'C- GrossFTEs'!$Z60),0),0) -> 0 | K60: =IFERROR(ROUND($B60*('C- GrossFTEs'!M60/'C- GrossFTEs'!$Z60),0),0) -> 0 | L60: =IFERROR(ROUND($B60*('C- GrossFTEs'!N60/'C- GrossFTEs'!$Z60),0),0) -> 0 | M60: =IFERROR(ROUND($B60*('C- GrossFTEs'!P60/'C- GrossFTEs'!$Z60),0),0) -> 0 | N60: =IFERROR(ROUND($B60*('C- GrossFTEs'!Q60/'C- GrossFTEs'!$Z60),0),0) -> 0 | O60: =IFERROR(ROUND($B60*('C- GrossFTEs'!S60/'C- GrossFTEs'!$Z60),0),0) -> 0 | P60: 0 | Q60: =IFERROR(ROUND($B60*('C- GrossFTEs'!X60/'C- GrossFTEs'!$Z60),0),0) -> 0
A61: =IF('C- GrossFTEs'!A61=0,"",'C- GrossFTEs'!A61) ->  | E61: =IFERROR(ROUND($B61*('C- GrossFTEs'!E61/'C- GrossFTEs'!$Z61),0),0) -> 0 | F61: =IFERROR(ROUND($B61*('C- GrossFTEs'!G61/'C- GrossFTEs'!$Z61),0),0) -> 0 | G61: =IFERROR(ROUND($B61*('C- GrossFTEs'!H61/'C- GrossFTEs'!$Z61),0),0) -> 0 | H61: =IFERROR(ROUND($B61*('C- GrossFTEs'!J61/'C- GrossFTEs'!$Z61),0),0) -> 0 | I61: =IFERROR(ROUND($B61*('C- GrossFTEs'!K61/'C- GrossFTEs'!$Z61),0),0) -> 0 | J61: =IFERROR(ROUND($B61*('C- GrossFTEs'!L61/'C- GrossFTEs'!$Z61),0),0) -> 0 | K61: =IFERROR(ROUND($B61*('C- GrossFTEs'!M61/'C- GrossFTEs'!$Z61),0),0) -> 0 | L61: =IFERROR(ROUND($B61*('C- GrossFTEs'!N61/'C- GrossFTEs'!$Z61),0),0) -> 0 | M61: =IFERROR(ROUND($B61*('C- GrossFTEs'!P61/'C- GrossFTEs'!$Z61),0),0) -> 0 | N61: =IFERROR(ROUND($B61*('C- GrossFTEs'!Q61/'C- GrossFTEs'!$Z61),0),0) -> 0 | O61: =IFERROR(ROUND($B61*('C- GrossFTEs'!S61/'C- GrossFTEs'!$Z61),0),0) -> 0 | P61: 0 | Q61: =IFERROR(ROUND($B61*('C- GrossFTEs'!X61/'C- GrossFTEs'!$Z61),0),0) -> 0
A62: =IF('C- GrossFTEs'!A62=0,"",'C- GrossFTEs'!A62) ->  | E62: =IFERROR(ROUND($B62*('C- GrossFTEs'!E62/'C- GrossFTEs'!$Z62),0),0) -> 0 | F62: =IFERROR(ROUND($B62*('C- GrossFTEs'!G62/'C- GrossFTEs'!$Z62),0),0) -> 0 | G62: =IFERROR(ROUND($B62*('C- GrossFTEs'!H62/'C- GrossFTEs'!$Z62),0),0) -> 0 | H62: =IFERROR(ROUND($B62*('C- GrossFTEs'!J62/'C- GrossFTEs'!$Z62),0),0) -> 0 | I62: =IFERROR(ROUND($B62*('C- GrossFTEs'!K62/'C- GrossFTEs'!$Z62),0),0) -> 0 | J62: =IFERROR(ROUND($B62*('C- GrossFTEs'!L62/'C- GrossFTEs'!$Z62),0),0) -> 0 | K62: =IFERROR(ROUND($B62*('C- GrossFTEs'!M62/'C- GrossFTEs'!$Z62),0),0) -> 0 | L62: =IFERROR(ROUND($B62*('C- GrossFTEs'!N62/'C- GrossFTEs'!$Z62),0),0) -> 0 | M62: =IFERROR(ROUND($B62*('C- GrossFTEs'!P62/'C- GrossFTEs'!$Z62),0),0) -> 0 | N62: =IFERROR(ROUND($B62*('C- GrossFTEs'!Q62/'C- GrossFTEs'!$Z62),0),0) -> 0 | O62: =IFERROR(ROUND($B62*('C- GrossFTEs'!S62/'C- GrossFTEs'!$Z62),0),0) -> 0 | P62: 0 | Q62: =IFERROR(ROUND($B62*('C- GrossFTEs'!X62/'C- GrossFTEs'!$Z62),0),0) -> 0
A63: =IF('C- GrossFTEs'!A63=0,"",'C- GrossFTEs'!A63) ->  | E63: =IFERROR(ROUND($B63*('C- GrossFTEs'!E63/'C- GrossFTEs'!$Z63),0),0) -> 0 | F63: =IFERROR(ROUND($B63*('C- GrossFTEs'!G63/'C- GrossFTEs'!$Z63),0),0) -> 0 | G63: =IFERROR(ROUND($B63*('C- GrossFTEs'!H63/'C- GrossFTEs'!$Z63),0),0) -> 0 | H63: =IFERROR(ROUND($B63*('C- GrossFTEs'!J63/'C- GrossFTEs'!$Z63),0),0) -> 0 | I63: =IFERROR(ROUND($B63*('C- GrossFTEs'!K63/'C- GrossFTEs'!$Z63),0),0) -> 0 | J63: =IFERROR(ROUND($B63*('C- GrossFTEs'!L63/'C- GrossFTEs'!$Z63),0),0) -> 0 | K63: =IFERROR(ROUND($B63*('C- GrossFTEs'!M63/'C- GrossFTEs'!$Z63),0),0) -> 0 | L63: =IFERROR(ROUND($B63*('C- GrossFTEs'!N63/'C- GrossFTEs'!$Z63),0),0) -> 0 | M63: =IFERROR(ROUND($B63*('C- GrossFTEs'!P63/'C- GrossFTEs'!$Z63),0),0) -> 0 | N63: =IFERROR(ROUND($B63*('C- GrossFTEs'!Q63/'C- GrossFTEs'!$Z63),0),0) -> 0 | O63: =IFERROR(ROUND($B63*('C- GrossFTEs'!S63/'C- GrossFTEs'!$Z63),0),0) -> 0 | P63: 0 | Q63: =IFERROR(ROUND($B63*('C- GrossFTEs'!X63/'C- GrossFTEs'!$Z63),0),0) -> 0
A64: =IF('C- GrossFTEs'!A64=0,"",'C- GrossFTEs'!A64) ->  | E64: =IFERROR(ROUND($B64*('C- GrossFTEs'!E64/'C- GrossFTEs'!$Z64),0),0) -> 0 | F64: =IFERROR(ROUND($B64*('C- GrossFTEs'!G64/'C- GrossFTEs'!$Z64),0),0) -> 0 | G64: =IFERROR(ROUND($B64*('C- GrossFTEs'!H64/'C- GrossFTEs'!$Z64),0),0) -> 0 | H64: =IFERROR(ROUND($B64*('C- GrossFTEs'!J64/'C- GrossFTEs'!$Z64),0),0) -> 0 | I64: =IFERROR(ROUND($B64*('C- GrossFTEs'!K64/'C- GrossFTEs'!$Z64),0),0) -> 0 | J64: =IFERROR(ROUND($B64*('C- GrossFTEs'!L64/'C- GrossFTEs'!$Z64),0),0) -> 0 | K64: =IFERROR(ROUND($B64*('C- GrossFTEs'!M64/'C- GrossFTEs'!$Z64),0),0) -> 0 | L64: =IFERROR(ROUND($B64*('C- GrossFTEs'!N64/'C- GrossFTEs'!$Z64),0),0) -> 0 | M64: =IFERROR(ROUND($B64*('C- GrossFTEs'!P64/'C- GrossFTEs'!$Z64),0),0) -> 0 | N64: =IFERROR(ROUND($B64*('C- GrossFTEs'!Q64/'C- GrossFTEs'!$Z64),0),0) -> 0 | O64: =IFERROR(ROUND($B64*('C- GrossFTEs'!S64/'C- GrossFTEs'!$Z64),0),0) -> 0 | P64: 0 | Q64: =IFERROR(ROUND($B64*('C- GrossFTEs'!X64/'C- GrossFTEs'!$Z64),0),0) -> 0
A65: =IF('C- GrossFTEs'!A65=0,"",'C- GrossFTEs'!A65) ->  | E65: =IFERROR(ROUND($B65*('C- GrossFTEs'!E65/'C- GrossFTEs'!$Z65),0),0) -> 0 | F65: =IFERROR(ROUND($B65*('C- GrossFTEs'!G65/'C- GrossFTEs'!$Z65),0),0) -> 0 | G65: =IFERROR(ROUND($B65*('C- GrossFTEs'!H65/'C- GrossFTEs'!$Z65),0),0) -> 0 | H65: =IFERROR(ROUND($B65*('C- GrossFTEs'!J65/'C- GrossFTEs'!$Z65),0),0) -> 0 | I65: =IFERROR(ROUND($B65*('C- GrossFTEs'!K65/'C- GrossFTEs'!$Z65),0),0) -> 0 | J65: =IFERROR(ROUND($B65*('C- GrossFTEs'!L65/'C- GrossFTEs'!$Z65),0),0) -> 0 | K65: =IFERROR(ROUND($B65*('C- GrossFTEs'!M65/'C- GrossFTEs'!$Z65),0),0) -> 0 | L65: =IFERROR(ROUND($B65*('C- GrossFTEs'!N65/'C- GrossFTEs'!$Z65),0),0) -> 0 | M65: =IFERROR(ROUND($B65*('C- GrossFTEs'!P65/'C- GrossFTEs'!$Z65),0),0) -> 0 | N65: =IFERROR(ROUND($B65*('C- GrossFTEs'!Q65/'C- GrossFTEs'!$Z65),0),0) -> 0 | O65: =IFERROR(ROUND($B65*('C- GrossFTEs'!S65/'C- GrossFTEs'!$Z65),0),0) -> 0 | P65: 0 | Q65: =IFERROR(ROUND($B65*('C- GrossFTEs'!X65/'C- GrossFTEs'!$Z65),0),0) -> 0
A66: =IF('C- GrossFTEs'!A66=0,"",'C- GrossFTEs'!A66) ->  | E66: =IFERROR(ROUND($B66*('C- GrossFTEs'!E66/'C- GrossFTEs'!$Z66),0),0) -> 0 | F66: =IFERROR(ROUND($B66*('C- GrossFTEs'!G66/'C- GrossFTEs'!$Z66),0),0) -> 0 | G66: =IFERROR(ROUND($B66*('C- GrossFTEs'!H66/'C- GrossFTEs'!$Z66),0),0) -> 0 | H66: =IFERROR(ROUND($B66*('C- GrossFTEs'!J66/'C- GrossFTEs'!$Z66),0),0) -> 0 | I66: =IFERROR(ROUND($B66*('C- GrossFTEs'!K66/'C- GrossFTEs'!$Z66),0),0) -> 0 | J66: =IFERROR(ROUND($B66*('C- GrossFTEs'!L66/'C- GrossFTEs'!$Z66),0),0) -> 0 | K66: =IFERROR(ROUND($B66*('C- GrossFTEs'!M66/'C- GrossFTEs'!$Z66),0),0) -> 0 | L66: =IFERROR(ROUND($B66*('C- GrossFTEs'!N66/'C- GrossFTEs'!$Z66),0),0) -> 0 | M66: =IFERROR(ROUND($B66*('C- GrossFTEs'!P66/'C- GrossFTEs'!$Z66),0),0) -> 0 | N66: =IFERROR(ROUND($B66*('C- GrossFTEs'!Q66/'C- GrossFTEs'!$Z66),0),0) -> 0 | O66: =IFERROR(ROUND($B66*('C- GrossFTEs'!S66/'C- GrossFTEs'!$Z66),0),0) -> 0 | P66: 0 | Q66: =IFERROR(ROUND($B66*('C- GrossFTEs'!X66/'C- GrossFTEs'!$Z66),0),0) -> 0
A67: =IF('C- GrossFTEs'!A67=0,"",'C- GrossFTEs'!A67) ->  | E67: =IFERROR(ROUND($B67*('C- GrossFTEs'!E67/'C- GrossFTEs'!$Z67),0),0) -> 0 | F67: =IFERROR(ROUND($B67*('C- GrossFTEs'!G67/'C- GrossFTEs'!$Z67),0),0) -> 0 | G67: =IFERROR(ROUND($B67*('C- GrossFTEs'!H67/'C- GrossFTEs'!$Z67),0),0) -> 0 | H67: =IFERROR(ROUND($B67*('C- GrossFTEs'!J67/'C- GrossFTEs'!$Z67),0),0) -> 0 | I67: =IFERROR(ROUND($B67*('C- GrossFTEs'!K67/'C- GrossFTEs'!$Z67),0),0) -> 0 | J67: =IFERROR(ROUND($B67*('C- GrossFTEs'!L67/'C- GrossFTEs'!$Z67),0),0) -> 0 | K67: =IFERROR(ROUND($B67*('C- GrossFTEs'!M67/'C- GrossFTEs'!$Z67),0),0) -> 0 | L67: =IFERROR(ROUND($B67*('C- GrossFTEs'!N67/'C- GrossFTEs'!$Z67),0),0) -> 0 | M67: =IFERROR(ROUND($B67*('C- GrossFTEs'!P67/'C- GrossFTEs'!$Z67),0),0) -> 0 | N67: =IFERROR(ROUND($B67*('C- GrossFTEs'!Q67/'C- GrossFTEs'!$Z67),0),0) -> 0 | O67: =IFERROR(ROUND($B67*('C- GrossFTEs'!S67/'C- GrossFTEs'!$Z67),0),0) -> 0 | P67: 0 | Q67: =IFERROR(ROUND($B67*('C- GrossFTEs'!X67/'C- GrossFTEs'!$Z67),0),0) -> 0
A68: =IF('C- GrossFTEs'!A68=0,"",'C- GrossFTEs'!A68) ->  | E68: =IFERROR(ROUND($B68*('C- GrossFTEs'!E68/'C- GrossFTEs'!$Z68),0),0) -> 0 | F68: =IFERROR(ROUND($B68*('C- GrossFTEs'!G68/'C- GrossFTEs'!$Z68),0),0) -> 0 | G68: =IFERROR(ROUND($B68*('C- GrossFTEs'!H68/'C- GrossFTEs'!$Z68),0),0) -> 0 | H68: =IFERROR(ROUND($B68*('C- GrossFTEs'!J68/'C- GrossFTEs'!$Z68),0),0) -> 0 | I68: =IFERROR(ROUND($B68*('C- GrossFTEs'!K68/'C- GrossFTEs'!$Z68),0),0) -> 0 | J68: =IFERROR(ROUND($B68*('C- GrossFTEs'!L68/'C- GrossFTEs'!$Z68),0),0) -> 0 | K68: =IFERROR(ROUND($B68*('C- GrossFTEs'!M68/'C- GrossFTEs'!$Z68),0),0) -> 0 | L68: =IFERROR(ROUND($B68*('C- GrossFTEs'!N68/'C- GrossFTEs'!$Z68),0),0) -> 0 | M68: =IFERROR(ROUND($B68*('C- GrossFTEs'!P68/'C- GrossFTEs'!$Z68),0),0) -> 0 | N68: =IFERROR(ROUND($B68*('C- GrossFTEs'!Q68/'C- GrossFTEs'!$Z68),0),0) -> 0 | O68: =IFERROR(ROUND($B68*('C- GrossFTEs'!S68/'C- GrossFTEs'!$Z68),0),0) -> 0 | P68: 0 | Q68: =IFERROR(ROUND($B68*('C- GrossFTEs'!X68/'C- GrossFTEs'!$Z68),0),0) -> 0
A69: =IF('C- GrossFTEs'!A69=0,"",'C- GrossFTEs'!A69) ->  | E69: =IFERROR(ROUND($B69*('C- GrossFTEs'!E69/'C- GrossFTEs'!$Z69),0),0) -> 0 | F69: =IFERROR(ROUND($B69*('C- GrossFTEs'!G69/'C- GrossFTEs'!$Z69),0),0) -> 0 | G69: =IFERROR(ROUND($B69*('C- GrossFTEs'!H69/'C- GrossFTEs'!$Z69),0),0) -> 0 | H69: =IFERROR(ROUND($B69*('C- GrossFTEs'!J69/'C- GrossFTEs'!$Z69),0),0) -> 0 | I69: =IFERROR(ROUND($B69*('C- GrossFTEs'!K69/'C- GrossFTEs'!$Z69),0),0) -> 0 | J69: =IFERROR(ROUND($B69*('C- GrossFTEs'!L69/'C- GrossFTEs'!$Z69),0),0) -> 0 | K69: =IFERROR(ROUND($B69*('C- GrossFTEs'!M69/'C- GrossFTEs'!$Z69),0),0) -> 0 | L69: =IFERROR(ROUND($B69*('C- GrossFTEs'!N69/'C- GrossFTEs'!$Z69),0),0) -> 0 | M69: =IFERROR(ROUND($B69*('C- GrossFTEs'!P69/'C- GrossFTEs'!$Z69),0),0) -> 0 | N69: =IFERROR(ROUND($B69*('C- GrossFTEs'!Q69/'C- GrossFTEs'!$Z69),0),0) -> 0 | O69: =IFERROR(ROUND($B69*('C- GrossFTEs'!S69/'C- GrossFTEs'!$Z69),0),0) -> 0 | P69: 0 | Q69: =IFERROR(ROUND($B69*('C- GrossFTEs'!X69/'C- GrossFTEs'!$Z69),0),0) -> 0
A70: =IF('C- GrossFTEs'!A70=0,"",'C- GrossFTEs'!A70) ->  | E70: =IFERROR(ROUND($B70*('C- GrossFTEs'!E70/'C- GrossFTEs'!$Z70),0),0) -> 0 | F70: =IFERROR(ROUND($B70*('C- GrossFTEs'!G70/'C- GrossFTEs'!$Z70),0),0) -> 0 | G70: =IFERROR(ROUND($B70*('C- GrossFTEs'!H70/'C- GrossFTEs'!$Z70),0),0) -> 0 | H70: =IFERROR(ROUND($B70*('C- GrossFTEs'!J70/'C- GrossFTEs'!$Z70),0),0) -> 0 | I70: =IFERROR(ROUND($B70*('C- GrossFTEs'!K70/'C- GrossFTEs'!$Z70),0),0) -> 0 | J70: =IFERROR(ROUND($B70*('C- GrossFTEs'!L70/'C- GrossFTEs'!$Z70),0),0) -> 0 | K70: =IFERROR(ROUND($B70*('C- GrossFTEs'!M70/'C- GrossFTEs'!$Z70),0),0) -> 0 | L70: =IFERROR(ROUND($B70*('C- GrossFTEs'!N70/'C- GrossFTEs'!$Z70),0),0) -> 0 | M70: =IFERROR(ROUND($B70*('C- GrossFTEs'!P70/'C- GrossFTEs'!$Z70),0),0) -> 0 | N70: =IFERROR(ROUND($B70*('C- GrossFTEs'!Q70/'C- GrossFTEs'!$Z70),0),0) -> 0 | O70: =IFERROR(ROUND($B70*('C- GrossFTEs'!S70/'C- GrossFTEs'!$Z70),0),0) -> 0 | P70: 0 | Q70: =IFERROR(ROUND($B70*('C- GrossFTEs'!X70/'C- GrossFTEs'!$Z70),0),0) -> 0
A71: =IF('C- GrossFTEs'!A71=0,"",'C- GrossFTEs'!A71) ->  | E71: =IFERROR(ROUND($B71*('C- GrossFTEs'!E71/'C- GrossFTEs'!$Z71),0),0) -> 0 | F71: =IFERROR(ROUND($B71*('C- GrossFTEs'!G71/'C- GrossFTEs'!$Z71),0),0) -> 0 | G71: =IFERROR(ROUND($B71*('C- GrossFTEs'!H71/'C- GrossFTEs'!$Z71),0),0) -> 0 | H71: =IFERROR(ROUND($B71*('C- GrossFTEs'!J71/'C- GrossFTEs'!$Z71),0),0) -> 0 | I71: =IFERROR(ROUND($B71*('C- GrossFTEs'!K71/'C- GrossFTEs'!$Z71),0),0) -> 0 | J71: =IFERROR(ROUND($B71*('C- GrossFTEs'!L71/'C- GrossFTEs'!$Z71),0),0) -> 0 | K71: =IFERROR(ROUND($B71*('C- GrossFTEs'!M71/'C- GrossFTEs'!$Z71),0),0) -> 0 | L71: =IFERROR(ROUND($B71*('C- GrossFTEs'!N71/'C- GrossFTEs'!$Z71),0),0) -> 0 | M71: =IFERROR(ROUND($B71*('C- GrossFTEs'!P71/'C- GrossFTEs'!$Z71),0),0) -> 0 | N71: =IFERROR(ROUND($B71*('C- GrossFTEs'!Q71/'C- GrossFTEs'!$Z71),0),0) -> 0 | O71: =IFERROR(ROUND($B71*('C- GrossFTEs'!S71/'C- GrossFTEs'!$Z71),0),0) -> 0 | P71: 0 | Q71: =IFERROR(ROUND($B71*('C- GrossFTEs'!X71/'C- GrossFTEs'!$Z71),0),0) -> 0
A72: =IF('C- GrossFTEs'!A72=0,"",'C- GrossFTEs'!A72) ->  | E72: =IFERROR(ROUND($B72*('C- GrossFTEs'!E72/'C- GrossFTEs'!$Z72),0),0) -> 0 | F72: =IFERROR(ROUND($B72*('C- GrossFTEs'!G72/'C- GrossFTEs'!$Z72),0),0) -> 0 | G72: =IFERROR(ROUND($B72*('C- GrossFTEs'!H72/'C- GrossFTEs'!$Z72),0),0) -> 0 | H72: =IFERROR(ROUND($B72*('C- GrossFTEs'!J72/'C- GrossFTEs'!$Z72),0),0) -> 0 | I72: =IFERROR(ROUND($B72*('C- GrossFTEs'!K72/'C- GrossFTEs'!$Z72),0),0) -> 0 | J72: =IFERROR(ROUND($B72*('C- GrossFTEs'!L72/'C- GrossFTEs'!$Z72),0),0) -> 0 | K72: =IFERROR(ROUND($B72*('C- GrossFTEs'!M72/'C- GrossFTEs'!$Z72),0),0) -> 0 | L72: =IFERROR(ROUND($B72*('C- GrossFTEs'!N72/'C- GrossFTEs'!$Z72),0),0) -> 0 | M72: =IFERROR(ROUND($B72*('C- GrossFTEs'!P72/'C- GrossFTEs'!$Z72),0),0) -> 0 | N72: =IFERROR(ROUND($B72*('C- GrossFTEs'!Q72/'C- GrossFTEs'!$Z72),0),0) -> 0 | O72: =IFERROR(ROUND($B72*('C- GrossFTEs'!S72/'C- GrossFTEs'!$Z72),0),0) -> 0 | P72: =ROUND(B72-SUM(D72:O72,Q72),0) -> 0 | Q72: =IFERROR(ROUND($B72*('C- GrossFTEs'!X72/'C- GrossFTEs'!$Z72),0),0) -> 0
A73: =IF('C- GrossFTEs'!A73=0,"",'C- GrossFTEs'!A73) ->  | E73: =IFERROR(ROUND($B73*('C- GrossFTEs'!E73/'C- GrossFTEs'!$Z73),0),0) -> 0 | F73: =IFERROR(ROUND($B73*('C- GrossFTEs'!G73/'C- GrossFTEs'!$Z73),0),0) -> 0 | G73: =IFERROR(ROUND($B73*('C- GrossFTEs'!H73/'C- GrossFTEs'!$Z73),0),0) -> 0 | H73: =IFERROR(ROUND($B73*('C- GrossFTEs'!J73/'C- GrossFTEs'!$Z73),0),0) -> 0 | I73: =IFERROR(ROUND($B73*('C- GrossFTEs'!K73/'C- GrossFTEs'!$Z73),0),0) -> 0 | J73: =IFERROR(ROUND($B73*('C- GrossFTEs'!L73/'C- GrossFTEs'!$Z73),0),0) -> 0 | K73: =IFERROR(ROUND($B73*('C- GrossFTEs'!M73/'C- GrossFTEs'!$Z73),0),0) -> 0 | L73: =IFERROR(ROUND($B73*('C- GrossFTEs'!N73/'C- GrossFTEs'!$Z73),0),0) -> 0 | M73: =IFERROR(ROUND($B73*('C- GrossFTEs'!P73/'C- GrossFTEs'!$Z73),0),0) -> 0 | N73: =IFERROR(ROUND($B73*('C- GrossFTEs'!Q73/'C- GrossFTEs'!$Z73),0),0) -> 0 | O73: =IFERROR(ROUND($B73*('C- GrossFTEs'!S73/'C- GrossFTEs'!$Z73),0),0) -> 0 | P73: 0 | Q73: =IFERROR(ROUND($B73*('C- GrossFTEs'!X73/'C- GrossFTEs'!$Z73),0),0) -> 0
A74: =IF('C- GrossFTEs'!A74=0,"",'C- GrossFTEs'!A74) ->  | E74: =IFERROR(ROUND($B74*('C- GrossFTEs'!E74/'C- GrossFTEs'!$Z74),0),0) -> 0 | F74: =IFERROR(ROUND($B74*('C- GrossFTEs'!G74/'C- GrossFTEs'!$Z74),0),0) -> 0 | G74: =IFERROR(ROUND($B74*('C- GrossFTEs'!H74/'C- GrossFTEs'!$Z74),0),0) -> 0 | H74: =IFERROR(ROUND($B74*('C- GrossFTEs'!J74/'C- GrossFTEs'!$Z74),0),0) -> 0 | I74: =IFERROR(ROUND($B74*('C- GrossFTEs'!K74/'C- GrossFTEs'!$Z74),0),0) -> 0 | J74: =IFERROR(ROUND($B74*('C- GrossFTEs'!L74/'C- GrossFTEs'!$Z74),0),0) -> 0 | K74: =IFERROR(ROUND($B74*('C- GrossFTEs'!M74/'C- GrossFTEs'!$Z74),0),0) -> 0 | L74: =IFERROR(ROUND($B74*('C- GrossFTEs'!N74/'C- GrossFTEs'!$Z74),0),0) -> 0 | M74: =IFERROR(ROUND($B74*('C- GrossFTEs'!P74/'C- GrossFTEs'!$Z74),0),0) -> 0 | N74: =IFERROR(ROUND($B74*('C- GrossFTEs'!Q74/'C- GrossFTEs'!$Z74),0),0) -> 0 | O74: =IFERROR(ROUND($B74*('C- GrossFTEs'!S74/'C- GrossFTEs'!$Z74),0),0) -> 0 | P74: 0 | Q74: =IFERROR(ROUND($B74*('C- GrossFTEs'!X74/'C- GrossFTEs'!$Z74),0),0) -> 0
A75: =IF('C- GrossFTEs'!A75=0,"",'C- GrossFTEs'!A75) ->  | E75: =IFERROR(ROUND($B75*('C- GrossFTEs'!E75/'C- GrossFTEs'!$Z75),0),0) -> 0 | F75: =IFERROR(ROUND($B75*('C- GrossFTEs'!G75/'C- GrossFTEs'!$Z75),0),0) -> 0 | G75: =IFERROR(ROUND($B75*('C- GrossFTEs'!H75/'C- GrossFTEs'!$Z75),0),0) -> 0 | H75: =IFERROR(ROUND($B75*('C- GrossFTEs'!J75/'C- GrossFTEs'!$Z75),0),0) -> 0 | I75: =IFERROR(ROUND($B75*('C- GrossFTEs'!K75/'C- GrossFTEs'!$Z75),0),0) -> 0 | J75: =IFERROR(ROUND($B75*('C- GrossFTEs'!L75/'C- GrossFTEs'!$Z75),0),0) -> 0 | K75: =IFERROR(ROUND($B75*('C- GrossFTEs'!M75/'C- GrossFTEs'!$Z75),0),0) -> 0 | L75: =IFERROR(ROUND($B75*('C- GrossFTEs'!N75/'C- GrossFTEs'!$Z75),0),0) -> 0 | M75: =IFERROR(ROUND($B75*('C- GrossFTEs'!P75/'C- GrossFTEs'!$Z75),0),0) -> 0 | N75: =IFERROR(ROUND($B75*('C- GrossFTEs'!Q75/'C- GrossFTEs'!$Z75),0),0) -> 0 | O75: =IFERROR(ROUND($B75*('C- GrossFTEs'!S75/'C- GrossFTEs'!$Z75),0),0) -> 0 | P75: 0 | Q75: =IFERROR(ROUND($B75*('C- GrossFTEs'!X75/'C- GrossFTEs'!$Z75),0),0) -> 0
A76: =IF('C- GrossFTEs'!A76=0,"",'C- GrossFTEs'!A76) ->  | E76: =IFERROR(ROUND($B76*('C- GrossFTEs'!E76/'C- GrossFTEs'!$Z76),0),0) -> 0 | F76: =IFERROR(ROUND($B76*('C- GrossFTEs'!G76/'C- GrossFTEs'!$Z76),0),0) -> 0 | G76: =IFERROR(ROUND($B76*('C- GrossFTEs'!H76/'C- GrossFTEs'!$Z76),0),0) -> 0 | H76: =IFERROR(ROUND($B76*('C- GrossFTEs'!J76/'C- GrossFTEs'!$Z76),0),0) -> 0 | I76: =IFERROR(ROUND($B76*('C- GrossFTEs'!K76/'C- GrossFTEs'!$Z76),0),0) -> 0 | J76: =IFERROR(ROUND($B76*('C- GrossFTEs'!L76/'C- GrossFTEs'!$Z76),0),0) -> 0 | K76: =IFERROR(ROUND($B76*('C- GrossFTEs'!M76/'C- GrossFTEs'!$Z76),0),0) -> 0 | L76: =IFERROR(ROUND($B76*('C- GrossFTEs'!N76/'C- GrossFTEs'!$Z76),0),0) -> 0 | M76: =IFERROR(ROUND($B76*('C- GrossFTEs'!P76/'C- GrossFTEs'!$Z76),0),0) -> 0 | N76: =IFERROR(ROUND($B76*('C- GrossFTEs'!Q76/'C- GrossFTEs'!$Z76),0),0) -> 0 | O76: =IFERROR(ROUND($B76*('C- GrossFTEs'!S76/'C- GrossFTEs'!$Z76),0),0) -> 0 | P76: 0 | Q76: =IFERROR(ROUND($B76*('C- GrossFTEs'!X76/'C- GrossFTEs'!$Z76),0),0) -> 0
A77: =IF('C- GrossFTEs'!A77=0,"",'C- GrossFTEs'!A77) ->  | E77: =IFERROR(ROUND($B77*('C- GrossFTEs'!E77/'C- GrossFTEs'!$Z77),0),0) -> 0 | F77: =IFERROR(ROUND($B77*('C- GrossFTEs'!G77/'C- GrossFTEs'!$Z77),0),0) -> 0 | G77: =IFERROR(ROUND($B77*('C- GrossFTEs'!H77/'C- GrossFTEs'!$Z77),0),0) -> 0 | H77: =IFERROR(ROUND($B77*('C- GrossFTEs'!J77/'C- GrossFTEs'!$Z77),0),0) -> 0 | I77: =IFERROR(ROUND($B77*('C- GrossFTEs'!K77/'C- GrossFTEs'!$Z77),0),0) -> 0 | J77: =IFERROR(ROUND($B77*('C- GrossFTEs'!L77/'C- GrossFTEs'!$Z77),0),0) -> 0 | K77: =IFERROR(ROUND($B77*('C- GrossFTEs'!M77/'C- GrossFTEs'!$Z77),0),0) -> 0 | L77: =IFERROR(ROUND($B77*('C- GrossFTEs'!N77/'C- GrossFTEs'!$Z77),0),0) -> 0 | M77: =IFERROR(ROUND($B77*('C- GrossFTEs'!P77/'C- GrossFTEs'!$Z77),0),0) -> 0 | N77: =IFERROR(ROUND($B77*('C- GrossFTEs'!Q77/'C- GrossFTEs'!$Z77),0),0) -> 0 | O77: =IFERROR(ROUND($B77*('C- GrossFTEs'!S77/'C- GrossFTEs'!$Z77),0),0) -> 0 | P77: 0 | Q77: =IFERROR(ROUND($B77*('C- GrossFTEs'!X77/'C- GrossFTEs'!$Z77),0),0) -> 0
A78: =IF('C- GrossFTEs'!A78=0,"",'C- GrossFTEs'!A78) ->  | E78: =IFERROR(ROUND($B78*('C- GrossFTEs'!E78/'C- GrossFTEs'!$Z78),0),0) -> 0 | F78: =IFERROR(ROUND($B78*('C- GrossFTEs'!G78/'C- GrossFTEs'!$Z78),0),0) -> 0 | G78: =IFERROR(ROUND($B78*('C- GrossFTEs'!H78/'C- GrossFTEs'!$Z78),0),0) -> 0 | H78: =IFERROR(ROUND($B78*('C- GrossFTEs'!J78/'C- GrossFTEs'!$Z78),0),0) -> 0 | I78: =IFERROR(ROUND($B78*('C- GrossFTEs'!K78/'C- GrossFTEs'!$Z78),0),0) -> 0 | J78: =IFERROR(ROUND($B78*('C- GrossFTEs'!L78/'C- GrossFTEs'!$Z78),0),0) -> 0 | K78: =IFERROR(ROUND($B78*('C- GrossFTEs'!M78/'C- GrossFTEs'!$Z78),0),0) -> 0 | L78: =IFERROR(ROUND($B78*('C- GrossFTEs'!N78/'C- GrossFTEs'!$Z78),0),0) -> 0 | M78: =IFERROR(ROUND($B78*('C- GrossFTEs'!P78/'C- GrossFTEs'!$Z78),0),0) -> 0 | N78: =IFERROR(ROUND($B78*('C- GrossFTEs'!Q78/'C- GrossFTEs'!$Z78),0),0) -> 0 | O78: =IFERROR(ROUND($B78*('C- GrossFTEs'!S78/'C- GrossFTEs'!$Z78),0),0) -> 0 | P78: 0 | Q78: =IFERROR(ROUND($B78*('C- GrossFTEs'!X78/'C- GrossFTEs'!$Z78),0),0) -> 0
A79: =IF('C- GrossFTEs'!A79=0,"",'C- GrossFTEs'!A79) ->  | E79: =IFERROR(ROUND($B79*('C- GrossFTEs'!E79/'C- GrossFTEs'!$Z79),0),0) -> 0 | F79: =IFERROR(ROUND($B79*('C- GrossFTEs'!G79/'C- GrossFTEs'!$Z79),0),0) -> 0 | G79: =IFERROR(ROUND($B79*('C- GrossFTEs'!H79/'C- GrossFTEs'!$Z79),0),0) -> 0 | H79: =IFERROR(ROUND($B79*('C- GrossFTEs'!J79/'C- GrossFTEs'!$Z79),0),0) -> 0 | I79: =IFERROR(ROUND($B79*('C- GrossFTEs'!K79/'C- GrossFTEs'!$Z79),0),0) -> 0 | J79: =IFERROR(ROUND($B79*('C- GrossFTEs'!L79/'C- GrossFTEs'!$Z79),0),0) -> 0 | K79: =IFERROR(ROUND($B79*('C- GrossFTEs'!M79/'C- GrossFTEs'!$Z79),0),0) -> 0 | L79: =IFERROR(ROUND($B79*('C- GrossFTEs'!N79/'C- GrossFTEs'!$Z79),0),0) -> 0 | M79: =IFERROR(ROUND($B79*('C- GrossFTEs'!P79/'C- GrossFTEs'!$Z79),0),0) -> 0 | N79: =IFERROR(ROUND($B79*('C- GrossFTEs'!Q79/'C- GrossFTEs'!$Z79),0),0) -> 0 | O79: =IFERROR(ROUND($B79*('C- GrossFTEs'!S79/'C- GrossFTEs'!$Z79),0),0) -> 0 | P79: 0 | Q79: =IFERROR(ROUND($B79*('C- GrossFTEs'!X79/'C- GrossFTEs'!$Z79),0),0) -> 0
A80: =IF('C- GrossFTEs'!A80=0,"",'C- GrossFTEs'!A80) ->  | E80: =IFERROR(ROUND($B80*('C- GrossFTEs'!E80/'C- GrossFTEs'!$Z80),0),0) -> 0 | F80: =IFERROR(ROUND($B80*('C- GrossFTEs'!G80/'C- GrossFTEs'!$Z80),0),0) -> 0 | G80: =IFERROR(ROUND($B80*('C- GrossFTEs'!H80/'C- GrossFTEs'!$Z80),0),0) -> 0 | H80: =IFERROR(ROUND($B80*('C- GrossFTEs'!J80/'C- GrossFTEs'!$Z80),0),0) -> 0 | I80: =IFERROR(ROUND($B80*('C- GrossFTEs'!K80/'C- GrossFTEs'!$Z80),0),0) -> 0 | J80: =IFERROR(ROUND($B80*('C- GrossFTEs'!L80/'C- GrossFTEs'!$Z80),0),0) -> 0 | K80: =IFERROR(ROUND($B80*('C- GrossFTEs'!M80/'C- GrossFTEs'!$Z80),0),0) -> 0 | L80: =IFERROR(ROUND($B80*('C- GrossFTEs'!N80/'C- GrossFTEs'!$Z80),0),0) -> 0 | M80: =IFERROR(ROUND($B80*('C- GrossFTEs'!P80/'C- GrossFTEs'!$Z80),0),0) -> 0 | N80: =IFERROR(ROUND($B80*('C- GrossFTEs'!Q80/'C- GrossFTEs'!$Z80),0),0) -> 0 | O80: =IFERROR(ROUND($B80*('C- GrossFTEs'!S80/'C- GrossFTEs'!$Z80),0),0) -> 0 | P80: 0 | Q80: =IFERROR(ROUND($B80*('C- GrossFTEs'!X80/'C- GrossFTEs'!$Z80),0),0) -> 0
A81: =IF('C- GrossFTEs'!A81=0,"",'C- GrossFTEs'!A81) -> Totals | B81: =SUM(B6:B80) -> 3214839 | D81: =SUM(D8:D11) -> 457838 | E81: =SUM(E7:E80) -> 351796 | F81: =SUM(F7:F80) -> 279606 | G81: =SUM(G6:G80) -> 372722 | H81: 155655 | I81: 126835 | J81: 174907 | K81: 173323 | L81: 0 | M81: 594496 | N81: 133342 | O81: 177653 | P81: =SUM(P7:P80) -> 216666 | Q81: =SUM(Q8:Q80) -> 0
A83: Personnel Cost Breakouts
A84: Salary | B84: 2109975
A85: FICA | B85: 161411
A86: FRS | B86: 207702
A87: Health Insurance | B87: 735751
A88: Unemployment
A89: Workers Comp
A90: Other
A91: Personnel Breakout Totals | B91: =SUM(B84:B90) -> 3214839 | D91: =IF(B81<>B91, "Warning: Cell B81 does not equal cell B91", "") -> 

Sheet ErrorCheckingD (hidden)
A1: Tab D | H1: =COUNTIF(G3:G1263,">0") -> 0
A2: FieldName | B2: Cell | C2: Verification | D2: Error | E2: TabDFH1 | F2: TabDFH2 | G2: TabDFH3
A3: $ Amt is negative or more than 2 decimal places | B3: B6 | C3: =IF(AND('D- PersonnelCosts'!B6>=0,ROUND('D- PersonnelCosts'!B6,2)='D- PersonnelCosts'!B6),"OKAY","FTE Number is Negative or more than 2 Decimal places") -> OKAY | D3: =IF(C3="OKAY","","Cell "&B3&" is negative or more than 2 decimal places") ->  | E3: =ROW(C3)-2 -> 1 | F3: =IF(D3="","",E3) ->  | G3: =IFERROR(SMALL($F$3:$F$1263,E3),"") -> 
A4: $ Amt is negative or more than 2 decimal places | B4: B7 | C4: =IF(AND('D- PersonnelCosts'!B7>=0,ROUND('D- PersonnelCosts'!B7,2)='D- PersonnelCosts'!B7),"OKAY","FTE Number is Negative or more than 2 Decimal places") -> OKAY | D4: =IF(C4="OKAY","","Cell "&B4&" is negative or more than 2 decimal places") ->  | E4: =ROW(C4)-2 -> 2 | F4: =IF(D4="","",E4) ->  | G4: =IFERROR(SMALL($F$3:$F$1263,E4),"") -> 
A5: $ Amt is negative or more than 2 decimal places | B5: B8 | C5: =IF(AND('D- PersonnelCosts'!B8>=0,ROUND('D- PersonnelCosts'!B8,2)='D- PersonnelCosts'!B8),"OKAY","FTE Number is Negative or more than 2 Decimal places") -> OKAY | E5: 3
A6: $ Amt is negative or more than 2 decimal places | B6: B9 | C6: =IF(AND('D- PersonnelCosts'!B9>=0,ROUND('D- PersonnelCosts'!B9,2)='D- PersonnelCosts'!B9),"OKAY","FTE Number is Negative or more than 2 Decimal places") -> OKAY | E6: 4
A7: $ Amt is negative or more than 2 decimal places | B7: B10 | C7: =IF(AND('D- PersonnelCosts'!B10>=0,ROUND('D- PersonnelCosts'!B10,2)='D- PersonnelCosts'!B10),"OKAY","FTE Number is Negative or more than 2 Decimal places") -> OKAY | E7: 5
A8: $ Amt is negative or more than 2 decimal places | B8: B11 | C8: =IF(AND('D- PersonnelCosts'!B11>=0,ROUND('D- PersonnelCosts'!B11,2)='D- PersonnelCosts'!B11),"OKAY","FTE Number is Negative or more than 2 Decimal places") -> OKAY | E8: 6
A9: $ Amt is negative or more than 2 decimal places | B9: B12 | C9: =IF(AND('D- PersonnelCosts'!B12>=0,ROUND('D- PersonnelCosts'!B12,2)='D- PersonnelCosts'!B12),"OKAY","FTE Number is Negative or more than 2 Decimal places") -> OKAY | E9: 7
A10: $ Amt is negative or more than 2 decimal places | B10: B13 | C10: =IF(AND('D- PersonnelCosts'!B13>=0,ROUND('D- PersonnelCosts'!B13,2)='D- PersonnelCosts'!B13),"OKAY","FTE Number is Negative or more than 2 Decimal places") -> OKAY | E10: 8
A11: $ Amt is negative or more than 2 decimal places | B11: B14 | C11: =IF(AND('D- PersonnelCosts'!B14>=0,ROUND('D- PersonnelCosts'!B14,2)='D- PersonnelCosts'!B14),"OKAY","FTE Number is Negative or more than 2 Decimal places") -> OKAY | E11: 9
A12: $ Amt is negative or more than 2 decimal places | B12: B15 | C12: =IF(AND('D- PersonnelCosts'!B15>=0,ROUND('D- PersonnelCosts'!B15,2)='D- PersonnelCosts'!B15),"OKAY","FTE Number is Negative or more than 2 Decimal places") -> OKAY | E12: 10
A13: $ Amt is negative or more than 2 decimal places | B13: B16 | C13: =IF(AND('D- PersonnelCosts'!B16>=0,ROUND('D- PersonnelCosts'!B16,2)='D- PersonnelCosts'!B16),"OKAY","FTE Number is Negative or more than 2 Decimal places") -> OKAY | E13: 11
A14: $ Amt is negative or more than 2 decimal places | B14: B17 | C14: =IF(AND('D- PersonnelCosts'!B17>=0,ROUND('D- PersonnelCosts'!B17,2)='D- PersonnelCosts'!B17),"OKAY","FTE Number is Negative or more than 2 Decimal places") -> OKAY | E14: 12
A15: $ Amt is negative or more than 2 decimal places | B15: B18 | C15: =IF(AND('D- PersonnelCosts'!B18>=0,ROUND('D- PersonnelCosts'!B18,2)='D- PersonnelCosts'!B18),"OKAY","FTE Number is Negative or more than 2 Decimal places") -> OKAY | E15: 13
A16: $ Amt is negative or more than 2 decimal places | B16: B19 | C16: =IF(AND('D- PersonnelCosts'!B19>=0,ROUND('D- PersonnelCosts'!B19,2)='D- PersonnelCosts'!B19),"OKAY","FTE Number is Negative or more than 2 Decimal places") -> OKAY | E16: 14
A17: $ Amt is negative or more than 2 decimal places | B17: B20 | C17: =IF(AND('D- PersonnelCosts'!B20>=0,ROUND('D- PersonnelCosts'!B20,2)='D- PersonnelCosts'!B20),"OKAY","FTE Number is Negative or more than 2 Decimal places") -> OKAY | E17: 15
A18: $ Amt is negative or more than 2 decimal places | B18: B21 | C18: =IF(AND('D- PersonnelCosts'!B21>=0,ROUND('D- PersonnelCosts'!B21,2)='D- PersonnelCosts'!B21),"OKAY","FTE Number is Negative or more than 2 Decimal places") -> OKAY | E18: 16
A19: $ Amt is negative or more than 2 decimal places | B19: B22 | C19: =IF(AND('D- PersonnelCosts'!B22>=0,ROUND('D- PersonnelCosts'!B22,2)='D- PersonnelCosts'!B22),"OKAY","FTE Number is Negative or more than 2 Decimal places") -> OKAY | E19: 17
A20: $ Amt is negative or more than 2 decimal places | B20: B23 | C20: =IF(AND('D- PersonnelCosts'!B23>=0,ROUND('D- PersonnelCosts'!B23,2)='D- PersonnelCosts'!B23),"OKAY","FTE Number is Negative or more than 2 Decimal places") -> OKAY | E20: 18
A21: $ Amt is negative or more than 2 decimal places | B21: B24 | C21: =IF(AND('D- PersonnelCosts'!B24>=0,ROUND('D- PersonnelCosts'!B24,2)='D- PersonnelCosts'!B24),"OKAY","FTE Number is Negative or more than 2 Decimal places") -> OKAY | E21: 19
A22: $ Amt is negative or more than 2 decimal places | B22: B25 | C22: =IF(AND('D- PersonnelCosts'!B25>=0,ROUND('D- PersonnelCosts'!B25,2)='D- PersonnelCosts'!B25),"OKAY","FTE Number is Negative or more than 2 Decimal places") -> OKAY | E22: 20
A23: $ Amt is negative or more than 2 decimal places | B23: B26 | C23: =IF(AND('D- PersonnelCosts'!B26>=0,ROUND('D- PersonnelCosts'!B26,2)='D- PersonnelCosts'!B26),"OKAY","FTE Number is Negative or more than 2 Decimal places") -> OKAY | E23: 21
A24: $ Amt is negative or more than 2 decimal places | B24: B27 | C24: =IF(AND('D- PersonnelCosts'!B27>=0,ROUND('D- PersonnelCosts'!B27,2)='D- PersonnelCosts'!B27),"OKAY","FTE Number is Negative or more than 2 Decimal places") -> OKAY | E24: 22
A25: $ Amt is negative or more than 2 decimal places | B25: B28 | C25: =IF(AND('D- PersonnelCosts'!B28>=0,ROUND('D- PersonnelCosts'!B28,2)='D- PersonnelCosts'!B28),"OKAY","FTE Number is Negative or more than 2 Decimal places") -> OKAY | E25: 23
A26: $ Amt is negative or more than 2 decimal places | B26: B29 | C26: =IF(AND('D- PersonnelCosts'!B29>=0,ROUND('D- PersonnelCosts'!B29,2)='D- PersonnelCosts'!B29),"OKAY","FTE Number is Negative or more than 2 Decimal places") -> OKAY | E26: 24
A27: $ Amt is negative or more than 2 decimal places | B27: B30 | C27: =IF(AND('D- PersonnelCosts'!B30>=0,ROUND('D- PersonnelCosts'!B30,2)='D- PersonnelCosts'!B30),"OKAY","FTE Number is Negative or more than 2 Decimal places") -> OKAY | E27: 25
A28: $ Amt is negative or more than 2 decimal places | B28: B31 | C28: =IF(AND('D- PersonnelCosts'!B31>=0,ROUND('D- PersonnelCosts'!B31,2)='D- PersonnelCosts'!B31),"OKAY","FTE Number is Negative or more than 2 Decimal places") -> OKAY | E28: 26
A29: $ Amt is negative or more than 2 decimal places | B29: B32 | C29: =IF(AND('D- PersonnelCosts'!B32>=0,ROUND('D- PersonnelCosts'!B32,2)='D- PersonnelCosts'!B32),"OKAY","FTE Number is Negative or more than 2 Decimal places") -> OKAY | E29: 27
A30: $ Amt is negative or more than 2 decimal places | B30: B33 | C30: =IF(AND('D- PersonnelCosts'!B33>=0,ROUND('D- PersonnelCosts'!B33,2)='D- PersonnelCosts'!B33),"OKAY","FTE Number is Negative or more than 2 Decimal places") -> OKAY | E30: 28
A31: $ Amt is negative or more than 2 decimal places | B31: B34 | C31: =IF(AND('D- PersonnelCosts'!B34>=0,ROUND('D- PersonnelCosts'!B34,2)='D- PersonnelCosts'!B34),"OKAY","FTE Number is Negative or more than 2 Decimal places") -> OKAY | E31: 29
A32: $ Amt is negative or more than 2 decimal places | B32: B35 | C32: =IF(AND('D- PersonnelCosts'!B35>=0,ROUND('D- PersonnelCosts'!B35,2)='D- PersonnelCosts'!B35),"OKAY","FTE Number is Negative or more than 2 Decimal places") -> OKAY | E32: 30
A33: $ Amt is negative or more than 2 decimal places | B33: B36 | C33: =IF(AND('D- PersonnelCosts'!B36>=0,ROUND('D- PersonnelCosts'!B36,2)='D- PersonnelCosts'!B36),"OKAY","FTE Number is Negative or more than 2 Decimal places") -> OKAY | E33: 31
A34: $ Amt is negative or more than 2 decimal places | B34: B37 | C34: =IF(AND('D- PersonnelCosts'!B37>=0,ROUND('D- PersonnelCosts'!B37,2)='D- PersonnelCosts'!B37),"OKAY","FTE Number is Negative or more than 2 Decimal places") -> OKAY | E34: 32
A35: $ Amt is negative or more than 2 decimal places | B35: B38 | C35: =IF(AND('D- PersonnelCosts'!B38>=0,ROUND('D- PersonnelCosts'!B38,2)='D- PersonnelCosts'!B38),"OKAY","FTE Number is Negative or more than 2 Decimal places") -> OKAY | E35: 33
A36: $ Amt is negative or more than 2 decimal places | B36: B39 | C36: =IF(AND('D- PersonnelCosts'!B39>=0,ROUND('D- PersonnelCosts'!B39,2)='D- PersonnelCosts'!B39),"OKAY","FTE Number is Negative or more than 2 Decimal places") -> OKAY | E36: 34
A37: $ Amt is negative or more than 2 decimal places | B37: B40 | C37: =IF(AND('D- PersonnelCosts'!B40>=0,ROUND('D- PersonnelCosts'!B40,2)='D- PersonnelCosts'!B40),"OKAY","FTE Number is Negative or more than 2 Decimal places") -> OKAY | E37: 35
A38: $ Amt is negative or more than 2 decimal places | B38: B41 | C38: =IF(AND('D- PersonnelCosts'!B41>=0,ROUND('D- PersonnelCosts'!B41,2)='D- PersonnelCosts'!B41),"OKAY","FTE Number is Negative or more than 2 Decimal places") -> OKAY | E38: 36
A39: $ Amt is negative or more than 2 decimal places | B39: B42 | C39: =IF(AND('D- PersonnelCosts'!B42>=0,ROUND('D- PersonnelCosts'!B42,2)='D- PersonnelCosts'!B42),"OKAY","FTE Number is Negative or more than 2 Decimal places") -> OKAY | E39: 37
A40: $ Amt is negative or more than 2 decimal places | B40: B43 | C40: =IF(AND('D- PersonnelCosts'!B43>=0,ROUND('D- PersonnelCosts'!B43,2)='D- PersonnelCosts'!B43),"OKAY","FTE Number is Negative or more than 2 Decimal places") -> OKAY | E40: 38
A41: $ Amt is negative or more than 2 decimal places | B41: B44 | C41: =IF(AND('D- PersonnelCosts'!B44>=0,ROUND('D- PersonnelCosts'!B44,2)='D- PersonnelCosts'!B44),"OKAY","FTE Number is Negative or more than 2 Decimal places") -> OKAY | E41: 39
A42: $ Amt is negative or more than 2 decimal places | B42: B45 | C42: =IF(AND('D- PersonnelCosts'!B45>=0,ROUND('D- PersonnelCosts'!B45,2)='D- PersonnelCosts'!B45),"OKAY","FTE Number is Negative or more than 2 Decimal places") -> OKAY | E42: 40
A43: $ Amt is negative or more than 2 decimal places | B43: B46 | C43: =IF(AND('D- PersonnelCosts'!B46>=0,ROUND('D- PersonnelCosts'!B46,2)='D- PersonnelCosts'!B46),"OKAY","FTE Number is Negative or more than 2 Decimal places") -> OKAY | E43: 41
A44: $ Amt is negative or more than 2 decimal places | B44: B47 | C44: =IF(AND('D- PersonnelCosts'!B47>=0,ROUND('D- PersonnelCosts'!B47,2)='D- PersonnelCosts'!B47),"OKAY","FTE Number is Negative or more than 2 Decimal places") -> OKAY | E44: 42
A45: $ Amt is negative or more than 2 decimal places | B45: B48 | C45: =IF(AND('D- PersonnelCosts'!B48>=0,ROUND('D- PersonnelCosts'!B48,2)='D- PersonnelCosts'!B48),"OKAY","FTE Number is Negative or more than 2 Decimal places") -> OKAY | E45: 43
A46: $ Amt is negative or more than 2 decimal places | B46: B49 | C46: =IF(AND('D- PersonnelCosts'!B49>=0,ROUND('D- PersonnelCosts'!B49,2)='D- PersonnelCosts'!B49),"OKAY","FTE Number is Negative or more than 2 Decimal places") -> OKAY | E46: 44
A47: $ Amt is negative or more than 2 decimal places | B47: B50 | C47: =IF(AND('D- PersonnelCosts'!B50>=0,ROUND('D- PersonnelCosts'!B50,2)='D- PersonnelCosts'!B50),"OKAY","FTE Number is Negative or more than 2 Decimal places") -> OKAY | E47: 45
A48: $ Amt is negative or more than 2 decimal places | B48: B51 | C48: =IF(AND('D- PersonnelCosts'!B51>=0,ROUND('D- PersonnelCosts'!B51,2)='D- PersonnelCosts'!B51),"OKAY","FTE Number is Negative or more than 2 Decimal places") -> OKAY | E48: 46
A49: $ Amt is negative or more than 2 decimal places | B49: B52 | C49: =IF(AND('D- PersonnelCosts'!B52>=0,ROUND('D- PersonnelCosts'!B52,2)='D- PersonnelCosts'!B52),"OKAY","FTE Number is Negative or more than 2 Decimal places") -> OKAY | E49: 47
A50: $ Amt is negative or more than 2 decimal places | B50: B53 | C50: =IF(AND('D- PersonnelCosts'!B53>=0,ROUND('D- PersonnelCosts'!B53,2)='D- PersonnelCosts'!B53),"OKAY","FTE Number is Negative or more than 2 Decimal places") -> OKAY | E50: 48
A51: $ Amt is negative or more than 2 decimal places | B51: B54 | C51: =IF(AND('D- PersonnelCosts'!B54>=0,ROUND('D- PersonnelCosts'!B54,2)='D- PersonnelCosts'!B54),"OKAY","FTE Number is Negative or more than 2 Decimal places") -> OKAY | E51: 49
A52: $ Amt is negative or more than 2 decimal places | B52: B55 | C52: =IF(AND('D- PersonnelCosts'!B55>=0,ROUND('D- PersonnelCosts'!B55,2)='D- PersonnelCosts'!B55),"OKAY","FTE Number is Negative or more than 2 Decimal places") -> OKAY | E52: 50
A53: $ Amt is negative or more than 2 decimal places | B53: B56 | C53: =IF(AND('D- PersonnelCosts'!B56>=0,ROUND('D- PersonnelCosts'!B56,2)='D- PersonnelCosts'!B56),"OKAY","FTE Number is Negative or more than 2 Decimal places") -> OKAY | E53: 51
A54: $ Amt is negative or more than 2 decimal places | B54: B57 | C54: =IF(AND('D- PersonnelCosts'!B57>=0,ROUND('D- PersonnelCosts'!B57,2)='D- PersonnelCosts'!B57),"OKAY","FTE Number is Negative or more than 2 Decimal places") -> OKAY | E54: 52
A55: $ Amt is negative or more than 2 decimal places | B55: B58 | C55: =IF(AND('D- PersonnelCosts'!B58>=0,ROUND('D- PersonnelCosts'!B58,2)='D- PersonnelCosts'!B58),"OKAY","FTE Number is Negative or more than 2 Decimal places") -> OKAY | E55: 53
A56: $ Amt is negative or more than 2 decimal places | B56: B59 | C56: =IF(AND('D- PersonnelCosts'!B59>=0,ROUND('D- PersonnelCosts'!B59,2)='D- PersonnelCosts'!B59),"OKAY","FTE Number is Negative or more than 2 Decimal places") -> OKAY | E56: 54
A57: $ Amt is negative or more than 2 decimal places | B57: B60 | C57: =IF(AND('D- PersonnelCosts'!B60>=0,ROUND('D- PersonnelCosts'!B60,2)='D- PersonnelCosts'!B60),"OKAY","FTE Number is Negative or more than 2 Decimal places") -> OKAY | E57: 55
A58: $ Amt is negative or more than 2 decimal places | B58: B61 | C58: =IF(AND('D- PersonnelCosts'!B61>=0,ROUND('D- PersonnelCosts'!B61,2)='D- PersonnelCosts'!B61),"OKAY","FTE Number is Negative or more than 2 Decimal places") -> OKAY | E58: 56
A59: $ Amt is negative or more than 2 decimal places | B59: B62 | C59: =IF(AND('D- PersonnelCosts'!B62>=0,ROUND('D- PersonnelCosts'!B62,2)='D- PersonnelCosts'!B62),"OKAY","FTE Number is Negative or more than 2 Decimal places") -> OKAY | E59: 57
A60: $ Amt is negative or more than 2 decimal places | B60: B63 | C60: =IF(AND('D- PersonnelCosts'!B63>=0,ROUND('D- PersonnelCosts'!B63,2)='D- PersonnelCosts'!B63),"OKAY","FTE Number is Negative or more than 2 Decimal places") -> OKAY | E60: 58
A61: $ Amt is negative or more than 2 decimal places | B61: B64 | C61: =IF(AND('D- PersonnelCosts'!B64>=0,ROUND('D- PersonnelCosts'!B64,2)='D- PersonnelCosts'!B64),"OKAY","FTE Number is Negative or more than 2 Decimal places") -> OKAY | E61: 59
A62: $ Amt is negative or more than 2 decimal places | B62: B65 | C62: =IF(AND('D- PersonnelCosts'!B65>=0,ROUND('D- PersonnelCosts'!B65,2)='D- PersonnelCosts'!B65),"OKAY","FTE Number is Negative or more than 2 Decimal places") -> OKAY | E62: 60
A63: $ Amt is negative or more than 2 decimal places | B63: B66 | C63: =IF(AND('D- PersonnelCosts'!B66>=0,ROUND('D- PersonnelCosts'!B66,2)='D- PersonnelCosts'!B66),"OKAY","FTE Number is Negative or more than 2 Decimal places") -> OKAY | E63: 61
A64: $ Amt is negative or more than 2 decimal places | B64: B67 | C64: =IF(AND('D- PersonnelCosts'!B67>=0,ROUND('D- PersonnelCosts'!B67,2)='D- PersonnelCosts'!B67),"OKAY","FTE Number is Negative or more than 2 Decimal places") -> OKAY | E64: 62
A65: $ Amt is negative or more than 2 decimal places | B65: B68 | C65: =IF(AND('D- PersonnelCosts'!B68>=0,ROUND('D- PersonnelCosts'!B68,2)='D- PersonnelCosts'!B68),"OKAY","FTE Number is Negative or more than 2 Decimal places") -> OKAY | E65: 63
A66: $ Amt is negative or more than 2 decimal places | B66: B69 | C66: =IF(AND('D- PersonnelCosts'!B69>=0,ROUND('D- PersonnelCosts'!B69,2)='D- PersonnelCosts'!B69),"OKAY","FTE Number is Negative or more than 2 Decimal places") -> OKAY | E66: 64
A67: $ Amt is negative or more than 2 decimal places | B67: B70 | C67: =IF(AND('D- PersonnelCosts'!B70>=0,ROUND('D- PersonnelCosts'!B70,2)='D- PersonnelCosts'!B70),"OKAY","FTE Number is Negative or more than 2 Decimal places") -> OKAY | E67: 65
A68: $ Amt is negative or more than 2 decimal places | B68: B71 | C68: =IF(AND('D- PersonnelCosts'!B71>=0,ROUND('D- PersonnelCosts'!B71,2)='D- PersonnelCosts'!B71),"OKAY","FTE Number is Negative or more than 2 Decimal places") -> OKAY | D68: =IF(C68="OKAY","","Cell "&B68&" is negative or more than 2 decimal places") ->  | E68: =ROW(C68)-2 -> 66 | F68: =IF(D68="","",E68) ->  | G68: =IFERROR(SMALL($F$3:$F$1263,E68),"") -> 
A69: $ Amt is negative or more than 2 decimal places | B69: B72 | C69: =IF(AND('D- PersonnelCosts'!B72>=0,ROUND('D- PersonnelCosts'!B72,2)='D- PersonnelCosts'!B72),"OKAY","FTE Number is Negative or more than 2 Decimal places") -> OKAY | E69: 67
A70: $ Amt is negative or more than 2 decimal places | B70: B73 | C70: =IF(AND('D- PersonnelCosts'!B73>=0,ROUND('D- PersonnelCosts'!B73,2)='D- PersonnelCosts'!B73),"OKAY","FTE Number is Negative or more than 2 Decimal places") -> OKAY | E70: 68
A71: $ Amt is negative or more than 2 decimal places | B71: B74 | C71: =IF(AND('D- PersonnelCosts'!B74>=0,ROUND('D- PersonnelCosts'!B74,2)='D- PersonnelCosts'!B74),"OKAY","FTE Number is Negative or more than 2 Decimal places") -> OKAY | E71: 69
A72: $ Amt is negative or more than 2 decimal places | B72: B75 | C72: =IF(AND('D- PersonnelCosts'!B75>=0,ROUND('D- PersonnelCosts'!B75,2)='D- PersonnelCosts'!B75),"OKAY","FTE Number is Negative or more than 2 Decimal places") -> OKAY | E72: 70
A73: $ Amt is negative or more than 2 decimal places | B73: B76 | C73: =IF(AND('D- PersonnelCosts'!B76>=0,ROUND('D- PersonnelCosts'!B76,2)='D- PersonnelCosts'!B76),"OKAY","FTE Number is Negative or more than 2 Decimal places") -> OKAY | E73: 71
A74: $ Amt is negative or more than 2 decimal places | B74: B77 | C74: =IF(AND('D- PersonnelCosts'!B77>=0,ROUND('D- PersonnelCosts'!B77,2)='D- PersonnelCosts'!B77),"OKAY","FTE Number is Negative or more than 2 Decimal places") -> OKAY | E74: 72
A75: $ Amt is negative or more than 2 decimal places | B75: B78 | C75: =IF(AND('D- PersonnelCosts'!B78>=0,ROUND('D- PersonnelCosts'!B78,2)='D- PersonnelCosts'!B78),"OKAY","FTE Number is Negative or more than 2 Decimal places") -> OKAY | E75: 73
A76: $ Amt is negative or more than 2 decimal places | B76: B79 | C76: =IF(AND('D- PersonnelCosts'!B79>=0,ROUND('D- PersonnelCosts'!B79,2)='D- PersonnelCosts'!B79),"OKAY","FTE Number is Negative or more than 2 Decimal places") -> OKAY | E76: 74
A77: $ Amt is negative or more than 2 decimal places | B77: B80 | C77: =IF(AND('D- PersonnelCosts'!B80>=0,ROUND('D- PersonnelCosts'!B80,2)='D- PersonnelCosts'!B80),"OKAY","FTE Number is Negative or more than 2 Decimal places") -> OKAY | E77: 75
A78: $ Amt is negative or more than 2 decimal places | B78: B84 | C78: =IF(AND('D- PersonnelCosts'!B84>=0,ROUND('D- PersonnelCosts'!B84,2)='D- PersonnelCosts'!B84),"OKAY","FTE Number is Negative or more than 2 Decimal places") -> OKAY | E78: 76
A79: $ Amt is negative or more than 2 decimal places | B79: B85 | C79: =IF(AND('D- PersonnelCosts'!B85>=0,ROUND('D- PersonnelCosts'!B85,2)='D- PersonnelCosts'!B85),"OKAY","FTE Number is Negative or more than 2 Decimal places") -> OKAY | E79: 77
A80: $ Amt is negative or more than 2 decimal places | B80: B86 | C80: =IF(AND('D- PersonnelCosts'!B86>=0,ROUND('D- PersonnelCosts'!B86,2)='D- PersonnelCosts'!B86),"OKAY","FTE Number is Negative or more than 2 Decimal places") -> OKAY | E80: 78
A81: $ Amt is negative or more than 2 decimal places | B81: B87 | C81: =IF(AND('D- PersonnelCosts'!B87>=0,ROUND('D- PersonnelCosts'!B87,2)='D- PersonnelCosts'!B87),"OKAY","FTE Number is Negative or more than 2 Decimal places") -> OKAY | E81: 79
A82: $ Amt is negative or more than 2 decimal places | B82: B88 | C82: =IF(AND('D- PersonnelCosts'!B88>=0,ROUND('D- PersonnelCosts'!B88,2)='D- PersonnelCosts'!B88),"OKAY","FTE Number is Negative or more than 2 Decimal places") -> OKAY | E82: 80
A83: $ Amt is negative or more than 2 decimal places | B83: B89 | C83: =IF(AND('D- PersonnelCosts'!B89>=0,ROUND('D- PersonnelCosts'!B89,2)='D- PersonnelCosts'!B89),"OKAY","FTE Number is Negative or more than 2 Decimal places") -> OKAY | E83: 81
A84: $ Amt is negative or more than 2 decimal places | B84: B90 | C84: =IF(AND('D- PersonnelCosts'!B90>=0,ROUND('D- PersonnelCosts'!B90,2)='D- PersonnelCosts'!B90),"OKAY","FTE Number is Negative or more than 2 Decimal places") -> OKAY | E84: 82
A85: Personnel Total does not equal Breakout Total | B85: B81 & B91 | C85: =IF('D- PersonnelCosts'!B81<>'D- PersonnelCosts'!B91,"Personnel Total Costs do not equal Personnel Breakouts","OKAY") -> OKAY | D85: =IF(C85="OKAY","","Cells "&B85&" do not equal each other") ->  | E85: 83

Sheet E- OperatingCosts
A1: =IF('A- Front Page'!B4="","",'A- Front Page'!B4) -> Santa Rosa
D2: Operating Costs
A4: Cost Centers / Departments | B4: 600s-700s | D4: Clerk Court Admin | E4: Circuit Criminal | F4: Circuit Civil | G4: Family | H4: Juvenile Delinquency | I4: Juvenile Dependency | J4: Probate | K4: Information Systems (IT) | L4: Optional Programs | M4: County Criminal | N4: County Civil | O4: Criminal Traffic | P4: Civil Traffic | Q4: Court Side Shared
A5: 1 | B5: 2
A6: =IF('C- GrossFTEs'!A6=0,"",'C- GrossFTEs'!A6) -> Title IV-D Child Support (Reimbursed) | B6: 1500 | G6: =ROUND(B6,0) -> 1500
A7: =IF('C- GrossFTEs'!A7=0,"",'C- GrossFTEs'!A7) -> Title IV-D Child Support (Non-Reimbursed) | E7: =IFERROR(ROUND($B7*('C- GrossFTEs'!E7/'C- GrossFTEs'!$Z7),0),0) -> 0 | F7: =IFERROR(ROUND($B7*('C- GrossFTEs'!G7/'C- GrossFTEs'!$Z7),0),0) -> 0 | G7: =IFERROR(ROUND($B7*('C- GrossFTEs'!H7/'C- GrossFTEs'!$Z7),0),0) -> 0 | H7: =IFERROR(ROUND($B7*('C- GrossFTEs'!J7/'C- GrossFTEs'!$Z7),0),0) -> 0 | I7: =IFERROR(ROUND($B7*('C- GrossFTEs'!K7/'C- GrossFTEs'!$Z7),0),0) -> 0 | J7: =IFERROR(ROUND($B7*('C- GrossFTEs'!L7/'C- GrossFTEs'!$Z7),0),0) -> 0 | K7: =IFERROR(ROUND($B7*('C- GrossFTEs'!M7/'C- GrossFTEs'!$Z7),0),0) -> 0 | L7: =IFERROR(ROUND($B7*('C- GrossFTEs'!N7/'C- GrossFTEs'!$Z7),0),0) -> 0 | M7: =IFERROR(ROUND($B7*('C- GrossFTEs'!P7/'C- GrossFTEs'!$Z7),0),0) -> 0 | N7: =IFERROR(ROUND($B7*('C- GrossFTEs'!Q7/'C- GrossFTEs'!$Z7),0),0) -> 0 | O7: =IFERROR(ROUND($B7*('C- GrossFTEs'!S7/'C- GrossFTEs'!$Z7),0),0) -> 0 | P7: =ROUND(B7-SUM(D7:O7,Q7),0) -> 0
A8: =IF('C- GrossFTEs'!A8=0,"",'C- GrossFTEs'!A8) -> Elected Clerk | D8: =IFERROR(ROUND($B8*('C- GrossFTEs'!B8/'C- GrossFTEs'!$Z8),0),0) -> 0 | E8: =IFERROR(ROUND($B8*('C- GrossFTEs'!E8/'C- GrossFTEs'!$Z8),0),0) -> 0 | F8: =IFERROR(ROUND($B8*('C- GrossFTEs'!G8/'C- GrossFTEs'!$Z8),0),0) -> 0 | G8: =IFERROR(ROUND($B8*('C- GrossFTEs'!H8/'C- GrossFTEs'!$Z8),0),0) -> 0 | H8: =IFERROR(ROUND($B8*('C- GrossFTEs'!J8/'C- GrossFTEs'!$Z8),0),0) -> 0 | I8: =IFERROR(ROUND($B8*('C- GrossFTEs'!K8/'C- GrossFTEs'!$Z8),0),0) -> 0 | J8: =IFERROR(ROUND($B8*('C- GrossFTEs'!L8/'C- GrossFTEs'!$Z8),0),0) -> 0 | K8: =IFERROR(ROUND($B8*('C- GrossFTEs'!M8/'C- GrossFTEs'!$Z8),0),0) -> 0 | L8: =IFERROR(ROUND($B8*('C- GrossFTEs'!N8/'C- GrossFTEs'!$Z8),0),0) -> 0 | M8: =IFERROR(ROUND($B8*('C- GrossFTEs'!P8/'C- GrossFTEs'!$Z8),0),0) -> 0 | N8: =IFERROR(ROUND($B8*('C- GrossFTEs'!Q8/'C- GrossFTEs'!$Z8),0),0) -> 0 | O8: =IFERROR(ROUND($B8*('C- GrossFTEs'!S8/'C- GrossFTEs'!$Z8),0),0) -> 0 | P8: =ROUND(B8-SUM(D8:O8,Q8),0) -> 0 | Q8: =IFERROR(ROUND($B8*('C- GrossFTEs'!X8/'C- GrossFTEs'!$Z8),0),0) -> 0
A9: =IF('C- GrossFTEs'!A9=0,"",'C- GrossFTEs'!A9) -> Human Resources | D9: =IFERROR(ROUND($B9*('C- GrossFTEs'!B9/'C- GrossFTEs'!$Z9),0),0) -> 0 | E9: =IFERROR(ROUND($B9*('C- GrossFTEs'!E9/'C- GrossFTEs'!$Z9),0),0) -> 0 | F9: =IFERROR(ROUND($B9*('C- GrossFTEs'!G9/'C- GrossFTEs'!$Z9),0),0) -> 0 | G9: =IFERROR(ROUND($B9*('C- GrossFTEs'!H9/'C- GrossFTEs'!$Z9),0),0) -> 0 | H9: =IFERROR(ROUND($B9*('C- GrossFTEs'!J9/'C- GrossFTEs'!$Z9),0),0) -> 0 | I9: =IFERROR(ROUND($B9*('C- GrossFTEs'!K9/'C- GrossFTEs'!$Z9),0),0) -> 0 | J9: =IFERROR(ROUND($B9*('C- GrossFTEs'!L9/'C- GrossFTEs'!$Z9),0),0) -> 0 | K9: =IFERROR(ROUND($B9*('C- GrossFTEs'!M9/'C- GrossFTEs'!$Z9),0),0) -> 0 | L9: =IFERROR(ROUND($B9*('C- GrossFTEs'!N9/'C- GrossFTEs'!$Z9),0),0) -> 0 | M9: =IFERROR(ROUND($B9*('C- GrossFTEs'!P9/'C- GrossFTEs'!$Z9),0),0) -> 0 | N9: =IFERROR(ROUND($B9*('C- GrossFTEs'!Q9/'C- GrossFTEs'!$Z9),0),0) -> 0 | O9: =IFERROR(ROUND($B9*('C- GrossFTEs'!S9/'C- GrossFTEs'!$Z9),0),0) -> 0 | P9: 0 | Q9: =IFERROR(ROUND($B9*('C- GrossFTEs'!X9/'C- GrossFTEs'!$Z9),0),0) -> 0
A10: =IF('C- GrossFTEs'!A10=0,"",'C- GrossFTEs'!A10) -> Clerk Accounting | B10: 12000 | D10: =IFERROR(ROUND($B10*('C- GrossFTEs'!B10/'C- GrossFTEs'!$Z10),0),0) -> 12000 | E10: =IFERROR(ROUND($B10*('C- GrossFTEs'!E10/'C- GrossFTEs'!$Z10),0),0) -> 0 | F10: =IFERROR(ROUND($B10*('C- GrossFTEs'!G10/'C- GrossFTEs'!$Z10),0),0) -> 0 | G10: =IFERROR(ROUND($B10*('C- GrossFTEs'!H10/'C- GrossFTEs'!$Z10),0),0) -> 0 | H10: =IFERROR(ROUND($B10*('C- GrossFTEs'!J10/'C- GrossFTEs'!$Z10),0),0) -> 0 | I10: =IFERROR(ROUND($B10*('C- GrossFTEs'!K10/'C- GrossFTEs'!$Z10),0),0) -> 0 | J10: =IFERROR(ROUND($B10*('C- GrossFTEs'!L10/'C- GrossFTEs'!$Z10),0),0) -> 0 | K10: =IFERROR(ROUND($B10*('C- GrossFTEs'!M10/'C- GrossFTEs'!$Z10),0),0) -> 0 | L10: =IFERROR(ROUND($B10*('C- GrossFTEs'!N10/'C- GrossFTEs'!$Z10),0),0) -> 0 | M10: =IFERROR(ROUND($B10*('C- GrossFTEs'!P10/'C- GrossFTEs'!$Z10),0),0) -> 0 | N10: =IFERROR(ROUND($B10*('C- GrossFTEs'!Q10/'C- GrossFTEs'!$Z10),0),0) -> 0 | O10: =IFERROR(ROUND($B10*('C- GrossFTEs'!S10/'C- GrossFTEs'!$Z10),0),0) -> 0 | P10: 0 | Q10: =IFERROR(ROUND($B10*('C- GrossFTEs'!X10/'C- GrossFTEs'!$Z10),0),0) -> 0
A11: =IF('C- GrossFTEs'!A11=0,"",'C- GrossFTEs'!A11) -> Executive Administration | B11: 0 | D11: =IFERROR(ROUND($B11*('C- GrossFTEs'!B11/'C- GrossFTEs'!$Z11),0),0) -> 0 | E11: =IFERROR(ROUND($B11*('C- GrossFTEs'!E11/'C- GrossFTEs'!$Z11),0),0) -> 0 | F11: =IFERROR(ROUND($B11*('C- GrossFTEs'!G11/'C- GrossFTEs'!$Z11),0),0) -> 0 | G11: =IFERROR(ROUND($B11*('C- GrossFTEs'!H11/'C- GrossFTEs'!$Z11),0),0) -> 0 | H11: =IFERROR(ROUND($B11*('C- GrossFTEs'!J11/'C- GrossFTEs'!$Z11),0),0) -> 0 | I11: =IFERROR(ROUND($B11*('C- GrossFTEs'!K11/'C- GrossFTEs'!$Z11),0),0) -> 0 | J11: =IFERROR(ROUND($B11*('C- GrossFTEs'!L11/'C- GrossFTEs'!$Z11),0),0) -> 0 | K11: =IFERROR(ROUND($B11*('C- GrossFTEs'!M11/'C- GrossFTEs'!$Z11),0),0) -> 0 | L11: =IFERROR(ROUND($B11*('C- GrossFTEs'!N11/'C- GrossFTEs'!$Z11),0),0) -> 0 | M11: =IFERROR(ROUND($B11*('C- GrossFTEs'!P11/'C- GrossFTEs'!$Z11),0),0) -> 0 | N11: =IFERROR(ROUND($B11*('C- GrossFTEs'!Q11/'C- GrossFTEs'!$Z11),0),0) -> 0 | O11: =IFERROR(ROUND($B11*('C- GrossFTEs'!S11/'C- GrossFTEs'!$Z11),0),0) -> 0 | P11: 0 | Q11: =IFERROR(ROUND($B11*('C- GrossFTEs'!X11/'C- GrossFTEs'!$Z11),0),0) -> 0
A12: =IF('C- GrossFTEs'!A12=0,"",'C- GrossFTEs'!A12) -> Jury Management | B12: 70663 | E12: =IFERROR(ROUND($B12*('C- GrossFTEs'!E12/'C- GrossFTEs'!$Z12),0),0) -> 20139 | F12: =IFERROR(ROUND($B12*('C- GrossFTEs'!G12/'C- GrossFTEs'!$Z12),0),0) -> 16606 | G12: =IFERROR(ROUND($B12*('C- GrossFTEs'!H12/'C- GrossFTEs'!$Z12),0),0) -> 0 | H12: =IFERROR(ROUND($B12*('C- GrossFTEs'!J12/'C- GrossFTEs'!$Z12),0),0) -> 0 | I12: =IFERROR(ROUND($B12*('C- GrossFTEs'!K12/'C- GrossFTEs'!$Z12),0),0) -> 0 | J12: =IFERROR(ROUND($B12*('C- GrossFTEs'!L12/'C- GrossFTEs'!$Z12),0),0) -> 0 | K12: =IFERROR(ROUND($B12*('C- GrossFTEs'!M12/'C- GrossFTEs'!$Z12),0),0) -> 0 | L12: =IFERROR(ROUND($B12*('C- GrossFTEs'!N12/'C- GrossFTEs'!$Z12),0),0) -> 0 | M12: =IFERROR(ROUND($B12*('C- GrossFTEs'!P12/'C- GrossFTEs'!$Z12),0),0) -> 33918 | N12: =IFERROR(ROUND($B12*('C- GrossFTEs'!Q12/'C- GrossFTEs'!$Z12),0),0) -> 0 | O12: =IFERROR(ROUND($B12*('C- GrossFTEs'!S12/'C- GrossFTEs'!$Z12),0),0) -> 0 | P12: 0 | Q12: =IFERROR(ROUND($B12*('C- GrossFTEs'!X12/'C- GrossFTEs'!$Z12),0),0) -> 0
A13: =IF('C- GrossFTEs'!A13=0,"",'C- GrossFTEs'!A13) -> Archives | B13: 12000 | E13: =IFERROR(ROUND($B13*('C- GrossFTEs'!E13/'C- GrossFTEs'!$Z13),0),0) -> 1500 | F13: =IFERROR(ROUND($B13*('C- GrossFTEs'!G13/'C- GrossFTEs'!$Z13),0),0) -> 1500 | G13: =IFERROR(ROUND($B13*('C- GrossFTEs'!H13/'C- GrossFTEs'!$Z13),0),0) -> 1500 | H13: =IFERROR(ROUND($B13*('C- GrossFTEs'!J13/'C- GrossFTEs'!$Z13),0),0) -> 840 | I13: =IFERROR(ROUND($B13*('C- GrossFTEs'!K13/'C- GrossFTEs'!$Z13),0),0) -> 660 | J13: =IFERROR(ROUND($B13*('C- GrossFTEs'!L13/'C- GrossFTEs'!$Z13),0),0) -> 1500 | K13: =IFERROR(ROUND($B13*('C- GrossFTEs'!M13/'C- GrossFTEs'!$Z13),0),0) -> 0 | L13: =IFERROR(ROUND($B13*('C- GrossFTEs'!N13/'C- GrossFTEs'!$Z13),0),0) -> 0 | M13: =IFERROR(ROUND($B13*('C- GrossFTEs'!P13/'C- GrossFTEs'!$Z13),0),0) -> 1500 | N13: =IFERROR(ROUND($B13*('C- GrossFTEs'!Q13/'C- GrossFTEs'!$Z13),0),0) -> 1500 | O13: =IFERROR(ROUND($B13*('C- GrossFTEs'!S13/'C- GrossFTEs'!$Z13),0),0) -> 690 | P13: 810 | Q13: =IFERROR(ROUND($B13*('C- GrossFTEs'!X13/'C- GrossFTEs'!$Z13),0),0) -> 0
A14: =IF('C- GrossFTEs'!A14=0,"",'C- GrossFTEs'!A14) -> Felony | B14: 12000 | E14: =IFERROR(ROUND($B14*('C- GrossFTEs'!E14/'C- GrossFTEs'!$Z14),0),0) -> 12000 | F14: =IFERROR(ROUND($B14*('C- GrossFTEs'!G14/'C- GrossFTEs'!$Z14),0),0) -> 0 | G14: =IFERROR(ROUND($B14*('C- GrossFTEs'!H14/'C- GrossFTEs'!$Z14),0),0) -> 0 | H14: =IFERROR(ROUND($B14*('C- GrossFTEs'!J14/'C- GrossFTEs'!$Z14),0),0) -> 0 | I14: =IFERROR(ROUND($B14*('C- GrossFTEs'!K14/'C- GrossFTEs'!$Z14),0),0) -> 0 | J14: =IFERROR(ROUND($B14*('C- GrossFTEs'!L14/'C- GrossFTEs'!$Z14),0),0) -> 0 | K14: =IFERROR(ROUND($B14*('C- GrossFTEs'!M14/'C- GrossFTEs'!$Z14),0),0) -> 0 | L14: =IFERROR(ROUND($B14*('C- GrossFTEs'!N14/'C- GrossFTEs'!$Z14),0),0) -> 0 | M14: =IFERROR(ROUND($B14*('C- GrossFTEs'!P14/'C- GrossFTEs'!$Z14),0),0) -> 0 | N14: =IFERROR(ROUND($B14*('C- GrossFTEs'!Q14/'C- GrossFTEs'!$Z14),0),0) -> 0 | O14: =IFERROR(ROUND($B14*('C- GrossFTEs'!S14/'C- GrossFTEs'!$Z14),0),0) -> 0 | P14: 0 | Q14: =IFERROR(ROUND($B14*('C- GrossFTEs'!X14/'C- GrossFTEs'!$Z14),0),0) -> 0
A15: =IF('C- GrossFTEs'!A15=0,"",'C- GrossFTEs'!A15) -> Circuit Civil | B15: 12000 | E15: =IFERROR(ROUND($B15*('C- GrossFTEs'!E15/'C- GrossFTEs'!$Z15),0),0) -> 0 | F15: =IFERROR(ROUND($B15*('C- GrossFTEs'!G15/'C- GrossFTEs'!$Z15),0),0) -> 12000 | G15: =IFERROR(ROUND($B15*('C- GrossFTEs'!H15/'C- GrossFTEs'!$Z15),0),0) -> 0 | H15: =IFERROR(ROUND($B15*('C- GrossFTEs'!J15/'C- GrossFTEs'!$Z15),0),0) -> 0 | I15: =IFERROR(ROUND($B15*('C- GrossFTEs'!K15/'C- GrossFTEs'!$Z15),0),0) -> 0 | J15: =IFERROR(ROUND($B15*('C- GrossFTEs'!L15/'C- GrossFTEs'!$Z15),0),0) -> 0 | K15: =IFERROR(ROUND($B15*('C- GrossFTEs'!M15/'C- GrossFTEs'!$Z15),0),0) -> 0 | L15: =IFERROR(ROUND($B15*('C- GrossFTEs'!N15/'C- GrossFTEs'!$Z15),0),0) -> 0 | M15: =IFERROR(ROUND($B15*('C- GrossFTEs'!P15/'C- GrossFTEs'!$Z15),0),0) -> 0 | N15: =IFERROR(ROUND($B15*('C- GrossFTEs'!Q15/'C- GrossFTEs'!$Z15),0),0) -> 0 | O15: =IFERROR(ROUND($B15*('C- GrossFTEs'!S15/'C- GrossFTEs'!$Z15),0),0) -> 0 | P15: 0 | Q15: =IFERROR(ROUND($B15*('C- GrossFTEs'!X15/'C- GrossFTEs'!$Z15),0),0) -> 0
A16: =IF('C- GrossFTEs'!A16=0,"",'C- GrossFTEs'!A16) -> Family Law | B16: 12000 | E16: =IFERROR(ROUND($B16*('C- GrossFTEs'!E16/'C- GrossFTEs'!$Z16),0),0) -> 0 | F16: =IFERROR(ROUND($B16*('C- GrossFTEs'!G16/'C- GrossFTEs'!$Z16),0),0) -> 0 | G16: =IFERROR(ROUND($B16*('C- GrossFTEs'!H16/'C- GrossFTEs'!$Z16),0),0) -> 12000 | H16: =IFERROR(ROUND($B16*('C- GrossFTEs'!J16/'C- GrossFTEs'!$Z16),0),0) -> 0 | I16: =IFERROR(ROUND($B16*('C- GrossFTEs'!K16/'C- GrossFTEs'!$Z16),0),0) -> 0 | J16: =IFERROR(ROUND($B16*('C- GrossFTEs'!L16/'C- GrossFTEs'!$Z16),0),0) -> 0 | K16: =IFERROR(ROUND($B16*('C- GrossFTEs'!M16/'C- GrossFTEs'!$Z16),0),0) -> 0 | L16: =IFERROR(ROUND($B16*('C- GrossFTEs'!N16/'C- GrossFTEs'!$Z16),0),0) -> 0 | M16: =IFERROR(ROUND($B16*('C- GrossFTEs'!P16/'C- GrossFTEs'!$Z16),0),0) -> 0 | N16: =IFERROR(ROUND($B16*('C- GrossFTEs'!Q16/'C- GrossFTEs'!$Z16),0),0) -> 0 | O16: =IFERROR(ROUND($B16*('C- GrossFTEs'!S16/'C- GrossFTEs'!$Z16),0),0) -> 0 | P16: 0 | Q16: =IFERROR(ROUND($B16*('C- GrossFTEs'!X16/'C- GrossFTEs'!$Z16),0),0) -> 0
A17: =IF('C- GrossFTEs'!A17=0,"",'C- GrossFTEs'!A17) -> Juvenile | B17: 12000 | E17: =IFERROR(ROUND($B17*('C- GrossFTEs'!E17/'C- GrossFTEs'!$Z17),0),0) -> 0 | F17: =IFERROR(ROUND($B17*('C- GrossFTEs'!G17/'C- GrossFTEs'!$Z17),0),0) -> 0 | G17: =IFERROR(ROUND($B17*('C- GrossFTEs'!H17/'C- GrossFTEs'!$Z17),0),0) -> 0 | H17: =IFERROR(ROUND($B17*('C- GrossFTEs'!J17/'C- GrossFTEs'!$Z17),0),0) -> 6600 | I17: =IFERROR(ROUND($B17*('C- GrossFTEs'!K17/'C- GrossFTEs'!$Z17),0),0) -> 5400 | J17: =IFERROR(ROUND($B17*('C- GrossFTEs'!L17/'C- GrossFTEs'!$Z17),0),0) -> 0 | K17: =IFERROR(ROUND($B17*('C- GrossFTEs'!M17/'C- GrossFTEs'!$Z17),0),0) -> 0 | L17: =IFERROR(ROUND($B17*('C- GrossFTEs'!N17/'C- GrossFTEs'!$Z17),0),0) -> 0 | M17: =IFERROR(ROUND($B17*('C- GrossFTEs'!P17/'C- GrossFTEs'!$Z17),0),0) -> 0 | N17: =IFERROR(ROUND($B17*('C- GrossFTEs'!Q17/'C- GrossFTEs'!$Z17),0),0) -> 0 | O17: =IFERROR(ROUND($B17*('C- GrossFTEs'!S17/'C- GrossFTEs'!$Z17),0),0) -> 0 | P17: 0 | Q17: =IFERROR(ROUND($B17*('C- GrossFTEs'!X17/'C- GrossFTEs'!$Z17),0),0) -> 0
A18: =IF('C- GrossFTEs'!A18=0,"",'C- GrossFTEs'!A18) -> Probate | B18: 12000 | E18: =IFERROR(ROUND($B18*('C- GrossFTEs'!E18/'C- GrossFTEs'!$Z18),0),0) -> 0 | F18: =IFERROR(ROUND($B18*('C- GrossFTEs'!G18/'C- GrossFTEs'!$Z18),0),0) -> 0 | G18: =IFERROR(ROUND($B18*('C- GrossFTEs'!H18/'C- GrossFTEs'!$Z18),0),0) -> 0 | H18: =IFERROR(ROUND($B18*('C- GrossFTEs'!J18/'C- GrossFTEs'!$Z18),0),0) -> 0 | I18: =IFERROR(ROUND($B18*('C- GrossFTEs'!K18/'C- GrossFTEs'!$Z18),0),0) -> 0 | J18: =IFERROR(ROUND($B18*('C- GrossFTEs'!L18/'C- GrossFTEs'!$Z18),0),0) -> 12000 | K18: =IFERROR(ROUND($B18*('C- GrossFTEs'!M18/'C- GrossFTEs'!$Z18),0),0) -> 0 | L18: =IFERROR(ROUND($B18*('C- GrossFTEs'!N18/'C- GrossFTEs'!$Z18),0),0) -> 0 | M18: =IFERROR(ROUND($B18*('C- GrossFTEs'!P18/'C- GrossFTEs'!$Z18),0),0) -> 0 | N18: =IFERROR(ROUND($B18*('C- GrossFTEs'!Q18/'C- GrossFTEs'!$Z18),0),0) -> 0 | O18: =IFERROR(ROUND($B18*('C- GrossFTEs'!S18/'C- GrossFTEs'!$Z18),0),0) -> 0 | P18: 0 | Q18: =IFERROR(ROUND($B18*('C- GrossFTEs'!X18/'C- GrossFTEs'!$Z18),0),0) -> 0
A19: =IF('C- GrossFTEs'!A19=0,"",'C- GrossFTEs'!A19) -> Misdemeanor | B19: 12000 | E19: =IFERROR(ROUND($B19*('C- GrossFTEs'!E19/'C- GrossFTEs'!$Z19),0),0) -> 0 | F19: =IFERROR(ROUND($B19*('C- GrossFTEs'!G19/'C- GrossFTEs'!$Z19),0),0) -> 0 | G19: =IFERROR(ROUND($B19*('C- GrossFTEs'!H19/'C- GrossFTEs'!$Z19),0),0) -> 0 | H19: =IFERROR(ROUND($B19*('C- GrossFTEs'!J19/'C- GrossFTEs'!$Z19),0),0) -> 0 | I19: =IFERROR(ROUND($B19*('C- GrossFTEs'!K19/'C- GrossFTEs'!$Z19),0),0) -> 0 | J19: =IFERROR(ROUND($B19*('C- GrossFTEs'!L19/'C- GrossFTEs'!$Z19),0),0) -> 0 | K19: =IFERROR(ROUND($B19*('C- GrossFTEs'!M19/'C- GrossFTEs'!$Z19),0),0) -> 0 | L19: =IFERROR(ROUND($B19*('C- GrossFTEs'!N19/'C- GrossFTEs'!$Z19),0),0) -> 0 | M19: =IFERROR(ROUND($B19*('C- GrossFTEs'!P19/'C- GrossFTEs'!$Z19),0),0) -> 12000 | N19: =IFERROR(ROUND($B19*('C- GrossFTEs'!Q19/'C- GrossFTEs'!$Z19),0),0) -> 0 | O19: =IFERROR(ROUND($B19*('C- GrossFTEs'!S19/'C- GrossFTEs'!$Z19),0),0) -> 0 | P19: 0 | Q19: =IFERROR(ROUND($B19*('C- GrossFTEs'!X19/'C- GrossFTEs'!$Z19),0),0) -> 0
A20: =IF('C- GrossFTEs'!A20=0,"",'C- GrossFTEs'!A20) -> County Civil | B20: 12000 | E20: =IFERROR(ROUND($B20*('C- GrossFTEs'!E20/'C- GrossFTEs'!$Z20),0),0) -> 0 | F20: =IFERROR(ROUND($B20*('C- GrossFTEs'!G20/'C- GrossFTEs'!$Z20),0),0) -> 0 | G20: =IFERROR(ROUND($B20*('C- GrossFTEs'!H20/'C- GrossFTEs'!$Z20),0),0) -> 0 | H20: =IFERROR(ROUND($B20*('C- GrossFTEs'!J20/'C- GrossFTEs'!$Z20),0),0) -> 0 | I20: =IFERROR(ROUND($B20*('C- GrossFTEs'!K20/'C- GrossFTEs'!$Z20),0),0) -> 0 | J20: =IFERROR(ROUND($B20*('C- GrossFTEs'!L20/'C- GrossFTEs'!$Z20),0),0) -> 0 | K20: =IFERROR(ROUND($B20*('C- GrossFTEs'!M20/'C- GrossFTEs'!$Z20),0),0) -> 0 | L20: =IFERROR(ROUND($B20*('C- GrossFTEs'!N20/'C- GrossFTEs'!$Z20),0),0) -> 0 | M20: =IFERROR(ROUND($B20*('C- GrossFTEs'!P20/'C- GrossFTEs'!$Z20),0),0) -> 0 | N20: =IFERROR(ROUND($B20*('C- GrossFTEs'!Q20/'C- GrossFTEs'!$Z20),0),0) -> 12000 | O20: =IFERROR(ROUND($B20*('C- GrossFTEs'!S20/'C- GrossFTEs'!$Z20),0),0) -> 0 | P20: 0 | Q20: =IFERROR(ROUND($B20*('C- GrossFTEs'!X20/'C- GrossFTEs'!$Z20),0),0) -> 0
A21: =IF('C- GrossFTEs'!A21=0,"",'C- GrossFTEs'!A21) -> Traffic | B21: 12000 | E21: =IFERROR(ROUND($B21*('C- GrossFTEs'!E21/'C- GrossFTEs'!$Z21),0),0) -> 0 | F21: =IFERROR(ROUND($B21*('C- GrossFTEs'!G21/'C- GrossFTEs'!$Z21),0),0) -> 0 | G21: =IFERROR(ROUND($B21*('C- GrossFTEs'!H21/'C- GrossFTEs'!$Z21),0),0) -> 0 | H21: =IFERROR(ROUND($B21*('C- GrossFTEs'!J21/'C- GrossFTEs'!$Z21),0),0) -> 0 | I21: =IFERROR(ROUND($B21*('C- GrossFTEs'!K21/'C- GrossFTEs'!$Z21),0),0) -> 0 | J21: =IFERROR(ROUND($B21*('C- GrossFTEs'!L21/'C- GrossFTEs'!$Z21),0),0) -> 0 | K21: =IFERROR(ROUND($B21*('C- GrossFTEs'!M21/'C- GrossFTEs'!$Z21),0),0) -> 0 | L21: =IFERROR(ROUND($B21*('C- GrossFTEs'!N21/'C- GrossFTEs'!$Z21),0),0) -> 0 | M21: =IFERROR(ROUND($B21*('C- GrossFTEs'!P21/'C- GrossFTEs'!$Z21),0),0) -> 0 | N21: =IFERROR(ROUND($B21*('C- GrossFTEs'!Q21/'C- GrossFTEs'!$Z21),0),0) -> 0 | O21: =IFERROR(ROUND($B21*('C- GrossFTEs'!S21/'C- GrossFTEs'!$Z21),0),0) -> 5400 | P21: 6600 | Q21: =IFERROR(ROUND($B21*('C- GrossFTEs'!X21/'C- GrossFTEs'!$Z21),0),0) -> 0
A22: =IF('C- GrossFTEs'!A22=0,"",'C- GrossFTEs'!A22) -> Information Technology | E22: =IFERROR(ROUND($B22*('C- GrossFTEs'!E22/'C- GrossFTEs'!$Z22),0),0) -> 0 | F22: =IFERROR(ROUND($B22*('C- GrossFTEs'!G22/'C- GrossFTEs'!$Z22),0),0) -> 0 | G22: =IFERROR(ROUND($B22*('C- GrossFTEs'!H22/'C- GrossFTEs'!$Z22),0),0) -> 0 | H22: =IFERROR(ROUND($B22*('C- GrossFTEs'!J22/'C- GrossFTEs'!$Z22),0),0) -> 0 | I22: =IFERROR(ROUND($B22*('C- GrossFTEs'!K22/'C- GrossFTEs'!$Z22),0),0) -> 0 | J22: =IFERROR(ROUND($B22*('C- GrossFTEs'!L22/'C- GrossFTEs'!$Z22),0),0) -> 0 | K22: =IFERROR(ROUND($B22*('C- GrossFTEs'!M22/'C- GrossFTEs'!$Z22),0),0) -> 0 | L22: =IFERROR(ROUND($B22*('C- GrossFTEs'!N22/'C- GrossFTEs'!$Z22),0),0) -> 0 | M22: =IFERROR(ROUND($B22*('C- GrossFTEs'!P22/'C- GrossFTEs'!$Z22),0),0) -> 0 | N22: =IFERROR(ROUND($B22*('C- GrossFTEs'!Q22/'C- GrossFTEs'!$Z22),0),0) -> 0 | O22: =IFERROR(ROUND($B22*('C- GrossFTEs'!S22/'C- GrossFTEs'!$Z22),0),0) -> 0 | P22: 0 | Q22: =IFERROR(ROUND($B22*('C- GrossFTEs'!X22/'C- GrossFTEs'!$Z22),0),0) -> 0
A23: =IF('C- GrossFTEs'!A23=0,"",'C- GrossFTEs'!A23) -> Collections | B23: 6000 | E23: =IFERROR(ROUND($B23*('C- GrossFTEs'!E23/'C- GrossFTEs'!$Z23),0),0) -> 750 | F23: =IFERROR(ROUND($B23*('C- GrossFTEs'!G23/'C- GrossFTEs'!$Z23),0),0) -> 750 | G23: =IFERROR(ROUND($B23*('C- GrossFTEs'!H23/'C- GrossFTEs'!$Z23),0),0) -> 750 | H23: =IFERROR(ROUND($B23*('C- GrossFTEs'!J23/'C- GrossFTEs'!$Z23),0),0) -> 420 | I23: =IFERROR(ROUND($B23*('C- GrossFTEs'!K23/'C- GrossFTEs'!$Z23),0),0) -> 330 | J23: =IFERROR(ROUND($B23*('C- GrossFTEs'!L23/'C- GrossFTEs'!$Z23),0),0) -> 750 | K23: =IFERROR(ROUND($B23*('C- GrossFTEs'!M23/'C- GrossFTEs'!$Z23),0),0) -> 0 | L23: =IFERROR(ROUND($B23*('C- GrossFTEs'!N23/'C- GrossFTEs'!$Z23),0),0) -> 0 | M23: =IFERROR(ROUND($B23*('C- GrossFTEs'!P23/'C- GrossFTEs'!$Z23),0),0) -> 750 | N23: =IFERROR(ROUND($B23*('C- GrossFTEs'!Q23/'C- GrossFTEs'!$Z23),0),0) -> 750 | O23: =IFERROR(ROUND($B23*('C- GrossFTEs'!S23/'C- GrossFTEs'!$Z23),0),0) -> 330 | P23: 420 | Q23: =IFERROR(ROUND($B23*('C- GrossFTEs'!X23/'C- GrossFTEs'!$Z23),0),0) -> 0
A24: =IF('C- GrossFTEs'!A24=0,"",'C- GrossFTEs'!A24) ->  | E24: =IFERROR(ROUND($B24*('C- GrossFTEs'!E24/'C- GrossFTEs'!$Z24),0),0) -> 0 | F24: =IFERROR(ROUND($B24*('C- GrossFTEs'!G24/'C- GrossFTEs'!$Z24),0),0) -> 0 | G24: =IFERROR(ROUND($B24*('C- GrossFTEs'!H24/'C- GrossFTEs'!$Z24),0),0) -> 0 | H24: =IFERROR(ROUND($B24*('C- GrossFTEs'!J24/'C- GrossFTEs'!$Z24),0),0) -> 0 | I24: =IFERROR(ROUND($B24*('C- GrossFTEs'!K24/'C- GrossFTEs'!$Z24),0),0) -> 0 | J24: =IFERROR(ROUND($B24*('C- GrossFTEs'!L24/'C- GrossFTEs'!$Z24),0),0) -> 0 | K24: =IFERROR(ROUND($B24*('C- GrossFTEs'!M24/'C- GrossFTEs'!$Z24),0),0) -> 0 | L24: =IFERROR(ROUND($B24*('C- GrossFTEs'!N24/'C- GrossFTEs'!$Z24),0),0) -> 0 | M24: =IFERROR(ROUND($B24*('C- GrossFTEs'!P24/'C- GrossFTEs'!$Z24),0),0) -> 0 | N24: =IFERROR(ROUND($B24*('C- GrossFTEs'!Q24/'C- GrossFTEs'!$Z24),0),0) -> 0 | O24: =IFERROR(ROUND($B24*('C- GrossFTEs'!S24/'C- GrossFTEs'!$Z24),0),0) -> 0 | P24: 0 | Q24: =IFERROR(ROUND($B24*('C- GrossFTEs'!X24/'C- GrossFTEs'!$Z24),0),0) -> 0
A25: =IF('C- GrossFTEs'!A25=0,"",'C- GrossFTEs'!A25) -> Southend | E25: =IFERROR(ROUND($B25*('C- GrossFTEs'!E25/'C- GrossFTEs'!$Z25),0),0) -> 0 | F25: =IFERROR(ROUND($B25*('C- GrossFTEs'!G25/'C- GrossFTEs'!$Z25),0),0) -> 0 | G25: =IFERROR(ROUND($B25*('C- GrossFTEs'!H25/'C- GrossFTEs'!$Z25),0),0) -> 0 | H25: =IFERROR(ROUND($B25*('C- GrossFTEs'!J25/'C- GrossFTEs'!$Z25),0),0) -> 0 | I25: =IFERROR(ROUND($B25*('C- GrossFTEs'!K25/'C- GrossFTEs'!$Z25),0),0) -> 0 | J25: =IFERROR(ROUND($B25*('C- GrossFTEs'!L25/'C- GrossFTEs'!$Z25),0),0) -> 0 | K25: =IFERROR(ROUND($B25*('C- GrossFTEs'!M25/'C- GrossFTEs'!$Z25),0),0) -> 0 | L25: =IFERROR(ROUND($B25*('C- GrossFTEs'!N25/'C- GrossFTEs'!$Z25),0),0) -> 0 | M25: =IFERROR(ROUND($B25*('C- GrossFTEs'!P25/'C- GrossFTEs'!$Z25),0),0) -> 0 | N25: =IFERROR(ROUND($B25*('C- GrossFTEs'!Q25/'C- GrossFTEs'!$Z25),0),0) -> 0 | O25: =IFERROR(ROUND($B25*('C- GrossFTEs'!S25/'C- GrossFTEs'!$Z25),0),0) -> 0 | P25: 0 | Q25: =IFERROR(ROUND($B25*('C- GrossFTEs'!X25/'C- GrossFTEs'!$Z25),0),0) -> 0
A26: =IF('C- GrossFTEs'!A26=0,"",'C- GrossFTEs'!A26) -> Board Finance | E26: =IFERROR(ROUND($B26*('C- GrossFTEs'!E26/'C- GrossFTEs'!$Z26),0),0) -> 0 | F26: =IFERROR(ROUND($B26*('C- GrossFTEs'!G26/'C- GrossFTEs'!$Z26),0),0) -> 0 | G26: =IFERROR(ROUND($B26*('C- GrossFTEs'!H26/'C- GrossFTEs'!$Z26),0),0) -> 0 | H26: =IFERROR(ROUND($B26*('C- GrossFTEs'!J26/'C- GrossFTEs'!$Z26),0),0) -> 0 | I26: =IFERROR(ROUND($B26*('C- GrossFTEs'!K26/'C- GrossFTEs'!$Z26),0),0) -> 0 | J26: =IFERROR(ROUND($B26*('C- GrossFTEs'!L26/'C- GrossFTEs'!$Z26),0),0) -> 0 | K26: =IFERROR(ROUND($B26*('C- GrossFTEs'!M26/'C- GrossFTEs'!$Z26),0),0) -> 0 | L26: =IFERROR(ROUND($B26*('C- GrossFTEs'!N26/'C- GrossFTEs'!$Z26),0),0) -> 0 | M26: =IFERROR(ROUND($B26*('C- GrossFTEs'!P26/'C- GrossFTEs'!$Z26),0),0) -> 0 | N26: =IFERROR(ROUND($B26*('C- GrossFTEs'!Q26/'C- GrossFTEs'!$Z26),0),0) -> 0 | O26: =IFERROR(ROUND($B26*('C- GrossFTEs'!S26/'C- GrossFTEs'!$Z26),0),0) -> 0 | P26: 0 | Q26: =IFERROR(ROUND($B26*('C- GrossFTEs'!X26/'C- GrossFTEs'!$Z26),0),0) -> 0
A27: =IF('C- GrossFTEs'!A27=0,"",'C- GrossFTEs'!A27) -> Board Support | E27: =IFERROR(ROUND($B27*('C- GrossFTEs'!E27/'C- GrossFTEs'!$Z27),0),0) -> 0 | F27: =IFERROR(ROUND($B27*('C- GrossFTEs'!G27/'C- GrossFTEs'!$Z27),0),0) -> 0 | G27: =IFERROR(ROUND($B27*('C- GrossFTEs'!H27/'C- GrossFTEs'!$Z27),0),0) -> 0 | H27: =IFERROR(ROUND($B27*('C- GrossFTEs'!J27/'C- GrossFTEs'!$Z27),0),0) -> 0 | I27: =IFERROR(ROUND($B27*('C- GrossFTEs'!K27/'C- GrossFTEs'!$Z27),0),0) -> 0 | J27: =IFERROR(ROUND($B27*('C- GrossFTEs'!L27/'C- GrossFTEs'!$Z27),0),0) -> 0 | K27: =IFERROR(ROUND($B27*('C- GrossFTEs'!M27/'C- GrossFTEs'!$Z27),0),0) -> 0 | L27: =IFERROR(ROUND($B27*('C- GrossFTEs'!N27/'C- GrossFTEs'!$Z27),0),0) -> 0 | M27: =IFERROR(ROUND($B27*('C- GrossFTEs'!P27/'C- GrossFTEs'!$Z27),0),0) -> 0 | N27: =IFERROR(ROUND($B27*('C- GrossFTEs'!Q27/'C- GrossFTEs'!$Z27),0),0) -> 0 | O27: =IFERROR(ROUND($B27*('C- GrossFTEs'!S27/'C- GrossFTEs'!$Z27),0),0) -> 0 | P27: 0 | Q27: =IFERROR(ROUND($B27*('C- GrossFTEs'!X27/'C- GrossFTEs'!$Z27),0),0) -> 0
A28: =IF('C- GrossFTEs'!A28=0,"",'C- GrossFTEs'!A28) -> Internal Audit | E28: =IFERROR(ROUND($B28*('C- GrossFTEs'!E28/'C- GrossFTEs'!$Z28),0),0) -> 0 | F28: =IFERROR(ROUND($B28*('C- GrossFTEs'!G28/'C- GrossFTEs'!$Z28),0),0) -> 0 | G28: =IFERROR(ROUND($B28*('C- GrossFTEs'!H28/'C- GrossFTEs'!$Z28),0),0) -> 0 | H28: =IFERROR(ROUND($B28*('C- GrossFTEs'!J28/'C- GrossFTEs'!$Z28),0),0) -> 0 | I28: =IFERROR(ROUND($B28*('C- GrossFTEs'!K28/'C- GrossFTEs'!$Z28),0),0) -> 0 | J28: =IFERROR(ROUND($B28*('C- GrossFTEs'!L28/'C- GrossFTEs'!$Z28),0),0) -> 0 | K28: =IFERROR(ROUND($B28*('C- GrossFTEs'!M28/'C- GrossFTEs'!$Z28),0),0) -> 0 | L28: =IFERROR(ROUND($B28*('C- GrossFTEs'!N28/'C- GrossFTEs'!$Z28),0),0) -> 0 | M28: =IFERROR(ROUND($B28*('C- GrossFTEs'!P28/'C- GrossFTEs'!$Z28),0),0) -> 0 | N28: =IFERROR(ROUND($B28*('C- GrossFTEs'!Q28/'C- GrossFTEs'!$Z28),0),0) -> 0 | O28: =IFERROR(ROUND($B28*('C- GrossFTEs'!S28/'C- GrossFTEs'!$Z28),0),0) -> 0 | P28: 0 | Q28: =IFERROR(ROUND($B28*('C- GrossFTEs'!X28/'C- GrossFTEs'!$Z28),0),0) -> 0
A29: =IF('C- GrossFTEs'!A29=0,"",'C- GrossFTEs'!A29) -> Recording | E29: =IFERROR(ROUND($B29*('C- GrossFTEs'!E29/'C- GrossFTEs'!$Z29),0),0) -> 0 | F29: =IFERROR(ROUND($B29*('C- GrossFTEs'!G29/'C- GrossFTEs'!$Z29),0),0) -> 0 | G29: =IFERROR(ROUND($B29*('C- GrossFTEs'!H29/'C- GrossFTEs'!$Z29),0),0) -> 0 | H29: =IFERROR(ROUND($B29*('C- GrossFTEs'!J29/'C- GrossFTEs'!$Z29),0),0) -> 0 | I29: =IFERROR(ROUND($B29*('C- GrossFTEs'!K29/'C- GrossFTEs'!$Z29),0),0) -> 0 | J29: =IFERROR(ROUND($B29*('C- GrossFTEs'!L29/'C- GrossFTEs'!$Z29),0),0) -> 0 | K29: =IFERROR(ROUND($B29*('C- GrossFTEs'!M29/'C- GrossFTEs'!$Z29),0),0) -> 0 | L29: =IFERROR(ROUND($B29*('C- GrossFTEs'!N29/'C- GrossFTEs'!$Z29),0),0) -> 0 | M29: =IFERROR(ROUND($B29*('C- GrossFTEs'!P29/'C- GrossFTEs'!$Z29),0),0) -> 0 | N29: =IFERROR(ROUND($B29*('C- GrossFTEs'!Q29/'C- GrossFTEs'!$Z29),0),0) -> 0 | O29: =IFERROR(ROUND($B29*('C- GrossFTEs'!S29/'C- GrossFTEs'!$Z29),0),0) -> 0 | P29: 0 | Q29: =IFERROR(ROUND($B29*('C- GrossFTEs'!X29/'C- GrossFTEs'!$Z29),0),0) -> 0
A30: =IF('C- GrossFTEs'!A30=0,"",'C- GrossFTEs'!A30) -> Courier | E30: =IFERROR(ROUND($B30*('C- GrossFTEs'!E30/'C- GrossFTEs'!$Z30),0),0) -> 0 | F30: =IFERROR(ROUND($B30*('C- GrossFTEs'!G30/'C- GrossFTEs'!$Z30),0),0) -> 0 | G30: =IFERROR(ROUND($B30*('C- GrossFTEs'!H30/'C- GrossFTEs'!$Z30),0),0) -> 0 | H30: =IFERROR(ROUND($B30*('C- GrossFTEs'!J30/'C- GrossFTEs'!$Z30),0),0) -> 0 | I30: =IFERROR(ROUND($B30*('C- GrossFTEs'!K30/'C- GrossFTEs'!$Z30),0),0) -> 0 | J30: =IFERROR(ROUND($B30*('C- GrossFTEs'!L30/'C- GrossFTEs'!$Z30),0),0) -> 0 | K30: =IFERROR(ROUND($B30*('C- GrossFTEs'!M30/'C- GrossFTEs'!$Z30),0),0) -> 0 | L30: =IFERROR(ROUND($B30*('C- GrossFTEs'!N30/'C- GrossFTEs'!$Z30),0),0) -> 0 | M30: =IFERROR(ROUND($B30*('C- GrossFTEs'!P30/'C- GrossFTEs'!$Z30),0),0) -> 0 | N30: =IFERROR(ROUND($B30*('C- GrossFTEs'!Q30/'C- GrossFTEs'!$Z30),0),0) -> 0 | O30: =IFERROR(ROUND($B30*('C- GrossFTEs'!S30/'C- GrossFTEs'!$Z30),0),0) -> 0 | P30: 0 | Q30: =IFERROR(ROUND($B30*('C- GrossFTEs'!X30/'C- GrossFTEs'!$Z30),0),0) -> 0
A31: =IF('C- GrossFTEs'!A31=0,"",'C- GrossFTEs'!A31) ->  | E31: =IFERROR(ROUND($B31*('C- GrossFTEs'!E31/'C- GrossFTEs'!$Z31),0),0) -> 0 | F31: =IFERROR(ROUND($B31*('C- GrossFTEs'!G31/'C- GrossFTEs'!$Z31),0),0) -> 0 | G31: =IFERROR(ROUND($B31*('C- GrossFTEs'!H31/'C- GrossFTEs'!$Z31),0),0) -> 0 | H31: =IFERROR(ROUND($B31*('C- GrossFTEs'!J31/'C- GrossFTEs'!$Z31),0),0) -> 0 | I31: =IFERROR(ROUND($B31*('C- GrossFTEs'!K31/'C- GrossFTEs'!$Z31),0),0) -> 0 | J31: =IFERROR(ROUND($B31*('C- GrossFTEs'!L31/'C- GrossFTEs'!$Z31),0),0) -> 0 | K31: =IFERROR(ROUND($B31*('C- GrossFTEs'!M31/'C- GrossFTEs'!$Z31),0),0) -> 0 | L31: =IFERROR(ROUND($B31*('C- GrossFTEs'!N31/'C- GrossFTEs'!$Z31),0),0) -> 0 | M31: =IFERROR(ROUND($B31*('C- GrossFTEs'!P31/'C- GrossFTEs'!$Z31),0),0) -> 0 | N31: =IFERROR(ROUND($B31*('C- GrossFTEs'!Q31/'C- GrossFTEs'!$Z31),0),0) -> 0 | O31: =IFERROR(ROUND($B31*('C- GrossFTEs'!S31/'C- GrossFTEs'!$Z31),0),0) -> 0 | P31: 0 | Q31: =IFERROR(ROUND($B31*('C- GrossFTEs'!X31/'C- GrossFTEs'!$Z31),0),0) -> 0
A32: =IF('C- GrossFTEs'!A32=0,"",'C- GrossFTEs'!A32) ->  | E32: =IFERROR(ROUND($B32*('C- GrossFTEs'!E32/'C- GrossFTEs'!$Z32),0),0) -> 0 | F32: =IFERROR(ROUND($B32*('C- GrossFTEs'!G32/'C- GrossFTEs'!$Z32),0),0) -> 0 | G32: =IFERROR(ROUND($B32*('C- GrossFTEs'!H32/'C- GrossFTEs'!$Z32),0),0) -> 0 | H32: =IFERROR(ROUND($B32*('C- GrossFTEs'!J32/'C- GrossFTEs'!$Z32),0),0) -> 0 | I32: =IFERROR(ROUND($B32*('C- GrossFTEs'!K32/'C- GrossFTEs'!$Z32),0),0) -> 0 | J32: =IFERROR(ROUND($B32*('C- GrossFTEs'!L32/'C- GrossFTEs'!$Z32),0),0) -> 0 | K32: =IFERROR(ROUND($B32*('C- GrossFTEs'!M32/'C- GrossFTEs'!$Z32),0),0) -> 0 | L32: =IFERROR(ROUND($B32*('C- GrossFTEs'!N32/'C- GrossFTEs'!$Z32),0),0) -> 0 | M32: =IFERROR(ROUND($B32*('C- GrossFTEs'!P32/'C- GrossFTEs'!$Z32),0),0) -> 0 | N32: =IFERROR(ROUND($B32*('C- GrossFTEs'!Q32/'C- GrossFTEs'!$Z32),0),0) -> 0 | O32: =IFERROR(ROUND($B32*('C- GrossFTEs'!S32/'C- GrossFTEs'!$Z32),0),0) -> 0 | P32: 0 | Q32: =IFERROR(ROUND($B32*('C- GrossFTEs'!X32/'C- GrossFTEs'!$Z32),0),0) -> 0
A33: =IF('C- GrossFTEs'!A33=0,"",'C- GrossFTEs'!A33) ->  | E33: =IFERROR(ROUND($B33*('C- GrossFTEs'!E33/'C- GrossFTEs'!$Z33),0),0) -> 0 | F33: =IFERROR(ROUND($B33*('C- GrossFTEs'!G33/'C- GrossFTEs'!$Z33),0),0) -> 0 | G33: =IFERROR(ROUND($B33*('C- GrossFTEs'!H33/'C- GrossFTEs'!$Z33),0),0) -> 0 | H33: =IFERROR(ROUND($B33*('C- GrossFTEs'!J33/'C- GrossFTEs'!$Z33),0),0) -> 0 | I33: =IFERROR(ROUND($B33*('C- GrossFTEs'!K33/'C- GrossFTEs'!$Z33),0),0) -> 0 | J33: =IFERROR(ROUND($B33*('C- GrossFTEs'!L33/'C- GrossFTEs'!$Z33),0),0) -> 0 | K33: =IFERROR(ROUND($B33*('C- GrossFTEs'!M33/'C- GrossFTEs'!$Z33),0),0) -> 0 | L33: =IFERROR(ROUND($B33*('C- GrossFTEs'!N33/'C- GrossFTEs'!$Z33),0),0) -> 0 | M33: =IFERROR(ROUND($B33*('C- GrossFTEs'!P33/'C- GrossFTEs'!$Z33),0),0) -> 0 | N33: =IFERROR(ROUND($B33*('C- GrossFTEs'!Q33/'C- GrossFTEs'!$Z33),0),0) -> 0 | O33: =IFERROR(ROUND($B33*('C- GrossFTEs'!S33/'C- GrossFTEs'!$Z33),0),0) -> 0 | P33: 0 | Q33: =IFERROR(ROUND($B33*('C- GrossFTEs'!X33/'C- GrossFTEs'!$Z33),0),0) -> 0
A34: =IF('C- GrossFTEs'!A34=0,"",'C- GrossFTEs'!A34) ->  | E34: =IFERROR(ROUND($B34*('C- GrossFTEs'!E34/'C- GrossFTEs'!$Z34),0),0) -> 0 | F34: =IFERROR(ROUND($B34*('C- GrossFTEs'!G34/'C- GrossFTEs'!$Z34),0),0) -> 0 | G34: =IFERROR(ROUND($B34*('C- GrossFTEs'!H34/'C- GrossFTEs'!$Z34),0),0) -> 0 | H34: =IFERROR(ROUND($B34*('C- GrossFTEs'!J34/'C- GrossFTEs'!$Z34),0),0) -> 0 | I34: =IFERROR(ROUND($B34*('C- GrossFTEs'!K34/'C- GrossFTEs'!$Z34),0),0) -> 0 | J34: =IFERROR(ROUND($B34*('C- GrossFTEs'!L34/'C- GrossFTEs'!$Z34),0),0) -> 0 | K34: =IFERROR(ROUND($B34*('C- GrossFTEs'!M34/'C- GrossFTEs'!$Z34),0),0) -> 0 | L34: =IFERROR(ROUND($B34*('C- GrossFTEs'!N34/'C- GrossFTEs'!$Z34),0),0) -> 0 | M34: =IFERROR(ROUND($B34*('C- GrossFTEs'!P34/'C- GrossFTEs'!$Z34),0),0) -> 0 | N34: =IFERROR(ROUND($B34*('C- GrossFTEs'!Q34/'C- GrossFTEs'!$Z34),0),0) -> 0 | O34: =IFERROR(ROUND($B34*('C- GrossFTEs'!S34/'C- GrossFTEs'!$Z34),0),0) -> 0 | P34: 0 | Q34: =IFERROR(ROUND($B34*('C- GrossFTEs'!X34/'C- GrossFTEs'!$Z34),0),0) -> 0
A35: =IF('C- GrossFTEs'!A35=0,"",'C- GrossFTEs'!A35) ->  | E35: =IFERROR(ROUND($B35*('C- GrossFTEs'!E35/'C- GrossFTEs'!$Z35),0),0) -> 0 | F35: =IFERROR(ROUND($B35*('C- GrossFTEs'!G35/'C- GrossFTEs'!$Z35),0),0) -> 0 | G35: =IFERROR(ROUND($B35*('C- GrossFTEs'!H35/'C- GrossFTEs'!$Z35),0),0) -> 0 | H35: =IFERROR(ROUND($B35*('C- GrossFTEs'!J35/'C- GrossFTEs'!$Z35),0),0) -> 0 | I35: =IFERROR(ROUND($B35*('C- GrossFTEs'!K35/'C- GrossFTEs'!$Z35),0),0) -> 0 | J35: =IFERROR(ROUND($B35*('C- GrossFTEs'!L35/'C- GrossFTEs'!$Z35),0),0) -> 0 | K35: =IFERROR(ROUND($B35*('C- GrossFTEs'!M35/'C- GrossFTEs'!$Z35),0),0) -> 0 | L35: =IFERROR(ROUND($B35*('C- GrossFTEs'!N35/'C- GrossFTEs'!$Z35),0),0) -> 0 | M35: =IFERROR(ROUND($B35*('C- GrossFTEs'!P35/'C- GrossFTEs'!$Z35),0),0) -> 0 | N35: =IFERROR(ROUND($B35*('C- GrossFTEs'!Q35/'C- GrossFTEs'!$Z35),0),0) -> 0 | O35: =IFERROR(ROUND($B35*('C- GrossFTEs'!S35/'C- GrossFTEs'!$Z35),0),0) -> 0 | P35: 0 | Q35: =IFERROR(ROUND($B35*('C- GrossFTEs'!X35/'C- GrossFTEs'!$Z35),0),0) -> 0
A36: =IF('C- GrossFTEs'!A36=0,"",'C- GrossFTEs'!A36) ->  | E36: =IFERROR(ROUND($B36*('C- GrossFTEs'!E36/'C- GrossFTEs'!$Z36),0),0) -> 0 | F36: =IFERROR(ROUND($B36*('C- GrossFTEs'!G36/'C- GrossFTEs'!$Z36),0),0) -> 0 | G36: =IFERROR(ROUND($B36*('C- GrossFTEs'!H36/'C- GrossFTEs'!$Z36),0),0) -> 0 | H36: =IFERROR(ROUND($B36*('C- GrossFTEs'!J36/'C- GrossFTEs'!$Z36),0),0) -> 0 | I36: =IFERROR(ROUND($B36*('C- GrossFTEs'!K36/'C- GrossFTEs'!$Z36),0),0) -> 0 | J36: =IFERROR(ROUND($B36*('C- GrossFTEs'!L36/'C- GrossFTEs'!$Z36),0),0) -> 0 | K36: =IFERROR(ROUND($B36*('C- GrossFTEs'!M36/'C- GrossFTEs'!$Z36),0),0) -> 0 | L36: =IFERROR(ROUND($B36*('C- GrossFTEs'!N36/'C- GrossFTEs'!$Z36),0),0) -> 0 | M36: =IFERROR(ROUND($B36*('C- GrossFTEs'!P36/'C- GrossFTEs'!$Z36),0),0) -> 0 | N36: =IFERROR(ROUND($B36*('C- GrossFTEs'!Q36/'C- GrossFTEs'!$Z36),0),0) -> 0 | O36: =IFERROR(ROUND($B36*('C- GrossFTEs'!S36/'C- GrossFTEs'!$Z36),0),0) -> 0 | P36: 0 | Q36: =IFERROR(ROUND($B36*('C- GrossFTEs'!X36/'C- GrossFTEs'!$Z36),0),0) -> 0
A37: =IF('C- GrossFTEs'!A37=0,"",'C- GrossFTEs'!A37) ->  | E37: =IFERROR(ROUND($B37*('C- GrossFTEs'!E37/'C- GrossFTEs'!$Z37),0),0) -> 0 | F37: =IFERROR(ROUND($B37*('C- GrossFTEs'!G37/'C- GrossFTEs'!$Z37),0),0) -> 0 | G37: =IFERROR(ROUND($B37*('C- GrossFTEs'!H37/'C- GrossFTEs'!$Z37),0),0) -> 0 | H37: =IFERROR(ROUND($B37*('C- GrossFTEs'!J37/'C- GrossFTEs'!$Z37),0),0) -> 0 | I37: =IFERROR(ROUND($B37*('C- GrossFTEs'!K37/'C- GrossFTEs'!$Z37),0),0) -> 0 | J37: =IFERROR(ROUND($B37*('C- GrossFTEs'!L37/'C- GrossFTEs'!$Z37),0),0) -> 0 | K37: =IFERROR(ROUND($B37*('C- GrossFTEs'!M37/'C- GrossFTEs'!$Z37),0),0) -> 0 | L37: =IFERROR(ROUND($B37*('C- GrossFTEs'!N37/'C- GrossFTEs'!$Z37),0),0) -> 0 | M37: =IFERROR(ROUND($B37*('C- GrossFTEs'!P37/'C- GrossFTEs'!$Z37),0),0) -> 0 | N37: =IFERROR(ROUND($B37*('C- GrossFTEs'!Q37/'C- GrossFTEs'!$Z37),0),0) -> 0 | O37: =IFERROR(ROUND($B37*('C- GrossFTEs'!S37/'C- GrossFTEs'!$Z37),0),0) -> 0 | P37: 0 | Q37: =IFERROR(ROUND($B37*('C- GrossFTEs'!X37/'C- GrossFTEs'!$Z37),0),0) -> 0
A38: =IF('C- GrossFTEs'!A38=0,"",'C- GrossFTEs'!A38) ->  | E38: =IFERROR(ROUND($B38*('C- GrossFTEs'!E38/'C- GrossFTEs'!$Z38),0),0) -> 0 | F38: =IFERROR(ROUND($B38*('C- GrossFTEs'!G38/'C- GrossFTEs'!$Z38),0),0) -> 0 | G38: =IFERROR(ROUND($B38*('C- GrossFTEs'!H38/'C- GrossFTEs'!$Z38),0),0) -> 0 | H38: =IFERROR(ROUND($B38*('C- GrossFTEs'!J38/'C- GrossFTEs'!$Z38),0),0) -> 0 | I38: =IFERROR(ROUND($B38*('C- GrossFTEs'!K38/'C- GrossFTEs'!$Z38),0),0) -> 0 | J38: =IFERROR(ROUND($B38*('C- GrossFTEs'!L38/'C- GrossFTEs'!$Z38),0),0) -> 0 | K38: =IFERROR(ROUND($B38*('C- GrossFTEs'!M38/'C- GrossFTEs'!$Z38),0),0) -> 0 | L38: =IFERROR(ROUND($B38*('C- GrossFTEs'!N38/'C- GrossFTEs'!$Z38),0),0) -> 0 | M38: =IFERROR(ROUND($B38*('C- GrossFTEs'!P38/'C- GrossFTEs'!$Z38),0),0) -> 0 | N38: =IFERROR(ROUND($B38*('C- GrossFTEs'!Q38/'C- GrossFTEs'!$Z38),0),0) -> 0 | O38: =IFERROR(ROUND($B38*('C- GrossFTEs'!S38/'C- GrossFTEs'!$Z38),0),0) -> 0 | P38: 0 | Q38: =IFERROR(ROUND($B38*('C- GrossFTEs'!X38/'C- GrossFTEs'!$Z38),0),0) -> 0
A39: =IF('C- GrossFTEs'!A39=0,"",'C- GrossFTEs'!A39) ->  | E39: =IFERROR(ROUND($B39*('C- GrossFTEs'!E39/'C- GrossFTEs'!$Z39),0),0) -> 0 | F39: =IFERROR(ROUND($B39*('C- GrossFTEs'!G39/'C- GrossFTEs'!$Z39),0),0) -> 0 | G39: =IFERROR(ROUND($B39*('C- GrossFTEs'!H39/'C- GrossFTEs'!$Z39),0),0) -> 0 | H39: =IFERROR(ROUND($B39*('C- GrossFTEs'!J39/'C- GrossFTEs'!$Z39),0),0) -> 0 | I39: =IFERROR(ROUND($B39*('C- GrossFTEs'!K39/'C- GrossFTEs'!$Z39),0),0) -> 0 | J39: =IFERROR(ROUND($B39*('C- GrossFTEs'!L39/'C- GrossFTEs'!$Z39),0),0) -> 0 | K39: =IFERROR(ROUND($B39*('C- GrossFTEs'!M39/'C- GrossFTEs'!$Z39),0),0) -> 0 | L39: =IFERROR(ROUND($B39*('C- GrossFTEs'!N39/'C- GrossFTEs'!$Z39),0),0) -> 0 | M39: =IFERROR(ROUND($B39*('C- GrossFTEs'!P39/'C- GrossFTEs'!$Z39),0),0) -> 0 | N39: =IFERROR(ROUND($B39*('C- GrossFTEs'!Q39/'C- GrossFTEs'!$Z39),0),0) -> 0 | O39: =IFERROR(ROUND($B39*('C- GrossFTEs'!S39/'C- GrossFTEs'!$Z39),0),0) -> 0 | P39: 0 | Q39: =IFERROR(ROUND($B39*('C- GrossFTEs'!X39/'C- GrossFTEs'!$Z39),0),0) -> 0
A40: =IF('C- GrossFTEs'!A40=0,"",'C- GrossFTEs'!A40) ->  | E40: =IFERROR(ROUND($B40*('C- GrossFTEs'!E40/'C- GrossFTEs'!$Z40),0),0) -> 0 | F40: =IFERROR(ROUND($B40*('C- GrossFTEs'!G40/'C- GrossFTEs'!$Z40),0),0) -> 0 | G40: =IFERROR(ROUND($B40*('C- GrossFTEs'!H40/'C- GrossFTEs'!$Z40),0),0) -> 0 | H40: =IFERROR(ROUND($B40*('C- GrossFTEs'!J40/'C- GrossFTEs'!$Z40),0),0) -> 0 | I40: =IFERROR(ROUND($B40*('C- GrossFTEs'!K40/'C- GrossFTEs'!$Z40),0),0) -> 0 | J40: =IFERROR(ROUND($B40*('C- GrossFTEs'!L40/'C- GrossFTEs'!$Z40),0),0) -> 0 | K40: =IFERROR(ROUND($B40*('C- GrossFTEs'!M40/'C- GrossFTEs'!$Z40),0),0) -> 0 | L40: =IFERROR(ROUND($B40*('C- GrossFTEs'!N40/'C- GrossFTEs'!$Z40),0),0) -> 0 | M40: =IFERROR(ROUND($B40*('C- GrossFTEs'!P40/'C- GrossFTEs'!$Z40),0),0) -> 0 | N40: =IFERROR(ROUND($B40*('C- GrossFTEs'!Q40/'C- GrossFTEs'!$Z40),0),0) -> 0 | O40: =IFERROR(ROUND($B40*('C- GrossFTEs'!S40/'C- GrossFTEs'!$Z40),0),0) -> 0 | P40: 0 | Q40: =IFERROR(ROUND($B40*('C- GrossFTEs'!X40/'C- GrossFTEs'!$Z40),0),0) -> 0
A41: =IF('C- GrossFTEs'!A41=0,"",'C- GrossFTEs'!A41) ->  | E41: =IFERROR(ROUND($B41*('C- GrossFTEs'!E41/'C- GrossFTEs'!$Z41),0),0) -> 0 | F41: =IFERROR(ROUND($B41*('C- GrossFTEs'!G41/'C- GrossFTEs'!$Z41),0),0) -> 0 | G41: =IFERROR(ROUND($B41*('C- GrossFTEs'!H41/'C- GrossFTEs'!$Z41),0),0) -> 0 | H41: =IFERROR(ROUND($B41*('C- GrossFTEs'!J41/'C- GrossFTEs'!$Z41),0),0) -> 0 | I41: =IFERROR(ROUND($B41*('C- GrossFTEs'!K41/'C- GrossFTEs'!$Z41),0),0) -> 0 | J41: =IFERROR(ROUND($B41*('C- GrossFTEs'!L41/'C- GrossFTEs'!$Z41),0),0) -> 0 | K41: =IFERROR(ROUND($B41*('C- GrossFTEs'!M41/'C- GrossFTEs'!$Z41),0),0) -> 0 | L41: =IFERROR(ROUND($B41*('C- GrossFTEs'!N41/'C- GrossFTEs'!$Z41),0),0) -> 0 | M41: =IFERROR(ROUND($B41*('C- GrossFTEs'!P41/'C- GrossFTEs'!$Z41),0),0) -> 0 | N41: =IFERROR(ROUND($B41*('C- GrossFTEs'!Q41/'C- GrossFTEs'!$Z41),0),0) -> 0 | O41: =IFERROR(ROUND($B41*('C- GrossFTEs'!S41/'C- GrossFTEs'!$Z41),0),0) -> 0 | P41: 0 | Q41: =IFERROR(ROUND($B41*('C- GrossFTEs'!X41/'C- GrossFTEs'!$Z41),0),0) -> 0
A42: =IF('C- GrossFTEs'!A42=0,"",'C- GrossFTEs'!A42) ->  | E42: =IFERROR(ROUND($B42*('C- GrossFTEs'!E42/'C- GrossFTEs'!$Z42),0),0) -> 0 | F42: =IFERROR(ROUND($B42*('C- GrossFTEs'!G42/'C- GrossFTEs'!$Z42),0),0) -> 0 | G42: =IFERROR(ROUND($B42*('C- GrossFTEs'!H42/'C- GrossFTEs'!$Z42),0),0) -> 0 | H42: =IFERROR(ROUND($B42*('C- GrossFTEs'!J42/'C- GrossFTEs'!$Z42),0),0) -> 0 | I42: =IFERROR(ROUND($B42*('C- GrossFTEs'!K42/'C- GrossFTEs'!$Z42),0),0) -> 0 | J42: =IFERROR(ROUND($B42*('C- GrossFTEs'!L42/'C- GrossFTEs'!$Z42),0),0) -> 0 | K42: =IFERROR(ROUND($B42*('C- GrossFTEs'!M42/'C- GrossFTEs'!$Z42),0),0) -> 0 | L42: =IFERROR(ROUND($B42*('C- GrossFTEs'!N42/'C- GrossFTEs'!$Z42),0),0) -> 0 | M42: =IFERROR(ROUND($B42*('C- GrossFTEs'!P42/'C- GrossFTEs'!$Z42),0),0) -> 0 | N42: =IFERROR(ROUND($B42*('C- GrossFTEs'!Q42/'C- GrossFTEs'!$Z42),0),0) -> 0 | O42: =IFERROR(ROUND($B42*('C- GrossFTEs'!S42/'C- GrossFTEs'!$Z42),0),0) -> 0 | P42: 0 | Q42: =IFERROR(ROUND($B42*('C- GrossFTEs'!X42/'C- GrossFTEs'!$Z42),0),0) -> 0
A43: =IF('C- GrossFTEs'!A43=0,"",'C- GrossFTEs'!A43) ->  | E43: =IFERROR(ROUND($B43*('C- GrossFTEs'!E43/'C- GrossFTEs'!$Z43),0),0) -> 0 | F43: =IFERROR(ROUND($B43*('C- GrossFTEs'!G43/'C- GrossFTEs'!$Z43),0),0) -> 0 | G43: =IFERROR(ROUND($B43*('C- GrossFTEs'!H43/'C- GrossFTEs'!$Z43),0),0) -> 0 | H43: =IFERROR(ROUND($B43*('C- GrossFTEs'!J43/'C- GrossFTEs'!$Z43),0),0) -> 0 | I43: =IFERROR(ROUND($B43*('C- GrossFTEs'!K43/'C- GrossFTEs'!$Z43),0),0) -> 0 | J43: =IFERROR(ROUND($B43*('C- GrossFTEs'!L43/'C- GrossFTEs'!$Z43),0),0) -> 0 | K43: =IFERROR(ROUND($B43*('C- GrossFTEs'!M43/'C- GrossFTEs'!$Z43),0),0) -> 0 | L43: =IFERROR(ROUND($B43*('C- GrossFTEs'!N43/'C- GrossFTEs'!$Z43),0),0) -> 0 | M43: =IFERROR(ROUND($B43*('C- GrossFTEs'!P43/'C- GrossFTEs'!$Z43),0),0) -> 0 | N43: =IFERROR(ROUND($B43*('C- GrossFTEs'!Q43/'C- GrossFTEs'!$Z43),0),0) -> 0 | O43: =IFERROR(ROUND($B43*('C- GrossFTEs'!S43/'C- GrossFTEs'!$Z43),0),0) -> 0 | P43: 0 | Q43: =IFERROR(ROUND($B43*('C- GrossFTEs'!X43/'C- GrossFTEs'!$Z43),0),0) -> 0
A44: =IF('C- GrossFTEs'!A44=0,"",'C- GrossFTEs'!A44) ->  | E44: =IFERROR(ROUND($B44*('C- GrossFTEs'!E44/'C- GrossFTEs'!$Z44),0),0) -> 0 | F44: =IFERROR(ROUND($B44*('C- GrossFTEs'!G44/'C- GrossFTEs'!$Z44),0),0) -> 0 | G44: =IFERROR(ROUND($B44*('C- GrossFTEs'!H44/'C- GrossFTEs'!$Z44),0),0) -> 0 | H44: =IFERROR(ROUND($B44*('C- GrossFTEs'!J44/'C- GrossFTEs'!$Z44),0),0) -> 0 | I44: =IFERROR(ROUND($B44*('C- GrossFTEs'!K44/'C- GrossFTEs'!$Z44),0),0) -> 0 | J44: =IFERROR(ROUND($B44*('C- GrossFTEs'!L44/'C- GrossFTEs'!$Z44),0),0) -> 0 | K44: =IFERROR(ROUND($B44*('C- GrossFTEs'!M44/'C- GrossFTEs'!$Z44),0),0) -> 0 | L44: =IFERROR(ROUND($B44*('C- GrossFTEs'!N44/'C- GrossFTEs'!$Z44),0),0) -> 0 | M44: =IFERROR(ROUND($B44*('C- GrossFTEs'!P44/'C- GrossFTEs'!$Z44),0),0) -> 0 | N44: =IFERROR(ROUND($B44*('C- GrossFTEs'!Q44/'C- GrossFTEs'!$Z44),0),0) -> 0 | O44: =IFERROR(ROUND($B44*('C- GrossFTEs'!S44/'C- GrossFTEs'!$Z44),0),0) -> 0 | P44: 0 | Q44: =IFERROR(ROUND($B44*('C- GrossFTEs'!X44/'C- GrossFTEs'!$Z44),0),0) -> 0
A45: =IF('C- GrossFTEs'!A45=0,"",'C- GrossFTEs'!A45) ->  | E45: =IFERROR(ROUND($B45*('C- GrossFTEs'!E45/'C- GrossFTEs'!$Z45),0),0) -> 0 | F45: =IFERROR(ROUND($B45*('C- GrossFTEs'!G45/'C- GrossFTEs'!$Z45),0),0) -> 0 | G45: =IFERROR(ROUND($B45*('C- GrossFTEs'!H45/'C- GrossFTEs'!$Z45),0),0) -> 0 | H45: =IFERROR(ROUND($B45*('C- GrossFTEs'!J45/'C- GrossFTEs'!$Z45),0),0) -> 0 | I45: =IFERROR(ROUND($B45*('C- GrossFTEs'!K45/'C- GrossFTEs'!$Z45),0),0) -> 0 | J45: =IFERROR(ROUND($B45*('C- GrossFTEs'!L45/'C- GrossFTEs'!$Z45),0),0) -> 0 | K45: =IFERROR(ROUND($B45*('C- GrossFTEs'!M45/'C- GrossFTEs'!$Z45),0),0) -> 0 | L45: =IFERROR(ROUND($B45*('C- GrossFTEs'!N45/'C- GrossFTEs'!$Z45),0),0) -> 0 | M45: =IFERROR(ROUND($B45*('C- GrossFTEs'!P45/'C- GrossFTEs'!$Z45),0),0) -> 0 | N45: =IFERROR(ROUND($B45*('C- GrossFTEs'!Q45/'C- GrossFTEs'!$Z45),0),0) -> 0 | O45: =IFERROR(ROUND($B45*('C- GrossFTEs'!S45/'C- GrossFTEs'!$Z45),0),0) -> 0 | P45: 0 | Q45: =IFERROR(ROUND($B45*('C- GrossFTEs'!X45/'C- GrossFTEs'!$Z45),0),0) -> 0
A46: =IF('C- GrossFTEs'!A46=0,"",'C- GrossFTEs'!A46) ->  | E46: =IFERROR(ROUND($B46*('C- GrossFTEs'!E46/'C- GrossFTEs'!$Z46),0),0) -> 0 | F46: =IFERROR(ROUND($B46*('C- GrossFTEs'!G46/'C- GrossFTEs'!$Z46),0),0) -> 0 | G46: =IFERROR(ROUND($B46*('C- GrossFTEs'!H46/'C- GrossFTEs'!$Z46),0),0) -> 0 | H46: =IFERROR(ROUND($B46*('C- GrossFTEs'!J46/'C- GrossFTEs'!$Z46),0),0) -> 0 | I46: =IFERROR(ROUND($B46*('C- GrossFTEs'!K46/'C- GrossFTEs'!$Z46),0),0) -> 0 | J46: =IFERROR(ROUND($B46*('C- GrossFTEs'!L46/'C- GrossFTEs'!$Z46),0),0) -> 0 | K46: =IFERROR(ROUND($B46*('C- GrossFTEs'!M46/'C- GrossFTEs'!$Z46),0),0) -> 0 | L46: =IFERROR(ROUND($B46*('C- GrossFTEs'!N46/'C- GrossFTEs'!$Z46),0),0) -> 0 | M46: =IFERROR(ROUND($B46*('C- GrossFTEs'!P46/'C- GrossFTEs'!$Z46),0),0) -> 0 | N46: =IFERROR(ROUND($B46*('C- GrossFTEs'!Q46/'C- GrossFTEs'!$Z46),0),0) -> 0 | O46: =IFERROR(ROUND($B46*('C- GrossFTEs'!S46/'C- GrossFTEs'!$Z46),0),0) -> 0 | P46: 0 | Q46: =IFERROR(ROUND($B46*('C- GrossFTEs'!X46/'C- GrossFTEs'!$Z46),0),0) -> 0
A47: =IF('C- GrossFTEs'!A47=0,"",'C- GrossFTEs'!A47) ->  | E47: =IFERROR(ROUND($B47*('C- GrossFTEs'!E47/'C- GrossFTEs'!$Z47),0),0) -> 0 | F47: =IFERROR(ROUND($B47*('C- GrossFTEs'!G47/'C- GrossFTEs'!$Z47),0),0) -> 0 | G47: =IFERROR(ROUND($B47*('C- GrossFTEs'!H47/'C- GrossFTEs'!$Z47),0),0) -> 0 | H47: =IFERROR(ROUND($B47*('C- GrossFTEs'!J47/'C- GrossFTEs'!$Z47),0),0) -> 0 | I47: =IFERROR(ROUND($B47*('C- GrossFTEs'!K47/'C- GrossFTEs'!$Z47),0),0) -> 0 | J47: =IFERROR(ROUND($B47*('C- GrossFTEs'!L47/'C- GrossFTEs'!$Z47),0),0) -> 0 | K47: =IFERROR(ROUND($B47*('C- GrossFTEs'!M47/'C- GrossFTEs'!$Z47),0),0) -> 0 | L47: =IFERROR(ROUND($B47*('C- GrossFTEs'!N47/'C- GrossFTEs'!$Z47),0),0) -> 0 | M47: =IFERROR(ROUND($B47*('C- GrossFTEs'!P47/'C- GrossFTEs'!$Z47),0),0) -> 0 | N47: =IFERROR(ROUND($B47*('C- GrossFTEs'!Q47/'C- GrossFTEs'!$Z47),0),0) -> 0 | O47: =IFERROR(ROUND($B47*('C- GrossFTEs'!S47/'C- GrossFTEs'!$Z47),0),0) -> 0 | P47: 0 | Q47: =IFERROR(ROUND($B47*('C- GrossFTEs'!X47/'C- GrossFTEs'!$Z47),0),0) -> 0
A48: =IF('C- GrossFTEs'!A48=0,"",'C- GrossFTEs'!A48) ->  | E48: =IFERROR(ROUND($B48*('C- GrossFTEs'!E48/'C- GrossFTEs'!$Z48),0),0) -> 0 | F48: =IFERROR(ROUND($B48*('C- GrossFTEs'!G48/'C- GrossFTEs'!$Z48),0),0) -> 0 | G48: =IFERROR(ROUND($B48*('C- GrossFTEs'!H48/'C- GrossFTEs'!$Z48),0),0) -> 0 | H48: =IFERROR(ROUND($B48*('C- GrossFTEs'!J48/'C- GrossFTEs'!$Z48),0),0) -> 0 | I48: =IFERROR(ROUND($B48*('C- GrossFTEs'!K48/'C- GrossFTEs'!$Z48),0),0) -> 0 | J48: =IFERROR(ROUND($B48*('C- GrossFTEs'!L48/'C- GrossFTEs'!$Z48),0),0) -> 0 | K48: =IFERROR(ROUND($B48*('C- GrossFTEs'!M48/'C- GrossFTEs'!$Z48),0),0) -> 0 | L48: =IFERROR(ROUND($B48*('C- GrossFTEs'!N48/'C- GrossFTEs'!$Z48),0),0) -> 0 | M48: =IFERROR(ROUND($B48*('C- GrossFTEs'!P48/'C- GrossFTEs'!$Z48),0),0) -> 0 | N48: =IFERROR(ROUND($B48*('C- GrossFTEs'!Q48/'C- GrossFTEs'!$Z48),0),0) -> 0 | O48: =IFERROR(ROUND($B48*('C- GrossFTEs'!S48/'C- GrossFTEs'!$Z48),0),0) -> 0 | P48: 0 | Q48: =IFERROR(ROUND($B48*('C- GrossFTEs'!X48/'C- GrossFTEs'!$Z48),0),0) -> 0
A49: =IF('C- GrossFTEs'!A49=0,"",'C- GrossFTEs'!A49) ->  | E49: =IFERROR(ROUND($B49*('C- GrossFTEs'!E49/'C- GrossFTEs'!$Z49),0),0) -> 0 | F49: =IFERROR(ROUND($B49*('C- GrossFTEs'!G49/'C- GrossFTEs'!$Z49),0),0) -> 0 | G49: =IFERROR(ROUND($B49*('C- GrossFTEs'!H49/'C- GrossFTEs'!$Z49),0),0) -> 0 | H49: =IFERROR(ROUND($B49*('C- GrossFTEs'!J49/'C- GrossFTEs'!$Z49),0),0) -> 0 | I49: =IFERROR(ROUND($B49*('C- GrossFTEs'!K49/'C- GrossFTEs'!$Z49),0),0) -> 0 | J49: =IFERROR(ROUND($B49*('C- GrossFTEs'!L49/'C- GrossFTEs'!$Z49),0),0) -> 0 | K49: =IFERROR(ROUND($B49*('C- GrossFTEs'!M49/'C- GrossFTEs'!$Z49),0),0) -> 0 | L49: =IFERROR(ROUND($B49*('C- GrossFTEs'!N49/'C- GrossFTEs'!$Z49),0),0) -> 0 | M49: =IFERROR(ROUND($B49*('C- GrossFTEs'!P49/'C- GrossFTEs'!$Z49),0),0) -> 0 | N49: =IFERROR(ROUND($B49*('C- GrossFTEs'!Q49/'C- GrossFTEs'!$Z49),0),0) -> 0 | O49: =IFERROR(ROUND($B49*('C- GrossFTEs'!S49/'C- GrossFTEs'!$Z49),0),0) -> 0 | P49: 0 | Q49: =IFERROR(ROUND($B49*('C- GrossFTEs'!X49/'C- GrossFTEs'!$Z49),0),0) -> 0
A50: =IF('C- GrossFTEs'!A50=0,"",'C- GrossFTEs'!A50) ->  | E50: =IFERROR(ROUND($B50*('C- GrossFTEs'!E50/'C- GrossFTEs'!$Z50),0),0) -> 0 | F50: =IFERROR(ROUND($B50*('C- GrossFTEs'!G50/'C- GrossFTEs'!$Z50),0),0) -> 0 | G50: =IFERROR(ROUND($B50*('C- GrossFTEs'!H50/'C- GrossFTEs'!$Z50),0),0) -> 0 | H50: =IFERROR(ROUND($B50*('C- GrossFTEs'!J50/'C- GrossFTEs'!$Z50),0),0) -> 0 | I50: =IFERROR(ROUND($B50*('C- GrossFTEs'!K50/'C- GrossFTEs'!$Z50),0),0) -> 0 | J50: =IFERROR(ROUND($B50*('C- GrossFTEs'!L50/'C- GrossFTEs'!$Z50),0),0) -> 0 | K50: =IFERROR(ROUND($B50*('C- GrossFTEs'!M50/'C- GrossFTEs'!$Z50),0),0) -> 0 | L50: =IFERROR(ROUND($B50*('C- GrossFTEs'!N50/'C- GrossFTEs'!$Z50),0),0) -> 0 | M50: =IFERROR(ROUND($B50*('C- GrossFTEs'!P50/'C- GrossFTEs'!$Z50),0),0) -> 0 | N50: =IFERROR(ROUND($B50*('C- GrossFTEs'!Q50/'C- GrossFTEs'!$Z50),0),0) -> 0 | O50: =IFERROR(ROUND($B50*('C- GrossFTEs'!S50/'C- GrossFTEs'!$Z50),0),0) -> 0 | P50: 0 | Q50: =IFERROR(ROUND($B50*('C- GrossFTEs'!X50/'C- GrossFTEs'!$Z50),0),0) -> 0
A51: =IF('C- GrossFTEs'!A51=0,"",'C- GrossFTEs'!A51) ->  | E51: =IFERROR(ROUND($B51*('C- GrossFTEs'!E51/'C- GrossFTEs'!$Z51),0),0) -> 0 | F51: =IFERROR(ROUND($B51*('C- GrossFTEs'!G51/'C- GrossFTEs'!$Z51),0),0) -> 0 | G51: =IFERROR(ROUND($B51*('C- GrossFTEs'!H51/'C- GrossFTEs'!$Z51),0),0) -> 0 | H51: =IFERROR(ROUND($B51*('C- GrossFTEs'!J51/'C- GrossFTEs'!$Z51),0),0) -> 0 | I51: =IFERROR(ROUND($B51*('C- GrossFTEs'!K51/'C- GrossFTEs'!$Z51),0),0) -> 0 | J51: =IFERROR(ROUND($B51*('C- GrossFTEs'!L51/'C- GrossFTEs'!$Z51),0),0) -> 0 | K51: =IFERROR(ROUND($B51*('C- GrossFTEs'!M51/'C- GrossFTEs'!$Z51),0),0) -> 0 | L51: =IFERROR(ROUND($B51*('C- GrossFTEs'!N51/'C- GrossFTEs'!$Z51),0),0) -> 0 | M51: =IFERROR(ROUND($B51*('C- GrossFTEs'!P51/'C- GrossFTEs'!$Z51),0),0) -> 0 | N51: =IFERROR(ROUND($B51*('C- GrossFTEs'!Q51/'C- GrossFTEs'!$Z51),0),0) -> 0 | O51: =IFERROR(ROUND($B51*('C- GrossFTEs'!S51/'C- GrossFTEs'!$Z51),0),0) -> 0 | P51: 0 | Q51: =IFERROR(ROUND($B51*('C- GrossFTEs'!X51/'C- GrossFTEs'!$Z51),0),0) -> 0
A52: =IF('C- GrossFTEs'!A52=0,"",'C- GrossFTEs'!A52) ->  | E52: =IFERROR(ROUND($B52*('C- GrossFTEs'!E52/'C- GrossFTEs'!$Z52),0),0) -> 0 | F52: =IFERROR(ROUND($B52*('C- GrossFTEs'!G52/'C- GrossFTEs'!$Z52),0),0) -> 0 | G52: =IFERROR(ROUND($B52*('C- GrossFTEs'!H52/'C- GrossFTEs'!$Z52),0),0) -> 0 | H52: =IFERROR(ROUND($B52*('C- GrossFTEs'!J52/'C- GrossFTEs'!$Z52),0),0) -> 0 | I52: =IFERROR(ROUND($B52*('C- GrossFTEs'!K52/'C- GrossFTEs'!$Z52),0),0) -> 0 | J52: =IFERROR(ROUND($B52*('C- GrossFTEs'!L52/'C- GrossFTEs'!$Z52),0),0) -> 0 | K52: =IFERROR(ROUND($B52*('C- GrossFTEs'!M52/'C- GrossFTEs'!$Z52),0),0) -> 0 | L52: =IFERROR(ROUND($B52*('C- GrossFTEs'!N52/'C- GrossFTEs'!$Z52),0),0) -> 0 | M52: =IFERROR(ROUND($B52*('C- GrossFTEs'!P52/'C- GrossFTEs'!$Z52),0),0) -> 0 | N52: =IFERROR(ROUND($B52*('C- GrossFTEs'!Q52/'C- GrossFTEs'!$Z52),0),0) -> 0 | O52: =IFERROR(ROUND($B52*('C- GrossFTEs'!S52/'C- GrossFTEs'!$Z52),0),0) -> 0 | P52: 0 | Q52: =IFERROR(ROUND($B52*('C- GrossFTEs'!X52/'C- GrossFTEs'!$Z52),0),0) -> 0
A53: =IF('C- GrossFTEs'!A53=0,"",'C- GrossFTEs'!A53) ->  | E53: =IFERROR(ROUND($B53*('C- GrossFTEs'!E53/'C- GrossFTEs'!$Z53),0),0) -> 0 | F53: =IFERROR(ROUND($B53*('C- GrossFTEs'!G53/'C- GrossFTEs'!$Z53),0),0) -> 0 | G53: =IFERROR(ROUND($B53*('C- GrossFTEs'!H53/'C- GrossFTEs'!$Z53),0),0) -> 0 | H53: =IFERROR(ROUND($B53*('C- GrossFTEs'!J53/'C- GrossFTEs'!$Z53),0),0) -> 0 | I53: =IFERROR(ROUND($B53*('C- GrossFTEs'!K53/'C- GrossFTEs'!$Z53),0),0) -> 0 | J53: =IFERROR(ROUND($B53*('C- GrossFTEs'!L53/'C- GrossFTEs'!$Z53),0),0) -> 0 | K53: =IFERROR(ROUND($B53*('C- GrossFTEs'!M53/'C- GrossFTEs'!$Z53),0),0) -> 0 | L53: =IFERROR(ROUND($B53*('C- GrossFTEs'!N53/'C- GrossFTEs'!$Z53),0),0) -> 0 | M53: =IFERROR(ROUND($B53*('C- GrossFTEs'!P53/'C- GrossFTEs'!$Z53),0),0) -> 0 | N53: =IFERROR(ROUND($B53*('C- GrossFTEs'!Q53/'C- GrossFTEs'!$Z53),0),0) -> 0 | O53: =IFERROR(ROUND($B53*('C- GrossFTEs'!S53/'C- GrossFTEs'!$Z53),0),0) -> 0 | P53: 0 | Q53: =IFERROR(ROUND($B53*('C- GrossFTEs'!X53/'C- GrossFTEs'!$Z53),0),0) -> 0
A54: =IF('C- GrossFTEs'!A54=0,"",'C- GrossFTEs'!A54) ->  | E54: =IFERROR(ROUND($B54*('C- GrossFTEs'!E54/'C- GrossFTEs'!$Z54),0),0) -> 0 | F54: =IFERROR(ROUND($B54*('C- GrossFTEs'!G54/'C- GrossFTEs'!$Z54),0),0) -> 0 | G54: =IFERROR(ROUND($B54*('C- GrossFTEs'!H54/'C- GrossFTEs'!$Z54),0),0) -> 0 | H54: =IFERROR(ROUND($B54*('C- GrossFTEs'!J54/'C- GrossFTEs'!$Z54),0),0) -> 0 | I54: =IFERROR(ROUND($B54*('C- GrossFTEs'!K54/'C- GrossFTEs'!$Z54),0),0) -> 0 | J54: =IFERROR(ROUND($B54*('C- GrossFTEs'!L54/'C- GrossFTEs'!$Z54),0),0) -> 0 | K54: =IFERROR(ROUND($B54*('C- GrossFTEs'!M54/'C- GrossFTEs'!$Z54),0),0) -> 0 | L54: =IFERROR(ROUND($B54*('C- GrossFTEs'!N54/'C- GrossFTEs'!$Z54),0),0) -> 0 | M54: =IFERROR(ROUND($B54*('C- GrossFTEs'!P54/'C- GrossFTEs'!$Z54),0),0) -> 0 | N54: =IFERROR(ROUND($B54*('C- GrossFTEs'!Q54/'C- GrossFTEs'!$Z54),0),0) -> 0 | O54: =IFERROR(ROUND($B54*('C- GrossFTEs'!S54/'C- GrossFTEs'!$Z54),0),0) -> 0 | P54: 0 | Q54: =IFERROR(ROUND($B54*('C- GrossFTEs'!X54/'C- GrossFTEs'!$Z54),0),0) -> 0
A55: =IF('C- GrossFTEs'!A55=0,"",'C- GrossFTEs'!A55) ->  | E55: =IFERROR(ROUND($B55*('C- GrossFTEs'!E55/'C- GrossFTEs'!$Z55),0),0) -> 0 | F55: =IFERROR(ROUND($B55*('C- GrossFTEs'!G55/'C- GrossFTEs'!$Z55),0),0) -> 0 | G55: =IFERROR(ROUND($B55*('C- GrossFTEs'!H55/'C- GrossFTEs'!$Z55),0),0) -> 0 | H55: =IFERROR(ROUND($B55*('C- GrossFTEs'!J55/'C- GrossFTEs'!$Z55),0),0) -> 0 | I55: =IFERROR(ROUND($B55*('C- GrossFTEs'!K55/'C- GrossFTEs'!$Z55),0),0) -> 0 | J55: =IFERROR(ROUND($B55*('C- GrossFTEs'!L55/'C- GrossFTEs'!$Z55),0),0) -> 0 | K55: =IFERROR(ROUND($B55*('C- GrossFTEs'!M55/'C- GrossFTEs'!$Z55),0),0) -> 0 | L55: =IFERROR(ROUND($B55*('C- GrossFTEs'!N55/'C- GrossFTEs'!$Z55),0),0) -> 0 | M55: =IFERROR(ROUND($B55*('C- GrossFTEs'!P55/'C- GrossFTEs'!$Z55),0),0) -> 0 | N55: =IFERROR(ROUND($B55*('C- GrossFTEs'!Q55/'C- GrossFTEs'!$Z55),0),0) -> 0 | O55: =IFERROR(ROUND($B55*('C- GrossFTEs'!S55/'C- GrossFTEs'!$Z55),0),0) -> 0 | P55: 0 | Q55: =IFERROR(ROUND($B55*('C- GrossFTEs'!X55/'C- GrossFTEs'!$Z55),0),0) -> 0
A56: =IF('C- GrossFTEs'!A56=0,"",'C- GrossFTEs'!A56) ->  | E56: =IFERROR(ROUND($B56*('C- GrossFTEs'!E56/'C- GrossFTEs'!$Z56),0),0) -> 0 | F56: =IFERROR(ROUND($B56*('C- GrossFTEs'!G56/'C- GrossFTEs'!$Z56),0),0) -> 0 | G56: =IFERROR(ROUND($B56*('C- GrossFTEs'!H56/'C- GrossFTEs'!$Z56),0),0) -> 0 | H56: =IFERROR(ROUND($B56*('C- GrossFTEs'!J56/'C- GrossFTEs'!$Z56),0),0) -> 0 | I56: =IFERROR(ROUND($B56*('C- GrossFTEs'!K56/'C- GrossFTEs'!$Z56),0),0) -> 0 | J56: =IFERROR(ROUND($B56*('C- GrossFTEs'!L56/'C- GrossFTEs'!$Z56),0),0) -> 0 | K56: =IFERROR(ROUND($B56*('C- GrossFTEs'!M56/'C- GrossFTEs'!$Z56),0),0) -> 0 | L56: =IFERROR(ROUND($B56*('C- GrossFTEs'!N56/'C- GrossFTEs'!$Z56),0),0) -> 0 | M56: =IFERROR(ROUND($B56*('C- GrossFTEs'!P56/'C- GrossFTEs'!$Z56),0),0) -> 0 | N56: =IFERROR(ROUND($B56*('C- GrossFTEs'!Q56/'C- GrossFTEs'!$Z56),0),0) -> 0 | O56: =IFERROR(ROUND($B56*('C- GrossFTEs'!S56/'C- GrossFTEs'!$Z56),0),0) -> 0 | P56: 0 | Q56: =IFERROR(ROUND($B56*('C- GrossFTEs'!X56/'C- GrossFTEs'!$Z56),0),0) -> 0
A57: =IF('C- GrossFTEs'!A57=0,"",'C- GrossFTEs'!A57) ->  | E57: =IFERROR(ROUND($B57*('C- GrossFTEs'!E57/'C- GrossFTEs'!$Z57),0),0) -> 0 | F57: =IFERROR(ROUND($B57*('C- GrossFTEs'!G57/'C- GrossFTEs'!$Z57),0),0) -> 0 | G57: =IFERROR(ROUND($B57*('C- GrossFTEs'!H57/'C- GrossFTEs'!$Z57),0),0) -> 0 | H57: =IFERROR(ROUND($B57*('C- GrossFTEs'!J57/'C- GrossFTEs'!$Z57),0),0) -> 0 | I57: =IFERROR(ROUND($B57*('C- GrossFTEs'!K57/'C- GrossFTEs'!$Z57),0),0) -> 0 | J57: =IFERROR(ROUND($B57*('C- GrossFTEs'!L57/'C- GrossFTEs'!$Z57),0),0) -> 0 | K57: =IFERROR(ROUND($B57*('C- GrossFTEs'!M57/'C- GrossFTEs'!$Z57),0),0) -> 0 | L57: =IFERROR(ROUND($B57*('C- GrossFTEs'!N57/'C- GrossFTEs'!$Z57),0),0) -> 0 | M57: =IFERROR(ROUND($B57*('C- GrossFTEs'!P57/'C- GrossFTEs'!$Z57),0),0) -> 0 | N57: =IFERROR(ROUND($B57*('C- GrossFTEs'!Q57/'C- GrossFTEs'!$Z57),0),0) -> 0 | O57: =IFERROR(ROUND($B57*('C- GrossFTEs'!S57/'C- GrossFTEs'!$Z57),0),0) -> 0 | P57: 0 | Q57: =IFERROR(ROUND($B57*('C- GrossFTEs'!X57/'C- GrossFTEs'!$Z57),0),0) -> 0
A58: =IF('C- GrossFTEs'!A58=0,"",'C- GrossFTEs'!A58) ->  | E58: =IFERROR(ROUND($B58*('C- GrossFTEs'!E58/'C- GrossFTEs'!$Z58),0),0) -> 0 | F58: =IFERROR(ROUND($B58*('C- GrossFTEs'!G58/'C- GrossFTEs'!$Z58),0),0) -> 0 | G58: =IFERROR(ROUND($B58*('C- GrossFTEs'!H58/'C- GrossFTEs'!$Z58),0),0) -> 0 | H58: =IFERROR(ROUND($B58*('C- GrossFTEs'!J58/'C- GrossFTEs'!$Z58),0),0) -> 0 | I58: =IFERROR(ROUND($B58*('C- GrossFTEs'!K58/'C- GrossFTEs'!$Z58),0),0) -> 0 | J58: =IFERROR(ROUND($B58*('C- GrossFTEs'!L58/'C- GrossFTEs'!$Z58),0),0) -> 0 | K58: =IFERROR(ROUND($B58*('C- GrossFTEs'!M58/'C- GrossFTEs'!$Z58),0),0) -> 0 | L58: =IFERROR(ROUND($B58*('C- GrossFTEs'!N58/'C- GrossFTEs'!$Z58),0),0) -> 0 | M58: =IFERROR(ROUND($B58*('C- GrossFTEs'!P58/'C- GrossFTEs'!$Z58),0),0) -> 0 | N58: =IFERROR(ROUND($B58*('C- GrossFTEs'!Q58/'C- GrossFTEs'!$Z58),0),0) -> 0 | O58: =IFERROR(ROUND($B58*('C- GrossFTEs'!S58/'C- GrossFTEs'!$Z58),0),0) -> 0 | P58: 0 | Q58: =IFERROR(ROUND($B58*('C- GrossFTEs'!X58/'C- GrossFTEs'!$Z58),0),0) -> 0
A59: =IF('C- GrossFTEs'!A59=0,"",'C- GrossFTEs'!A59) ->  | E59: =IFERROR(ROUND($B59*('C- GrossFTEs'!E59/'C- GrossFTEs'!$Z59),0),0) -> 0 | F59: =IFERROR(ROUND($B59*('C- GrossFTEs'!G59/'C- GrossFTEs'!$Z59),0),0) -> 0 | G59: =IFERROR(ROUND($B59*('C- GrossFTEs'!H59/'C- GrossFTEs'!$Z59),0),0) -> 0 | H59: =IFERROR(ROUND($B59*('C- GrossFTEs'!J59/'C- GrossFTEs'!$Z59),0),0) -> 0 | I59: =IFERROR(ROUND($B59*('C- GrossFTEs'!K59/'C- GrossFTEs'!$Z59),0),0) -> 0 | J59: =IFERROR(ROUND($B59*('C- GrossFTEs'!L59/'C- GrossFTEs'!$Z59),0),0) -> 0 | K59: =IFERROR(ROUND($B59*('C- GrossFTEs'!M59/'C- GrossFTEs'!$Z59),0),0) -> 0 | L59: =IFERROR(ROUND($B59*('C- GrossFTEs'!N59/'C- GrossFTEs'!$Z59),0),0) -> 0 | M59: =IFERROR(ROUND($B59*('C- GrossFTEs'!P59/'C- GrossFTEs'!$Z59),0),0) -> 0 | N59: =IFERROR(ROUND($B59*('C- GrossFTEs'!Q59/'C- GrossFTEs'!$Z59),0),0) -> 0 | O59: =IFERROR(ROUND($B59*('C- GrossFTEs'!S59/'C- GrossFTEs'!$Z59),0),0) -> 0 | P59: 0 | Q59: =IFERROR(ROUND($B59*('C- GrossFTEs'!X59/'C- GrossFTEs'!$Z59),0),0) -> 0
A60: =IF('C- GrossFTEs'!A60=0,"",'C- GrossFTEs'!A60) ->  | E60: =IFERROR(ROUND($B60*('C- GrossFTEs'!E60/'C- GrossFTEs'!$Z60),0),0) -> 0 | F60: =IFERROR(ROUND($B60*('C- GrossFTEs'!G60/'C- GrossFTEs'!$Z60),0),0) -> 0 | G60: =IFERROR(ROUND($B60*('C- GrossFTEs'!H60/'C- GrossFTEs'!$Z60),0),0) -> 0 | H60: =IFERROR(ROUND($B60*('C- GrossFTEs'!J60/'C- GrossFTEs'!$Z60),0),0) -> 0 | I60: =IFERROR(ROUND($B60*('C- GrossFTEs'!K60/'C- GrossFTEs'!$Z60),0),0) -> 0 | J60: =IFERROR(ROUND($B60*('C- GrossFTEs'!L60/'C- GrossFTEs'!$Z60),0),0) -> 0 | K60: =IFERROR(ROUND($B60*('C- GrossFTEs'!M60/'C- GrossFTEs'!$Z60),0),0) -> 0 | L60: =IFERROR(ROUND($B60*('C- GrossFTEs'!N60/'C- GrossFTEs'!$Z60),0),0) -> 0 | M60: =IFERROR(ROUND($B60*('C- GrossFTEs'!P60/'C- GrossFTEs'!$Z60),0),0) -> 0 | N60: =IFERROR(ROUND($B60*('C- GrossFTEs'!Q60/'C- GrossFTEs'!$Z60),0),0) -> 0 | O60: =IFERROR(ROUND($B60*('C- GrossFTEs'!S60/'C- GrossFTEs'!$Z60),0),0) -> 0 | P60: 0 | Q60: =IFERROR(ROUND($B60*('C- GrossFTEs'!X60/'C- GrossFTEs'!$Z60),0),0) -> 0
A61: =IF('C- GrossFTEs'!A61=0,"",'C- GrossFTEs'!A61) ->  | E61: =IFERROR(ROUND($B61*('C- GrossFTEs'!E61/'C- GrossFTEs'!$Z61),0),0) -> 0 | F61: =IFERROR(ROUND($B61*('C- GrossFTEs'!G61/'C- GrossFTEs'!$Z61),0),0) -> 0 | G61: =IFERROR(ROUND($B61*('C- GrossFTEs'!H61/'C- GrossFTEs'!$Z61),0),0) -> 0 | H61: =IFERROR(ROUND($B61*('C- GrossFTEs'!J61/'C- GrossFTEs'!$Z61),0),0) -> 0 | I61: =IFERROR(ROUND($B61*('C- GrossFTEs'!K61/'C- GrossFTEs'!$Z61),0),0) -> 0 | J61: =IFERROR(ROUND($B61*('C- GrossFTEs'!L61/'C- GrossFTEs'!$Z61),0),0) -> 0 | K61: =IFERROR(ROUND($B61*('C- GrossFTEs'!M61/'C- GrossFTEs'!$Z61),0),0) -> 0 | L61: =IFERROR(ROUND($B61*('C- GrossFTEs'!N61/'C- GrossFTEs'!$Z61),0),0) -> 0 | M61: =IFERROR(ROUND($B61*('C- GrossFTEs'!P61/'C- GrossFTEs'!$Z61),0),0) -> 0 | N61: =IFERROR(ROUND($B61*('C- GrossFTEs'!Q61/'C- GrossFTEs'!$Z61),0),0) -> 0 | O61: =IFERROR(ROUND($B61*('C- GrossFTEs'!S61/'C- GrossFTEs'!$Z61),0),0) -> 0 | P61: 0 | Q61: =IFERROR(ROUND($B61*('C- GrossFTEs'!X61/'C- GrossFTEs'!$Z61),0),0) -> 0
A62: =IF('C- GrossFTEs'!A62=0,"",'C- GrossFTEs'!A62) ->  | E62: =IFERROR(ROUND($B62*('C- GrossFTEs'!E62/'C- GrossFTEs'!$Z62),0),0) -> 0 | F62: =IFERROR(ROUND($B62*('C- GrossFTEs'!G62/'C- GrossFTEs'!$Z62),0),0) -> 0 | G62: =IFERROR(ROUND($B62*('C- GrossFTEs'!H62/'C- GrossFTEs'!$Z62),0),0) -> 0 | H62: =IFERROR(ROUND($B62*('C- GrossFTEs'!J62/'C- GrossFTEs'!$Z62),0),0) -> 0 | I62: =IFERROR(ROUND($B62*('C- GrossFTEs'!K62/'C- GrossFTEs'!$Z62),0),0) -> 0 | J62: =IFERROR(ROUND($B62*('C- GrossFTEs'!L62/'C- GrossFTEs'!$Z62),0),0) -> 0 | K62: =IFERROR(ROUND($B62*('C- GrossFTEs'!M62/'C- GrossFTEs'!$Z62),0),0) -> 0 | L62: =IFERROR(ROUND($B62*('C- GrossFTEs'!N62/'C- GrossFTEs'!$Z62),0),0) -> 0 | M62: =IFERROR(ROUND($B62*('C- GrossFTEs'!P62/'C- GrossFTEs'!$Z62),0),0) -> 0 | N62: =IFERROR(ROUND($B62*('C- GrossFTEs'!Q62/'C- GrossFTEs'!$Z62),0),0) -> 0 | O62: =IFERROR(ROUND($B62*('C- GrossFTEs'!S62/'C- GrossFTEs'!$Z62),0),0) -> 0 | P62: 0 | Q62: =IFERROR(ROUND($B62*('C- GrossFTEs'!X62/'C- GrossFTEs'!$Z62),0),0) -> 0
A63: =IF('C- GrossFTEs'!A63=0,"",'C- GrossFTEs'!A63) ->  | E63: =IFERROR(ROUND($B63*('C- GrossFTEs'!E63/'C- GrossFTEs'!$Z63),0),0) -> 0 | F63: =IFERROR(ROUND($B63*('C- GrossFTEs'!G63/'C- GrossFTEs'!$Z63),0),0) -> 0 | G63: =IFERROR(ROUND($B63*('C- GrossFTEs'!H63/'C- GrossFTEs'!$Z63),0),0) -> 0 | H63: =IFERROR(ROUND($B63*('C- GrossFTEs'!J63/'C- GrossFTEs'!$Z63),0),0) -> 0 | I63: =IFERROR(ROUND($B63*('C- GrossFTEs'!K63/'C- GrossFTEs'!$Z63),0),0) -> 0 | J63: =IFERROR(ROUND($B63*('C- GrossFTEs'!L63/'C- GrossFTEs'!$Z63),0),0) -> 0 | K63: =IFERROR(ROUND($B63*('C- GrossFTEs'!M63/'C- GrossFTEs'!$Z63),0),0) -> 0 | L63: =IFERROR(ROUND($B63*('C- GrossFTEs'!N63/'C- GrossFTEs'!$Z63),0),0) -> 0 | M63: =IFERROR(ROUND($B63*('C- GrossFTEs'!P63/'C- GrossFTEs'!$Z63),0),0) -> 0 | N63: =IFERROR(ROUND($B63*('C- GrossFTEs'!Q63/'C- GrossFTEs'!$Z63),0),0) -> 0 | O63: =IFERROR(ROUND($B63*('C- GrossFTEs'!S63/'C- GrossFTEs'!$Z63),0),0) -> 0 | P63: 0 | Q63: =IFERROR(ROUND($B63*('C- GrossFTEs'!X63/'C- GrossFTEs'!$Z63),0),0) -> 0
A64: =IF('C- GrossFTEs'!A64=0,"",'C- GrossFTEs'!A64) ->  | E64: =IFERROR(ROUND($B64*('C- GrossFTEs'!E64/'C- GrossFTEs'!$Z64),0),0) -> 0 | F64: =IFERROR(ROUND($B64*('C- GrossFTEs'!G64/'C- GrossFTEs'!$Z64),0),0) -> 0 | G64: =IFERROR(ROUND($B64*('C- GrossFTEs'!H64/'C- GrossFTEs'!$Z64),0),0) -> 0 | H64: =IFERROR(ROUND($B64*('C- GrossFTEs'!J64/'C- GrossFTEs'!$Z64),0),0) -> 0 | I64: =IFERROR(ROUND($B64*('C- GrossFTEs'!K64/'C- GrossFTEs'!$Z64),0),0) -> 0 | J64: =IFERROR(ROUND($B64*('C- GrossFTEs'!L64/'C- GrossFTEs'!$Z64),0),0) -> 0 | K64: =IFERROR(ROUND($B64*('C- GrossFTEs'!M64/'C- GrossFTEs'!$Z64),0),0) -> 0 | L64: =IFERROR(ROUND($B64*('C- GrossFTEs'!N64/'C- GrossFTEs'!$Z64),0),0) -> 0 | M64: =IFERROR(ROUND($B64*('C- GrossFTEs'!P64/'C- GrossFTEs'!$Z64),0),0) -> 0 | N64: =IFERROR(ROUND($B64*('C- GrossFTEs'!Q64/'C- GrossFTEs'!$Z64),0),0) -> 0 | O64: =IFERROR(ROUND($B64*('C- GrossFTEs'!S64/'C- GrossFTEs'!$Z64),0),0) -> 0 | P64: 0 | Q64: =IFERROR(ROUND($B64*('C- GrossFTEs'!X64/'C- GrossFTEs'!$Z64),0),0) -> 0
A65: =IF('C- GrossFTEs'!A65=0,"",'C- GrossFTEs'!A65) ->  | E65: =IFERROR(ROUND($B65*('C- GrossFTEs'!E65/'C- GrossFTEs'!$Z65),0),0) -> 0 | F65: =IFERROR(ROUND($B65*('C- GrossFTEs'!G65/'C- GrossFTEs'!$Z65),0),0) -> 0 | G65: =IFERROR(ROUND($B65*('C- GrossFTEs'!H65/'C- GrossFTEs'!$Z65),0),0) -> 0 | H65: =IFERROR(ROUND($B65*('C- GrossFTEs'!J65/'C- GrossFTEs'!$Z65),0),0) -> 0 | I65: =IFERROR(ROUND($B65*('C- GrossFTEs'!K65/'C- GrossFTEs'!$Z65),0),0) -> 0 | J65: =IFERROR(ROUND($B65*('C- GrossFTEs'!L65/'C- GrossFTEs'!$Z65),0),0) -> 0 | K65: =IFERROR(ROUND($B65*('C- GrossFTEs'!M65/'C- GrossFTEs'!$Z65),0),0) -> 0 | L65: =IFERROR(ROUND($B65*('C- GrossFTEs'!N65/'C- GrossFTEs'!$Z65),0),0) -> 0 | M65: =IFERROR(ROUND($B65*('C- GrossFTEs'!P65/'C- GrossFTEs'!$Z65),0),0) -> 0 | N65: =IFERROR(ROUND($B65*('C- GrossFTEs'!Q65/'C- GrossFTEs'!$Z65),0),0) -> 0 | O65: =IFERROR(ROUND($B65*('C- GrossFTEs'!S65/'C- GrossFTEs'!$Z65),0),0) -> 0 | P65: 0 | Q65: =IFERROR(ROUND($B65*('C- GrossFTEs'!X65/'C- GrossFTEs'!$Z65),0),0) -> 0
A66: =IF('C- GrossFTEs'!A66=0,"",'C- GrossFTEs'!A66) ->  | E66: =IFERROR(ROUND($B66*('C- GrossFTEs'!E66/'C- GrossFTEs'!$Z66),0),0) -> 0 | F66: =IFERROR(ROUND($B66*('C- GrossFTEs'!G66/'C- GrossFTEs'!$Z66),0),0) -> 0 | G66: =IFERROR(ROUND($B66*('C- GrossFTEs'!H66/'C- GrossFTEs'!$Z66),0),0) -> 0 | H66: =IFERROR(ROUND($B66*('C- GrossFTEs'!J66/'C- GrossFTEs'!$Z66),0),0) -> 0 | I66: =IFERROR(ROUND($B66*('C- GrossFTEs'!K66/'C- GrossFTEs'!$Z66),0),0) -> 0 | J66: =IFERROR(ROUND($B66*('C- GrossFTEs'!L66/'C- GrossFTEs'!$Z66),0),0) -> 0 | K66: =IFERROR(ROUND($B66*('C- GrossFTEs'!M66/'C- GrossFTEs'!$Z66),0),0) -> 0 | L66: =IFERROR(ROUND($B66*('C- GrossFTEs'!N66/'C- GrossFTEs'!$Z66),0),0) -> 0 | M66: =IFERROR(ROUND($B66*('C- GrossFTEs'!P66/'C- GrossFTEs'!$Z66),0),0) -> 0 | N66: =IFERROR(ROUND($B66*('C- GrossFTEs'!Q66/'C- GrossFTEs'!$Z66),0),0) -> 0 | O66: =IFERROR(ROUND($B66*('C- GrossFTEs'!S66/'C- GrossFTEs'!$Z66),0),0) -> 0 | P66: 0 | Q66: =IFERROR(ROUND($B66*('C- GrossFTEs'!X66/'C- GrossFTEs'!$Z66),0),0) -> 0
A67: =IF('C- GrossFTEs'!A67=0,"",'C- GrossFTEs'!A67) ->  | E67: =IFERROR(ROUND($B67*('C- GrossFTEs'!E67/'C- GrossFTEs'!$Z67),0),0) -> 0 | F67: =IFERROR(ROUND($B67*('C- GrossFTEs'!G67/'C- GrossFTEs'!$Z67),0),0) -> 0 | G67: =IFERROR(ROUND($B67*('C- GrossFTEs'!H67/'C- GrossFTEs'!$Z67),0),0) -> 0 | H67: =IFERROR(ROUND($B67*('C- GrossFTEs'!J67/'C- GrossFTEs'!$Z67),0),0) -> 0 | I67: =IFERROR(ROUND($B67*('C- GrossFTEs'!K67/'C- GrossFTEs'!$Z67),0),0) -> 0 | J67: =IFERROR(ROUND($B67*('C- GrossFTEs'!L67/'C- GrossFTEs'!$Z67),0),0) -> 0 | K67: =IFERROR(ROUND($B67*('C- GrossFTEs'!M67/'C- GrossFTEs'!$Z67),0),0) -> 0 | L67: =IFERROR(ROUND($B67*('C- GrossFTEs'!N67/'C- GrossFTEs'!$Z67),0),0) -> 0 | M67: =IFERROR(ROUND($B67*('C- GrossFTEs'!P67/'C- GrossFTEs'!$Z67),0),0) -> 0 | N67: =IFERROR(ROUND($B67*('C- GrossFTEs'!Q67/'C- GrossFTEs'!$Z67),0),0) -> 0 | O67: =IFERROR(ROUND($B67*('C- GrossFTEs'!S67/'C- GrossFTEs'!$Z67),0),0) -> 0 | P67: 0 | Q67: =IFERROR(ROUND($B67*('C- GrossFTEs'!X67/'C- GrossFTEs'!$Z67),0),0) -> 0
A68: =IF('C- GrossFTEs'!A68=0,"",'C- GrossFTEs'!A68) ->  | E68: =IFERROR(ROUND($B68*('C- GrossFTEs'!E68/'C- GrossFTEs'!$Z68),0),0) -> 0 | F68: =IFERROR(ROUND($B68*('C- GrossFTEs'!G68/'C- GrossFTEs'!$Z68),0),0) -> 0 | G68: =IFERROR(ROUND($B68*('C- GrossFTEs'!H68/'C- GrossFTEs'!$Z68),0),0) -> 0 | H68: =IFERROR(ROUND($B68*('C- GrossFTEs'!J68/'C- GrossFTEs'!$Z68),0),0) -> 0 | I68: =IFERROR(ROUND($B68*('C- GrossFTEs'!K68/'C- GrossFTEs'!$Z68),0),0) -> 0 | J68: =IFERROR(ROUND($B68*('C- GrossFTEs'!L68/'C- GrossFTEs'!$Z68),0),0) -> 0 | K68: =IFERROR(ROUND($B68*('C- GrossFTEs'!M68/'C- GrossFTEs'!$Z68),0),0) -> 0 | L68: =IFERROR(ROUND($B68*('C- GrossFTEs'!N68/'C- GrossFTEs'!$Z68),0),0) -> 0 | M68: =IFERROR(ROUND($B68*('C- GrossFTEs'!P68/'C- GrossFTEs'!$Z68),0),0) -> 0 | N68: =IFERROR(ROUND($B68*('C- GrossFTEs'!Q68/'C- GrossFTEs'!$Z68),0),0) -> 0 | O68: =IFERROR(ROUND($B68*('C- GrossFTEs'!S68/'C- GrossFTEs'!$Z68),0),0) -> 0 | P68: 0 | Q68: =IFERROR(ROUND($B68*('C- GrossFTEs'!X68/'C- GrossFTEs'!$Z68),0),0) -> 0
A69: =IF('C- GrossFTEs'!A69=0,"",'C- GrossFTEs'!A69) ->  | E69: =IFERROR(ROUND($B69*('C- GrossFTEs'!E69/'C- GrossFTEs'!$Z69),0),0) -> 0 | F69: =IFERROR(ROUND($B69*('C- GrossFTEs'!G69/'C- GrossFTEs'!$Z69),0),0) -> 0 | G69: =IFERROR(ROUND($B69*('C- GrossFTEs'!H69/'C- GrossFTEs'!$Z69),0),0) -> 0 | H69: =IFERROR(ROUND($B69*('C- GrossFTEs'!J69/'C- GrossFTEs'!$Z69),0),0) -> 0 | I69: =IFERROR(ROUND($B69*('C- GrossFTEs'!K69/'C- GrossFTEs'!$Z69),0),0) -> 0 | J69: =IFERROR(ROUND($B69*('C- GrossFTEs'!L69/'C- GrossFTEs'!$Z69),0),0) -> 0 | K69: =IFERROR(ROUND($B69*('C- GrossFTEs'!M69/'C- GrossFTEs'!$Z69),0),0) -> 0 | L69: =IFERROR(ROUND($B69*('C- GrossFTEs'!N69/'C- GrossFTEs'!$Z69),0),0) -> 0 | M69: =IFERROR(ROUND($B69*('C- GrossFTEs'!P69/'C- GrossFTEs'!$Z69),0),0) -> 0 | N69: =IFERROR(ROUND($B69*('C- GrossFTEs'!Q69/'C- GrossFTEs'!$Z69),0),0) -> 0 | O69: =IFERROR(ROUND($B69*('C- GrossFTEs'!S69/'C- GrossFTEs'!$Z69),0),0) -> 0 | P69: 0 | Q69: =IFERROR(ROUND($B69*('C- GrossFTEs'!X69/'C- GrossFTEs'!$Z69),0),0) -> 0
A70: =IF('C- GrossFTEs'!A70=0,"",'C- GrossFTEs'!A70) ->  | E70: =IFERROR(ROUND($B70*('C- GrossFTEs'!E70/'C- GrossFTEs'!$Z70),0),0) -> 0 | F70: =IFERROR(ROUND($B70*('C- GrossFTEs'!G70/'C- GrossFTEs'!$Z70),0),0) -> 0 | G70: =IFERROR(ROUND($B70*('C- GrossFTEs'!H70/'C- GrossFTEs'!$Z70),0),0) -> 0 | H70: =IFERROR(ROUND($B70*('C- GrossFTEs'!J70/'C- GrossFTEs'!$Z70),0),0) -> 0 | I70: =IFERROR(ROUND($B70*('C- GrossFTEs'!K70/'C- GrossFTEs'!$Z70),0),0) -> 0 | J70: =IFERROR(ROUND($B70*('C- GrossFTEs'!L70/'C- GrossFTEs'!$Z70),0),0) -> 0 | K70: =IFERROR(ROUND($B70*('C- GrossFTEs'!M70/'C- GrossFTEs'!$Z70),0),0) -> 0 | L70: =IFERROR(ROUND($B70*('C- GrossFTEs'!N70/'C- GrossFTEs'!$Z70),0),0) -> 0 | M70: =IFERROR(ROUND($B70*('C- GrossFTEs'!P70/'C- GrossFTEs'!$Z70),0),0) -> 0 | N70: =IFERROR(ROUND($B70*('C- GrossFTEs'!Q70/'C- GrossFTEs'!$Z70),0),0) -> 0 | O70: =IFERROR(ROUND($B70*('C- GrossFTEs'!S70/'C- GrossFTEs'!$Z70),0),0) -> 0 | P70: 0 | Q70: =IFERROR(ROUND($B70*('C- GrossFTEs'!X70/'C- GrossFTEs'!$Z70),0),0) -> 0
A71: =IF('C- GrossFTEs'!A71=0,"",'C- GrossFTEs'!A71) ->  | E71: =IFERROR(ROUND($B71*('C- GrossFTEs'!E71/'C- GrossFTEs'!$Z71),0),0) -> 0 | F71: =IFERROR(ROUND($B71*('C- GrossFTEs'!G71/'C- GrossFTEs'!$Z71),0),0) -> 0 | G71: =IFERROR(ROUND($B71*('C- GrossFTEs'!H71/'C- GrossFTEs'!$Z71),0),0) -> 0 | H71: =IFERROR(ROUND($B71*('C- GrossFTEs'!J71/'C- GrossFTEs'!$Z71),0),0) -> 0 | I71: =IFERROR(ROUND($B71*('C- GrossFTEs'!K71/'C- GrossFTEs'!$Z71),0),0) -> 0 | J71: =IFERROR(ROUND($B71*('C- GrossFTEs'!L71/'C- GrossFTEs'!$Z71),0),0) -> 0 | K71: =IFERROR(ROUND($B71*('C- GrossFTEs'!M71/'C- GrossFTEs'!$Z71),0),0) -> 0 | L71: =IFERROR(ROUND($B71*('C- GrossFTEs'!N71/'C- GrossFTEs'!$Z71),0),0) -> 0 | M71: =IFERROR(ROUND($B71*('C- GrossFTEs'!P71/'C- GrossFTEs'!$Z71),0),0) -> 0 | N71: =IFERROR(ROUND($B71*('C- GrossFTEs'!Q71/'C- GrossFTEs'!$Z71),0),0) -> 0 | O71: =IFERROR(ROUND($B71*('C- GrossFTEs'!S71/'C- GrossFTEs'!$Z71),0),0) -> 0 | P71: 0 | Q71: =IFERROR(ROUND($B71*('C- GrossFTEs'!X71/'C- GrossFTEs'!$Z71),0),0) -> 0
A72: =IF('C- GrossFTEs'!A72=0,"",'C- GrossFTEs'!A72) ->  | E72: =IFERROR(ROUND($B72*('C- GrossFTEs'!E72/'C- GrossFTEs'!$Z72),0),0) -> 0 | F72: =IFERROR(ROUND($B72*('C- GrossFTEs'!G72/'C- GrossFTEs'!$Z72),0),0) -> 0 | G72: =IFERROR(ROUND($B72*('C- GrossFTEs'!H72/'C- GrossFTEs'!$Z72),0),0) -> 0 | H72: =IFERROR(ROUND($B72*('C- GrossFTEs'!J72/'C- GrossFTEs'!$Z72),0),0) -> 0 | I72: =IFERROR(ROUND($B72*('C- GrossFTEs'!K72/'C- GrossFTEs'!$Z72),0),0) -> 0 | J72: =IFERROR(ROUND($B72*('C- GrossFTEs'!L72/'C- GrossFTEs'!$Z72),0),0) -> 0 | K72: =IFERROR(ROUND($B72*('C- GrossFTEs'!M72/'C- GrossFTEs'!$Z72),0),0) -> 0 | L72: =IFERROR(ROUND($B72*('C- GrossFTEs'!N72/'C- GrossFTEs'!$Z72),0),0) -> 0 | M72: =IFERROR(ROUND($B72*('C- GrossFTEs'!P72/'C- GrossFTEs'!$Z72),0),0) -> 0 | N72: =IFERROR(ROUND($B72*('C- GrossFTEs'!Q72/'C- GrossFTEs'!$Z72),0),0) -> 0 | O72: =IFERROR(ROUND($B72*('C- GrossFTEs'!S72/'C- GrossFTEs'!$Z72),0),0) -> 0 | P72: =ROUND(B72-SUM(D72:O72,Q72),0) -> 0 | Q72: =IFERROR(ROUND($B72*('C- GrossFTEs'!X72/'C- GrossFTEs'!$Z72),0),0) -> 0
A73: =IF('C- GrossFTEs'!A73=0,"",'C- GrossFTEs'!A73) ->  | E73: =IFERROR(ROUND($B73*('C- GrossFTEs'!E73/'C- GrossFTEs'!$Z73),0),0) -> 0 | F73: =IFERROR(ROUND($B73*('C- GrossFTEs'!G73/'C- GrossFTEs'!$Z73),0),0) -> 0 | G73: =IFERROR(ROUND($B73*('C- GrossFTEs'!H73/'C- GrossFTEs'!$Z73),0),0) -> 0 | H73: =IFERROR(ROUND($B73*('C- GrossFTEs'!J73/'C- GrossFTEs'!$Z73),0),0) -> 0 | I73: =IFERROR(ROUND($B73*('C- GrossFTEs'!K73/'C- GrossFTEs'!$Z73),0),0) -> 0 | J73: =IFERROR(ROUND($B73*('C- GrossFTEs'!L73/'C- GrossFTEs'!$Z73),0),0) -> 0 | K73: =IFERROR(ROUND($B73*('C- GrossFTEs'!M73/'C- GrossFTEs'!$Z73),0),0) -> 0 | L73: =IFERROR(ROUND($B73*('C- GrossFTEs'!N73/'C- GrossFTEs'!$Z73),0),0) -> 0 | M73: =IFERROR(ROUND($B73*('C- GrossFTEs'!P73/'C- GrossFTEs'!$Z73),0),0) -> 0 | N73: =IFERROR(ROUND($B73*('C- GrossFTEs'!Q73/'C- GrossFTEs'!$Z73),0),0) -> 0 | O73: =IFERROR(ROUND($B73*('C- GrossFTEs'!S73/'C- GrossFTEs'!$Z73),0),0) -> 0 | P73: 0 | Q73: =IFERROR(ROUND($B73*('C- GrossFTEs'!X73/'C- GrossFTEs'!$Z73),0),0) -> 0
A74: =IF('C- GrossFTEs'!A74=0,"",'C- GrossFTEs'!A74) ->  | E74: =IFERROR(ROUND($B74*('C- GrossFTEs'!E74/'C- GrossFTEs'!$Z74),0),0) -> 0 | F74: =IFERROR(ROUND($B74*('C- GrossFTEs'!G74/'C- GrossFTEs'!$Z74),0),0) -> 0 | G74: =IFERROR(ROUND($B74*('C- GrossFTEs'!H74/'C- GrossFTEs'!$Z74),0),0) -> 0 | H74: =IFERROR(ROUND($B74*('C- GrossFTEs'!J74/'C- GrossFTEs'!$Z74),0),0) -> 0 | I74: =IFERROR(ROUND($B74*('C- GrossFTEs'!K74/'C- GrossFTEs'!$Z74),0),0) -> 0 | J74: =IFERROR(ROUND($B74*('C- GrossFTEs'!L74/'C- GrossFTEs'!$Z74),0),0) -> 0 | K74: =IFERROR(ROUND($B74*('C- GrossFTEs'!M74/'C- GrossFTEs'!$Z74),0),0) -> 0 | L74: =IFERROR(ROUND($B74*('C- GrossFTEs'!N74/'C- GrossFTEs'!$Z74),0),0) -> 0 | M74: =IFERROR(ROUND($B74*('C- GrossFTEs'!P74/'C- GrossFTEs'!$Z74),0),0) -> 0 | N74: =IFERROR(ROUND($B74*('C- GrossFTEs'!Q74/'C- GrossFTEs'!$Z74),0),0) -> 0 | O74: =IFERROR(ROUND($B74*('C- GrossFTEs'!S74/'C- GrossFTEs'!$Z74),0),0) -> 0 | P74: 0 | Q74: =IFERROR(ROUND($B74*('C- GrossFTEs'!X74/'C- GrossFTEs'!$Z74),0),0) -> 0
A75: =IF('C- GrossFTEs'!A75=0,"",'C- GrossFTEs'!A75) ->  | E75: =IFERROR(ROUND($B75*('C- GrossFTEs'!E75/'C- GrossFTEs'!$Z75),0),0) -> 0 | F75: =IFERROR(ROUND($B75*('C- GrossFTEs'!G75/'C- GrossFTEs'!$Z75),0),0) -> 0 | G75: =IFERROR(ROUND($B75*('C- GrossFTEs'!H75/'C- GrossFTEs'!$Z75),0),0) -> 0 | H75: =IFERROR(ROUND($B75*('C- GrossFTEs'!J75/'C- GrossFTEs'!$Z75),0),0) -> 0 | I75: =IFERROR(ROUND($B75*('C- GrossFTEs'!K75/'C- GrossFTEs'!$Z75),0),0) -> 0 | J75: =IFERROR(ROUND($B75*('C- GrossFTEs'!L75/'C- GrossFTEs'!$Z75),0),0) -> 0 | K75: =IFERROR(ROUND($B75*('C- GrossFTEs'!M75/'C- GrossFTEs'!$Z75),0),0) -> 0 | L75: =IFERROR(ROUND($B75*('C- GrossFTEs'!N75/'C- GrossFTEs'!$Z75),0),0) -> 0 | M75: =IFERROR(ROUND($B75*('C- GrossFTEs'!P75/'C- GrossFTEs'!$Z75),0),0) -> 0 | N75: =IFERROR(ROUND($B75*('C- GrossFTEs'!Q75/'C- GrossFTEs'!$Z75),0),0) -> 0 | O75: =IFERROR(ROUND($B75*('C- GrossFTEs'!S75/'C- GrossFTEs'!$Z75),0),0) -> 0 | P75: 0 | Q75: =IFERROR(ROUND($B75*('C- GrossFTEs'!X75/'C- GrossFTEs'!$Z75),0),0) -> 0
A76: =IF('C- GrossFTEs'!A76=0,"",'C- GrossFTEs'!A76) ->  | E76: =IFERROR(ROUND($B76*('C- GrossFTEs'!E76/'C- GrossFTEs'!$Z76),0),0) -> 0 | F76: =IFERROR(ROUND($B76*('C- GrossFTEs'!G76/'C- GrossFTEs'!$Z76),0),0) -> 0 | G76: =IFERROR(ROUND($B76*('C- GrossFTEs'!H76/'C- GrossFTEs'!$Z76),0),0) -> 0 | H76: =IFERROR(ROUND($B76*('C- GrossFTEs'!J76/'C- GrossFTEs'!$Z76),0),0) -> 0 | I76: =IFERROR(ROUND($B76*('C- GrossFTEs'!K76/'C- GrossFTEs'!$Z76),0),0) -> 0 | J76: =IFERROR(ROUND($B76*('C- GrossFTEs'!L76/'C- GrossFTEs'!$Z76),0),0) -> 0 | K76: =IFERROR(ROUND($B76*('C- GrossFTEs'!M76/'C- GrossFTEs'!$Z76),0),0) -> 0 | L76: =IFERROR(ROUND($B76*('C- GrossFTEs'!N76/'C- GrossFTEs'!$Z76),0),0) -> 0 | M76: =IFERROR(ROUND($B76*('C- GrossFTEs'!P76/'C- GrossFTEs'!$Z76),0),0) -> 0 | N76: =IFERROR(ROUND($B76*('C- GrossFTEs'!Q76/'C- GrossFTEs'!$Z76),0),0) -> 0 | O76: =IFERROR(ROUND($B76*('C- GrossFTEs'!S76/'C- GrossFTEs'!$Z76),0),0) -> 0 | P76: 0 | Q76: =IFERROR(ROUND($B76*('C- GrossFTEs'!X76/'C- GrossFTEs'!$Z76),0),0) -> 0
A77: =IF('C- GrossFTEs'!A77=0,"",'C- GrossFTEs'!A77) ->  | E77: =IFERROR(ROUND($B77*('C- GrossFTEs'!E77/'C- GrossFTEs'!$Z77),0),0) -> 0 | F77: =IFERROR(ROUND($B77*('C- GrossFTEs'!G77/'C- GrossFTEs'!$Z77),0),0) -> 0 | G77: =IFERROR(ROUND($B77*('C- GrossFTEs'!H77/'C- GrossFTEs'!$Z77),0),0) -> 0 | H77: =IFERROR(ROUND($B77*('C- GrossFTEs'!J77/'C- GrossFTEs'!$Z77),0),0) -> 0 | I77: =IFERROR(ROUND($B77*('C- GrossFTEs'!K77/'C- GrossFTEs'!$Z77),0),0) -> 0 | J77: =IFERROR(ROUND($B77*('C- GrossFTEs'!L77/'C- GrossFTEs'!$Z77),0),0) -> 0 | K77: =IFERROR(ROUND($B77*('C- GrossFTEs'!M77/'C- GrossFTEs'!$Z77),0),0) -> 0 | L77: =IFERROR(ROUND($B77*('C- GrossFTEs'!N77/'C- GrossFTEs'!$Z77),0),0) -> 0 | M77: =IFERROR(ROUND($B77*('C- GrossFTEs'!P77/'C- GrossFTEs'!$Z77),0),0) -> 0 | N77: =IFERROR(ROUND($B77*('C- GrossFTEs'!Q77/'C- GrossFTEs'!$Z77),0),0) -> 0 | O77: =IFERROR(ROUND($B77*('C- GrossFTEs'!S77/'C- GrossFTEs'!$Z77),0),0) -> 0 | P77: 0 | Q77: =IFERROR(ROUND($B77*('C- GrossFTEs'!X77/'C- GrossFTEs'!$Z77),0),0) -> 0
A78: =IF('C- GrossFTEs'!A78=0,"",'C- GrossFTEs'!A78) ->  | E78: =IFERROR(ROUND($B78*('C- GrossFTEs'!E78/'C- GrossFTEs'!$Z78),0),0) -> 0 | F78: =IFERROR(ROUND($B78*('C- GrossFTEs'!G78/'C- GrossFTEs'!$Z78),0),0) -> 0 | G78: =IFERROR(ROUND($B78*('C- GrossFTEs'!H78/'C- GrossFTEs'!$Z78),0),0) -> 0 | H78: =IFERROR(ROUND($B78*('C- GrossFTEs'!J78/'C- GrossFTEs'!$Z78),0),0) -> 0 | I78: =IFERROR(ROUND($B78*('C- GrossFTEs'!K78/'C- GrossFTEs'!$Z78),0),0) -> 0 | J78: =IFERROR(ROUND($B78*('C- GrossFTEs'!L78/'C- GrossFTEs'!$Z78),0),0) -> 0 | K78: =IFERROR(ROUND($B78*('C- GrossFTEs'!M78/'C- GrossFTEs'!$Z78),0),0) -> 0 | L78: =IFERROR(ROUND($B78*('C- GrossFTEs'!N78/'C- GrossFTEs'!$Z78),0),0) -> 0 | M78: =IFERROR(ROUND($B78*('C- GrossFTEs'!P78/'C- GrossFTEs'!$Z78),0),0) -> 0 | N78: =IFERROR(ROUND($B78*('C- GrossFTEs'!Q78/'C- GrossFTEs'!$Z78),0),0) -> 0 | O78: =IFERROR(ROUND($B78*('C- GrossFTEs'!S78/'C- GrossFTEs'!$Z78),0),0) -> 0 | P78: 0 | Q78: =IFERROR(ROUND($B78*('C- GrossFTEs'!X78/'C- GrossFTEs'!$Z78),0),0) -> 0
A79: =IF('C- GrossFTEs'!A79=0,"",'C- GrossFTEs'!A79) ->  | E79: =IFERROR(ROUND($B79*('C- GrossFTEs'!E79/'C- GrossFTEs'!$Z79),0),0) -> 0 | F79: =IFERROR(ROUND($B79*('C- GrossFTEs'!G79/'C- GrossFTEs'!$Z79),0),0) -> 0 | G79: =IFERROR(ROUND($B79*('C- GrossFTEs'!H79/'C- GrossFTEs'!$Z79),0),0) -> 0 | H79: =IFERROR(ROUND($B79*('C- GrossFTEs'!J79/'C- GrossFTEs'!$Z79),0),0) -> 0 | I79: =IFERROR(ROUND($B79*('C- GrossFTEs'!K79/'C- GrossFTEs'!$Z79),0),0) -> 0 | J79: =IFERROR(ROUND($B79*('C- GrossFTEs'!L79/'C- GrossFTEs'!$Z79),0),0) -> 0 | K79: =IFERROR(ROUND($B79*('C- GrossFTEs'!M79/'C- GrossFTEs'!$Z79),0),0) -> 0 | L79: =IFERROR(ROUND($B79*('C- GrossFTEs'!N79/'C- GrossFTEs'!$Z79),0),0) -> 0 | M79: =IFERROR(ROUND($B79*('C- GrossFTEs'!P79/'C- GrossFTEs'!$Z79),0),0) -> 0 | N79: =IFERROR(ROUND($B79*('C- GrossFTEs'!Q79/'C- GrossFTEs'!$Z79),0),0) -> 0 | O79: =IFERROR(ROUND($B79*('C- GrossFTEs'!S79/'C- GrossFTEs'!$Z79),0),0) -> 0 | P79: 0 | Q79: =IFERROR(ROUND($B79*('C- GrossFTEs'!X79/'C- GrossFTEs'!$Z79),0),0) -> 0
A80: =IF('C- GrossFTEs'!A80=0,"",'C- GrossFTEs'!A80) ->  | E80: =IFERROR(ROUND($B80*('C- GrossFTEs'!E80/'C- GrossFTEs'!$Z80),0),0) -> 0 | F80: =IFERROR(ROUND($B80*('C- GrossFTEs'!G80/'C- GrossFTEs'!$Z80),0),0) -> 0 | G80: =IFERROR(ROUND($B80*('C- GrossFTEs'!H80/'C- GrossFTEs'!$Z80),0),0) -> 0 | H80: =IFERROR(ROUND($B80*('C- GrossFTEs'!J80/'C- GrossFTEs'!$Z80),0),0) -> 0 | I80: =IFERROR(ROUND($B80*('C- GrossFTEs'!K80/'C- GrossFTEs'!$Z80),0),0) -> 0 | J80: =IFERROR(ROUND($B80*('C- GrossFTEs'!L80/'C- GrossFTEs'!$Z80),0),0) -> 0 | K80: =IFERROR(ROUND($B80*('C- GrossFTEs'!M80/'C- GrossFTEs'!$Z80),0),0) -> 0 | L80: =IFERROR(ROUND($B80*('C- GrossFTEs'!N80/'C- GrossFTEs'!$Z80),0),0) -> 0 | M80: =IFERROR(ROUND($B80*('C- GrossFTEs'!P80/'C- GrossFTEs'!$Z80),0),0) -> 0 | N80: =IFERROR(ROUND($B80*('C- GrossFTEs'!Q80/'C- GrossFTEs'!$Z80),0),0) -> 0 | O80: =IFERROR(ROUND($B80*('C- GrossFTEs'!S80/'C- GrossFTEs'!$Z80),0),0) -> 0 | P80: 0 | Q80: =IFERROR(ROUND($B80*('C- GrossFTEs'!X80/'C- GrossFTEs'!$Z80),0),0) -> 0
A81: =IF('C- GrossFTEs'!A81=0,"",'C- GrossFTEs'!A81) -> Totals | B81: =SUM(B6:B80) -> 198163 | D81: =SUM(D8:D11) -> 12000 | E81: =SUM(E7:E80) -> 34389 | F81: =SUM(F7:F80) -> 30856 | G81: =SUM(G6:G80) -> 15750 | H81: 7860 | I81: 6390 | J81: 14250 | K81: 0 | L81: 0 | M81: 48168 | N81: 14250 | O81: 6420 | P81: 7830 | Q81: =SUM(Q8:Q80) -> 0

Sheet ErrorCheckingE (hidden)
A1: Tab E | H1: =COUNTIF(G3:G1263,">0") -> 0
A2: FieldName | B2: Cell | C2: Verification | D2: Error | E2: TabEFH1 | F2: TabEFH2 | G2: TabEFH3
A3: $ Amt is negative or more than 2 decimal places | B3: B6 | C3: =IF(AND('E- OperatingCosts'!B6>=0,ROUND('E- OperatingCosts'!B6,2)='E- OperatingCosts'!B6),"OKAY","$ Amt Number is Negative or more than 2 Decimal places") -> OKAY | D3: =IF(C3="OKAY","","Cell "&B3&" is negative or more than 2 decimal places") ->  | E3: =ROW(C3)-2 -> 1 | F3: =IF(D3="","",E3) ->  | G3: =IFERROR(SMALL($F$3:$F$1263,E3),"") -> 
A4: $ Amt is negative or more than 2 decimal places | B4: B7 | C4: =IF(AND('E- OperatingCosts'!B7>=0,ROUND('E- OperatingCosts'!B7,2)='E- OperatingCosts'!B7),"OKAY","$ Amt Number is Negative or more than 2 Decimal places") -> OKAY | D4: =IF(C4="OKAY","","Cell "&B4&" is negative or more than 2 decimal places") ->  | E4: =ROW(C4)-2 -> 2 | F4: =IF(D4="","",E4) ->  | G4: =IFERROR(SMALL($F$3:$F$1263,E4),"") -> 
A5: $ Amt is negative or more than 2 decimal places | B5: B8 | C5: =IF(AND('E- OperatingCosts'!B8>=0,ROUND('E- OperatingCosts'!B8,2)='E- OperatingCosts'!B8),"OKAY","$ Amt Number is Negative or more than 2 Decimal places") -> OKAY | E5: 3
A6: $ Amt is negative or more than 2 decimal places | B6: B9 | C6: =IF(AND('E- OperatingCosts'!B9>=0,ROUND('E- OperatingCosts'!B9,2)='E- OperatingCosts'!B9),"OKAY","$ Amt Number is Negative or more than 2 Decimal places") -> OKAY | E6: 4
A7: $ Amt is negative or more than 2 decimal places | B7: B10 | C7: =IF(AND('E- OperatingCosts'!B10>=0,ROUND('E- OperatingCosts'!B10,2)='E- OperatingCosts'!B10),"OKAY","$ Amt Number is Negative or more than 2 Decimal places") -> OKAY | E7: 5
A8: $ Amt is negative or more than 2 decimal places | B8: B11 | C8: =IF(AND('E- OperatingCosts'!B11>=0,ROUND('E- OperatingCosts'!B11,2)='E- OperatingCosts'!B11),"OKAY","$ Amt Number is Negative or more than 2 Decimal places") -> OKAY | E8: 6
A9: $ Amt is negative or more than 2 decimal places | B9: B12 | C9: =IF(AND('E- OperatingCosts'!B12>=0,ROUND('E- OperatingCosts'!B12,2)='E- OperatingCosts'!B12),"OKAY","$ Amt Number is Negative or more than 2 Decimal places") -> OKAY | E9: 7
A10: $ Amt is negative or more than 2 decimal places | B10: B13 | C10: =IF(AND('E- OperatingCosts'!B13>=0,ROUND('E- OperatingCosts'!B13,2)='E- OperatingCosts'!B13),"OKAY","$ Amt Number is Negative or more than 2 Decimal places") -> OKAY | E10: 8
A11: $ Amt is negative or more than 2 decimal places | B11: B14 | C11: =IF(AND('E- OperatingCosts'!B14>=0,ROUND('E- OperatingCosts'!B14,2)='E- OperatingCosts'!B14),"OKAY","$ Amt Number is Negative or more than 2 Decimal places") -> OKAY | E11: 9
A12: $ Amt is negative or more than 2 decimal places | B12: B15 | C12: =IF(AND('E- OperatingCosts'!B15>=0,ROUND('E- OperatingCosts'!B15,2)='E- OperatingCosts'!B15),"OKAY","$ Amt Number is Negative or more than 2 Decimal places") -> OKAY | E12: 10
A13: $ Amt is negative or more than 2 decimal places | B13: B16 | C13: =IF(AND('E- OperatingCosts'!B16>=0,ROUND('E- OperatingCosts'!B16,2)='E- OperatingCosts'!B16),"OKAY","$ Amt Number is Negative or more than 2 Decimal places") -> OKAY | E13: 11
A14: $ Amt is negative or more than 2 decimal places | B14: B17 | C14: =IF(AND('E- OperatingCosts'!B17>=0,ROUND('E- OperatingCosts'!B17,2)='E- OperatingCosts'!B17),"OKAY","$ Amt Number is Negative or more than 2 Decimal places") -> OKAY | E14: 12
A15: $ Amt is negative or more than 2 decimal places | B15: B18 | C15: =IF(AND('E- OperatingCosts'!B18>=0,ROUND('E- OperatingCosts'!B18,2)='E- OperatingCosts'!B18),"OKAY","$ Amt Number is Negative or more than 2 Decimal places") -> OKAY | E15: 13
A16: $ Amt is negative or more than 2 decimal places | B16: B19 | C16: =IF(AND('E- OperatingCosts'!B19>=0,ROUND('E- OperatingCosts'!B19,2)='E- OperatingCosts'!B19),"OKAY","$ Amt Number is Negative or more than 2 Decimal places") -> OKAY | E16: 14
A17: $ Amt is negative or more than 2 decimal places | B17: B20 | C17: =IF(AND('E- OperatingCosts'!B20>=0,ROUND('E- OperatingCosts'!B20,2)='E- OperatingCosts'!B20),"OKAY","$ Amt Number is Negative or more than 2 Decimal places") -> OKAY | E17: 15
A18: $ Amt is negative or more than 2 decimal places | B18: B21 | C18: =IF(AND('E- OperatingCosts'!B21>=0,ROUND('E- OperatingCosts'!B21,2)='E- OperatingCosts'!B21),"OKAY","$ Amt Number is Negative or more than 2 Decimal places") -> OKAY | E18: 16
A19: $ Amt is negative or more than 2 decimal places | B19: B22 | C19: =IF(AND('E- OperatingCosts'!B22>=0,ROUND('E- OperatingCosts'!B22,2)='E- OperatingCosts'!B22),"OKAY","$ Amt Number is Negative or more than 2 Decimal places") -> OKAY | E19: 17
A20: $ Amt is negative or more than 2 decimal places | B20: B23 | C20: =IF(AND('E- OperatingCosts'!B23>=0,ROUND('E- OperatingCosts'!B23,2)='E- OperatingCosts'!B23),"OKAY","$ Amt Number is Negative or more than 2 Decimal places") -> OKAY | E20: 18
A21: $ Amt is negative or more than 2 decimal places | B21: B24 | C21: =IF(AND('E- OperatingCosts'!B24>=0,ROUND('E- OperatingCosts'!B24,2)='E- OperatingCosts'!B24),"OKAY","$ Amt Number is Negative or more than 2 Decimal places") -> OKAY | E21: 19
A22: $ Amt is negative or more than 2 decimal places | B22: B25 | C22: =IF(AND('E- OperatingCosts'!B25>=0,ROUND('E- OperatingCosts'!B25,2)='E- OperatingCosts'!B25),"OKAY","$ Amt Number is Negative or more than 2 Decimal places") -> OKAY | E22: 20
A23: $ Amt is negative or more than 2 decimal places | B23: B26 | C23: =IF(AND('E- OperatingCosts'!B26>=0,ROUND('E- OperatingCosts'!B26,2)='E- OperatingCosts'!B26),"OKAY","$ Amt Number is Negative or more than 2 Decimal places") -> OKAY | E23: 21
A24: $ Amt is negative or more than 2 decimal places | B24: B27 | C24: =IF(AND('E- OperatingCosts'!B27>=0,ROUND('E- OperatingCosts'!B27,2)='E- OperatingCosts'!B27),"OKAY","$ Amt Number is Negative or more than 2 Decimal places") -> OKAY | E24: 22
A25: $ Amt is negative or more than 2 decimal places | B25: B28 | C25: =IF(AND('E- OperatingCosts'!B28>=0,ROUND('E- OperatingCosts'!B28,2)='E- OperatingCosts'!B28),"OKAY","$ Amt Number is Negative or more than 2 Decimal places") -> OKAY | E25: 23
A26: $ Amt is negative or more than 2 decimal places | B26: B29 | C26: =IF(AND('E- OperatingCosts'!B29>=0,ROUND('E- OperatingCosts'!B29,2)='E- OperatingCosts'!B29),"OKAY","$ Amt Number is Negative or more than 2 Decimal places") -> OKAY | E26: 24
A27: $ Amt is negative or more than 2 decimal places | B27: B30 | C27: =IF(AND('E- OperatingCosts'!B30>=0,ROUND('E- OperatingCosts'!B30,2)='E- OperatingCosts'!B30),"OKAY","$ Amt Number is Negative or more than 2 Decimal places") -> OKAY | E27: 25
A28: $ Amt is negative or more than 2 decimal places | B28: B31 | C28: =IF(AND('E- OperatingCosts'!B31>=0,ROUND('E- OperatingCosts'!B31,2)='E- OperatingCosts'!B31),"OKAY","$ Amt Number is Negative or more than 2 Decimal places") -> OKAY | E28: 26
A29: $ Amt is negative or more than 2 decimal places | B29: B32 | C29: =IF(AND('E- OperatingCosts'!B32>=0,ROUND('E- OperatingCosts'!B32,2)='E- OperatingCosts'!B32),"OKAY","$ Amt Number is Negative or more than 2 Decimal places") -> OKAY | E29: 27
A30: $ Amt is negative or more than 2 decimal places | B30: B33 | C30: =IF(AND('E- OperatingCosts'!B33>=0,ROUND('E- OperatingCosts'!B33,2)='E- OperatingCosts'!B33),"OKAY","$ Amt Number is Negative or more than 2 Decimal places") -> OKAY | E30: 28
A31: $ Amt is negative or more than 2 decimal places | B31: B34 | C31: =IF(AND('E- OperatingCosts'!B34>=0,ROUND('E- OperatingCosts'!B34,2)='E- OperatingCosts'!B34),"OKAY","$ Amt Number is Negative or more than 2 Decimal places") -> OKAY | E31: 29
A32: $ Amt is negative or more than 2 decimal places | B32: B35 | C32: =IF(AND('E- OperatingCosts'!B35>=0,ROUND('E- OperatingCosts'!B35,2)='E- OperatingCosts'!B35),"OKAY","$ Amt Number is Negative or more than 2 Decimal places") -> OKAY | E32: 30
A33: $ Amt is negative or more than 2 decimal places | B33: B36 | C33: =IF(AND('E- OperatingCosts'!B36>=0,ROUND('E- OperatingCosts'!B36,2)='E- OperatingCosts'!B36),"OKAY","$ Amt Number is Negative or more than 2 Decimal places") -> OKAY | E33: 31
A34: $ Amt is negative or more than 2 decimal places | B34: B37 | C34: =IF(AND('E- OperatingCosts'!B37>=0,ROUND('E- OperatingCosts'!B37,2)='E- OperatingCosts'!B37),"OKAY","$ Amt Number is Negative or more than 2 Decimal places") -> OKAY | E34: 32
A35: $ Amt is negative or more than 2 decimal places | B35: B38 | C35: =IF(AND('E- OperatingCosts'!B38>=0,ROUND('E- OperatingCosts'!B38,2)='E- OperatingCosts'!B38),"OKAY","$ Amt Number is Negative or more than 2 Decimal places") -> OKAY | E35: 33
A36: $ Amt is negative or more than 2 decimal places | B36: B39 | C36: =IF(AND('E- OperatingCosts'!B39>=0,ROUND('E- OperatingCosts'!B39,2)='E- OperatingCosts'!B39),"OKAY","$ Amt Number is Negative or more than 2 Decimal places") -> OKAY | E36: 34
A37: $ Amt is negative or more than 2 decimal places | B37: B40 | C37: =IF(AND('E- OperatingCosts'!B40>=0,ROUND('E- OperatingCosts'!B40,2)='E- OperatingCosts'!B40),"OKAY","$ Amt Number is Negative or more than 2 Decimal places") -> OKAY | E37: 35
A38: $ Amt is negative or more than 2 decimal places | B38: B41 | C38: =IF(AND('E- OperatingCosts'!B41>=0,ROUND('E- OperatingCosts'!B41,2)='E- OperatingCosts'!B41),"OKAY","$ Amt Number is Negative or more than 2 Decimal places") -> OKAY | E38: 36
A39: $ Amt is negative or more than 2 decimal places | B39: B42 | C39: =IF(AND('E- OperatingCosts'!B42>=0,ROUND('E- OperatingCosts'!B42,2)='E- OperatingCosts'!B42),"OKAY","$ Amt Number is Negative or more than 2 Decimal places") -> OKAY | E39: 37
A40: $ Amt is negative or more than 2 decimal places | B40: B43 | C40: =IF(AND('E- OperatingCosts'!B43>=0,ROUND('E- OperatingCosts'!B43,2)='E- OperatingCosts'!B43),"OKAY","$ Amt Number is Negative or more than 2 Decimal places") -> OKAY | E40: 38
A41: $ Amt is negative or more than 2 decimal places | B41: B44 | C41: =IF(AND('E- OperatingCosts'!B44>=0,ROUND('E- OperatingCosts'!B44,2)='E- OperatingCosts'!B44),"OKAY","$ Amt Number is Negative or more than 2 Decimal places") -> OKAY | E41: 39
A42: $ Amt is negative or more than 2 decimal places | B42: B45 | C42: =IF(AND('E- OperatingCosts'!B45>=0,ROUND('E- OperatingCosts'!B45,2)='E- OperatingCosts'!B45),"OKAY","$ Amt Number is Negative or more than 2 Decimal places") -> OKAY | E42: 40
A43: $ Amt is negative or more than 2 decimal places | B43: B46 | C43: =IF(AND('E- OperatingCosts'!B46>=0,ROUND('E- OperatingCosts'!B46,2)='E- OperatingCosts'!B46),"OKAY","$ Amt Number is Negative or more than 2 Decimal places") -> OKAY | E43: 41
A44: $ Amt is negative or more than 2 decimal places | B44: B47 | C44: =IF(AND('E- OperatingCosts'!B47>=0,ROUND('E- OperatingCosts'!B47,2)='E- OperatingCosts'!B47),"OKAY","$ Amt Number is Negative or more than 2 Decimal places") -> OKAY | E44: 42
A45: $ Amt is negative or more than 2 decimal places | B45: B48 | C45: =IF(AND('E- OperatingCosts'!B48>=0,ROUND('E- OperatingCosts'!B48,2)='E- OperatingCosts'!B48),"OKAY","$ Amt Number is Negative or more than 2 Decimal places") -> OKAY | E45: 43
A46: $ Amt is negative or more than 2 decimal places | B46: B49 | C46: =IF(AND('E- OperatingCosts'!B49>=0,ROUND('E- OperatingCosts'!B49,2)='E- OperatingCosts'!B49),"OKAY","$ Amt Number is Negative or more than 2 Decimal places") -> OKAY | E46: 44
A47: $ Amt is negative or more than 2 decimal places | B47: B50 | C47: =IF(AND('E- OperatingCosts'!B50>=0,ROUND('E- OperatingCosts'!B50,2)='E- OperatingCosts'!B50),"OKAY","$ Amt Number is Negative or more than 2 Decimal places") -> OKAY | E47: 45
A48: $ Amt is negative or more than 2 decimal places | B48: B51 | C48: =IF(AND('E- OperatingCosts'!B51>=0,ROUND('E- OperatingCosts'!B51,2)='E- OperatingCosts'!B51),"OKAY","$ Amt Number is Negative or more than 2 Decimal places") -> OKAY | E48: 46
A49: $ Amt is negative or more than 2 decimal places | B49: B52 | C49: =IF(AND('E- OperatingCosts'!B52>=0,ROUND('E- OperatingCosts'!B52,2)='E- OperatingCosts'!B52),"OKAY","$ Amt Number is Negative or more than 2 Decimal places") -> OKAY | E49: 47
A50: $ Amt is negative or more than 2 decimal places | B50: B53 | C50: =IF(AND('E- OperatingCosts'!B53>=0,ROUND('E- OperatingCosts'!B53,2)='E- OperatingCosts'!B53),"OKAY","$ Amt Number is Negative or more than 2 Decimal places") -> OKAY | E50: 48
A51: $ Amt is negative or more than 2 decimal places | B51: B54 | C51: =IF(AND('E- OperatingCosts'!B54>=0,ROUND('E- OperatingCosts'!B54,2)='E- OperatingCosts'!B54),"OKAY","$ Amt Number is Negative or more than 2 Decimal places") -> OKAY | E51: 49
A52: $ Amt is negative or more than 2 decimal places | B52: B55 | C52: =IF(AND('E- OperatingCosts'!B55>=0,ROUND('E- OperatingCosts'!B55,2)='E- OperatingCosts'!B55),"OKAY","$ Amt Number is Negative or more than 2 Decimal places") -> OKAY | E52: 50
A53: $ Amt is negative or more than 2 decimal places | B53: B56 | C53: =IF(AND('E- OperatingCosts'!B56>=0,ROUND('E- OperatingCosts'!B56,2)='E- OperatingCosts'!B56),"OKAY","$ Amt Number is Negative or more than 2 Decimal places") -> OKAY | E53: 51
A54: $ Amt is negative or more than 2 decimal places | B54: B57 | C54: =IF(AND('E- OperatingCosts'!B57>=0,ROUND('E- OperatingCosts'!B57,2)='E- OperatingCosts'!B57),"OKAY","$ Amt Number is Negative or more than 2 Decimal places") -> OKAY | E54: 52
A55: $ Amt is negative or more than 2 decimal places | B55: B58 | C55: =IF(AND('E- OperatingCosts'!B58>=0,ROUND('E- OperatingCosts'!B58,2)='E- OperatingCosts'!B58),"OKAY","$ Amt Number is Negative or more than 2 Decimal places") -> OKAY | E55: 53
A56: $ Amt is negative or more than 2 decimal places | B56: B59 | C56: =IF(AND('E- OperatingCosts'!B59>=0,ROUND('E- OperatingCosts'!B59,2)='E- OperatingCosts'!B59),"OKAY","$ Amt Number is Negative or more than 2 Decimal places") -> OKAY | E56: 54
A57: $ Amt is negative or more than 2 decimal places | B57: B60 | C57: =IF(AND('E- OperatingCosts'!B60>=0,ROUND('E- OperatingCosts'!B60,2)='E- OperatingCosts'!B60),"OKAY","$ Amt Number is Negative or more than 2 Decimal places") -> OKAY | E57: 55
A58: $ Amt is negative or more than 2 decimal places | B58: B61 | C58: =IF(AND('E- OperatingCosts'!B61>=0,ROUND('E- OperatingCosts'!B61,2)='E- OperatingCosts'!B61),"OKAY","$ Amt Number is Negative or more than 2 Decimal places") -> OKAY | E58: 56
A59: $ Amt is negative or more than 2 decimal places | B59: B62 | C59: =IF(AND('E- OperatingCosts'!B62>=0,ROUND('E- OperatingCosts'!B62,2)='E- OperatingCosts'!B62),"OKAY","$ Amt Number is Negative or more than 2 Decimal places") -> OKAY | E59: 57
A60: $ Amt is negative or more than 2 decimal places | B60: B63 | C60: =IF(AND('E- OperatingCosts'!B63>=0,ROUND('E- OperatingCosts'!B63,2)='E- OperatingCosts'!B63),"OKAY","$ Amt Number is Negative or more than 2 Decimal places") -> OKAY | E60: 58
A61: $ Amt is negative or more than 2 decimal places | B61: B64 | C61: =IF(AND('E- OperatingCosts'!B64>=0,ROUND('E- OperatingCosts'!B64,2)='E- OperatingCosts'!B64),"OKAY","$ Amt Number is Negative or more than 2 Decimal places") -> OKAY | E61: 59
A62: $ Amt is negative or more than 2 decimal places | B62: B65 | C62: =IF(AND('E- OperatingCosts'!B65>=0,ROUND('E- OperatingCosts'!B65,2)='E- OperatingCosts'!B65),"OKAY","$ Amt Number is Negative or more than 2 Decimal places") -> OKAY | E62: 60
A63: $ Amt is negative or more than 2 decimal places | B63: B66 | C63: =IF(AND('E- OperatingCosts'!B66>=0,ROUND('E- OperatingCosts'!B66,2)='E- OperatingCosts'!B66),"OKAY","$ Amt Number is Negative or more than 2 Decimal places") -> OKAY | E63: 61
A64: $ Amt is negative or more than 2 decimal places | B64: B67 | C64: =IF(AND('E- OperatingCosts'!B67>=0,ROUND('E- OperatingCosts'!B67,2)='E- OperatingCosts'!B67),"OKAY","$ Amt Number is Negative or more than 2 Decimal places") -> OKAY | E64: 62
A65: $ Amt is negative or more than 2 decimal places | B65: B68 | C65: =IF(AND('E- OperatingCosts'!B68>=0,ROUND('E- OperatingCosts'!B68,2)='E- OperatingCosts'!B68),"OKAY","$ Amt Number is Negative or more than 2 Decimal places") -> OKAY | E65: 63
A66: $ Amt is negative or more than 2 decimal places | B66: B69 | C66: =IF(AND('E- OperatingCosts'!B69>=0,ROUND('E- OperatingCosts'!B69,2)='E- OperatingCosts'!B69),"OKAY","$ Amt Number is Negative or more than 2 Decimal places") -> OKAY | E66: 64
A67: $ Amt is negative or more than 2 decimal places | B67: B70 | C67: =IF(AND('E- OperatingCosts'!B70>=0,ROUND('E- OperatingCosts'!B70,2)='E- OperatingCosts'!B70),"OKAY","$ Amt Number is Negative or more than 2 Decimal places") -> OKAY | E67: 65
A68: $ Amt is negative or more than 2 decimal places | B68: B71 | C68: =IF(AND('E- OperatingCosts'!B71>=0,ROUND('E- OperatingCosts'!B71,2)='E- OperatingCosts'!B71),"OKAY","$ Amt Number is Negative or more than 2 Decimal places") -> OKAY | D68: =IF(C68="OKAY","","Cell "&B68&" is negative or more than 2 decimal places") ->  | E68: =ROW(C68)-2 -> 66 | F68: =IF(D68="","",E68) ->  | G68: =IFERROR(SMALL($F$3:$F$1263,E68),"") -> 
A69: $ Amt is negative or more than 2 decimal places | B69: B72 | C69: =IF(AND('E- OperatingCosts'!B72>=0,ROUND('E- OperatingCosts'!B72,2)='E- OperatingCosts'!B72),"OKAY","$ Amt Number is Negative or more than 2 Decimal places") -> OKAY | E69: 67
A70: $ Amt is negative or more than 2 decimal places | B70: B73 | C70: =IF(AND('E- OperatingCosts'!B73>=0,ROUND('E- OperatingCosts'!B73,2)='E- OperatingCosts'!B73),"OKAY","$ Amt Number is Negative or more than 2 Decimal places") -> OKAY | E70: 68
A71: $ Amt is negative or more than 2 decimal places | B71: B74 | C71: =IF(AND('E- OperatingCosts'!B74>=0,ROUND('E- OperatingCosts'!B74,2)='E- OperatingCosts'!B74),"OKAY","$ Amt Number is Negative or more than 2 Decimal places") -> OKAY | E71: 69
A72: $ Amt is negative or more than 2 decimal places | B72: B75 | C72: =IF(AND('E- OperatingCosts'!B75>=0,ROUND('E- OperatingCosts'!B75,2)='E- OperatingCosts'!B75),"OKAY","$ Amt Number is Negative or more than 2 Decimal places") -> OKAY | E72: 70
A73: $ Amt is negative or more than 2 decimal places | B73: B76 | C73: =IF(AND('E- OperatingCosts'!B76>=0,ROUND('E- OperatingCosts'!B76,2)='E- OperatingCosts'!B76),"OKAY","$ Amt Number is Negative or more than 2 Decimal places") -> OKAY | E73: 71
A74: $ Amt is negative or more than 2 decimal places | B74: B77 | C74: =IF(AND('E- OperatingCosts'!B77>=0,ROUND('E- OperatingCosts'!B77,2)='E- OperatingCosts'!B77),"OKAY","$ Amt Number is Negative or more than 2 Decimal places") -> OKAY | E74: 72
A75: $ Amt is negative or more than 2 decimal places | B75: B78 | C75: =IF(AND('E- OperatingCosts'!B78>=0,ROUND('E- OperatingCosts'!B78,2)='E- OperatingCosts'!B78),"OKAY","$ Amt Number is Negative or more than 2 Decimal places") -> OKAY | E75: 73
A76: $ Amt is negative or more than 2 decimal places | B76: B79 | C76: =IF(AND('E- OperatingCosts'!B79>=0,ROUND('E- OperatingCosts'!B79,2)='E- OperatingCosts'!B79),"OKAY","$ Amt Number is Negative or more than 2 Decimal places") -> OKAY | E76: 74
A77: $ Amt is negative or more than 2 decimal places | B77: B80 | C77: =IF(AND('E- OperatingCosts'!B80>=0,ROUND('E- OperatingCosts'!B80,2)='E- OperatingCosts'!B80),"OKAY","$ Amt Number is Negative or more than 2 Decimal places") -> OKAY | E77: 75
A78: $ Amt is negative or more than 2 decimal places | B78: D8 | C78: =IF(AND('E- OperatingCosts'!D8>=0,ROUND('E- OperatingCosts'!D8,2)='E- OperatingCosts'!D8),"OKAY","$ Amt Number is Negative or more than 2 Decimal places") -> OKAY | D78: =IF(C78="OKAY","","Cell "&B78&" is negative or more than 2 decimal places") ->  | E78: 76
A79: $ Amt is negative or more than 2 decimal places | B79: D9 | C79: =IF(AND('E- OperatingCosts'!D9>=0,ROUND('E- OperatingCosts'!D9,2)='E- OperatingCosts'!D9),"OKAY","$ Amt Number is Negative or more than 2 Decimal places") -> OKAY | E79: 77
A80: $ Amt is negative or more than 2 decimal places | B80: D10 | C80: =IF(AND('E- OperatingCosts'!D10>=0,ROUND('E- OperatingCosts'!D10,2)='E- OperatingCosts'!D10),"OKAY","$ Amt Number is Negative or more than 2 Decimal places") -> OKAY | E80: 78
A81: $ Amt is negative or more than 2 decimal places | B81: D11 | C81: =IF(AND('E- OperatingCosts'!D11>=0,ROUND('E- OperatingCosts'!D11,2)='E- OperatingCosts'!D11),"OKAY","$ Amt Number is Negative or more than 2 Decimal places") -> OKAY | E81: 79
A82: $ Amt is negative or more than 2 decimal places | B82: E6 | C82: =IF(AND('E- OperatingCosts'!E6>=0,ROUND('E- OperatingCosts'!E6,2)='E- OperatingCosts'!E6),"OKAY","$ Amt Number is Negative or more than 2 Decimal places") -> OKAY | E82: 80
A83: $ Amt is negative or more than 2 decimal places | B83: E7 | C83: =IF(AND('E- OperatingCosts'!E7>=0,ROUND('E- OperatingCosts'!E7,2)='E- OperatingCosts'!E7),"OKAY","$ Amt Number is Negative or more than 2 Decimal places") -> OKAY | E83: 81
A84: $ Amt is negative or more than 2 decimal places | B84: E8 | C84: =IF(AND('E- OperatingCosts'!E8>=0,ROUND('E- OperatingCosts'!E8,2)='E- OperatingCosts'!E8),"OKAY","$ Amt Number is Negative or more than 2 Decimal places") -> OKAY | E84: 82
A85: $ Amt is negative or more than 2 decimal places | B85: E9 | C85: =IF(AND('E- OperatingCosts'!E9>=0,ROUND('E- OperatingCosts'!E9,2)='E- OperatingCosts'!E9),"OKAY","$ Amt Number is Negative or more than 2 Decimal places") -> OKAY | E85: 83
A86: $ Amt is negative or more than 2 decimal places | B86: E10 | C86: =IF(AND('E- OperatingCosts'!E10>=0,ROUND('E- OperatingCosts'!E10,2)='E- OperatingCosts'!E10),"OKAY","$ Amt Number is Negative or more than 2 Decimal places") -> OKAY | E86: 84
A87: $ Amt is negative or more than 2 decimal places | B87: E11 | C87: =IF(AND('E- OperatingCosts'!E11>=0,ROUND('E- OperatingCosts'!E11,2)='E- OperatingCosts'!E11),"OKAY","$ Amt Number is Negative or more than 2 Decimal places") -> OKAY | E87: 85
A88: $ Amt is negative or more than 2 decimal places | B88: E12 | C88: =IF(AND('E- OperatingCosts'!E12>=0,ROUND('E- OperatingCosts'!E12,2)='E- OperatingCosts'!E12),"OKAY","$ Amt Number is Negative or more than 2 Decimal places") -> OKAY | E88: 86
A89: $ Amt is negative or more than 2 decimal places | B89: E13 | C89: =IF(AND('E- OperatingCosts'!E13>=0,ROUND('E- OperatingCosts'!E13,2)='E- OperatingCosts'!E13),"OKAY","$ Amt Number is Negative or more than 2 Decimal places") -> OKAY | E89: 87
A90: $ Amt is negative or more than 2 decimal places | B90: E14 | C90: =IF(AND('E- OperatingCosts'!E14>=0,ROUND('E- OperatingCosts'!E14,2)='E- OperatingCosts'!E14),"OKAY","$ Amt Number is Negative or more than 2 Decimal places") -> OKAY | E90: 88
A91: $ Amt is negative or more than 2 decimal places | B91: E15 | C91: =IF(AND('E- OperatingCosts'!E15>=0,ROUND('E- OperatingCosts'!E15,2)='E- OperatingCosts'!E15),"OKAY","$ Amt Number is Negative or more than 2 Decimal places") -> OKAY | E91: 89
A92: $ Amt is negative or more than 2 decimal places | B92: E16 | C92: =IF(AND('E- OperatingCosts'!E16>=0,ROUND('E- OperatingCosts'!E16,2)='E- OperatingCosts'!E16),"OKAY","$ Amt Number is Negative or more than 2 Decimal places") -> OKAY | E92: 90
A93: $ Amt is negative or more than 2 decimal places | B93: E17 | C93: =IF(AND('E- OperatingCosts'!E17>=0,ROUND('E- OperatingCosts'!E17,2)='E- OperatingCosts'!E17),"OKAY","$ Amt Number is Negative or more than 2 Decimal places") -> OKAY | E93: 91
A94: $ Amt is negative or more than 2 decimal places | B94: E18 | C94: =IF(AND('E- OperatingCosts'!E18>=0,ROUND('E- OperatingCosts'!E18,2)='E- OperatingCosts'!E18),"OKAY","$ Amt Number is Negative or more than 2 Decimal places") -> OKAY | E94: 92
A95: $ Amt is negative or more than 2 decimal places | B95: E19 | C95: =IF(AND('E- OperatingCosts'!E19>=0,ROUND('E- OperatingCosts'!E19,2)='E- OperatingCosts'!E19),"OKAY","$ Amt Number is Negative or more than 2 Decimal places") -> OKAY | E95: 93
A96: $ Amt is negative or more than 2 decimal places | B96: E20 | C96: =IF(AND('E- OperatingCosts'!E20>=0,ROUND('E- OperatingCosts'!E20,2)='E- OperatingCosts'!E20),"OKAY","$ Amt Number is Negative or more than 2 Decimal places") -> OKAY | E96: 94
A97: $ Amt is negative or more than 2 decimal places | B97: E21 | C97: =IF(AND('E- OperatingCosts'!E21>=0,ROUND('E- OperatingCosts'!E21,2)='E- OperatingCosts'!E21),"OKAY","$ Amt Number is Negative or more than 2 Decimal places") -> OKAY | E97: 95
A98: $ Amt is negative or more than 2 decimal places | B98: E22 | C98: =IF(AND('E- OperatingCosts'!E22>=0,ROUND('E- OperatingCosts'!E22,2)='E- OperatingCosts'!E22),"OKAY","$ Amt Number is Negative or more than 2 Decimal places") -> OKAY | E98: 96
A99: $ Amt is negative or more than 2 decimal places | B99: E23 | C99: =IF(AND('E- OperatingCosts'!E23>=0,ROUND('E- OperatingCosts'!E23,2)='E- OperatingCosts'!E23),"OKAY","$ Amt Number is Negative or more than 2 Decimal places") -> OKAY | E99: 97
A100: $ Amt is negative or more than 2 decimal places | B100: E24 | C100: =IF(AND('E- OperatingCosts'!E24>=0,ROUND('E- OperatingCosts'!E24,2)='E- OperatingCosts'!E24),"OKAY","$ Amt Number is Negative or more than 2 Decimal places") -> OKAY | E100: 98
A101: $ Amt is negative or more than 2 decimal places | B101: E25 | C101: =IF(AND('E- OperatingCosts'!E25>=0,ROUND('E- OperatingCosts'!E25,2)='E- OperatingCosts'!E25),"OKAY","$ Amt Number is Negative or more than 2 Decimal places") -> OKAY | E101: 99
A102: $ Amt is negative or more than 2 decimal places | B102: E26 | C102: =IF(AND('E- OperatingCosts'!E26>=0,ROUND('E- OperatingCosts'!E26,2)='E- OperatingCosts'!E26),"OKAY","$ Amt Number is Negative or more than 2 Decimal places") -> OKAY | E102: 100
A103: $ Amt is negative or more than 2 decimal places | B103: E27 | C103: =IF(AND('E- OperatingCosts'!E27>=0,ROUND('E- OperatingCosts'!E27,2)='E- OperatingCosts'!E27),"OKAY","$ Amt Number is Negative or more than 2 Decimal places") -> OKAY | E103: 101
A104: $ Amt is negative or more than 2 decimal places | B104: E28 | C104: =IF(AND('E- OperatingCosts'!E28>=0,ROUND('E- OperatingCosts'!E28,2)='E- OperatingCosts'!E28),"OKAY","$ Amt Number is Negative or more than 2 Decimal places") -> OKAY | E104: 102
A105: $ Amt is negative or more than 2 decimal places | B105: E29 | C105: =IF(AND('E- OperatingCosts'!E29>=0,ROUND('E- OperatingCosts'!E29,2)='E- OperatingCosts'!E29),"OKAY","$ Amt Number is Negative or more than 2 Decimal places") -> OKAY | E105: 103
A106: $ Amt is negative or more than 2 decimal places | B106: E30 | C106: =IF(AND('E- OperatingCosts'!E30>=0,ROUND('E- OperatingCosts'!E30,2)='E- OperatingCosts'!E30),"OKAY","$ Amt Number is Negative or more than 2 Decimal places") -> OKAY | E106: 104
A107: $ Amt is negative or more than 2 decimal places | B107: E31 | C107: =IF(AND('E- OperatingCosts'!E31>=0,ROUND('E- OperatingCosts'!E31,2)='E- OperatingCosts'!E31),"OKAY","$ Amt Number is Negative or more than 2 Decimal places") -> OKAY | E107: 105
A108: $ Amt is negative or more than 2 decimal places | B108: E32 | C108: =IF(AND('E- OperatingCosts'!E32>=0,ROUND('E- OperatingCosts'!E32,2)='E- OperatingCosts'!E32),"OKAY","$ Amt Number is Negative or more than 2 Decimal places") -> OKAY | E108: 106
A109: $ Amt is negative or more than 2 decimal places | B109: E33 | C109: =IF(AND('E- OperatingCosts'!E33>=0,ROUND('E- OperatingCosts'!E33,2)='E- OperatingCosts'!E33),"OKAY","$ Amt Number is Negative or more than 2 Decimal places") -> OKAY | E109: 107
A110: $ Amt is negative or more than 2 decimal places | B110: E34 | C110: =IF(AND('E- OperatingCosts'!E34>=0,ROUND('E- OperatingCosts'!E34,2)='E- OperatingCosts'!E34),"OKAY","$ Amt Number is Negative or more than 2 Decimal places") -> OKAY | E110: 108
A111: $ Amt is negative or more than 2 decimal places | B111: E35 | C111: =IF(AND('E- OperatingCosts'!E35>=0,ROUND('E- OperatingCosts'!E35,2)='E- OperatingCosts'!E35),"OKAY","$ Amt Number is Negative or more than 2 Decimal places") -> OKAY | E111: 109
A112: $ Amt is negative or more than 2 decimal places | B112: E36 | C112: =IF(AND('E- OperatingCosts'!E36>=0,ROUND('E- OperatingCosts'!E36,2)='E- OperatingCosts'!E36),"OKAY","$ Amt Number is Negative or more than 2 Decimal places") -> OKAY | E112: 110
A113: $ Amt is negative or more than 2 decimal places | B113: E37 | C113: =IF(AND('E- OperatingCosts'!E37>=0,ROUND('E- OperatingCosts'!E37,2)='E- OperatingCosts'!E37),"OKAY","$ Amt Number is Negative or more than 2 Decimal places") -> OKAY | E113: 111
A114: $ Amt is negative or more than 2 decimal places | B114: E38 | C114: =IF(AND('E- OperatingCosts'!E38>=0,ROUND('E- OperatingCosts'!E38,2)='E- OperatingCosts'!E38),"OKAY","$ Amt Number is Negative or more than 2 Decimal places") -> OKAY | E114: 112
A115: $ Amt is negative or more than 2 decimal places | B115: E39 | C115: =IF(AND('E- OperatingCosts'!E39>=0,ROUND('E- OperatingCosts'!E39,2)='E- OperatingCosts'!E39),"OKAY","$ Amt Number is Negative or more than 2 Decimal places") -> OKAY | E115: 113
A116: $ Amt is negative or more than 2 decimal places | B116: E40 | C116: =IF(AND('E- OperatingCosts'!E40>=0,ROUND('E- OperatingCosts'!E40,2)='E- OperatingCosts'!E40),"OKAY","$ Amt Number is Negative or more than 2 Decimal places") -> OKAY | E116: 114
A117: $ Amt is negative or more than 2 decimal places | B117: E41 | C117: =IF(AND('E- OperatingCosts'!E41>=0,ROUND('E- OperatingCosts'!E41,2)='E- OperatingCosts'!E41),"OKAY","$ Amt Number is Negative or more than 2 Decimal places") -> OKAY | E117: 115
A118: $ Amt is negative or more than 2 decimal places | B118: E42 | C118: =IF(AND('E- OperatingCosts'!E42>=0,ROUND('E- OperatingCosts'!E42,2)='E- OperatingCosts'!E42),"OKAY","$ Amt Number is Negative or more than 2 Decimal places") -> OKAY | E118: 116
A119: $ Amt is negative or more than 2 decimal places | B119: E43 | C119: =IF(AND('E- OperatingCosts'!E43>=0,ROUND('E- OperatingCosts'!E43,2)='E- OperatingCosts'!E43),"OKAY","$ Amt Number is Negative or more than 2 Decimal places") -> OKAY | E119: 117
A120: $ Amt is negative or more than 2 decimal places | B120: E44 | C120: =IF(AND('E- OperatingCosts'!E44>=0,ROUND('E- OperatingCosts'!E44,2)='E- OperatingCosts'!E44),"OKAY","$ Amt Number is Negative or more than 2 Decimal places") -> OKAY | E120: 118
A121: $ Amt is negative or more than 2 decimal places | B121: E45 | C121: =IF(AND('E- OperatingCosts'!E45>=0,ROUND('E- OperatingCosts'!E45,2)='E- OperatingCosts'!E45),"OKAY","$ Amt Number is Negative or more than 2 Decimal places") -> OKAY | E121: 119
A122: $ Amt is negative or more than 2 decimal places | B122: E46 | C122: =IF(AND('E- OperatingCosts'!E46>=0,ROUND('E- OperatingCosts'!E46,2)='E- OperatingCosts'!E46),"OKAY","$ Amt Number is Negative or more than 2 Decimal places") -> OKAY | E122: 120
A123: $ Amt is negative or more than 2 decimal places | B123: E47 | C123: =IF(AND('E- OperatingCosts'!E47>=0,ROUND('E- OperatingCosts'!E47,2)='E- OperatingCosts'!E47),"OKAY","$ Amt Number is Negative or more than 2 Decimal places") -> OKAY | E123: 121
A124: $ Amt is negative or more than 2 decimal places | B124: E48 | C124: =IF(AND('E- OperatingCosts'!E48>=0,ROUND('E- OperatingCosts'!E48,2)='E- OperatingCosts'!E48),"OKAY","$ Amt Number is Negative or more than 2 Decimal places") -> OKAY | E124: 122
A125: $ Amt is negative or more than 2 decimal places | B125: E49 | C125: =IF(AND('E- OperatingCosts'!E49>=0,ROUND('E- OperatingCosts'!E49,2)='E- OperatingCosts'!E49),"OKAY","$ Amt Number is Negative or more than 2 Decimal places") -> OKAY | E125: 123
A126: $ Amt is negative or more than 2 decimal places | B126: E50 | C126: =IF(AND('E- OperatingCosts'!E50>=0,ROUND('E- OperatingCosts'!E50,2)='E- OperatingCosts'!E50),"OKAY","$ Amt Number is Negative or more than 2 Decimal places") -> OKAY | E126: 124
A127: $ Amt is negative or more than 2 decimal places | B127: E51 | C127: =IF(AND('E- OperatingCosts'!E51>=0,ROUND('E- OperatingCosts'!E51,2)='E- OperatingCosts'!E51),"OKAY","$ Amt Number is Negative or more than 2 Decimal places") -> OKAY | E127: 125
A128: $ Amt is negative or more than 2 decimal places | B128: E52 | C128: =IF(AND('E- OperatingCosts'!E52>=0,ROUND('E- OperatingCosts'!E52,2)='E- OperatingCosts'!E52),"OKAY","$ Amt Number is Negative or more than 2 Decimal places") -> OKAY | E128: 126
A129: $ Amt is negative or more than 2 decimal places | B129: E53 | C129: =IF(AND('E- OperatingCosts'!E53>=0,ROUND('E- OperatingCosts'!E53,2)='E- OperatingCosts'!E53),"OKAY","$ Amt Number is Negative or more than 2 Decimal places") -> OKAY | E129: 127
A130: $ Amt is negative or more than 2 decimal places | B130: E54 | C130: =IF(AND('E- OperatingCosts'!E54>=0,ROUND('E- OperatingCosts'!E54,2)='E- OperatingCosts'!E54),"OKAY","$ Amt Number is Negative or more than 2 Decimal places") -> OKAY | E130: 128
A131: $ Amt is negative or more than 2 decimal places | B131: E55 | C131: =IF(AND('E- OperatingCosts'!E55>=0,ROUND('E- OperatingCosts'!E55,2)='E- OperatingCosts'!E55),"OKAY","$ Amt Number is Negative or more than 2 Decimal places") -> OKAY | E131: 129
A132: $ Amt is negative or more than 2 decimal places | B132: E56 | C132: =IF(AND('E- OperatingCosts'!E56>=0,ROUND('E- OperatingCosts'!E56,2)='E- OperatingCosts'!E56),"OKAY","$ Amt Number is Negative or more than 2 Decimal places") -> OKAY | E132: =ROW(C132)-2 -> 130 | F132: =IF(D132="","",E132) ->  | G132: =IFERROR(SMALL($F$3:$F$1263,E132),"") -> 
A133: $ Amt is negative or more than 2 decimal places | B133: E57 | C133: =IF(AND('E- OperatingCosts'!E57>=0,ROUND('E- OperatingCosts'!E57,2)='E- OperatingCosts'!E57),"OKAY","$ Amt Number is Negative or more than 2 Decimal places") -> OKAY | E133: 131
A134: $ Amt is negative or more than 2 decimal places | B134: E58 | C134: =IF(AND('E- OperatingCosts'!E58>=0,ROUND('E- OperatingCosts'!E58,2)='E- OperatingCosts'!E58),"OKAY","$ Amt Number is Negative or more than 2 Decimal places") -> OKAY | E134: 132
A135: $ Amt is negative or more than 2 decimal places | B135: E59 | C135: =IF(AND('E- OperatingCosts'!E59>=0,ROUND('E- OperatingCosts'!E59,2)='E- OperatingCosts'!E59),"OKAY","$ Amt Number is Negative or more than 2 Decimal places") -> OKAY | E135: 133
A136: $ Amt is negative or more than 2 decimal places | B136: E60 | C136: =IF(AND('E- OperatingCosts'!E60>=0,ROUND('E- OperatingCosts'!E60,2)='E- OperatingCosts'!E60),"OKAY","$ Amt Number is Negative or more than 2 Decimal places") -> OKAY | E136: 134
A137: $ Amt is negative or more than 2 decimal places | B137: E61 | C137: =IF(AND('E- OperatingCosts'!E61>=0,ROUND('E- OperatingCosts'!E61,2)='E- OperatingCosts'!E61),"OKAY","$ Amt Number is Negative or more than 2 Decimal places") -> OKAY | E137: 135
A138: $ Amt is negative or more than 2 decimal places | B138: E62 | C138: =IF(AND('E- OperatingCosts'!E62>=0,ROUND('E- OperatingCosts'!E62,2)='E- OperatingCosts'!E62),"OKAY","$ Amt Number is Negative or more than 2 Decimal places") -> OKAY | E138: 136
A139: $ Amt is negative or more than 2 decimal places | B139: E63 | C139: =IF(AND('E- OperatingCosts'!E63>=0,ROUND('E- OperatingCosts'!E63,2)='E- OperatingCosts'!E63),"OKAY","$ Amt Number is Negative or more than 2 Decimal places") -> OKAY | E139: 137
A140: $ Amt is negative or more than 2 decimal places | B140: E64 | C140: =IF(AND('E- OperatingCosts'!E64>=0,ROUND('E- OperatingCosts'!E64,2)='E- OperatingCosts'!E64),"OKAY","$ Amt Number is Negative or more than 2 Decimal places") -> OKAY | E140: 138
A141: $ Amt is negative or more than 2 decimal places | B141: E65 | C141: =IF(AND('E- OperatingCosts'!E65>=0,ROUND('E- OperatingCosts'!E65,2)='E- OperatingCosts'!E65),"OKAY","$ Amt Number is Negative or more than 2 Decimal places") -> OKAY | E141: 139
A142: $ Amt is negative or more than 2 decimal places | B142: E66 | C142: =IF(AND('E- OperatingCosts'!E66>=0,ROUND('E- OperatingCosts'!E66,2)='E- OperatingCosts'!E66),"OKAY","$ Amt Number is Negative or more than 2 Decimal places") -> OKAY | E142: 140
A143: $ Amt is negative or more than 2 decimal places | B143: E67 | C143: =IF(AND('E- OperatingCosts'!E67>=0,ROUND('E- OperatingCosts'!E67,2)='E- OperatingCosts'!E67),"OKAY","$ Amt Number is Negative or more than 2 Decimal places") -> OKAY | E143: 141
A144: $ Amt is negative or more than 2 decimal places | B144: E68 | C144: =IF(AND('E- OperatingCosts'!E68>=0,ROUND('E- OperatingCosts'!E68,2)='E- OperatingCosts'!E68),"OKAY","$ Amt Number is Negative or more than 2 Decimal places") -> OKAY | E144: 142
A145: $ Amt is negative or more than 2 decimal places | B145: E69 | C145: =IF(AND('E- OperatingCosts'!E69>=0,ROUND('E- OperatingCosts'!E69,2)='E- OperatingCosts'!E69),"OKAY","$ Amt Number is Negative or more than 2 Decimal places") -> OKAY | E145: 143
A146: $ Amt is negative or more than 2 decimal places | B146: E70 | C146: =IF(AND('E- OperatingCosts'!E70>=0,ROUND('E- OperatingCosts'!E70,2)='E- OperatingCosts'!E70),"OKAY","$ Amt Number is Negative or more than 2 Decimal places") -> OKAY | E146: 144
A147: $ Amt is negative or more than 2 decimal places | B147: E71 | C147: =IF(AND('E- OperatingCosts'!E71>=0,ROUND('E- OperatingCosts'!E71,2)='E- OperatingCosts'!E71),"OKAY","$ Amt Number is Negative or more than 2 Decimal places") -> OKAY | E147: 145
A148: $ Amt is negative or more than 2 decimal places | B148: E72 | C148: =IF(AND('E- OperatingCosts'!E72>=0,ROUND('E- OperatingCosts'!E72,2)='E- OperatingCosts'!E72),"OKAY","$ Amt Number is Negative or more than 2 Decimal places") -> OKAY | E148: 146
A149: $ Amt is negative or more than 2 decimal places | B149: E73 | C149: =IF(AND('E- OperatingCosts'!E73>=0,ROUND('E- OperatingCosts'!E73,2)='E- OperatingCosts'!E73),"OKAY","$ Amt Number is Negative or more than 2 Decimal places") -> OKAY | E149: 147
A150: $ Amt is negative or more than 2 decimal places | B150: E74 | C150: =IF(AND('E- OperatingCosts'!E74>=0,ROUND('E- OperatingCosts'!E74,2)='E- OperatingCosts'!E74),"OKAY","$ Amt Number is Negative or more than 2 Decimal places") -> OKAY | E150: 148
A151: $ Amt is negative or more than 2 decimal places | B151: E75 | C151: =IF(AND('E- OperatingCosts'!E75>=0,ROUND('E- OperatingCosts'!E75,2)='E- OperatingCosts'!E75),"OKAY","$ Amt Number is Negative or more than 2 Decimal places") -> OKAY | E151: 149
A152: $ Amt is negative or more than 2 decimal places | B152: E76 | C152: =IF(AND('E- OperatingCosts'!E76>=0,ROUND('E- OperatingCosts'!E76,2)='E- OperatingCosts'!E76),"OKAY","$ Amt Number is Negative or more than 2 Decimal places") -> OKAY | E152: 150
A153: $ Amt is negative or more than 2 decimal places | B153: E77 | C153: =IF(AND('E- OperatingCosts'!E77>=0,ROUND('E- OperatingCosts'!E77,2)='E- OperatingCosts'!E77),"OKAY","$ Amt Number is Negative or more than 2 Decimal places") -> OKAY | E153: 151
A154: $ Amt is negative or more than 2 decimal places | B154: E78 | C154: =IF(AND('E- OperatingCosts'!E78>=0,ROUND('E- OperatingCosts'!E78,2)='E- OperatingCosts'!E78),"OKAY","$ Amt Number is Negative or more than 2 Decimal places") -> OKAY | E154: 152
A155: $ Amt is negative or more than 2 decimal places | B155: E79 | C155: =IF(AND('E- OperatingCosts'!E79>=0,ROUND('E- OperatingCosts'!E79,2)='E- OperatingCosts'!E79),"OKAY","$ Amt Number is Negative or more than 2 Decimal places") -> OKAY | E155: 153
A156: $ Amt is negative or more than 2 decimal places | B156: E80 | C156: =IF(AND('E- OperatingCosts'!E80>=0,ROUND('E- OperatingCosts'!E80,2)='E- OperatingCosts'!E80),"OKAY","$ Amt Number is Negative or more than 2 Decimal places") -> OKAY | E156: 154
A157: $ Amt is negative or more than 2 decimal places | B157: F6 | C157: =IF(AND('E- OperatingCosts'!F6>=0,ROUND('E- OperatingCosts'!F6,2)='E- OperatingCosts'!F6),"OKAY","$ Amt Number is Negative or more than 2 Decimal places") -> OKAY | D157: =IF(C157="OKAY","","Cell "&B157&" is negative or more than 2 decimal places") ->  | E157: 155
A158: $ Amt is negative or more than 2 decimal places | B158: F7 | C158: =IF(AND('E- OperatingCosts'!F7>=0,ROUND('E- OperatingCosts'!F7,2)='E- OperatingCosts'!F7),"OKAY","$ Amt Number is Negative or more than 2 Decimal places") -> OKAY | E158: 156
A159: $ Amt is negative or more than 2 decimal places | B159: F8 | C159: =IF(AND('E- OperatingCosts'!F8>=0,ROUND('E- OperatingCosts'!F8,2)='E- OperatingCosts'!F8),"OKAY","$ Amt Number is Negative or more than 2 Decimal places") -> OKAY | E159: 157
A160: $ Amt is negative or more than 2 decimal places | B160: F9 | C160: =IF(AND('E- OperatingCosts'!F9>=0,ROUND('E- OperatingCosts'!F9,2)='E- OperatingCosts'!F9),"OKAY","$ Amt Number is Negative or more than 2 Decimal places") -> OKAY | E160: 158
A161: $ Amt is negative or more than 2 decimal places | B161: F10 | C161: =IF(AND('E- OperatingCosts'!F10>=0,ROUND('E- OperatingCosts'!F10,2)='E- OperatingCosts'!F10),"OKAY","$ Amt Number is Negative or more than 2 Decimal places") -> OKAY | E161: 159
A162: $ Amt is negative or more than 2 decimal places | B162: F11 | C162: =IF(AND('E- OperatingCosts'!F11>=0,ROUND('E- OperatingCosts'!F11,2)='E- OperatingCosts'!F11),"OKAY","$ Amt Number is Negative or more than 2 Decimal places") -> OKAY | E162: 160
A163: $ Amt is negative or more than 2 decimal places | B163: F12 | C163: =IF(AND('E- OperatingCosts'!F12>=0,ROUND('E- OperatingCosts'!F12,2)='E- OperatingCosts'!F12),"OKAY","$ Amt Number is Negative or more than 2 Decimal places") -> OKAY | E163: 161
A164: $ Amt is negative or more than 2 decimal places | B164: F13 | C164: =IF(AND('E- OperatingCosts'!F13>=0,ROUND('E- OperatingCosts'!F13,2)='E- OperatingCosts'!F13),"OKAY","$ Amt Number is Negative or more than 2 Decimal places") -> OKAY | E164: 162
A165: $ Amt is negative or more than 2 decimal places | B165: F14 | C165: =IF(AND('E- OperatingCosts'!F14>=0,ROUND('E- OperatingCosts'!F14,2)='E- OperatingCosts'!F14),"OKAY","$ Amt Number is Negative or more than 2 Decimal places") -> OKAY | E165: 163
A166: $ Amt is negative or more than 2 decimal places | B166: F15 | C166: =IF(AND('E- OperatingCosts'!F15>=0,ROUND('E- OperatingCosts'!F15,2)='E- OperatingCosts'!F15),"OKAY","$ Amt Number is Negative or more than 2 Decimal places") -> OKAY | E166: 164
A167: $ Amt is negative or more than 2 decimal places | B167: F16 | C167: =IF(AND('E- OperatingCosts'!F16>=0,ROUND('E- OperatingCosts'!F16,2)='E- OperatingCosts'!F16),"OKAY","$ Amt Number is Negative or more than 2 Decimal places") -> OKAY | E167: 165
A168: $ Amt is negative or more than 2 decimal places | B168: F17 | C168: =IF(AND('E- OperatingCosts'!F17>=0,ROUND('E- OperatingCosts'!F17,2)='E- OperatingCosts'!F17),"OKAY","$ Amt Number is Negative or more than 2 Decimal places") -> OKAY | E168: 166
A169: $ Amt is negative or more than 2 decimal places | B169: F18 | C169: =IF(AND('E- OperatingCosts'!F18>=0,ROUND('E- OperatingCosts'!F18,2)='E- OperatingCosts'!F18),"OKAY","$ Amt Number is Negative or more than 2 Decimal places") -> OKAY | E169: 167
A170: $ Amt is negative or more than 2 decimal places | B170: F19 | C170: =IF(AND('E- OperatingCosts'!F19>=0,ROUND('E- OperatingCosts'!F19,2)='E- OperatingCosts'!F19),"OKAY","$ Amt Number is Negative or more than 2 Decimal places") -> OKAY | E170: 168
A171: $ Amt is negative or more than 2 decimal places | B171: F20 | C171: =IF(AND('E- OperatingCosts'!F20>=0,ROUND('E- OperatingCosts'!F20,2)='E- OperatingCosts'!F20),"OKAY","$ Amt Number is Negative or more than 2 Decimal places") -> OKAY | E171: 169
A172: $ Amt is negative or more than 2 decimal places | B172: F21 | C172: =IF(AND('E- OperatingCosts'!F21>=0,ROUND('E- OperatingCosts'!F21,2)='E- OperatingCosts'!F21),"OKAY","$ Amt Number is Negative or more than 2 Decimal places") -> OKAY | E172: 170
A173: $ Amt is negative or more than 2 decimal places | B173: F22 | C173: =IF(AND('E- OperatingCosts'!F22>=0,ROUND('E- OperatingCosts'!F22,2)='E- OperatingCosts'!F22),"OKAY","$ Amt Number is Negative or more than 2 Decimal places") -> OKAY | E173: 171
A174: $ Amt is negative or more than 2 decimal places | B174: F23 | C174: =IF(AND('E- OperatingCosts'!F23>=0,ROUND('E- OperatingCosts'!F23,2)='E- OperatingCosts'!F23),"OKAY","$ Amt Number is Negative or more than 2 Decimal places") -> OKAY | E174: 172
A175: $ Amt is negative or more than 2 decimal places | B175: F24 | C175: =IF(AND('E- OperatingCosts'!F24>=0,ROUND('E- OperatingCosts'!F24,2)='E- OperatingCosts'!F24),"OKAY","$ Amt Number is Negative or more than 2 Decimal places") -> OKAY | E175: 173
A176: $ Amt is negative or more than 2 decimal places | B176: F25 | C176: =IF(AND('E- OperatingCosts'!F25>=0,ROUND('E- OperatingCosts'!F25,2)='E- OperatingCosts'!F25),"OKAY","$ Amt Number is Negative or more than 2 Decimal places") -> OKAY | E176: 174
A177: $ Amt is negative or more than 2 decimal places | B177: F26 | C177: =IF(AND('E- OperatingCosts'!F26>=0,ROUND('E- OperatingCosts'!F26,2)='E- OperatingCosts'!F26),"OKAY","$ Amt Number is Negative or more than 2 Decimal places") -> OKAY | E177: 175
A178: $ Amt is negative or more than 2 decimal places | B178: F27 | C178: =IF(AND('E- OperatingCosts'!F27>=0,ROUND('E- OperatingCosts'!F27,2)='E- OperatingCosts'!F27),"OKAY","$ Amt Number is Negative or more than 2 Decimal places") -> OKAY | E178: 176
A179: $ Amt is negative or more than 2 decimal places | B179: F28 | C179: =IF(AND('E- OperatingCosts'!F28>=0,ROUND('E- OperatingCosts'!F28,2)='E- OperatingCosts'!F28),"OKAY","$ Amt Number is Negative or more than 2 Decimal places") -> OKAY | E179: 177
A180: $ Amt is negative or more than 2 decimal places | B180: F29 | C180: =IF(AND('E- OperatingCosts'!F29>=0,ROUND('E- OperatingCosts'!F29,2)='E- OperatingCosts'!F29),"OKAY","$ Amt Number is Negative or more than 2 Decimal places") -> OKAY | E180: 178
A181: $ Amt is negative or more than 2 decimal places | B181: F30 | C181: =IF(AND('E- OperatingCosts'!F30>=0,ROUND('E- OperatingCosts'!F30,2)='E- OperatingCosts'!F30),"OKAY","$ Amt Number is Negative or more than 2 Decimal places") -> OKAY | E181: 179
A182: $ Amt is negative or more than 2 decimal places | B182: F31 | C182: =IF(AND('E- OperatingCosts'!F31>=0,ROUND('E- OperatingCosts'!F31,2)='E- OperatingCosts'!F31),"OKAY","$ Amt Number is Negative or more than 2 Decimal places") -> OKAY | E182: 180
A183: $ Amt is negative or more than 2 decimal places | B183: F32 | C183: =IF(AND('E- OperatingCosts'!F32>=0,ROUND('E- OperatingCosts'!F32,2)='E- OperatingCosts'!F32),"OKAY","$ Amt Number is Negative or more than 2 Decimal places") -> OKAY | E183: 181
A184: $ Amt is negative or more than 2 decimal places | B184: F33 | C184: =IF(AND('E- OperatingCosts'!F33>=0,ROUND('E- OperatingCosts'!F33,2)='E- OperatingCosts'!F33),"OKAY","$ Amt Number is Negative or more than 2 Decimal places") -> OKAY | E184: 182
A185: $ Amt is negative or more than 2 decimal places | B185: F34 | C185: =IF(AND('E- OperatingCosts'!F34>=0,ROUND('E- OperatingCosts'!F34,2)='E- OperatingCosts'!F34),"OKAY","$ Amt Number is Negative or more than 2 Decimal places") -> OKAY | E185: 183
A186: $ Amt is negative or more than 2 decimal places | B186: F35 | C186: =IF(AND('E- OperatingCosts'!F35>=0,ROUND('E- OperatingCosts'!F35,2)='E- OperatingCosts'!F35),"OKAY","$ Amt Number is Negative or more than 2 Decimal places") -> OKAY | E186: 184
A187: $ Amt is negative or more than 2 decimal places | B187: F36 | C187: =IF(AND('E- OperatingCosts'!F36>=0,ROUND('E- OperatingCosts'!F36,2)='E- OperatingCosts'!F36),"OKAY","$ Amt Number is Negative or more than 2 Decimal places") -> OKAY | E187: 185
A188: $ Amt is negative or more than 2 decimal places | B188: F37 | C188: =IF(AND('E- OperatingCosts'!F37>=0,ROUND('E- OperatingCosts'!F37,2)='E- OperatingCosts'!F37),"OKAY","$ Amt Number is Negative or more than 2 Decimal places") -> OKAY | E188: 186
A189: $ Amt is negative or more than 2 decimal places | B189: F38 | C189: =IF(AND('E- OperatingCosts'!F38>=0,ROUND('E- OperatingCosts'!F38,2)='E- OperatingCosts'!F38),"OKAY","$ Amt Number is Negative or more than 2 Decimal places") -> OKAY | D189: =IF(C189="OKAY","","Cell "&B189&" is negative or more than 2 decimal places") ->  | E189: 187
A190: $ Amt is negative or more than 2 decimal places | B190: F39 | C190: =IF(AND('E- OperatingCosts'!F39>=0,ROUND('E- OperatingCosts'!F39,2)='E- OperatingCosts'!F39),"OKAY","$ Amt Number is Negative or more than 2 Decimal places") -> OKAY | E190: 188
A191: $ Amt is negative or more than 2 decimal places | B191: F40 | C191: =IF(AND('E- OperatingCosts'!F40>=0,ROUND('E- OperatingCosts'!F40,2)='E- OperatingCosts'!F40),"OKAY","$ Amt Number is Negative or more than 2 Decimal places") -> OKAY | E191: 189
A192: $ Amt is negative or more than 2 decimal places | B192: F41 | C192: =IF(AND('E- OperatingCosts'!F41>=0,ROUND('E- OperatingCosts'!F41,2)='E- OperatingCosts'!F41),"OKAY","$ Amt Number is Negative or more than 2 Decimal places") -> OKAY | E192: 190
A193: $ Amt is negative or more than 2 decimal places | B193: F42 | C193: =IF(AND('E- OperatingCosts'!F42>=0,ROUND('E- OperatingCosts'!F42,2)='E- OperatingCosts'!F42),"OKAY","$ Amt Number is Negative or more than 2 Decimal places") -> OKAY | E193: 191
A194: $ Amt is negative or more than 2 decimal places | B194: F43 | C194: =IF(AND('E- OperatingCosts'!F43>=0,ROUND('E- OperatingCosts'!F43,2)='E- OperatingCosts'!F43),"OKAY","$ Amt Number is Negative or more than 2 Decimal places") -> OKAY | E194: 192
A195: $ Amt is negative or more than 2 decimal places | B195: F44 | C195: =IF(AND('E- OperatingCosts'!F44>=0,ROUND('E- OperatingCosts'!F44,2)='E- OperatingCosts'!F44),"OKAY","$ Amt Number is Negative or more than 2 Decimal places") -> OKAY | E195: 193
A196: $ Amt is negative or more than 2 decimal places | B196: F45 | C196: =IF(AND('E- OperatingCosts'!F45>=0,ROUND('E- OperatingCosts'!F45,2)='E- OperatingCosts'!F45),"OKAY","$ Amt Number is Negative or more than 2 Decimal places") -> OKAY | E196: =ROW(C196)-2 -> 194 | F196: =IF(D196="","",E196) ->  | G196: =IFERROR(SMALL($F$3:$F$1263,E196),"") -> 
A197: $ Amt is negative or more than 2 decimal places | B197: F46 | C197: =IF(AND('E- OperatingCosts'!F46>=0,ROUND('E- OperatingCosts'!F46,2)='E- OperatingCosts'!F46),"OKAY","$ Amt Number is Negative or more than 2 Decimal places") -> OKAY | E197: 195
A198: $ Amt is negative or more than 2 decimal places | B198: F47 | C198: =IF(AND('E- OperatingCosts'!F47>=0,ROUND('E- OperatingCosts'!F47,2)='E- OperatingCosts'!F47),"OKAY","$ Amt Number is Negative or more than 2 Decimal places") -> OKAY | E198: 196
A199: $ Amt is negative or more than 2 decimal places | B199: F48 | C199: =IF(AND('E- OperatingCosts'!F48>=0,ROUND('E- OperatingCosts'!F48,2)='E- OperatingCosts'!F48),"OKAY","$ Amt Number is Negative or more than 2 Decimal places") -> OKAY | E199: 197
A200: $ Amt is negative or more than 2 decimal places | B200: F49 | C200: =IF(AND('E- OperatingCosts'!F49>=0,ROUND('E- OperatingCosts'!F49,2)='E- OperatingCosts'!F49),"OKAY","$ Amt Number is Negative or more than 2 Decimal places") -> OKAY | E200: 198
... 781 more rows

Sheet F- CapitalCosts
A1: =IF('A- Front Page'!B4="","",'A- Front Page'!B4) -> Santa Rosa
D2: Capital Costs
A4: Cost Centers / Departments | B4: 600s-700s | D4: Clerk Court Admin | E4: Circuit Criminal | F4: Circuit Civil | G4: Family | H4: Juvenile Delinquency | I4: Juvenile Dependency | J4: Probate | K4: Information Systems (IT) | L4: Optional Programs | M4: County Criminal | N4: County Civil | O4: Criminal Traffic | P4: Civil Traffic | Q4: Court Side Shared
A5: 1 | B5: 2
A6: =IF('C- GrossFTEs'!A6=0,"",'C- GrossFTEs'!A6) -> Title IV-D Child Support (Reimbursed) | G6: =ROUND(B6,0) -> 0
A7: =IF('C- GrossFTEs'!A7=0,"",'C- GrossFTEs'!A7) -> Title IV-D Child Support (Non-Reimbursed) | E7: =IFERROR(ROUND($B7*('C- GrossFTEs'!E7/'C- GrossFTEs'!$Z7),0),0) -> 0 | F7: =IFERROR(ROUND($B7*('C- GrossFTEs'!G7/'C- GrossFTEs'!$Z7),0),0) -> 0 | G7: =IFERROR(ROUND($B7*('C- GrossFTEs'!H7/'C- GrossFTEs'!$Z7),0),0) -> 0 | H7: =IFERROR(ROUND($B7*('C- GrossFTEs'!J7/'C- GrossFTEs'!$Z7),0),0) -> 0 | I7: =IFERROR(ROUND($B7*('C- GrossFTEs'!K7/'C- GrossFTEs'!$Z7),0),0) -> 0 | J7: =IFERROR(ROUND($B7*('C- GrossFTEs'!L7/'C- GrossFTEs'!$Z7),0),0) -> 0 | K7: =IFERROR(ROUND($B7*('C- GrossFTEs'!M7/'C- GrossFTEs'!$Z7),0),0) -> 0 | L7: =IFERROR(ROUND($B7*('C- GrossFTEs'!N7/'C- GrossFTEs'!$Z7),0),0) -> 0 | M7: =IFERROR(ROUND($B7*('C- GrossFTEs'!P7/'C- GrossFTEs'!$Z7),0),0) -> 0 | N7: =IFERROR(ROUND($B7*('C- GrossFTEs'!Q7/'C- GrossFTEs'!$Z7),0),0) -> 0 | O7: =IFERROR(ROUND($B7*('C- GrossFTEs'!S7/'C- GrossFTEs'!$Z7),0),0) -> 0 | P7: =ROUND(B7-SUM(D7:O7,Q7),0) -> 0
A8: =IF('C- GrossFTEs'!A8=0,"",'C- GrossFTEs'!A8) -> Elected Clerk | D8: =IFERROR(ROUND($B8*('C- GrossFTEs'!B8/'C- GrossFTEs'!$Z8),0),0) -> 0 | E8: =IFERROR(ROUND($B8*('C- GrossFTEs'!E8/'C- GrossFTEs'!$Z8),0),0) -> 0 | F8: =IFERROR(ROUND($B8*('C- GrossFTEs'!G8/'C- GrossFTEs'!$Z8),0),0) -> 0 | G8: =IFERROR(ROUND($B8*('C- GrossFTEs'!H8/'C- GrossFTEs'!$Z8),0),0) -> 0 | H8: =IFERROR(ROUND($B8*('C- GrossFTEs'!J8/'C- GrossFTEs'!$Z8),0),0) -> 0 | I8: =IFERROR(ROUND($B8*('C- GrossFTEs'!K8/'C- GrossFTEs'!$Z8),0),0) -> 0 | J8: =IFERROR(ROUND($B8*('C- GrossFTEs'!L8/'C- GrossFTEs'!$Z8),0),0) -> 0 | K8: =IFERROR(ROUND($B8*('C- GrossFTEs'!M8/'C- GrossFTEs'!$Z8),0),0) -> 0 | L8: =IFERROR(ROUND($B8*('C- GrossFTEs'!N8/'C- GrossFTEs'!$Z8),0),0) -> 0 | M8: =IFERROR(ROUND($B8*('C- GrossFTEs'!P8/'C- GrossFTEs'!$Z8),0),0) -> 0 | N8: =IFERROR(ROUND($B8*('C- GrossFTEs'!Q8/'C- GrossFTEs'!$Z8),0),0) -> 0 | O8: =IFERROR(ROUND($B8*('C- GrossFTEs'!S8/'C- GrossFTEs'!$Z8),0),0) -> 0 | P8: =ROUND(B8-SUM(D8:O8,Q8),0) -> 0 | Q8: =IFERROR(ROUND($B8*('C- GrossFTEs'!X8/'C- GrossFTEs'!$Z8),0),0) -> 0
A9: =IF('C- GrossFTEs'!A9=0,"",'C- GrossFTEs'!A9) -> Human Resources | D9: =IFERROR(ROUND($B9*('C- GrossFTEs'!B9/'C- GrossFTEs'!$Z9),0),0) -> 0 | E9: =IFERROR(ROUND($B9*('C- GrossFTEs'!E9/'C- GrossFTEs'!$Z9),0),0) -> 0 | F9: =IFERROR(ROUND($B9*('C- GrossFTEs'!G9/'C- GrossFTEs'!$Z9),0),0) -> 0 | G9: =IFERROR(ROUND($B9*('C- GrossFTEs'!H9/'C- GrossFTEs'!$Z9),0),0) -> 0 | H9: =IFERROR(ROUND($B9*('C- GrossFTEs'!J9/'C- GrossFTEs'!$Z9),0),0) -> 0 | I9: =IFERROR(ROUND($B9*('C- GrossFTEs'!K9/'C- GrossFTEs'!$Z9),0),0) -> 0 | J9: =IFERROR(ROUND($B9*('C- GrossFTEs'!L9/'C- GrossFTEs'!$Z9),0),0) -> 0 | K9: =IFERROR(ROUND($B9*('C- GrossFTEs'!M9/'C- GrossFTEs'!$Z9),0),0) -> 0 | L9: =IFERROR(ROUND($B9*('C- GrossFTEs'!N9/'C- GrossFTEs'!$Z9),0),0) -> 0 | M9: =IFERROR(ROUND($B9*('C- GrossFTEs'!P9/'C- GrossFTEs'!$Z9),0),0) -> 0 | N9: =IFERROR(ROUND($B9*('C- GrossFTEs'!Q9/'C- GrossFTEs'!$Z9),0),0) -> 0 | O9: =IFERROR(ROUND($B9*('C- GrossFTEs'!S9/'C- GrossFTEs'!$Z9),0),0) -> 0 | P9: 0 | Q9: =IFERROR(ROUND($B9*('C- GrossFTEs'!X9/'C- GrossFTEs'!$Z9),0),0) -> 0
A10: =IF('C- GrossFTEs'!A10=0,"",'C- GrossFTEs'!A10) -> Clerk Accounting | D10: =IFERROR(ROUND($B10*('C- GrossFTEs'!B10/'C- GrossFTEs'!$Z10),0),0) -> 0 | E10: =IFERROR(ROUND($B10*('C- GrossFTEs'!E10/'C- GrossFTEs'!$Z10),0),0) -> 0 | F10: =IFERROR(ROUND($B10*('C- GrossFTEs'!G10/'C- GrossFTEs'!$Z10),0),0) -> 0 | G10: =IFERROR(ROUND($B10*('C- GrossFTEs'!H10/'C- GrossFTEs'!$Z10),0),0) -> 0 | H10: =IFERROR(ROUND($B10*('C- GrossFTEs'!J10/'C- GrossFTEs'!$Z10),0),0) -> 0 | I10: =IFERROR(ROUND($B10*('C- GrossFTEs'!K10/'C- GrossFTEs'!$Z10),0),0) -> 0 | J10: =IFERROR(ROUND($B10*('C- GrossFTEs'!L10/'C- GrossFTEs'!$Z10),0),0) -> 0 | K10: =IFERROR(ROUND($B10*('C- GrossFTEs'!M10/'C- GrossFTEs'!$Z10),0),0) -> 0 | L10: =IFERROR(ROUND($B10*('C- GrossFTEs'!N10/'C- GrossFTEs'!$Z10),0),0) -> 0 | M10: =IFERROR(ROUND($B10*('C- GrossFTEs'!P10/'C- GrossFTEs'!$Z10),0),0) -> 0 | N10: =IFERROR(ROUND($B10*('C- GrossFTEs'!Q10/'C- GrossFTEs'!$Z10),0),0) -> 0 | O10: =IFERROR(ROUND($B10*('C- GrossFTEs'!S10/'C- GrossFTEs'!$Z10),0),0) -> 0 | P10: 0 | Q10: =IFERROR(ROUND($B10*('C- GrossFTEs'!X10/'C- GrossFTEs'!$Z10),0),0) -> 0
A11: =IF('C- GrossFTEs'!A11=0,"",'C- GrossFTEs'!A11) -> Executive Administration | D11: =IFERROR(ROUND($B11*('C- GrossFTEs'!B11/'C- GrossFTEs'!$Z11),0),0) -> 0 | E11: =IFERROR(ROUND($B11*('C- GrossFTEs'!E11/'C- GrossFTEs'!$Z11),0),0) -> 0 | F11: =IFERROR(ROUND($B11*('C- GrossFTEs'!G11/'C- GrossFTEs'!$Z11),0),0) -> 0 | G11: =IFERROR(ROUND($B11*('C- GrossFTEs'!H11/'C- GrossFTEs'!$Z11),0),0) -> 0 | H11: =IFERROR(ROUND($B11*('C- GrossFTEs'!J11/'C- GrossFTEs'!$Z11),0),0) -> 0 | I11: =IFERROR(ROUND($B11*('C- GrossFTEs'!K11/'C- GrossFTEs'!$Z11),0),0) -> 0 | J11: =IFERROR(ROUND($B11*('C- GrossFTEs'!L11/'C- GrossFTEs'!$Z11),0),0) -> 0 | K11: =IFERROR(ROUND($B11*('C- GrossFTEs'!M11/'C- GrossFTEs'!$Z11),0),0) -> 0 | L11: =IFERROR(ROUND($B11*('C- GrossFTEs'!N11/'C- GrossFTEs'!$Z11),0),0) -> 0 | M11: =IFERROR(ROUND($B11*('C- GrossFTEs'!P11/'C- GrossFTEs'!$Z11),0),0) -> 0 | N11: =IFERROR(ROUND($B11*('C- GrossFTEs'!Q11/'C- GrossFTEs'!$Z11),0),0) -> 0 | O11: =IFERROR(ROUND($B11*('C- GrossFTEs'!S11/'C- GrossFTEs'!$Z11),0),0) -> 0 | P11: 0 | Q11: =IFERROR(ROUND($B11*('C- GrossFTEs'!X11/'C- GrossFTEs'!$Z11),0),0) -> 0
A12: =IF('C- GrossFTEs'!A12=0,"",'C- GrossFTEs'!A12) -> Jury Management | E12: =IFERROR(ROUND($B12*('C- GrossFTEs'!E12/'C- GrossFTEs'!$Z12),0),0) -> 0 | F12: =IFERROR(ROUND($B12*('C- GrossFTEs'!G12/'C- GrossFTEs'!$Z12),0),0) -> 0 | G12: =IFERROR(ROUND($B12*('C- GrossFTEs'!H12/'C- GrossFTEs'!$Z12),0),0) -> 0 | H12: =IFERROR(ROUND($B12*('C- GrossFTEs'!J12/'C- GrossFTEs'!$Z12),0),0) -> 0 | I12: =IFERROR(ROUND($B12*('C- GrossFTEs'!K12/'C- GrossFTEs'!$Z12),0),0) -> 0 | J12: =IFERROR(ROUND($B12*('C- GrossFTEs'!L12/'C- GrossFTEs'!$Z12),0),0) -> 0 | K12: =IFERROR(ROUND($B12*('C- GrossFTEs'!M12/'C- GrossFTEs'!$Z12),0),0) -> 0 | L12: =IFERROR(ROUND($B12*('C- GrossFTEs'!N12/'C- GrossFTEs'!$Z12),0),0) -> 0 | M12: =IFERROR(ROUND($B12*('C- GrossFTEs'!P12/'C- GrossFTEs'!$Z12),0),0) -> 0 | N12: =IFERROR(ROUND($B12*('C- GrossFTEs'!Q12/'C- GrossFTEs'!$Z12),0),0) -> 0 | O12: =IFERROR(ROUND($B12*('C- GrossFTEs'!S12/'C- GrossFTEs'!$Z12),0),0) -> 0 | P12: 0 | Q12: =IFERROR(ROUND($B12*('C- GrossFTEs'!X12/'C- GrossFTEs'!$Z12),0),0) -> 0
A13: =IF('C- GrossFTEs'!A13=0,"",'C- GrossFTEs'!A13) -> Archives | E13: =IFERROR(ROUND($B13*('C- GrossFTEs'!E13/'C- GrossFTEs'!$Z13),0),0) -> 0 | F13: =IFERROR(ROUND($B13*('C- GrossFTEs'!G13/'C- GrossFTEs'!$Z13),0),0) -> 0 | G13: =IFERROR(ROUND($B13*('C- GrossFTEs'!H13/'C- GrossFTEs'!$Z13),0),0) -> 0 | H13: =IFERROR(ROUND($B13*('C- GrossFTEs'!J13/'C- GrossFTEs'!$Z13),0),0) -> 0 | I13: =IFERROR(ROUND($B13*('C- GrossFTEs'!K13/'C- GrossFTEs'!$Z13),0),0) -> 0 | J13: =IFERROR(ROUND($B13*('C- GrossFTEs'!L13/'C- GrossFTEs'!$Z13),0),0) -> 0 | K13: =IFERROR(ROUND($B13*('C- GrossFTEs'!M13/'C- GrossFTEs'!$Z13),0),0) -> 0 | L13: =IFERROR(ROUND($B13*('C- GrossFTEs'!N13/'C- GrossFTEs'!$Z13),0),0) -> 0 | M13: =IFERROR(ROUND($B13*('C- GrossFTEs'!P13/'C- GrossFTEs'!$Z13),0),0) -> 0 | N13: =IFERROR(ROUND($B13*('C- GrossFTEs'!Q13/'C- GrossFTEs'!$Z13),0),0) -> 0 | O13: =IFERROR(ROUND($B13*('C- GrossFTEs'!S13/'C- GrossFTEs'!$Z13),0),0) -> 0 | P13: 0 | Q13: =IFERROR(ROUND($B13*('C- GrossFTEs'!X13/'C- GrossFTEs'!$Z13),0),0) -> 0
A14: =IF('C- GrossFTEs'!A14=0,"",'C- GrossFTEs'!A14) -> Felony | E14: =IFERROR(ROUND($B14*('C- GrossFTEs'!E14/'C- GrossFTEs'!$Z14),0),0) -> 0 | F14: =IFERROR(ROUND($B14*('C- GrossFTEs'!G14/'C- GrossFTEs'!$Z14),0),0) -> 0 | G14: =IFERROR(ROUND($B14*('C- GrossFTEs'!H14/'C- GrossFTEs'!$Z14),0),0) -> 0 | H14: =IFERROR(ROUND($B14*('C- GrossFTEs'!J14/'C- GrossFTEs'!$Z14),0),0) -> 0 | I14: =IFERROR(ROUND($B14*('C- GrossFTEs'!K14/'C- GrossFTEs'!$Z14),0),0) -> 0 | J14: =IFERROR(ROUND($B14*('C- GrossFTEs'!L14/'C- GrossFTEs'!$Z14),0),0) -> 0 | K14: =IFERROR(ROUND($B14*('C- GrossFTEs'!M14/'C- GrossFTEs'!$Z14),0),0) -> 0 | L14: =IFERROR(ROUND($B14*('C- GrossFTEs'!N14/'C- GrossFTEs'!$Z14),0),0) -> 0 | M14: =IFERROR(ROUND($B14*('C- GrossFTEs'!P14/'C- GrossFTEs'!$Z14),0),0) -> 0 | N14: =IFERROR(ROUND($B14*('C- GrossFTEs'!Q14/'C- GrossFTEs'!$Z14),0),0) -> 0 | O14: =IFERROR(ROUND($B14*('C- GrossFTEs'!S14/'C- GrossFTEs'!$Z14),0),0) -> 0 | P14: 0 | Q14: =IFERROR(ROUND($B14*('C- GrossFTEs'!X14/'C- GrossFTEs'!$Z14),0),0) -> 0
A15: =IF('C- GrossFTEs'!A15=0,"",'C- GrossFTEs'!A15) -> Circuit Civil | E15: =IFERROR(ROUND($B15*('C- GrossFTEs'!E15/'C- GrossFTEs'!$Z15),0),0) -> 0 | F15: =IFERROR(ROUND($B15*('C- GrossFTEs'!G15/'C- GrossFTEs'!$Z15),0),0) -> 0 | G15: =IFERROR(ROUND($B15*('C- GrossFTEs'!H15/'C- GrossFTEs'!$Z15),0),0) -> 0 | H15: =IFERROR(ROUND($B15*('C- GrossFTEs'!J15/'C- GrossFTEs'!$Z15),0),0) -> 0 | I15: =IFERROR(ROUND($B15*('C- GrossFTEs'!K15/'C- GrossFTEs'!$Z15),0),0) -> 0 | J15: =IFERROR(ROUND($B15*('C- GrossFTEs'!L15/'C- GrossFTEs'!$Z15),0),0) -> 0 | K15: =IFERROR(ROUND($B15*('C- GrossFTEs'!M15/'C- GrossFTEs'!$Z15),0),0) -> 0 | L15: =IFERROR(ROUND($B15*('C- GrossFTEs'!N15/'C- GrossFTEs'!$Z15),0),0) -> 0 | M15: =IFERROR(ROUND($B15*('C- GrossFTEs'!P15/'C- GrossFTEs'!$Z15),0),0) -> 0 | N15: =IFERROR(ROUND($B15*('C- GrossFTEs'!Q15/'C- GrossFTEs'!$Z15),0),0) -> 0 | O15: =IFERROR(ROUND($B15*('C- GrossFTEs'!S15/'C- GrossFTEs'!$Z15),0),0) -> 0 | P15: 0 | Q15: =IFERROR(ROUND($B15*('C- GrossFTEs'!X15/'C- GrossFTEs'!$Z15),0),0) -> 0
A16: =IF('C- GrossFTEs'!A16=0,"",'C- GrossFTEs'!A16) -> Family Law | E16: =IFERROR(ROUND($B16*('C- GrossFTEs'!E16/'C- GrossFTEs'!$Z16),0),0) -> 0 | F16: =IFERROR(ROUND($B16*('C- GrossFTEs'!G16/'C- GrossFTEs'!$Z16),0),0) -> 0 | G16: =IFERROR(ROUND($B16*('C- GrossFTEs'!H16/'C- GrossFTEs'!$Z16),0),0) -> 0 | H16: =IFERROR(ROUND($B16*('C- GrossFTEs'!J16/'C- GrossFTEs'!$Z16),0),0) -> 0 | I16: =IFERROR(ROUND($B16*('C- GrossFTEs'!K16/'C- GrossFTEs'!$Z16),0),0) -> 0 | J16: =IFERROR(ROUND($B16*('C- GrossFTEs'!L16/'C- GrossFTEs'!$Z16),0),0) -> 0 | K16: =IFERROR(ROUND($B16*('C- GrossFTEs'!M16/'C- GrossFTEs'!$Z16),0),0) -> 0 | L16: =IFERROR(ROUND($B16*('C- GrossFTEs'!N16/'C- GrossFTEs'!$Z16),0),0) -> 0 | M16: =IFERROR(ROUND($B16*('C- GrossFTEs'!P16/'C- GrossFTEs'!$Z16),0),0) -> 0 | N16: =IFERROR(ROUND($B16*('C- GrossFTEs'!Q16/'C- GrossFTEs'!$Z16),0),0) -> 0 | O16: =IFERROR(ROUND($B16*('C- GrossFTEs'!S16/'C- GrossFTEs'!$Z16),0),0) -> 0 | P16: 0 | Q16: =IFERROR(ROUND($B16*('C- GrossFTEs'!X16/'C- GrossFTEs'!$Z16),0),0) -> 0
A17: =IF('C- GrossFTEs'!A17=0,"",'C- GrossFTEs'!A17) -> Juvenile | E17: =IFERROR(ROUND($B17*('C- GrossFTEs'!E17/'C- GrossFTEs'!$Z17),0),0) -> 0 | F17: =IFERROR(ROUND($B17*('C- GrossFTEs'!G17/'C- GrossFTEs'!$Z17),0),0) -> 0 | G17: =IFERROR(ROUND($B17*('C- GrossFTEs'!H17/'C- GrossFTEs'!$Z17),0),0) -> 0 | H17: =IFERROR(ROUND($B17*('C- GrossFTEs'!J17/'C- GrossFTEs'!$Z17),0),0) -> 0 | I17: =IFERROR(ROUND($B17*('C- GrossFTEs'!K17/'C- GrossFTEs'!$Z17),0),0) -> 0 | J17: =IFERROR(ROUND($B17*('C- GrossFTEs'!L17/'C- GrossFTEs'!$Z17),0),0) -> 0 | K17: =IFERROR(ROUND($B17*('C- GrossFTEs'!M17/'C- GrossFTEs'!$Z17),0),0) -> 0 | L17: =IFERROR(ROUND($B17*('C- GrossFTEs'!N17/'C- GrossFTEs'!$Z17),0),0) -> 0 | M17: =IFERROR(ROUND($B17*('C- GrossFTEs'!P17/'C- GrossFTEs'!$Z17),0),0) -> 0 | N17: =IFERROR(ROUND($B17*('C- GrossFTEs'!Q17/'C- GrossFTEs'!$Z17),0),0) -> 0 | O17: =IFERROR(ROUND($B17*('C- GrossFTEs'!S17/'C- GrossFTEs'!$Z17),0),0) -> 0 | P17: 0 | Q17: =IFERROR(ROUND($B17*('C- GrossFTEs'!X17/'C- GrossFTEs'!$Z17),0),0) -> 0
A18: =IF('C- GrossFTEs'!A18=0,"",'C- GrossFTEs'!A18) -> Probate | E18: =IFERROR(ROUND($B18*('C- GrossFTEs'!E18/'C- GrossFTEs'!$Z18),0),0) -> 0 | F18: =IFERROR(ROUND($B18*('C- GrossFTEs'!G18/'C- GrossFTEs'!$Z18),0),0) -> 0 | G18: =IFERROR(ROUND($B18*('C- GrossFTEs'!H18/'C- GrossFTEs'!$Z18),0),0) -> 0 | H18: =IFERROR(ROUND($B18*('C- GrossFTEs'!J18/'C- GrossFTEs'!$Z18),0),0) -> 0 | I18: =IFERROR(ROUND($B18*('C- GrossFTEs'!K18/'C- GrossFTEs'!$Z18),0),0) -> 0 | J18: =IFERROR(ROUND($B18*('C- GrossFTEs'!L18/'C- GrossFTEs'!$Z18),0),0) -> 0 | K18: =IFERROR(ROUND($B18*('C- GrossFTEs'!M18/'C- GrossFTEs'!$Z18),0),0) -> 0 | L18: =IFERROR(ROUND($B18*('C- GrossFTEs'!N18/'C- GrossFTEs'!$Z18),0),0) -> 0 | M18: =IFERROR(ROUND($B18*('C- GrossFTEs'!P18/'C- GrossFTEs'!$Z18),0),0) -> 0 | N18: =IFERROR(ROUND($B18*('C- GrossFTEs'!Q18/'C- GrossFTEs'!$Z18),0),0) -> 0 | O18: =IFERROR(ROUND($B18*('C- GrossFTEs'!S18/'C- GrossFTEs'!$Z18),0),0) -> 0 | P18: 0 | Q18: =IFERROR(ROUND($B18*('C- GrossFTEs'!X18/'C- GrossFTEs'!$Z18),0),0) -> 0
A19: =IF('C- GrossFTEs'!A19=0,"",'C- GrossFTEs'!A19) -> Misdemeanor | E19: =IFERROR(ROUND($B19*('C- GrossFTEs'!E19/'C- GrossFTEs'!$Z19),0),0) -> 0 | F19: =IFERROR(ROUND($B19*('C- GrossFTEs'!G19/'C- GrossFTEs'!$Z19),0),0) -> 0 | G19: =IFERROR(ROUND($B19*('C- GrossFTEs'!H19/'C- GrossFTEs'!$Z19),0),0) -> 0 | H19: =IFERROR(ROUND($B19*('C- GrossFTEs'!J19/'C- GrossFTEs'!$Z19),0),0) -> 0 | I19: =IFERROR(ROUND($B19*('C- GrossFTEs'!K19/'C- GrossFTEs'!$Z19),0),0) -> 0 | J19: =IFERROR(ROUND($B19*('C- GrossFTEs'!L19/'C- GrossFTEs'!$Z19),0),0) -> 0 | K19: =IFERROR(ROUND($B19*('C- GrossFTEs'!M19/'C- GrossFTEs'!$Z19),0),0) -> 0 | L19: =IFERROR(ROUND($B19*('C- GrossFTEs'!N19/'C- GrossFTEs'!$Z19),0),0) -> 0 | M19: =IFERROR(ROUND($B19*('C- GrossFTEs'!P19/'C- GrossFTEs'!$Z19),0),0) -> 0 | N19: =IFERROR(ROUND($B19*('C- GrossFTEs'!Q19/'C- GrossFTEs'!$Z19),0),0) -> 0 | O19: =IFERROR(ROUND($B19*('C- GrossFTEs'!S19/'C- GrossFTEs'!$Z19),0),0) -> 0 | P19: 0 | Q19: =IFERROR(ROUND($B19*('C- GrossFTEs'!X19/'C- GrossFTEs'!$Z19),0),0) -> 0
A20: =IF('C- GrossFTEs'!A20=0,"",'C- GrossFTEs'!A20) -> County Civil | E20: =IFERROR(ROUND($B20*('C- GrossFTEs'!E20/'C- GrossFTEs'!$Z20),0),0) -> 0 | F20: =IFERROR(ROUND($B20*('C- GrossFTEs'!G20/'C- GrossFTEs'!$Z20),0),0) -> 0 | G20: =IFERROR(ROUND($B20*('C- GrossFTEs'!H20/'C- GrossFTEs'!$Z20),0),0) -> 0 | H20: =IFERROR(ROUND($B20*('C- GrossFTEs'!J20/'C- GrossFTEs'!$Z20),0),0) -> 0 | I20: =IFERROR(ROUND($B20*('C- GrossFTEs'!K20/'C- GrossFTEs'!$Z20),0),0) -> 0 | J20: =IFERROR(ROUND($B20*('C- GrossFTEs'!L20/'C- GrossFTEs'!$Z20),0),0) -> 0 | K20: =IFERROR(ROUND($B20*('C- GrossFTEs'!M20/'C- GrossFTEs'!$Z20),0),0) -> 0 | L20: =IFERROR(ROUND($B20*('C- GrossFTEs'!N20/'C- GrossFTEs'!$Z20),0),0) -> 0 | M20: =IFERROR(ROUND($B20*('C- GrossFTEs'!P20/'C- GrossFTEs'!$Z20),0),0) -> 0 | N20: =IFERROR(ROUND($B20*('C- GrossFTEs'!Q20/'C- GrossFTEs'!$Z20),0),0) -> 0 | O20: =IFERROR(ROUND($B20*('C- GrossFTEs'!S20/'C- GrossFTEs'!$Z20),0),0) -> 0 | P20: 0 | Q20: =IFERROR(ROUND($B20*('C- GrossFTEs'!X20/'C- GrossFTEs'!$Z20),0),0) -> 0
A21: =IF('C- GrossFTEs'!A21=0,"",'C- GrossFTEs'!A21) -> Traffic | E21: =IFERROR(ROUND($B21*('C- GrossFTEs'!E21/'C- GrossFTEs'!$Z21),0),0) -> 0 | F21: =IFERROR(ROUND($B21*('C- GrossFTEs'!G21/'C- GrossFTEs'!$Z21),0),0) -> 0 | G21: =IFERROR(ROUND($B21*('C- GrossFTEs'!H21/'C- GrossFTEs'!$Z21),0),0) -> 0 | H21: =IFERROR(ROUND($B21*('C- GrossFTEs'!J21/'C- GrossFTEs'!$Z21),0),0) -> 0 | I21: =IFERROR(ROUND($B21*('C- GrossFTEs'!K21/'C- GrossFTEs'!$Z21),0),0) -> 0 | J21: =IFERROR(ROUND($B21*('C- GrossFTEs'!L21/'C- GrossFTEs'!$Z21),0),0) -> 0 | K21: =IFERROR(ROUND($B21*('C- GrossFTEs'!M21/'C- GrossFTEs'!$Z21),0),0) -> 0 | L21: =IFERROR(ROUND($B21*('C- GrossFTEs'!N21/'C- GrossFTEs'!$Z21),0),0) -> 0 | M21: =IFERROR(ROUND($B21*('C- GrossFTEs'!P21/'C- GrossFTEs'!$Z21),0),0) -> 0 | N21: =IFERROR(ROUND($B21*('C- GrossFTEs'!Q21/'C- GrossFTEs'!$Z21),0),0) -> 0 | O21: =IFERROR(ROUND($B21*('C- GrossFTEs'!S21/'C- GrossFTEs'!$Z21),0),0) -> 0 | P21: 0 | Q21: =IFERROR(ROUND($B21*('C- GrossFTEs'!X21/'C- GrossFTEs'!$Z21),0),0) -> 0
A22: =IF('C- GrossFTEs'!A22=0,"",'C- GrossFTEs'!A22) -> Information Technology | E22: =IFERROR(ROUND($B22*('C- GrossFTEs'!E22/'C- GrossFTEs'!$Z22),0),0) -> 0 | F22: =IFERROR(ROUND($B22*('C- GrossFTEs'!G22/'C- GrossFTEs'!$Z22),0),0) -> 0 | G22: =IFERROR(ROUND($B22*('C- GrossFTEs'!H22/'C- GrossFTEs'!$Z22),0),0) -> 0 | H22: =IFERROR(ROUND($B22*('C- GrossFTEs'!J22/'C- GrossFTEs'!$Z22),0),0) -> 0 | I22: =IFERROR(ROUND($B22*('C- GrossFTEs'!K22/'C- GrossFTEs'!$Z22),0),0) -> 0 | J22: =IFERROR(ROUND($B22*('C- GrossFTEs'!L22/'C- GrossFTEs'!$Z22),0),0) -> 0 | K22: =IFERROR(ROUND($B22*('C- GrossFTEs'!M22/'C- GrossFTEs'!$Z22),0),0) -> 0 | L22: =IFERROR(ROUND($B22*('C- GrossFTEs'!N22/'C- GrossFTEs'!$Z22),0),0) -> 0 | M22: =IFERROR(ROUND($B22*('C- GrossFTEs'!P22/'C- GrossFTEs'!$Z22),0),0) -> 0 | N22: =IFERROR(ROUND($B22*('C- GrossFTEs'!Q22/'C- GrossFTEs'!$Z22),0),0) -> 0 | O22: =IFERROR(ROUND($B22*('C- GrossFTEs'!S22/'C- GrossFTEs'!$Z22),0),0) -> 0 | P22: 0 | Q22: =IFERROR(ROUND($B22*('C- GrossFTEs'!X22/'C- GrossFTEs'!$Z22),0),0) -> 0
